Workbook

Sheet Changelog
C2: Capital base & TAB input sheets
B3: 1 | C3: Cumulative reg years counter | D3: New counter to ensure that formulas that rely on the total number of 'reg years' to determine the appropriate WACC/inflation multiplier is actioned appropriately. Specifically, this addresses the following 2 issues: 1. Adjustment for t-1 true-up (rows 9, 37, etc. of capital base tracking sheet) to ensure the WACC adjustment for true-up in the adjustment period is exclusive of the extension 'year', while future periods are inclusive. 2. Accommodates any potential additional future period changes | E3: Capital base & TAB input Row 5
B4: 2 | C4: Year formula | D4: Formula for year labels adjusted so that transitions/extensions between financial vs calendar years are accounted for appropriately. In particular formula able to 'predict' a reg year change for the next reg period. | E4: Capital base & TAB input: Row 4, G5
B5: 3 | C5: Partial year extension switch added | D5: A switch has been added to the capital base input to determine if the current iteration of the tracking module is intended to determine the forecast depreciation schedule for a partial extension or a standard reg period. | E5: Capital base input Row 23 (new)
B6: 4 | C6: Heading/input prompts | D6: All heading and input prompts adjusted to account for changes 1-3 above. | E6: Capital base input Rows 9, 26, 242, 403, 458-509 TAB input Rows 9, 16, 285
C8: Capital base & TAB tracking sheets
B9: 5 | C9: Reference year counter to apply half-year multiplier | D9: This ensures that for the purposes of calculating the number of years to depreciate over, the half year is considered a proper half-year and not a full year. This process is similar to VicEDPR decisions. | E9: Capital base & TAB tracking Row 5
B10: 6 | C10: Adjust all depreciation formula to include half-year multiplier | D10: IF formula introduced to ensure that if remaining depreciation consists of a partial year depreciation which is equal to or smaller than the partial year extension (ie. final 0.5yr (or less) of depreciation to depreciate in half-year extension), it will fully depreciate, instead of incorrectly applying a 0.5x multiplier (which would result in two years of 0.25x depreciation). | E10: Capital base & TAB tracking All depreciation formula
B11: 7 | C11: New formula for t-1 capex depreciation during extension year | D11: New formula added in the year before t-1 depreciation typically begins. This is to account for the depreciation schedule of t-1 true-ups during an extension period, where the depreciation begins in the partial-year for the purposes of the extension PTRM. The conditional to triggering these cells is if "Yes" is selected for partial year extension switch. Conditional formatting also added to these cells. | E11: Capital base tracking L23, L51, L79, etc.
B12: 8 | C12: t-1 capex depreciation standard formula adjusted | D12: Standard formula for the t-1 capex depreciation has also been adjusted to account for the partial year extension switch. | E12: Capital base tracking Rows 23, 51, 79, etc.
B13: 9 | C13: OFFSET counter | D13: Additional offset counter separate to column E's 'year counter'. As a result of changes to the macro (see below), column E has become a 'year counter' which includes decimal places. Hence a new offset counter is required to ensure offset formulas work correctly. | E13: Capital base & TAB tracking Column D
B14: 10 | C14: Adjust depreciation OFFSET formula to refer to OFFSET counter | D14: Formulas to refer to column D for offset formula, while conditional IF continues to refer to column E. | E14: Capital base & TAB tracking All depreciation formula
B15: 11 | C15: ROUNDDOWN formula | D15: To address partial year inputs. | E15: Capital base tracking Rows 10, 38, etc.
C17: Capital base tracking summary & Tracking output sheets
B18: 12 | C18: Year lookup | D18: Year lookup adjusted to account for format change so that resulting depreciation schedule indexes correctly. | E18: Tracking summary & output G4 to I4
B19: 13 | D19: TAB year lookup also adjusted | E19: Tracking output H112, I112
B20: 14 | C20: Base year indicator for forecast depreciation schedule | D20: Formula to determine the base year dollar terms in which the forecast depreciation schedule should be in has been adjusted to account for the new input switch as per change 3 above. | E20: Capital base tracking summary & Tracking output G4
C22: VBA macro changes
B23: 7 | C23: Period expansion macro adjusted | D23: Macro has an additional line added to the t-1 adjustment depreciation expansion to clear the contents. This is to prevent the new formula in change 7 above to be copied down twice. | E23: VBA module 2 Line 64 (repeated in Extra_rows_RAB sub)
B24: 10 | C24: VBA macro - insert additional period | D24: Macro adjusted to include additional coding lines to include: 1. Additional variable 'regYearsRounded' 2. Loop condition based on 'regYeardsRounded' rather than 'regYears' 3. New IF condition to determine the appropriate amount to increase counter in column E of the tracking sheet 4. New line to increase OFFSET counter in column D for t-1 true-up | E24: VBA Lines: 13, 23, 36, 42-47, 50-51, 65, 67 (repeated for following two subs)

Sheet Intro
G2: Gas distribution service provider
I3: RFM - Depreciation tracking module
L4: Version: | M4: 1
L5: Date: | M5: April 2020
B8: Introduction | J8: Gas distribution module
C14: This attachment to the RFM is used by the AER to determine the forecast capital base and tax asset base (TAB) depreciation for a gas distribution service provider.
C15: It also calculates the actual tax depreciation for use in the RFM.
C17: INSTRUCTIONS FOR USE
C18: The RFM - depreciation tracking module handbook, which contains information on this depreciation tracking module, is available on the AER website at http://www.aer.gov.au
C20: a. Fill out input cells on the 'Capital base input' and 'TAB input' sheets. These input cells are highlighted blue.
C21: This provides the data for the depreciation tracking calculations.
C22: In general, input expenditure data should be valued in nominal dollar terms of the year indicated.
C23: Units and basis for entry are specified where required for each data table.
C24: Not all input cells require an input - be sure to read and follow the instructions contained within the comments for each section heading.
C25: All relevant inputs are to be filled on an ongoing basis, with the details of past expenditure and asset lives to be preserved.
C27: b. The values in the 'Tracking output' sheet
C28: This sheet summarises the key outputs of the year-by-year tracking approach, which includes forecast capital base and TAB depreciation to be input into the PTRM
C29: as well as actual tax depreciation for the current access arrangement period to be input into the RFM.
C31: VERSION RECORD
C33: Version | D33: Date | F33: Description
C34: 1 | D34: April 2020 | F34: Initial module

Sheet Capital base input
E2: =IF($F$8='TAB input'!$F$8, $F$8, 'TAB input'!$F$8)&" - Capital base input - Gas DNSP "&Intro!$I$3&" - version "& Intro!$M$4 -> Ausnet - Capital base input - Gas DNSP RFM - Depreciation tracking module - version 1 | J2: Input cells in blue
G3: Modifications to base AER module | H3: Placeholder estimates | I3: 1/2yr estimates
E4: Year | F4: =IF(LEN($H$9)>4, CONCATENATE(LEFT($H$9, 4)-2 & "-" & IF(AND(RIGHT($H$9, 2)<"12", RIGHT($H$9, 2)>"01"), "0", "") & IF(RIGHT($H$9, 2)="00", "98", IF(RIGHT($H$9, 2)="01", "99", RIGHT($H$9, 2)-2))), $H$9-2) -> 2011 | G4: =IF(LEN(F4)>4,CONCATENATE(LEFT(F4,4)+1&"-"&IF(RIGHT(F4, 2)<"09", "0","")&IF(RIGHT(F4, 2)="99", "00", RIGHT(F4,2)+1)),F4+1) -> 2012 | H4: =IF(LEN(G4)>4,CONCATENATE(LEFT(G4,4)+1&"-"&IF(RIGHT(G4, 2)<"09", "0","")&IF(RIGHT(G4, 2)="99", "00", RIGHT(G4,2)+1)),G4+1) -> 2013 | I4: =IF(I$11<>"", IF(INT($G$5+SUM($H$11:H$11))=$G$5+SUM($H$11:H$11), VALUE(LEFT(I$10, 4)), CONCATENATE(LEFT(I$10,4)&"-"&IF(MID(I$10, 3, 2)<"09", "0","")&IF(MID(I$10, 3, 2)="99", "00", MID(I$10, 3, 2)+1))), IF(AND(I$5<>INT(I$5), COUNTA($H$4:H$4)=ROUNDUP(I$5, 0)), IF($G$5+SUM($11:$11)=INT($G$5+SUM($11:$11)), VALUE(CONCATENATE(IF(RIGHT(H$4, 2)="99", LEFT(H$4, 2)+1, LEFT(H$4, 2))&RIGHT(H$4, 2))), CONCATENATE(LEFT(H$4, 2)&RIGHT(H$4, 2)&"-"&IF(RIGHT(H$4, 2)<"09", "0", "")&IF(RIGHT(H$4, 2)="99", "00", RIGHT(H$4, 2)+1))), IF(LEN(H4)>4,CONCATENATE(LEFT(H4,4)+1&"-"&IF(RIGHT(H4, 2)<"09", "0","")&IF(RIGHT(H4, 2)="99", "00", RIGHT(H4,2)+1)),VALUE(H4+1)))) -> 2014 | J4: =IF(J$11<>"", IF(INT($G$5+SUM($H$11:I$11))=$G$5+SUM($H$11:I$11), VALUE(LEFT(J$10, 4)), CONCATENATE(LEFT(J$10,4)&"-"&IF(MID(J$10, 3, 2)<"09", "0","")&IF(MID(J$10, 3, 2)="99", "00", MID(J$10, 3, 2)+1))), IF(AND(J$5<>INT(J$5), COUNTA($H$4:I$4)=ROUNDUP(J$5, 0)), IF($G$5+SUM($11:$11)=INT($G$5+SUM($11:$11)), VALUE(CONCATENATE(IF(RIGHT(I$4, 2)="99", LEFT(I$4, 2)+1, LEFT(I$4, 2))&RIGHT(I$4, 2))), CONCATENATE(LEFT(I$4, 2)&RIGHT(I$4, 2)&"-"&IF(RIGHT(I$4, 2)<"09", "0", "")&IF(RIGHT(I$4, 2)="99", "00", RIGHT(I$4, 2)+1))), IF(LEN(I4)>4,CONCATENATE(LEFT(I4,4)+1&"-"&IF(RIGHT(I4, 2)<"09", "0","")&IF(RIGHT(I4, 2)="99", "00", RIGHT(I4,2)+1)),VALUE(I4+1)))) -> 2015 | K4: =IF(K$11<>"", IF(INT($G$5+SUM($H$11:J$11))=$G$5+SUM($H$11:J$11), VALUE(LEFT(K$10, 4)), CONCATENATE(LEFT(K$10,4)&"-"&IF(MID(K$10, 3, 2)<"09", "0","")&IF(MID(K$10, 3, 2)="99", "00", MID(K$10, 3, 2)+1))), IF(AND(K$5<>INT(K$5), COUNTA($H$4:J$4)=ROUNDUP(K$5, 0)), IF($G$5+SUM($11:$11)=INT($G$5+SUM($11:$11)), VALUE(CONCATENATE(IF(RIGHT(J$4, 2)="99", LEFT(J$4, 2)+1, LEFT(J$4, 2))&RIGHT(J$4, 2))), CONCATENATE(LEFT(J$4, 2)&RIGHT(J$4, 2)&"-"&IF(RIGHT(J$4, 2)<"09", "0", "")&IF(RIGHT(J$4, 2)="99", "00", RIGHT(J$4, 2)+1))), IF(LEN(J4)>4,CONCATENATE(LEFT(J4,4)+1&"-"&IF(RIGHT(J4, 2)<"09", "0","")&IF(RIGHT(J4, 2)="99", "00", RIGHT(J4,2)+1)),VALUE(J4+1)))) -> 2016 | L4: =IF(L$11<>"", IF(INT($G$5+SUM($H$11:K$11))=$G$5+SUM($H$11:K$11), VALUE(LEFT(L$10, 4)), CONCATENATE(LEFT(L$10,4)&"-"&IF(MID(L$10, 3, 2)<"09", "0","")&IF(MID(L$10, 3, 2)="99", "00", MID(L$10, 3, 2)+1))), IF(AND(L$5<>INT(L$5), COUNTA($H$4:K$4)=ROUNDUP(L$5, 0)), IF($G$5+SUM($11:$11)=INT($G$5+SUM($11:$11)), VALUE(CONCATENATE(IF(RIGHT(K$4, 2)="99", LEFT(K$4, 2)+1, LEFT(K$4, 2))&RIGHT(K$4, 2))), CONCATENATE(LEFT(K$4, 2)&RIGHT(K$4, 2)&"-"&IF(RIGHT(K$4, 2)<"09", "0", "")&IF(RIGHT(K$4, 2)="99", "00", RIGHT(K$4, 2)+1))), IF(LEN(K4)>4,CONCATENATE(LEFT(K4,4)+1&"-"&IF(RIGHT(K4, 2)<"09", "0","")&IF(RIGHT(K4, 2)="99", "00", RIGHT(K4,2)+1)),VALUE(K4+1)))) -> 2017 | M4: =IF(M$11<>"", IF(INT($G$5+SUM($H$11:L$11))=$G$5+SUM($H$11:L$11), VALUE(LEFT(M$10, 4)), CONCATENATE(LEFT(M$10,4)&"-"&IF(MID(M$10, 3, 2)<"09", "0","")&IF(MID(M$10, 3, 2)="99", "00", MID(M$10, 3, 2)+1))), IF(AND(M$5<>INT(M$5), COUNTA($H$4:L$4)=ROUNDUP(M$5, 0)), IF($G$5+SUM($11:$11)=INT($G$5+SUM($11:$11)), VALUE(CONCATENATE(IF(RIGHT(L$4, 2)="99", LEFT(L$4, 2)+1, LEFT(L$4, 2))&RIGHT(L$4, 2))), CONCATENATE(LEFT(L$4, 2)&RIGHT(L$4, 2)&"-"&IF(RIGHT(L$4, 2)<"09", "0", "")&IF(RIGHT(L$4, 2)="99", "00", RIGHT(L$4, 2)+1))), IF(LEN(L4)>4,CONCATENATE(LEFT(L4,4)+1&"-"&IF(RIGHT(L4, 2)<"09", "0","")&IF(RIGHT(L4, 2)="99", "00", RIGHT(L4,2)+1)),VALUE(L4+1)))) -> 2018 | N4: =IF(N$11<>"", IF(INT($G$5+SUM($H$11:M$11))=$G$5+SUM($H$11:M$11), VALUE(LEFT(N$10, 4)), CONCATENATE(LEFT(N$10,4)&"-"&IF(MID(N$10, 3, 2)<"09", "0","")&IF(MID(N$10, 3, 2)="99", "00", MID(N$10, 3, 2)+1))), IF(AND(N$5<>INT(N$5), COUNTA($H$4:M$4)=ROUNDUP(N$5, 0)), IF($G$5+SUM($11:$11)=INT($G$5+SUM($11:$11)), VALUE(CONCATENATE(IF(RIGHT(M$4, 2)="99", LEFT(M$4, 2)+1, LEFT(M$4, 2))&RIGHT(M$4, 2))), CONCATENATE(LEFT(M$4, 2)&RIGHT(M$4, 2)&"-"&IF(RIGHT(M$4, 2)<"09", "0", "")&IF(RIGHT(M$4, 2)="99", "00", RIGHT(M$4, 2)+1))), IF(LEN(M4)>4,CONCATENATE(LEFT(M4,4)+1&"-"&IF(RIGHT(M4, 2)<"09", "0","")&IF(RIGHT(M4, 2)="99", "00", RIGHT(M4,2)+1)),VALUE(M4+1)))) -> 2019 | O4: =IF(O$11<>"", IF(INT($G$5+SUM($H$11:N$11))=$G$5+SUM($H$11:N$11), VALUE(LEFT(O$10, 4)), CONCATENATE(LEFT(O$10,4)&"-"&IF(MID(O$10, 3, 2)<"09", "0","")&IF(MID(O$10, 3, 2)="99", "00", MID(O$10, 3, 2)+1))), IF(AND(O$5<>INT(O$5), COUNTA($H$4:N$4)=ROUNDUP(O$5, 0)), IF($G$5+SUM($11:$11)=INT($G$5+SUM($11:$11)), VALUE(CONCATENATE(IF(RIGHT(N$4, 2)="99", LEFT(N$4, 2)+1, LEFT(N$4, 2))&RIGHT(N$4, 2))), CONCATENATE(LEFT(N$4, 2)&RIGHT(N$4, 2)&"-"&IF(RIGHT(N$4, 2)<"09", "0", "")&IF(RIGHT(N$4, 2)="99", "00", RIGHT(N$4, 2)+1))), IF(LEN(N4)>4,CONCATENATE(LEFT(N4,4)+1&"-"&IF(RIGHT(N4, 2)<"09", "0","")&IF(RIGHT(N4, 2)="99", "00", RIGHT(N4,2)+1)),VALUE(N4+1)))) -> 2020 | P4: =IF(P$11<>"", IF(INT($G$5+SUM($H$11:O$11))=$G$5+SUM($H$11:O$11), VALUE(LEFT(P$10, 4)), CONCATENATE(LEFT(P$10,4)&"-"&IF(MID(P$10, 3, 2)<"09", "0","")&IF(MID(P$10, 3, 2)="99", "00", MID(P$10, 3, 2)+1))), IF(AND(P$5<>INT(P$5), COUNTA($H$4:O$4)=ROUNDUP(P$5, 0)), IF($G$5+SUM($11:$11)=INT($G$5+SUM($11:$11)), VALUE(CONCATENATE(IF(RIGHT(O$4, 2)="99", LEFT(O$4, 2)+1, LEFT(O$4, 2))&RIGHT(O$4, 2))), CONCATENATE(LEFT(O$4, 2)&RIGHT(O$4, 2)&"-"&IF(RIGHT(O$4, 2)<"09", "0", "")&IF(RIGHT(O$4, 2)="99", "00", RIGHT(O$4, 2)+1))), IF(LEN(O4)>4,CONCATENATE(LEFT(O4,4)+1&"-"&IF(RIGHT(O4, 2)<"09", "0","")&IF(RIGHT(O4, 2)="99", "00", RIGHT(O4,2)+1)),VALUE(O4+1)))) -> 2021 | Q4: =IF(Q$11<>"", IF(INT($G$5+SUM($H$11:P$11))=$G$5+SUM($H$11:P$11), VALUE(LEFT(Q$10, 4)), CONCATENATE(LEFT(Q$10,4)&"-"&IF(MID(Q$10, 3, 2)<"09", "0","")&IF(MID(Q$10, 3, 2)="99", "00", MID(Q$10, 3, 2)+1))), IF(AND(Q$5<>INT(Q$5), COUNTA($H$4:P$4)=ROUNDUP(Q$5, 0)), IF($G$5+SUM($11:$11)=INT($G$5+SUM($11:$11)), VALUE(CONCATENATE(IF(RIGHT(P$4, 2)="99", LEFT(P$4, 2)+1, LEFT(P$4, 2))&RIGHT(P$4, 2))), CONCATENATE(LEFT(P$4, 2)&RIGHT(P$4, 2)&"-"&IF(RIGHT(P$4, 2)<"09", "0", "")&IF(RIGHT(P$4, 2)="99", "00", RIGHT(P$4, 2)+1))), IF(LEN(P4)>4,CONCATENATE(LEFT(P4,4)+1&"-"&IF(RIGHT(P4, 2)<"09", "0","")&IF(RIGHT(P4, 2)="99", "00", RIGHT(P4,2)+1)),VALUE(P4+1)))) -> 2022 | R4: =IF(R$11<>"", IF(INT($G$5+SUM($H$11:Q$11))=$G$5+SUM($H$11:Q$11), VALUE(LEFT(R$10, 4)), CONCATENATE(LEFT(R$10,4)&"-"&IF(MID(R$10, 3, 2)<"09", "0","")&IF(MID(R$10, 3, 2)="99", "00", MID(R$10, 3, 2)+1))), IF(AND(R$5<>INT(R$5), COUNTA($H$4:Q$4)=ROUNDUP(R$5, 0)), IF($G$5+SUM($11:$11)=INT($G$5+SUM($11:$11)), VALUE(CONCATENATE(IF(RIGHT(Q$4, 2)="99", LEFT(Q$4, 2)+1, LEFT(Q$4, 2))&RIGHT(Q$4, 2))), CONCATENATE(LEFT(Q$4, 2)&RIGHT(Q$4, 2)&"-"&IF(RIGHT(Q$4, 2)<"09", "0", "")&IF(RIGHT(Q$4, 2)="99", "00", RIGHT(Q$4, 2)+1))), IF(LEN(Q4)>4,CONCATENATE(LEFT(Q4,4)+1&"-"&IF(RIGHT(Q4, 2)<"09", "0","")&IF(RIGHT(Q4, 2)="99", "00", RIGHT(Q4,2)+1)),VALUE(Q4+1)))) -> 2023 | S4: =IF(S$11<>"", IF(INT($G$5+SUM($H$11:R$11))=$G$5+SUM($H$11:R$11), VALUE(LEFT(S$10, 4)), CONCATENATE(LEFT(S$10,4)&"-"&IF(MID(S$10, 3, 2)<"09", "0","")&IF(MID(S$10, 3, 2)="99", "00", MID(S$10, 3, 2)+1))), IF(AND(S$5<>INT(S$5), COUNTA($H$4:R$4)=ROUNDUP(S$5, 0)), IF($G$5+SUM($11:$11)=INT($G$5+SUM($11:$11)), VALUE(CONCATENATE(IF(RIGHT(R$4, 2)="99", LEFT(R$4, 2)+1, LEFT(R$4, 2))&RIGHT(R$4, 2))), CONCATENATE(LEFT(R$4, 2)&RIGHT(R$4, 2)&"-"&IF(RIGHT(R$4, 2)<"09", "0", "")&IF(RIGHT(R$4, 2)="99", "00", RIGHT(R$4, 2)+1))), IF(LEN(R4)>4,CONCATENATE(LEFT(R4,4)+1&"-"&IF(RIGHT(R4, 2)<"09", "0","")&IF(RIGHT(R4, 2)="99", "00", RIGHT(R4,2)+1)),VALUE(R4+1)))) -> 2023-24 | T4: =IF(T$11<>"", IF(INT($G$5+SUM($H$11:S$11))=$G$5+SUM($H$11:S$11), VALUE(LEFT(T$10, 4)), CONCATENATE(LEFT(T$10,4)&"-"&IF(MID(T$10, 3, 2)<"09", "0","")&IF(MID(T$10, 3, 2)="99", "00", MID(T$10, 3, 2)+1))), IF(AND(T$5<>INT(T$5), COUNTA($H$4:S$4)=ROUNDUP(T$5, 0)), IF($G$5+SUM($11:$11)=INT($G$5+SUM($11:$11)), VALUE(CONCATENATE(IF(RIGHT(S$4, 2)="99", LEFT(S$4, 2)+1, LEFT(S$4, 2))&RIGHT(S$4, 2))), CONCATENATE(LEFT(S$4, 2)&RIGHT(S$4, 2)&"-"&IF(RIGHT(S$4, 2)<"09", "0", "")&IF(RIGHT(S$4, 2)="99", "00", RIGHT(S$4, 2)+1))), IF(LEN(S4)>4,CONCATENATE(LEFT(S4,4)+1&"-"&IF(RIGHT(S4, 2)<"09", "0","")&IF(RIGHT(S4, 2)="99", "00", RIGHT(S4,2)+1)),VALUE(S4+1)))) -> 2024-25 | U4: =IF(U$11<>"", IF(INT($G$5+SUM($H$11:T$11))=$G$5+SUM($H$11:T$11), VALUE(LEFT(U$10, 4)), CONCATENATE(LEFT(U$10,4)&"-"&IF(MID(U$10, 3, 2)<"09", "0","")&IF(MID(U$10, 3, 2)="99", "00", MID(U$10, 3, 2)+1))), IF(AND(U$5<>INT(U$5), COUNTA($H$4:T$4)=ROUNDUP(U$5, 0)), IF($G$5+SUM($11:$11)=INT($G$5+SUM($11:$11)), VALUE(CONCATENATE(IF(RIGHT(T$4, 2)="99", LEFT(T$4, 2)+1, LEFT(T$4, 2))&RIGHT(T$4, 2))), CONCATENATE(LEFT(T$4, 2)&RIGHT(T$4, 2)&"-"&IF(RIGHT(T$4, 2)<"09", "0", "")&IF(RIGHT(T$4, 2)="99", "00", RIGHT(T$4, 2)+1))), IF(LEN(T4)>4,CONCATENATE(LEFT(T4,4)+1&"-"&IF(RIGHT(T4, 2)<"09", "0","")&IF(RIGHT(T4, 2)="99", "00", RIGHT(T4,2)+1)),VALUE(T4+1)))) -> 2025-26 | V4: =IF(V$11<>"", IF(INT($G$5+SUM($H$11:U$11))=$G$5+SUM($H$11:U$11), VALUE(LEFT(V$10, 4)), CONCATENATE(LEFT(V$10,4)&"-"&IF(MID(V$10, 3, 2)<"09", "0","")&IF(MID(V$10, 3, 2)="99", "00", MID(V$10, 3, 2)+1))), IF(AND(V$5<>INT(V$5), COUNTA($H$4:U$4)=ROUNDUP(V$5, 0)), IF($G$5+SUM($11:$11)=INT($G$5+SUM($11:$11)), VALUE(CONCATENATE(IF(RIGHT(U$4, 2)="99", LEFT(U$4, 2)+1, LEFT(U$4, 2))&RIGHT(U$4, 2))), CONCATENATE(LEFT(U$4, 2)&RIGHT(U$4, 2)&"-"&IF(RIGHT(U$4, 2)<"09", "0", "")&IF(RIGHT(U$4, 2)="99", "00", RIGHT(U$4, 2)+1))), IF(LEN(U4)>4,CONCATENATE(LEFT(U4,4)+1&"-"&IF(RIGHT(U4, 2)<"09", "0","")&IF(RIGHT(U4, 2)="99", "00", RIGHT(U4,2)+1)),VALUE(U4+1)))) -> 2026-27 | W4: =IF(W$11<>"", IF(INT($G$5+SUM($H$11:V$11))=$G$5+SUM($H$11:V$11), VALUE(LEFT(W$10, 4)), CONCATENATE(LEFT(W$10,4)&"-"&IF(MID(W$10, 3, 2)<"09", "0","")&IF(MID(W$10, 3, 2)="99", "00", MID(W$10, 3, 2)+1))), IF(AND(W$5<>INT(W$5), COUNTA($H$4:V$4)=ROUNDUP(W$5, 0)), IF($G$5+SUM($11:$11)=INT($G$5+SUM($11:$11)), VALUE(CONCATENATE(IF(RIGHT(V$4, 2)="99", LEFT(V$4, 2)+1, LEFT(V$4, 2))&RIGHT(V$4, 2))), CONCATENATE(LEFT(V$4, 2)&RIGHT(V$4, 2)&"-"&IF(RIGHT(V$4, 2)<"09", "0", "")&IF(RIGHT(V$4, 2)="99", "00", RIGHT(V$4, 2)+1))), IF(LEN(V4)>4,CONCATENATE(LEFT(V4,4)+1&"-"&IF(RIGHT(V4, 2)<"09", "0","")&IF(RIGHT(V4, 2)="99", "00", RIGHT(V4,2)+1)),VALUE(V4+1)))) -> 2027-28 | X4: =IF(X$11<>"", IF(INT($G$5+SUM($H$11:W$11))=$G$5+SUM($H$11:W$11), VALUE(LEFT(X$10, 4)), CONCATENATE(LEFT(X$10,4)&"-"&IF(MID(X$10, 3, 2)<"09", "0","")&IF(MID(X$10, 3, 2)="99", "00", MID(X$10, 3, 2)+1))), IF(AND(X$5<>INT(X$5), COUNTA($H$4:W$4)=ROUNDUP(X$5, 0)), IF($G$5+SUM($11:$11)=INT($G$5+SUM($11:$11)), VALUE(CONCATENATE(IF(RIGHT(W$4, 2)="99", LEFT(W$4, 2)+1, LEFT(W$4, 2))&RIGHT(W$4, 2))), CONCATENATE(LEFT(W$4, 2)&RIGHT(W$4, 2)&"-"&IF(RIGHT(W$4, 2)<"09", "0", "")&IF(RIGHT(W$4, 2)="99", "00", RIGHT(W$4, 2)+1))), IF(LEN(W4)>4,CONCATENATE(LEFT(W4,4)+1&"-"&IF(RIGHT(W4, 2)<"09", "0","")&IF(RIGHT(W4, 2)="99", "00", RIGHT(W4,2)+1)),VALUE(W4+1)))) -> 2028-29 | Y4: =IF(Y$11<>"", IF(INT($G$5+SUM($H$11:X$11))=$G$5+SUM($H$11:X$11), VALUE(LEFT(Y$10, 4)), CONCATENATE(LEFT(Y$10,4)&"-"&IF(MID(Y$10, 3, 2)<"09", "0","")&IF(MID(Y$10, 3, 2)="99", "00", MID(Y$10, 3, 2)+1))), IF(AND(Y$5<>INT(Y$5), COUNTA($H$4:X$4)=ROUNDUP(Y$5, 0)), IF($G$5+SUM($11:$11)=INT($G$5+SUM($11:$11)), VALUE(CONCATENATE(IF(RIGHT(X$4, 2)="99", LEFT(X$4, 2)+1, LEFT(X$4, 2))&RIGHT(X$4, 2))), CONCATENATE(LEFT(X$4, 2)&RIGHT(X$4, 2)&"-"&IF(RIGHT(X$4, 2)<"09", "0", "")&IF(RIGHT(X$4, 2)="99", "00", RIGHT(X$4, 2)+1))), IF(LEN(X4)>4,CONCATENATE(LEFT(X4,4)+1&"-"&IF(RIGHT(X4, 2)<"09", "0","")&IF(RIGHT(X4, 2)="99", "00", RIGHT(X4,2)+1)),VALUE(X4+1)))) -> 2029-30 | Z4: =IF(Z$11<>"", IF(INT($G$5+SUM($H$11:Y$11))=$G$5+SUM($H$11:Y$11), VALUE(LEFT(Z$10, 4)), CONCATENATE(LEFT(Z$10,4)&"-"&IF(MID(Z$10, 3, 2)<"09", "0","")&IF(MID(Z$10, 3, 2)="99", "00", MID(Z$10, 3, 2)+1))), IF(AND(Z$5<>INT(Z$5), COUNTA($H$4:Y$4)=ROUNDUP(Z$5, 0)), IF($G$5+SUM($11:$11)=INT($G$5+SUM($11:$11)), VALUE(CONCATENATE(IF(RIGHT(Y$4, 2)="99", LEFT(Y$4, 2)+1, LEFT(Y$4, 2))&RIGHT(Y$4, 2))), CONCATENATE(LEFT(Y$4, 2)&RIGHT(Y$4, 2)&"-"&IF(RIGHT(Y$4, 2)<"09", "0", "")&IF(RIGHT(Y$4, 2)="99", "00", RIGHT(Y$4, 2)+1))), IF(LEN(Y4)>4,CONCATENATE(LEFT(Y4,4)+1&"-"&IF(RIGHT(Y4, 2)<"09", "0","")&IF(RIGHT(Y4, 2)="99", "00", RIGHT(Y4,2)+1)),VALUE(Y4+1)))) -> 2030-31 | AA4: =IF(AA$11<>"", IF(INT($G$5+SUM($H$11:Z$11))=$G$5+SUM($H$11:Z$11), VALUE(LEFT(AA$10, 4)), CONCATENATE(LEFT(AA$10,4)&"-"&IF(MID(AA$10, 3, 2)<"09", "0","")&IF(MID(AA$10, 3, 2)="99", "00", MID(AA$10, 3, 2)+1))), IF(AND(AA$5<>INT(AA$5), COUNTA($H$4:Z$4)=ROUNDUP(AA$5, 0)), IF($G$5+SUM($11:$11)=INT($G$5+SUM($11:$11)), VALUE(CONCATENATE(IF(RIGHT(Z$4, 2)="99", LEFT(Z$4, 2)+1, LEFT(Z$4, 2))&RIGHT(Z$4, 2))), CONCATENATE(LEFT(Z$4, 2)&RIGHT(Z$4, 2)&"-"&IF(RIGHT(Z$4, 2)<"09", "0", "")&IF(RIGHT(Z$4, 2)="99", "00", RIGHT(Z$4, 2)+1))), IF(LEN(Z4)>4,CONCATENATE(LEFT(Z4,4)+1&"-"&IF(RIGHT(Z4, 2)<"09", "0","")&IF(RIGHT(Z4, 2)="99", "00", RIGHT(Z4,2)+1)),VALUE(Z4+1)))) -> 2031-32 | AB4: =IF(AB$11<>"", IF(INT($G$5+SUM($H$11:AA$11))=$G$5+SUM($H$11:AA$11), VALUE(LEFT(AB$10, 4)), CONCATENATE(LEFT(AB$10,4)&"-"&IF(MID(AB$10, 3, 2)<"09", "0","")&IF(MID(AB$10, 3, 2)="99", "00", MID(AB$10, 3, 2)+1))), IF(AND(AB$5<>INT(AB$5), COUNTA($H$4:AA$4)=ROUNDUP(AB$5, 0)), IF($G$5+SUM($11:$11)=INT($G$5+SUM($11:$11)), VALUE(CONCATENATE(IF(RIGHT(AA$4, 2)="99", LEFT(AA$4, 2)+1, LEFT(AA$4, 2))&RIGHT(AA$4, 2))), CONCATENATE(LEFT(AA$4, 2)&RIGHT(AA$4, 2)&"-"&IF(RIGHT(AA$4, 2)<"09", "0", "")&IF(RIGHT(AA$4, 2)="99", "00", RIGHT(AA$4, 2)+1))), IF(LEN(AA4)>4,CONCATENATE(LEFT(AA4,4)+1&"-"&IF(RIGHT(AA4, 2)<"09", "0","")&IF(RIGHT(AA4, 2)="99", "00", RIGHT(AA4,2)+1)),VALUE(AA4+1)))) -> 2032-33 | AC4: =IF(AC$11<>"", IF(INT($G$5+SUM($H$11:AB$11))=$G$5+SUM($H$11:AB$11), VALUE(LEFT(AC$10, 4)), CONCATENATE(LEFT(AC$10,4)&"-"&IF(MID(AC$10, 3, 2)<"09", "0","")&IF(MID(AC$10, 3, 2)="99", "00", MID(AC$10, 3, 2)+1))), IF(AND(AC$5<>INT(AC$5), COUNTA($H$4:AB$4)=ROUNDUP(AC$5, 0)), IF($G$5+SUM($11:$11)=INT($G$5+SUM($11:$11)), VALUE(CONCATENATE(IF(RIGHT(AB$4, 2)="99", LEFT(AB$4, 2)+1, LEFT(AB$4, 2))&RIGHT(AB$4, 2))), CONCATENATE(LEFT(AB$4, 2)&RIGHT(AB$4, 2)&"-"&IF(RIGHT(AB$4, 2)<"09", "0", "")&IF(RIGHT(AB$4, 2)="99", "00", RIGHT(AB$4, 2)+1))), IF(LEN(AB4)>4,CONCATENATE(LEFT(AB4,4)+1&"-"&IF(RIGHT(AB4, 2)<"09", "0","")&IF(RIGHT(AB4, 2)="99", "00", RIGHT(AB4,2)+1)),VALUE(AB4+1)))) -> 2033-34 | AD4: =IF(AD$11<>"", IF(INT($G$5+SUM($H$11:AC$11))=$G$5+SUM($H$11:AC$11), VALUE(LEFT(AD$10, 4)), CONCATENATE(LEFT(AD$10,4)&"-"&IF(MID(AD$10, 3, 2)<"09", "0","")&IF(MID(AD$10, 3, 2)="99", "00", MID(AD$10, 3, 2)+1))), IF(AND(AD$5<>INT(AD$5), COUNTA($H$4:AC$4)=ROUNDUP(AD$5, 0)), IF($G$5+SUM($11:$11)=INT($G$5+SUM($11:$11)), VALUE(CONCATENATE(IF(RIGHT(AC$4, 2)="99", LEFT(AC$4, 2)+1, LEFT(AC$4, 2))&RIGHT(AC$4, 2))), CONCATENATE(LEFT(AC$4, 2)&RIGHT(AC$4, 2)&"-"&IF(RIGHT(AC$4, 2)<"09", "0", "")&IF(RIGHT(AC$4, 2)="99", "00", RIGHT(AC$4, 2)+1))), IF(LEN(AC4)>4,CONCATENATE(LEFT(AC4,4)+1&"-"&IF(RIGHT(AC4, 2)<"09", "0","")&IF(RIGHT(AC4, 2)="99", "00", RIGHT(AC4,2)+1)),VALUE(AC4+1)))) -> 2034-35 | AE4: =IF(AE$11<>"", IF(INT($G$5+SUM($H$11:AD$11))=$G$5+SUM($H$11:AD$11), VALUE(LEFT(AE$10, 4)), CONCATENATE(LEFT(AE$10,4)&"-"&IF(MID(AE$10, 3, 2)<"09", "0","")&IF(MID(AE$10, 3, 2)="99", "00", MID(AE$10, 3, 2)+1))), IF(AND(AE$5<>INT(AE$5), COUNTA($H$4:AD$4)=ROUNDUP(AE$5, 0)), IF($G$5+SUM($11:$11)=INT($G$5+SUM($11:$11)), VALUE(CONCATENATE(IF(RIGHT(AD$4, 2)="99", LEFT(AD$4, 2)+1, LEFT(AD$4, 2))&RIGHT(AD$4, 2))), CONCATENATE(LEFT(AD$4, 2)&RIGHT(AD$4, 2)&"-"&IF(RIGHT(AD$4, 2)<"09", "0", "")&IF(RIGHT(AD$4, 2)="99", "00", RIGHT(AD$4, 2)+1))), IF(LEN(AD4)>4,CONCATENATE(LEFT(AD4,4)+1&"-"&IF(RIGHT(AD4, 2)<"09", "0","")&IF(RIGHT(AD4, 2)="99", "00", RIGHT(AD4,2)+1)),VALUE(AD4+1)))) -> 2035-36 | AF4: =IF(AF$11<>"", IF(INT($G$5+SUM($H$11:AE$11))=$G$5+SUM($H$11:AE$11), VALUE(LEFT(AF$10, 4)), CONCATENATE(LEFT(AF$10,4)&"-"&IF(MID(AF$10, 3, 2)<"09", "0","")&IF(MID(AF$10, 3, 2)="99", "00", MID(AF$10, 3, 2)+1))), IF(AND(AF$5<>INT(AF$5), COUNTA($H$4:AE$4)=ROUNDUP(AF$5, 0)), IF($G$5+SUM($11:$11)=INT($G$5+SUM($11:$11)), VALUE(CONCATENATE(IF(RIGHT(AE$4, 2)="99", LEFT(AE$4, 2)+1, LEFT(AE$4, 2))&RIGHT(AE$4, 2))), CONCATENATE(LEFT(AE$4, 2)&RIGHT(AE$4, 2)&"-"&IF(RIGHT(AE$4, 2)<"09", "0", "")&IF(RIGHT(AE$4, 2)="99", "00", RIGHT(AE$4, 2)+1))), IF(LEN(AE4)>4,CONCATENATE(LEFT(AE4,4)+1&"-"&IF(RIGHT(AE4, 2)<"09", "0","")&IF(RIGHT(AE4, 2)="99", "00", RIGHT(AE4,2)+1)),VALUE(AE4+1)))) -> 2036-37 | AG4: =IF(AG$11<>"", IF(INT($G$5+SUM($H$11:AF$11))=$G$5+SUM($H$11:AF$11), VALUE(LEFT(AG$10, 4)), CONCATENATE(LEFT(AG$10,4)&"-"&IF(MID(AG$10, 3, 2)<"09", "0","")&IF(MID(AG$10, 3, 2)="99", "00", MID(AG$10, 3, 2)+1))), IF(AND(AG$5<>INT(AG$5), COUNTA($H$4:AF$4)=ROUNDUP(AG$5, 0)), IF($G$5+SUM($11:$11)=INT($G$5+SUM($11:$11)), VALUE(CONCATENATE(IF(RIGHT(AF$4, 2)="99", LEFT(AF$4, 2)+1, LEFT(AF$4, 2))&RIGHT(AF$4, 2))), CONCATENATE(LEFT(AF$4, 2)&RIGHT(AF$4, 2)&"-"&IF(RIGHT(AF$4, 2)<"09", "0", "")&IF(RIGHT(AF$4, 2)="99", "00", RIGHT(AF$4, 2)+1))), IF(LEN(AF4)>4,CONCATENATE(LEFT(AF4,4)+1&"-"&IF(RIGHT(AF4, 2)<"09", "0","")&IF(RIGHT(AF4, 2)="99", "00", RIGHT(AF4,2)+1)),VALUE(AF4+1)))) -> 2037-38 | AH4: =IF(AH$11<>"", IF(INT($G$5+SUM($H$11:AG$11))=$G$5+SUM($H$11:AG$11), VALUE(LEFT(AH$10, 4)), CONCATENATE(LEFT(AH$10,4)&"-"&IF(MID(AH$10, 3, 2)<"09", "0","")&IF(MID(AH$10, 3, 2)="99", "00", MID(AH$10, 3, 2)+1))), IF(AND(AH$5<>INT(AH$5), COUNTA($H$4:AG$4)=ROUNDUP(AH$5, 0)), IF($G$5+SUM($11:$11)=INT($G$5+SUM($11:$11)), VALUE(CONCATENATE(IF(RIGHT(AG$4, 2)="99", LEFT(AG$4, 2)+1, LEFT(AG$4, 2))&RIGHT(AG$4, 2))), CONCATENATE(LEFT(AG$4, 2)&RIGHT(AG$4, 2)&"-"&IF(RIGHT(AG$4, 2)<"09", "0", "")&IF(RIGHT(AG$4, 2)="99", "00", RIGHT(AG$4, 2)+1))), IF(LEN(AG4)>4,CONCATENATE(LEFT(AG4,4)+1&"-"&IF(RIGHT(AG4, 2)<"09", "0","")&IF(RIGHT(AG4, 2)="99", "00", RIGHT(AG4,2)+1)),VALUE(AG4+1)))) -> 2038-39 | AI4: =IF(AI$11<>"", IF(INT($G$5+SUM($H$11:AH$11))=$G$5+SUM($H$11:AH$11), VALUE(LEFT(AI$10, 4)), CONCATENATE(LEFT(AI$10,4)&"-"&IF(MID(AI$10, 3, 2)<"09", "0","")&IF(MID(AI$10, 3, 2)="99", "00", MID(AI$10, 3, 2)+1))), IF(AND(AI$5<>INT(AI$5), COUNTA($H$4:AH$4)=ROUNDUP(AI$5, 0)), IF($G$5+SUM($11:$11)=INT($G$5+SUM($11:$11)), VALUE(CONCATENATE(IF(RIGHT(AH$4, 2)="99", LEFT(AH$4, 2)+1, LEFT(AH$4, 2))&RIGHT(AH$4, 2))), CONCATENATE(LEFT(AH$4, 2)&RIGHT(AH$4, 2)&"-"&IF(RIGHT(AH$4, 2)<"09", "0", "")&IF(RIGHT(AH$4, 2)="99", "00", RIGHT(AH$4, 2)+1))), IF(LEN(AH4)>4,CONCATENATE(LEFT(AH4,4)+1&"-"&IF(RIGHT(AH4, 2)<"09", "0","")&IF(RIGHT(AH4, 2)="99", "00", RIGHT(AH4,2)+1)),VALUE(AH4+1)))) -> 2039-40 | AJ4: =IF(AJ$11<>"", IF(INT($G$5+SUM($H$11:AI$11))=$G$5+SUM($H$11:AI$11), VALUE(LEFT(AJ$10, 4)), CONCATENATE(LEFT(AJ$10,4)&"-"&IF(MID(AJ$10, 3, 2)<"09", "0","")&IF(MID(AJ$10, 3, 2)="99", "00", MID(AJ$10, 3, 2)+1))), IF(AND(AJ$5<>INT(AJ$5), COUNTA($H$4:AI$4)=ROUNDUP(AJ$5, 0)), IF($G$5+SUM($11:$11)=INT($G$5+SUM($11:$11)), VALUE(CONCATENATE(IF(RIGHT(AI$4, 2)="99", LEFT(AI$4, 2)+1, LEFT(AI$4, 2))&RIGHT(AI$4, 2))), CONCATENATE(LEFT(AI$4, 2)&RIGHT(AI$4, 2)&"-"&IF(RIGHT(AI$4, 2)<"09", "0", "")&IF(RIGHT(AI$4, 2)="99", "00", RIGHT(AI$4, 2)+1))), IF(LEN(AI4)>4,CONCATENATE(LEFT(AI4,4)+1&"-"&IF(RIGHT(AI4, 2)<"09", "0","")&IF(RIGHT(AI4, 2)="99", "00", RIGHT(AI4,2)+1)),VALUE(AI4+1)))) -> 2040-41 | AK4: =IF(AK$11<>"", IF(INT($G$5+SUM($H$11:AJ$11))=$G$5+SUM($H$11:AJ$11), VALUE(LEFT(AK$10, 4)), CONCATENATE(LEFT(AK$10,4)&"-"&IF(MID(AK$10, 3, 2)<"09", "0","")&IF(MID(AK$10, 3, 2)="99", "00", MID(AK$10, 3, 2)+1))), IF(AND(AK$5<>INT(AK$5), COUNTA($H$4:AJ$4)=ROUNDUP(AK$5, 0)), IF($G$5+SUM($11:$11)=INT($G$5+SUM($11:$11)), VALUE(CONCATENATE(IF(RIGHT(AJ$4, 2)="99", LEFT(AJ$4, 2)+1, LEFT(AJ$4, 2))&RIGHT(AJ$4, 2))), CONCATENATE(LEFT(AJ$4, 2)&RIGHT(AJ$4, 2)&"-"&IF(RIGHT(AJ$4, 2)<"09", "0", "")&IF(RIGHT(AJ$4, 2)="99", "00", RIGHT(AJ$4, 2)+1))), IF(LEN(AJ4)>4,CONCATENATE(LEFT(AJ4,4)+1&"-"&IF(RIGHT(AJ4, 2)<"09", "0","")&IF(RIGHT(AJ4, 2)="99", "00", RIGHT(AJ4,2)+1)),VALUE(AJ4+1)))) -> 2041-42 | AL4: =IF(AL$11<>"", IF(INT($G$5+SUM($H$11:AK$11))=$G$5+SUM($H$11:AK$11), VALUE(LEFT(AL$10, 4)), CONCATENATE(LEFT(AL$10,4)&"-"&IF(MID(AL$10, 3, 2)<"09", "0","")&IF(MID(AL$10, 3, 2)="99", "00", MID(AL$10, 3, 2)+1))), IF(AND(AL$5<>INT(AL$5), COUNTA($H$4:AK$4)=ROUNDUP(AL$5, 0)), IF($G$5+SUM($11:$11)=INT($G$5+SUM($11:$11)), VALUE(CONCATENATE(IF(RIGHT(AK$4, 2)="99", LEFT(AK$4, 2)+1, LEFT(AK$4, 2))&RIGHT(AK$4, 2))), CONCATENATE(LEFT(AK$4, 2)&RIGHT(AK$4, 2)&"-"&IF(RIGHT(AK$4, 2)<"09", "0", "")&IF(RIGHT(AK$4, 2)="99", "00", RIGHT(AK$4, 2)+1))), IF(LEN(AK4)>4,CONCATENATE(LEFT(AK4,4)+1&"-"&IF(RIGHT(AK4, 2)<"09", "0","")&IF(RIGHT(AK4, 2)="99", "00", RIGHT(AK4,2)+1)),VALUE(AK4+1)))) -> 2042-43 | AM4: =IF(AM$11<>"", IF(INT($G$5+SUM($H$11:AL$11))=$G$5+SUM($H$11:AL$11), VALUE(LEFT(AM$10, 4)), CONCATENATE(LEFT(AM$10,4)&"-"&IF(MID(AM$10, 3, 2)<"09", "0","")&IF(MID(AM$10, 3, 2)="99", "00", MID(AM$10, 3, 2)+1))), IF(AND(AM$5<>INT(AM$5), COUNTA($H$4:AL$4)=ROUNDUP(AM$5, 0)), IF($G$5+SUM($11:$11)=INT($G$5+SUM($11:$11)), VALUE(CONCATENATE(IF(RIGHT(AL$4, 2)="99", LEFT(AL$4, 2)+1, LEFT(AL$4, 2))&RIGHT(AL$4, 2))), CONCATENATE(LEFT(AL$4, 2)&RIGHT(AL$4, 2)&"-"&IF(RIGHT(AL$4, 2)<"09", "0", "")&IF(RIGHT(AL$4, 2)="99", "00", RIGHT(AL$4, 2)+1))), IF(LEN(AL4)>4,CONCATENATE(LEFT(AL4,4)+1&"-"&IF(RIGHT(AL4, 2)<"09", "0","")&IF(RIGHT(AL4, 2)="99", "00", RIGHT(AL4,2)+1)),VALUE(AL4+1)))) -> 2043-44 | AN4: =IF(AN$11<>"", IF(INT($G$5+SUM($H$11:AM$11))=$G$5+SUM($H$11:AM$11), VALUE(LEFT(AN$10, 4)), CONCATENATE(LEFT(AN$10,4)&"-"&IF(MID(AN$10, 3, 2)<"09", "0","")&IF(MID(AN$10, 3, 2)="99", "00", MID(AN$10, 3, 2)+1))), IF(AND(AN$5<>INT(AN$5), COUNTA($H$4:AM$4)=ROUNDUP(AN$5, 0)), IF($G$5+SUM($11:$11)=INT($G$5+SUM($11:$11)), VALUE(CONCATENATE(IF(RIGHT(AM$4, 2)="99", LEFT(AM$4, 2)+1, LEFT(AM$4, 2))&RIGHT(AM$4, 2))), CONCATENATE(LEFT(AM$4, 2)&RIGHT(AM$4, 2)&"-"&IF(RIGHT(AM$4, 2)<"09", "0", "")&IF(RIGHT(AM$4, 2)="99", "00", RIGHT(AM$4, 2)+1))), IF(LEN(AM4)>4,CONCATENATE(LEFT(AM4,4)+1&"-"&IF(RIGHT(AM4, 2)<"09", "0","")&IF(RIGHT(AM4, 2)="99", "00", RIGHT(AM4,2)+1)),VALUE(AM4+1)))) -> 2044-45 | AO4: =IF(AO$11<>"", IF(INT($G$5+SUM($H$11:AN$11))=$G$5+SUM($H$11:AN$11), VALUE(LEFT(AO$10, 4)), CONCATENATE(LEFT(AO$10,4)&"-"&IF(MID(AO$10, 3, 2)<"09", "0","")&IF(MID(AO$10, 3, 2)="99", "00", MID(AO$10, 3, 2)+1))), IF(AND(AO$5<>INT(AO$5), COUNTA($H$4:AN$4)=ROUNDUP(AO$5, 0)), IF($G$5+SUM($11:$11)=INT($G$5+SUM($11:$11)), VALUE(CONCATENATE(IF(RIGHT(AN$4, 2)="99", LEFT(AN$4, 2)+1, LEFT(AN$4, 2))&RIGHT(AN$4, 2))), CONCATENATE(LEFT(AN$4, 2)&RIGHT(AN$4, 2)&"-"&IF(RIGHT(AN$4, 2)<"09", "0", "")&IF(RIGHT(AN$4, 2)="99", "00", RIGHT(AN$4, 2)+1))), IF(LEN(AN4)>4,CONCATENATE(LEFT(AN4,4)+1&"-"&IF(RIGHT(AN4, 2)<"09", "0","")&IF(RIGHT(AN4, 2)="99", "00", RIGHT(AN4,2)+1)),VALUE(AN4+1)))) -> 2045-46 | AP4: =IF(AP$11<>"", IF(INT($G$5+SUM($H$11:AO$11))=$G$5+SUM($H$11:AO$11), VALUE(LEFT(AP$10, 4)), CONCATENATE(LEFT(AP$10,4)&"-"&IF(MID(AP$10, 3, 2)<"09", "0","")&IF(MID(AP$10, 3, 2)="99", "00", MID(AP$10, 3, 2)+1))), IF(AND(AP$5<>INT(AP$5), COUNTA($H$4:AO$4)=ROUNDUP(AP$5, 0)), IF($G$5+SUM($11:$11)=INT($G$5+SUM($11:$11)), VALUE(CONCATENATE(IF(RIGHT(AO$4, 2)="99", LEFT(AO$4, 2)+1, LEFT(AO$4, 2))&RIGHT(AO$4, 2))), CONCATENATE(LEFT(AO$4, 2)&RIGHT(AO$4, 2)&"-"&IF(RIGHT(AO$4, 2)<"09", "0", "")&IF(RIGHT(AO$4, 2)="99", "00", RIGHT(AO$4, 2)+1))), IF(LEN(AO4)>4,CONCATENATE(LEFT(AO4,4)+1&"-"&IF(RIGHT(AO4, 2)<"09", "0","")&IF(RIGHT(AO4, 2)="99", "00", RIGHT(AO4,2)+1)),VALUE(AO4+1)))) -> 2046-47 | AQ4: =IF(AQ$11<>"", IF(INT($G$5+SUM($H$11:AP$11))=$G$5+SUM($H$11:AP$11), VALUE(LEFT(AQ$10, 4)), CONCATENATE(LEFT(AQ$10,4)&"-"&IF(MID(AQ$10, 3, 2)<"09", "0","")&IF(MID(AQ$10, 3, 2)="99", "00", MID(AQ$10, 3, 2)+1))), IF(AND(AQ$5<>INT(AQ$5), COUNTA($H$4:AP$4)=ROUNDUP(AQ$5, 0)), IF($G$5+SUM($11:$11)=INT($G$5+SUM($11:$11)), VALUE(CONCATENATE(IF(RIGHT(AP$4, 2)="99", LEFT(AP$4, 2)+1, LEFT(AP$4, 2))&RIGHT(AP$4, 2))), CONCATENATE(LEFT(AP$4, 2)&RIGHT(AP$4, 2)&"-"&IF(RIGHT(AP$4, 2)<"09", "0", "")&IF(RIGHT(AP$4, 2)="99", "00", RIGHT(AP$4, 2)+1))), IF(LEN(AP4)>4,CONCATENATE(LEFT(AP4,4)+1&"-"&IF(RIGHT(AP4, 2)<"09", "0","")&IF(RIGHT(AP4, 2)="99", "00", RIGHT(AP4,2)+1)),VALUE(AP4+1)))) -> 2047-48 | AR4: =IF(AR$11<>"", IF(INT($G$5+SUM($H$11:AQ$11))=$G$5+SUM($H$11:AQ$11), VALUE(LEFT(AR$10, 4)), CONCATENATE(LEFT(AR$10,4)&"-"&IF(MID(AR$10, 3, 2)<"09", "0","")&IF(MID(AR$10, 3, 2)="99", "00", MID(AR$10, 3, 2)+1))), IF(AND(AR$5<>INT(AR$5), COUNTA($H$4:AQ$4)=ROUNDUP(AR$5, 0)), IF($G$5+SUM($11:$11)=INT($G$5+SUM($11:$11)), VALUE(CONCATENATE(IF(RIGHT(AQ$4, 2)="99", LEFT(AQ$4, 2)+1, LEFT(AQ$4, 2))&RIGHT(AQ$4, 2))), CONCATENATE(LEFT(AQ$4, 2)&RIGHT(AQ$4, 2)&"-"&IF(RIGHT(AQ$4, 2)<"09", "0", "")&IF(RIGHT(AQ$4, 2)="99", "00", RIGHT(AQ$4, 2)+1))), IF(LEN(AQ4)>4,CONCATENATE(LEFT(AQ4,4)+1&"-"&IF(RIGHT(AQ4, 2)<"09", "0","")&IF(RIGHT(AQ4, 2)="99", "00", RIGHT(AQ4,2)+1)),VALUE(AQ4+1)))) -> 2048-49 | AS4: =IF(AS$11<>"", IF(INT($G$5+SUM($H$11:AR$11))=$G$5+SUM($H$11:AR$11), VALUE(LEFT(AS$10, 4)), CONCATENATE(LEFT(AS$10,4)&"-"&IF(MID(AS$10, 3, 2)<"09", "0","")&IF(MID(AS$10, 3, 2)="99", "00", MID(AS$10, 3, 2)+1))), IF(AND(AS$5<>INT(AS$5), COUNTA($H$4:AR$4)=ROUNDUP(AS$5, 0)), IF($G$5+SUM($11:$11)=INT($G$5+SUM($11:$11)), VALUE(CONCATENATE(IF(RIGHT(AR$4, 2)="99", LEFT(AR$4, 2)+1, LEFT(AR$4, 2))&RIGHT(AR$4, 2))), CONCATENATE(LEFT(AR$4, 2)&RIGHT(AR$4, 2)&"-"&IF(RIGHT(AR$4, 2)<"09", "0", "")&IF(RIGHT(AR$4, 2)="99", "00", RIGHT(AR$4, 2)+1))), IF(LEN(AR4)>4,CONCATENATE(LEFT(AR4,4)+1&"-"&IF(RIGHT(AR4, 2)<"09", "0","")&IF(RIGHT(AR4, 2)="99", "00", RIGHT(AR4,2)+1)),VALUE(AR4+1)))) -> 2049-50 | AT4: =IF(AT$11<>"", IF(INT($G$5+SUM($H$11:AS$11))=$G$5+SUM($H$11:AS$11), VALUE(LEFT(AT$10, 4)), CONCATENATE(LEFT(AT$10,4)&"-"&IF(MID(AT$10, 3, 2)<"09", "0","")&IF(MID(AT$10, 3, 2)="99", "00", MID(AT$10, 3, 2)+1))), IF(AND(AT$5<>INT(AT$5), COUNTA($H$4:AS$4)=ROUNDUP(AT$5, 0)), IF($G$5+SUM($11:$11)=INT($G$5+SUM($11:$11)), VALUE(CONCATENATE(IF(RIGHT(AS$4, 2)="99", LEFT(AS$4, 2)+1, LEFT(AS$4, 2))&RIGHT(AS$4, 2))), CONCATENATE(LEFT(AS$4, 2)&RIGHT(AS$4, 2)&"-"&IF(RIGHT(AS$4, 2)<"09", "0", "")&IF(RIGHT(AS$4, 2)="99", "00", RIGHT(AS$4, 2)+1))), IF(LEN(AS4)>4,CONCATENATE(LEFT(AS4,4)+1&"-"&IF(RIGHT(AS4, 2)<"09", "0","")&IF(RIGHT(AS4, 2)="99", "00", RIGHT(AS4,2)+1)),VALUE(AS4+1)))) -> 2050-51 | AU4: =IF(AU$11<>"", IF(INT($G$5+SUM($H$11:AT$11))=$G$5+SUM($H$11:AT$11), VALUE(LEFT(AU$10, 4)), CONCATENATE(LEFT(AU$10,4)&"-"&IF(MID(AU$10, 3, 2)<"09", "0","")&IF(MID(AU$10, 3, 2)="99", "00", MID(AU$10, 3, 2)+1))), IF(AND(AU$5<>INT(AU$5), COUNTA($H$4:AT$4)=ROUNDUP(AU$5, 0)), IF($G$5+SUM($11:$11)=INT($G$5+SUM($11:$11)), VALUE(CONCATENATE(IF(RIGHT(AT$4, 2)="99", LEFT(AT$4, 2)+1, LEFT(AT$4, 2))&RIGHT(AT$4, 2))), CONCATENATE(LEFT(AT$4, 2)&RIGHT(AT$4, 2)&"-"&IF(RIGHT(AT$4, 2)<"09", "0", "")&IF(RIGHT(AT$4, 2)="99", "00", RIGHT(AT$4, 2)+1))), IF(LEN(AT4)>4,CONCATENATE(LEFT(AT4,4)+1&"-"&IF(RIGHT(AT4, 2)<"09", "0","")&IF(RIGHT(AT4, 2)="99", "00", RIGHT(AT4,2)+1)),VALUE(AT4+1)))) -> 2051-52 | AV4: =IF(AV$11<>"", IF(INT($G$5+SUM($H$11:AU$11))=$G$5+SUM($H$11:AU$11), VALUE(LEFT(AV$10, 4)), CONCATENATE(LEFT(AV$10,4)&"-"&IF(MID(AV$10, 3, 2)<"09", "0","")&IF(MID(AV$10, 3, 2)="99", "00", MID(AV$10, 3, 2)+1))), IF(AND(AV$5<>INT(AV$5), COUNTA($H$4:AU$4)=ROUNDUP(AV$5, 0)), IF($G$5+SUM($11:$11)=INT($G$5+SUM($11:$11)), VALUE(CONCATENATE(IF(RIGHT(AU$4, 2)="99", LEFT(AU$4, 2)+1, LEFT(AU$4, 2))&RIGHT(AU$4, 2))), CONCATENATE(LEFT(AU$4, 2)&RIGHT(AU$4, 2)&"-"&IF(RIGHT(AU$4, 2)<"09", "0", "")&IF(RIGHT(AU$4, 2)="99", "00", RIGHT(AU$4, 2)+1))), IF(LEN(AU4)>4,CONCATENATE(LEFT(AU4,4)+1&"-"&IF(RIGHT(AU4, 2)<"09", "0","")&IF(RIGHT(AU4, 2)="99", "00", RIGHT(AU4,2)+1)),VALUE(AU4+1)))) -> 2052-53 | AW4: =IF(AW$11<>"", IF(INT($G$5+SUM($H$11:AV$11))=$G$5+SUM($H$11:AV$11), VALUE(LEFT(AW$10, 4)), CONCATENATE(LEFT(AW$10,4)&"-"&IF(MID(AW$10, 3, 2)<"09", "0","")&IF(MID(AW$10, 3, 2)="99", "00", MID(AW$10, 3, 2)+1))), IF(AND(AW$5<>INT(AW$5), COUNTA($H$4:AV$4)=ROUNDUP(AW$5, 0)), IF($G$5+SUM($11:$11)=INT($G$5+SUM($11:$11)), VALUE(CONCATENATE(IF(RIGHT(AV$4, 2)="99", LEFT(AV$4, 2)+1, LEFT(AV$4, 2))&RIGHT(AV$4, 2))), CONCATENATE(LEFT(AV$4, 2)&RIGHT(AV$4, 2)&"-"&IF(RIGHT(AV$4, 2)<"09", "0", "")&IF(RIGHT(AV$4, 2)="99", "00", RIGHT(AV$4, 2)+1))), IF(LEN(AV4)>4,CONCATENATE(LEFT(AV4,4)+1&"-"&IF(RIGHT(AV4, 2)<"09", "0","")&IF(RIGHT(AV4, 2)="99", "00", RIGHT(AV4,2)+1)),VALUE(AV4+1)))) -> 2053-54 | AX4: =IF(AX$11<>"", IF(INT($G$5+SUM($H$11:AW$11))=$G$5+SUM($H$11:AW$11), VALUE(LEFT(AX$10, 4)), CONCATENATE(LEFT(AX$10,4)&"-"&IF(MID(AX$10, 3, 2)<"09", "0","")&IF(MID(AX$10, 3, 2)="99", "00", MID(AX$10, 3, 2)+1))), IF(AND(AX$5<>INT(AX$5), COUNTA($H$4:AW$4)=ROUNDUP(AX$5, 0)), IF($G$5+SUM($11:$11)=INT($G$5+SUM($11:$11)), VALUE(CONCATENATE(IF(RIGHT(AW$4, 2)="99", LEFT(AW$4, 2)+1, LEFT(AW$4, 2))&RIGHT(AW$4, 2))), CONCATENATE(LEFT(AW$4, 2)&RIGHT(AW$4, 2)&"-"&IF(RIGHT(AW$4, 2)<"09", "0", "")&IF(RIGHT(AW$4, 2)="99", "00", RIGHT(AW$4, 2)+1))), IF(LEN(AW4)>4,CONCATENATE(LEFT(AW4,4)+1&"-"&IF(RIGHT(AW4, 2)<"09", "0","")&IF(RIGHT(AW4, 2)="99", "00", RIGHT(AW4,2)+1)),VALUE(AW4+1)))) -> 2054-55 | AY4: =IF(AY$11<>"", IF(INT($G$5+SUM($H$11:AX$11))=$G$5+SUM($H$11:AX$11), VALUE(LEFT(AY$10, 4)), CONCATENATE(LEFT(AY$10,4)&"-"&IF(MID(AY$10, 3, 2)<"09", "0","")&IF(MID(AY$10, 3, 2)="99", "00", MID(AY$10, 3, 2)+1))), IF(AND(AY$5<>INT(AY$5), COUNTA($H$4:AX$4)=ROUNDUP(AY$5, 0)), IF($G$5+SUM($11:$11)=INT($G$5+SUM($11:$11)), VALUE(CONCATENATE(IF(RIGHT(AX$4, 2)="99", LEFT(AX$4, 2)+1, LEFT(AX$4, 2))&RIGHT(AX$4, 2))), CONCATENATE(LEFT(AX$4, 2)&RIGHT(AX$4, 2)&"-"&IF(RIGHT(AX$4, 2)<"09", "0", "")&IF(RIGHT(AX$4, 2)="99", "00", RIGHT(AX$4, 2)+1))), IF(LEN(AX4)>4,CONCATENATE(LEFT(AX4,4)+1&"-"&IF(RIGHT(AX4, 2)<"09", "0","")&IF(RIGHT(AX4, 2)="99", "00", RIGHT(AX4,2)+1)),VALUE(AX4+1)))) -> 2055-56 | AZ4: =IF(AZ$11<>"", IF(INT($G$5+SUM($H$11:AY$11))=$G$5+SUM($H$11:AY$11), VALUE(LEFT(AZ$10, 4)), CONCATENATE(LEFT(AZ$10,4)&"-"&IF(MID(AZ$10, 3, 2)<"09", "0","")&IF(MID(AZ$10, 3, 2)="99", "00", MID(AZ$10, 3, 2)+1))), IF(AND(AZ$5<>INT(AZ$5), COUNTA($H$4:AY$4)=ROUNDUP(AZ$5, 0)), IF($G$5+SUM($11:$11)=INT($G$5+SUM($11:$11)), VALUE(CONCATENATE(IF(RIGHT(AY$4, 2)="99", LEFT(AY$4, 2)+1, LEFT(AY$4, 2))&RIGHT(AY$4, 2))), CONCATENATE(LEFT(AY$4, 2)&RIGHT(AY$4, 2)&"-"&IF(RIGHT(AY$4, 2)<"09", "0", "")&IF(RIGHT(AY$4, 2)="99", "00", RIGHT(AY$4, 2)+1))), IF(LEN(AY4)>4,CONCATENATE(LEFT(AY4,4)+1&"-"&IF(RIGHT(AY4, 2)<"09", "0","")&IF(RIGHT(AY4, 2)="99", "00", RIGHT(AY4,2)+1)),VALUE(AY4+1)))) -> 2056-57 | BA4: =IF(BA$11<>"", IF(INT($G$5+SUM($H$11:AZ$11))=$G$5+SUM($H$11:AZ$11), VALUE(LEFT(BA$10, 4)), CONCATENATE(LEFT(BA$10,4)&"-"&IF(MID(BA$10, 3, 2)<"09", "0","")&IF(MID(BA$10, 3, 2)="99", "00", MID(BA$10, 3, 2)+1))), IF(AND(BA$5<>INT(BA$5), COUNTA($H$4:AZ$4)=ROUNDUP(BA$5, 0)), IF($G$5+SUM($11:$11)=INT($G$5+SUM($11:$11)), VALUE(CONCATENATE(IF(RIGHT(AZ$4, 2)="99", LEFT(AZ$4, 2)+1, LEFT(AZ$4, 2))&RIGHT(AZ$4, 2))), CONCATENATE(LEFT(AZ$4, 2)&RIGHT(AZ$4, 2)&"-"&IF(RIGHT(AZ$4, 2)<"09", "0", "")&IF(RIGHT(AZ$4, 2)="99", "00", RIGHT(AZ$4, 2)+1))), IF(LEN(AZ4)>4,CONCATENATE(LEFT(AZ4,4)+1&"-"&IF(RIGHT(AZ4, 2)<"09", "0","")&IF(RIGHT(AZ4, 2)="99", "00", RIGHT(AZ4,2)+1)),VALUE(AZ4+1)))) -> 2057-58 | BB4: =IF(BB$11<>"", IF(INT($G$5+SUM($H$11:BA$11))=$G$5+SUM($H$11:BA$11), VALUE(LEFT(BB$10, 4)), CONCATENATE(LEFT(BB$10,4)&"-"&IF(MID(BB$10, 3, 2)<"09", "0","")&IF(MID(BB$10, 3, 2)="99", "00", MID(BB$10, 3, 2)+1))), IF(AND(BB$5<>INT(BB$5), COUNTA($H$4:BA$4)=ROUNDUP(BB$5, 0)), IF($G$5+SUM($11:$11)=INT($G$5+SUM($11:$11)), VALUE(CONCATENATE(IF(RIGHT(BA$4, 2)="99", LEFT(BA$4, 2)+1, LEFT(BA$4, 2))&RIGHT(BA$4, 2))), CONCATENATE(LEFT(BA$4, 2)&RIGHT(BA$4, 2)&"-"&IF(RIGHT(BA$4, 2)<"09", "0", "")&IF(RIGHT(BA$4, 2)="99", "00", RIGHT(BA$4, 2)+1))), IF(LEN(BA4)>4,CONCATENATE(LEFT(BA4,4)+1&"-"&IF(RIGHT(BA4, 2)<"09", "0","")&IF(RIGHT(BA4, 2)="99", "00", RIGHT(BA4,2)+1)),VALUE(BA4+1)))) -> 2058-59 | BC4: =IF(BC$11<>"", IF(INT($G$5+SUM($H$11:BB$11))=$G$5+SUM($H$11:BB$11), VALUE(LEFT(BC$10, 4)), CONCATENATE(LEFT(BC$10,4)&"-"&IF(MID(BC$10, 3, 2)<"09", "0","")&IF(MID(BC$10, 3, 2)="99", "00", MID(BC$10, 3, 2)+1))), IF(AND(BC$5<>INT(BC$5), COUNTA($H$4:BB$4)=ROUNDUP(BC$5, 0)), IF($G$5+SUM($11:$11)=INT($G$5+SUM($11:$11)), VALUE(CONCATENATE(IF(RIGHT(BB$4, 2)="99", LEFT(BB$4, 2)+1, LEFT(BB$4, 2))&RIGHT(BB$4, 2))), CONCATENATE(LEFT(BB$4, 2)&RIGHT(BB$4, 2)&"-"&IF(RIGHT(BB$4, 2)<"09", "0", "")&IF(RIGHT(BB$4, 2)="99", "00", RIGHT(BB$4, 2)+1))), IF(LEN(BB4)>4,CONCATENATE(LEFT(BB4,4)+1&"-"&IF(RIGHT(BB4, 2)<"09", "0","")&IF(RIGHT(BB4, 2)="99", "00", RIGHT(BB4,2)+1)),VALUE(BB4+1)))) -> 2059-60 | BD4: =IF(BD$11<>"", IF(INT($G$5+SUM($H$11:BC$11))=$G$5+SUM($H$11:BC$11), VALUE(LEFT(BD$10, 4)), CONCATENATE(LEFT(BD$10,4)&"-"&IF(MID(BD$10, 3, 2)<"09", "0","")&IF(MID(BD$10, 3, 2)="99", "00", MID(BD$10, 3, 2)+1))), IF(AND(BD$5<>INT(BD$5), COUNTA($H$4:BC$4)=ROUNDUP(BD$5, 0)), IF($G$5+SUM($11:$11)=INT($G$5+SUM($11:$11)), VALUE(CONCATENATE(IF(RIGHT(BC$4, 2)="99", LEFT(BC$4, 2)+1, LEFT(BC$4, 2))&RIGHT(BC$4, 2))), CONCATENATE(LEFT(BC$4, 2)&RIGHT(BC$4, 2)&"-"&IF(RIGHT(BC$4, 2)<"09", "0", "")&IF(RIGHT(BC$4, 2)="99", "00", RIGHT(BC$4, 2)+1))), IF(LEN(BC4)>4,CONCATENATE(LEFT(BC4,4)+1&"-"&IF(RIGHT(BC4, 2)<"09", "0","")&IF(RIGHT(BC4, 2)="99", "00", RIGHT(BC4,2)+1)),VALUE(BC4+1)))) -> 2060-61 | BE4: =IF(BE$11<>"", IF(INT($G$5+SUM($H$11:BD$11))=$G$5+SUM($H$11:BD$11), VALUE(LEFT(BE$10, 4)), CONCATENATE(LEFT(BE$10,4)&"-"&IF(MID(BE$10, 3, 2)<"09", "0","")&IF(MID(BE$10, 3, 2)="99", "00", MID(BE$10, 3, 2)+1))), IF(AND(BE$5<>INT(BE$5), COUNTA($H$4:BD$4)=ROUNDUP(BE$5, 0)), IF($G$5+SUM($11:$11)=INT($G$5+SUM($11:$11)), VALUE(CONCATENATE(IF(RIGHT(BD$4, 2)="99", LEFT(BD$4, 2)+1, LEFT(BD$4, 2))&RIGHT(BD$4, 2))), CONCATENATE(LEFT(BD$4, 2)&RIGHT(BD$4, 2)&"-"&IF(RIGHT(BD$4, 2)<"09", "0", "")&IF(RIGHT(BD$4, 2)="99", "00", RIGHT(BD$4, 2)+1))), IF(LEN(BD4)>4,CONCATENATE(LEFT(BD4,4)+1&"-"&IF(RIGHT(BD4, 2)<"09", "0","")&IF(RIGHT(BD4, 2)="99", "00", RIGHT(BD4,2)+1)),VALUE(BD4+1)))) -> 2061-62 | BF4: =IF(BF$11<>"", IF(INT($G$5+SUM($H$11:BE$11))=$G$5+SUM($H$11:BE$11), VALUE(LEFT(BF$10, 4)), CONCATENATE(LEFT(BF$10,4)&"-"&IF(MID(BF$10, 3, 2)<"09", "0","")&IF(MID(BF$10, 3, 2)="99", "00", MID(BF$10, 3, 2)+1))), IF(AND(BF$5<>INT(BF$5), COUNTA($H$4:BE$4)=ROUNDUP(BF$5, 0)), IF($G$5+SUM($11:$11)=INT($G$5+SUM($11:$11)), VALUE(CONCATENATE(IF(RIGHT(BE$4, 2)="99", LEFT(BE$4, 2)+1, LEFT(BE$4, 2))&RIGHT(BE$4, 2))), CONCATENATE(LEFT(BE$4, 2)&RIGHT(BE$4, 2)&"-"&IF(RIGHT(BE$4, 2)<"09", "0", "")&IF(RIGHT(BE$4, 2)="99", "00", RIGHT(BE$4, 2)+1))), IF(LEN(BE4)>4,CONCATENATE(LEFT(BE4,4)+1&"-"&IF(RIGHT(BE4, 2)<"09", "0","")&IF(RIGHT(BE4, 2)="99", "00", RIGHT(BE4,2)+1)),VALUE(BE4+1)))) -> 2062-63 | BG4: =IF(BG$11<>"", IF(INT($G$5+SUM($H$11:BF$11))=$G$5+SUM($H$11:BF$11), VALUE(LEFT(BG$10, 4)), CONCATENATE(LEFT(BG$10,4)&"-"&IF(MID(BG$10, 3, 2)<"09", "0","")&IF(MID(BG$10, 3, 2)="99", "00", MID(BG$10, 3, 2)+1))), IF(AND(BG$5<>INT(BG$5), COUNTA($H$4:BF$4)=ROUNDUP(BG$5, 0)), IF($G$5+SUM($11:$11)=INT($G$5+SUM($11:$11)), VALUE(CONCATENATE(IF(RIGHT(BF$4, 2)="99", LEFT(BF$4, 2)+1, LEFT(BF$4, 2))&RIGHT(BF$4, 2))), CONCATENATE(LEFT(BF$4, 2)&RIGHT(BF$4, 2)&"-"&IF(RIGHT(BF$4, 2)<"09", "0", "")&IF(RIGHT(BF$4, 2)="99", "00", RIGHT(BF$4, 2)+1))), IF(LEN(BF4)>4,CONCATENATE(LEFT(BF4,4)+1&"-"&IF(RIGHT(BF4, 2)<"09", "0","")&IF(RIGHT(BF4, 2)="99", "00", RIGHT(BF4,2)+1)),VALUE(BF4+1)))) -> 2063-64 | BH4: =IF(BH$11<>"", IF(INT($G$5+SUM($H$11:BG$11))=$G$5+SUM($H$11:BG$11), VALUE(LEFT(BH$10, 4)), CONCATENATE(LEFT(BH$10,4)&"-"&IF(MID(BH$10, 3, 2)<"09", "0","")&IF(MID(BH$10, 3, 2)="99", "00", MID(BH$10, 3, 2)+1))), IF(AND(BH$5<>INT(BH$5), COUNTA($H$4:BG$4)=ROUNDUP(BH$5, 0)), IF($G$5+SUM($11:$11)=INT($G$5+SUM($11:$11)), VALUE(CONCATENATE(IF(RIGHT(BG$4, 2)="99", LEFT(BG$4, 2)+1, LEFT(BG$4, 2))&RIGHT(BG$4, 2))), CONCATENATE(LEFT(BG$4, 2)&RIGHT(BG$4, 2)&"-"&IF(RIGHT(BG$4, 2)<"09", "0", "")&IF(RIGHT(BG$4, 2)="99", "00", RIGHT(BG$4, 2)+1))), IF(LEN(BG4)>4,CONCATENATE(LEFT(BG4,4)+1&"-"&IF(RIGHT(BG4, 2)<"09", "0","")&IF(RIGHT(BG4, 2)="99", "00", RIGHT(BG4,2)+1)),VALUE(BG4+1)))) -> 2064-65 | BI4: =IF(BI$11<>"", IF(INT($G$5+SUM($H$11:BH$11))=$G$5+SUM($H$11:BH$11), VALUE(LEFT(BI$10, 4)), CONCATENATE(LEFT(BI$10,4)&"-"&IF(MID(BI$10, 3, 2)<"09", "0","")&IF(MID(BI$10, 3, 2)="99", "00", MID(BI$10, 3, 2)+1))), IF(AND(BI$5<>INT(BI$5), COUNTA($H$4:BH$4)=ROUNDUP(BI$5, 0)), IF($G$5+SUM($11:$11)=INT($G$5+SUM($11:$11)), VALUE(CONCATENATE(IF(RIGHT(BH$4, 2)="99", LEFT(BH$4, 2)+1, LEFT(BH$4, 2))&RIGHT(BH$4, 2))), CONCATENATE(LEFT(BH$4, 2)&RIGHT(BH$4, 2)&"-"&IF(RIGHT(BH$4, 2)<"09", "0", "")&IF(RIGHT(BH$4, 2)="99", "00", RIGHT(BH$4, 2)+1))), IF(LEN(BH4)>4,CONCATENATE(LEFT(BH4,4)+1&"-"&IF(RIGHT(BH4, 2)<"09", "0","")&IF(RIGHT(BH4, 2)="99", "00", RIGHT(BH4,2)+1)),VALUE(BH4+1)))) -> 2065-66 | BJ4: =IF(BJ$11<>"", IF(INT($G$5+SUM($H$11:BI$11))=$G$5+SUM($H$11:BI$11), VALUE(LEFT(BJ$10, 4)), CONCATENATE(LEFT(BJ$10,4)&"-"&IF(MID(BJ$10, 3, 2)<"09", "0","")&IF(MID(BJ$10, 3, 2)="99", "00", MID(BJ$10, 3, 2)+1))), IF(AND(BJ$5<>INT(BJ$5), COUNTA($H$4:BI$4)=ROUNDUP(BJ$5, 0)), IF($G$5+SUM($11:$11)=INT($G$5+SUM($11:$11)), VALUE(CONCATENATE(IF(RIGHT(BI$4, 2)="99", LEFT(BI$4, 2)+1, LEFT(BI$4, 2))&RIGHT(BI$4, 2))), CONCATENATE(LEFT(BI$4, 2)&RIGHT(BI$4, 2)&"-"&IF(RIGHT(BI$4, 2)<"09", "0", "")&IF(RIGHT(BI$4, 2)="99", "00", RIGHT(BI$4, 2)+1))), IF(LEN(BI4)>4,CONCATENATE(LEFT(BI4,4)+1&"-"&IF(RIGHT(BI4, 2)<"09", "0","")&IF(RIGHT(BI4, 2)="99", "00", RIGHT(BI4,2)+1)),VALUE(BI4+1)))) -> 2066-67 | BK4: =IF(BK$11<>"", IF(INT($G$5+SUM($H$11:BJ$11))=$G$5+SUM($H$11:BJ$11), VALUE(LEFT(BK$10, 4)), CONCATENATE(LEFT(BK$10,4)&"-"&IF(MID(BK$10, 3, 2)<"09", "0","")&IF(MID(BK$10, 3, 2)="99", "00", MID(BK$10, 3, 2)+1))), IF(AND(BK$5<>INT(BK$5), COUNTA($H$4:BJ$4)=ROUNDUP(BK$5, 0)), IF($G$5+SUM($11:$11)=INT($G$5+SUM($11:$11)), VALUE(CONCATENATE(IF(RIGHT(BJ$4, 2)="99", LEFT(BJ$4, 2)+1, LEFT(BJ$4, 2))&RIGHT(BJ$4, 2))), CONCATENATE(LEFT(BJ$4, 2)&RIGHT(BJ$4, 2)&"-"&IF(RIGHT(BJ$4, 2)<"09", "0", "")&IF(RIGHT(BJ$4, 2)="99", "00", RIGHT(BJ$4, 2)+1))), IF(LEN(BJ4)>4,CONCATENATE(LEFT(BJ4,4)+1&"-"&IF(RIGHT(BJ4, 2)<"09", "0","")&IF(RIGHT(BJ4, 2)="99", "00", RIGHT(BJ4,2)+1)),VALUE(BJ4+1)))) -> 2067-68 | BL4: =IF(BL$11<>"", IF(INT($G$5+SUM($H$11:BK$11))=$G$5+SUM($H$11:BK$11), VALUE(LEFT(BL$10, 4)), CONCATENATE(LEFT(BL$10,4)&"-"&IF(MID(BL$10, 3, 2)<"09", "0","")&IF(MID(BL$10, 3, 2)="99", "00", MID(BL$10, 3, 2)+1))), IF(AND(BL$5<>INT(BL$5), COUNTA($H$4:BK$4)=ROUNDUP(BL$5, 0)), IF($G$5+SUM($11:$11)=INT($G$5+SUM($11:$11)), VALUE(CONCATENATE(IF(RIGHT(BK$4, 2)="99", LEFT(BK$4, 2)+1, LEFT(BK$4, 2))&RIGHT(BK$4, 2))), CONCATENATE(LEFT(BK$4, 2)&RIGHT(BK$4, 2)&"-"&IF(RIGHT(BK$4, 2)<"09", "0", "")&IF(RIGHT(BK$4, 2)="99", "00", RIGHT(BK$4, 2)+1))), IF(LEN(BK4)>4,CONCATENATE(LEFT(BK4,4)+1&"-"&IF(RIGHT(BK4, 2)<"09", "0","")&IF(RIGHT(BK4, 2)="99", "00", RIGHT(BK4,2)+1)),VALUE(BK4+1)))) -> 2068-69 | BM4: =IF(BM$11<>"", IF(INT($G$5+SUM($H$11:BL$11))=$G$5+SUM($H$11:BL$11), VALUE(LEFT(BM$10, 4)), CONCATENATE(LEFT(BM$10,4)&"-"&IF(MID(BM$10, 3, 2)<"09", "0","")&IF(MID(BM$10, 3, 2)="99", "00", MID(BM$10, 3, 2)+1))), IF(AND(BM$5<>INT(BM$5), COUNTA($H$4:BL$4)=ROUNDUP(BM$5, 0)), IF($G$5+SUM($11:$11)=INT($G$5+SUM($11:$11)), VALUE(CONCATENATE(IF(RIGHT(BL$4, 2)="99", LEFT(BL$4, 2)+1, LEFT(BL$4, 2))&RIGHT(BL$4, 2))), CONCATENATE(LEFT(BL$4, 2)&RIGHT(BL$4, 2)&"-"&IF(RIGHT(BL$4, 2)<"09", "0", "")&IF(RIGHT(BL$4, 2)="99", "00", RIGHT(BL$4, 2)+1))), IF(LEN(BL4)>4,CONCATENATE(LEFT(BL4,4)+1&"-"&IF(RIGHT(BL4, 2)<"09", "0","")&IF(RIGHT(BL4, 2)="99", "00", RIGHT(BL4,2)+1)),VALUE(BL4+1)))) -> 2069-70 | BN4: =IF(BN$11<>"", IF(INT($G$5+SUM($H$11:BM$11))=$G$5+SUM($H$11:BM$11), VALUE(LEFT(BN$10, 4)), CONCATENATE(LEFT(BN$10,4)&"-"&IF(MID(BN$10, 3, 2)<"09", "0","")&IF(MID(BN$10, 3, 2)="99", "00", MID(BN$10, 3, 2)+1))), IF(AND(BN$5<>INT(BN$5), COUNTA($H$4:BM$4)=ROUNDUP(BN$5, 0)), IF($G$5+SUM($11:$11)=INT($G$5+SUM($11:$11)), VALUE(CONCATENATE(IF(RIGHT(BM$4, 2)="99", LEFT(BM$4, 2)+1, LEFT(BM$4, 2))&RIGHT(BM$4, 2))), CONCATENATE(LEFT(BM$4, 2)&RIGHT(BM$4, 2)&"-"&IF(RIGHT(BM$4, 2)<"09", "0", "")&IF(RIGHT(BM$4, 2)="99", "00", RIGHT(BM$4, 2)+1))), IF(LEN(BM4)>4,CONCATENATE(LEFT(BM4,4)+1&"-"&IF(RIGHT(BM4, 2)<"09", "0","")&IF(RIGHT(BM4, 2)="99", "00", RIGHT(BM4,2)+1)),VALUE(BM4+1)))) -> 2070-71 | BO4: =IF(BO$11<>"", IF(INT($G$5+SUM($H$11:BN$11))=$G$5+SUM($H$11:BN$11), VALUE(LEFT(BO$10, 4)), CONCATENATE(LEFT(BO$10,4)&"-"&IF(MID(BO$10, 3, 2)<"09", "0","")&IF(MID(BO$10, 3, 2)="99", "00", MID(BO$10, 3, 2)+1))), IF(AND(BO$5<>INT(BO$5), COUNTA($H$4:BN$4)=ROUNDUP(BO$5, 0)), IF($G$5+SUM($11:$11)=INT($G$5+SUM($11:$11)), VALUE(CONCATENATE(IF(RIGHT(BN$4, 2)="99", LEFT(BN$4, 2)+1, LEFT(BN$4, 2))&RIGHT(BN$4, 2))), CONCATENATE(LEFT(BN$4, 2)&RIGHT(BN$4, 2)&"-"&IF(RIGHT(BN$4, 2)<"09", "0", "")&IF(RIGHT(BN$4, 2)="99", "00", RIGHT(BN$4, 2)+1))), IF(LEN(BN4)>4,CONCATENATE(LEFT(BN4,4)+1&"-"&IF(RIGHT(BN4, 2)<"09", "0","")&IF(RIGHT(BN4, 2)="99", "00", RIGHT(BN4,2)+1)),VALUE(BN4+1)))) -> 2071-72 | BP4: =IF(BP$11<>"", IF(INT($G$5+SUM($H$11:BO$11))=$G$5+SUM($H$11:BO$11), VALUE(LEFT(BP$10, 4)), CONCATENATE(LEFT(BP$10,4)&"-"&IF(MID(BP$10, 3, 2)<"09", "0","")&IF(MID(BP$10, 3, 2)="99", "00", MID(BP$10, 3, 2)+1))), IF(AND(BP$5<>INT(BP$5), COUNTA($H$4:BO$4)=ROUNDUP(BP$5, 0)), IF($G$5+SUM($11:$11)=INT($G$5+SUM($11:$11)), VALUE(CONCATENATE(IF(RIGHT(BO$4, 2)="99", LEFT(BO$4, 2)+1, LEFT(BO$4, 2))&RIGHT(BO$4, 2))), CONCATENATE(LEFT(BO$4, 2)&RIGHT(BO$4, 2)&"-"&IF(RIGHT(BO$4, 2)<"09", "0", "")&IF(RIGHT(BO$4, 2)="99", "00", RIGHT(BO$4, 2)+1))), IF(LEN(BO4)>4,CONCATENATE(LEFT(BO4,4)+1&"-"&IF(RIGHT(BO4, 2)<"09", "0","")&IF(RIGHT(BO4, 2)="99", "00", RIGHT(BO4,2)+1)),VALUE(BO4+1)))) -> 2072-73 | BQ4: =IF(BQ$11<>"", IF(INT($G$5+SUM($H$11:BP$11))=$G$5+SUM($H$11:BP$11), VALUE(LEFT(BQ$10, 4)), CONCATENATE(LEFT(BQ$10,4)&"-"&IF(MID(BQ$10, 3, 2)<"09", "0","")&IF(MID(BQ$10, 3, 2)="99", "00", MID(BQ$10, 3, 2)+1))), IF(AND(BQ$5<>INT(BQ$5), COUNTA($H$4:BP$4)=ROUNDUP(BQ$5, 0)), IF($G$5+SUM($11:$11)=INT($G$5+SUM($11:$11)), VALUE(CONCATENATE(IF(RIGHT(BP$4, 2)="99", LEFT(BP$4, 2)+1, LEFT(BP$4, 2))&RIGHT(BP$4, 2))), CONCATENATE(LEFT(BP$4, 2)&RIGHT(BP$4, 2)&"-"&IF(RIGHT(BP$4, 2)<"09", "0", "")&IF(RIGHT(BP$4, 2)="99", "00", RIGHT(BP$4, 2)+1))), IF(LEN(BP4)>4,CONCATENATE(LEFT(BP4,4)+1&"-"&IF(RIGHT(BP4, 2)<"09", "0","")&IF(RIGHT(BP4, 2)="99", "00", RIGHT(BP4,2)+1)),VALUE(BP4+1)))) -> 2073-74 | BR4: =IF(BR$11<>"", IF(INT($G$5+SUM($H$11:BQ$11))=$G$5+SUM($H$11:BQ$11), VALUE(LEFT(BR$10, 4)), CONCATENATE(LEFT(BR$10,4)&"-"&IF(MID(BR$10, 3, 2)<"09", "0","")&IF(MID(BR$10, 3, 2)="99", "00", MID(BR$10, 3, 2)+1))), IF(AND(BR$5<>INT(BR$5), COUNTA($H$4:BQ$4)=ROUNDUP(BR$5, 0)), IF($G$5+SUM($11:$11)=INT($G$5+SUM($11:$11)), VALUE(CONCATENATE(IF(RIGHT(BQ$4, 2)="99", LEFT(BQ$4, 2)+1, LEFT(BQ$4, 2))&RIGHT(BQ$4, 2))), CONCATENATE(LEFT(BQ$4, 2)&RIGHT(BQ$4, 2)&"-"&IF(RIGHT(BQ$4, 2)<"09", "0", "")&IF(RIGHT(BQ$4, 2)="99", "00", RIGHT(BQ$4, 2)+1))), IF(LEN(BQ4)>4,CONCATENATE(LEFT(BQ4,4)+1&"-"&IF(RIGHT(BQ4, 2)<"09", "0","")&IF(RIGHT(BQ4, 2)="99", "00", RIGHT(BQ4,2)+1)),VALUE(BQ4+1)))) -> 2074-75 | BS4: =IF(BS$11<>"", IF(INT($G$5+SUM($H$11:BR$11))=$G$5+SUM($H$11:BR$11), VALUE(LEFT(BS$10, 4)), CONCATENATE(LEFT(BS$10,4)&"-"&IF(MID(BS$10, 3, 2)<"09", "0","")&IF(MID(BS$10, 3, 2)="99", "00", MID(BS$10, 3, 2)+1))), IF(AND(BS$5<>INT(BS$5), COUNTA($H$4:BR$4)=ROUNDUP(BS$5, 0)), IF($G$5+SUM($11:$11)=INT($G$5+SUM($11:$11)), VALUE(CONCATENATE(IF(RIGHT(BR$4, 2)="99", LEFT(BR$4, 2)+1, LEFT(BR$4, 2))&RIGHT(BR$4, 2))), CONCATENATE(LEFT(BR$4, 2)&RIGHT(BR$4, 2)&"-"&IF(RIGHT(BR$4, 2)<"09", "0", "")&IF(RIGHT(BR$4, 2)="99", "00", RIGHT(BR$4, 2)+1))), IF(LEN(BR4)>4,CONCATENATE(LEFT(BR4,4)+1&"-"&IF(RIGHT(BR4, 2)<"09", "0","")&IF(RIGHT(BR4, 2)="99", "00", RIGHT(BR4,2)+1)),VALUE(BR4+1)))) -> 2075-76 | BT4: =IF(BT$11<>"", IF(INT($G$5+SUM($H$11:BS$11))=$G$5+SUM($H$11:BS$11), VALUE(LEFT(BT$10, 4)), CONCATENATE(LEFT(BT$10,4)&"-"&IF(MID(BT$10, 3, 2)<"09", "0","")&IF(MID(BT$10, 3, 2)="99", "00", MID(BT$10, 3, 2)+1))), IF(AND(BT$5<>INT(BT$5), COUNTA($H$4:BS$4)=ROUNDUP(BT$5, 0)), IF($G$5+SUM($11:$11)=INT($G$5+SUM($11:$11)), VALUE(CONCATENATE(IF(RIGHT(BS$4, 2)="99", LEFT(BS$4, 2)+1, LEFT(BS$4, 2))&RIGHT(BS$4, 2))), CONCATENATE(LEFT(BS$4, 2)&RIGHT(BS$4, 2)&"-"&IF(RIGHT(BS$4, 2)<"09", "0", "")&IF(RIGHT(BS$4, 2)="99", "00", RIGHT(BS$4, 2)+1))), IF(LEN(BS4)>4,CONCATENATE(LEFT(BS4,4)+1&"-"&IF(RIGHT(BS4, 2)<"09", "0","")&IF(RIGHT(BS4, 2)="99", "00", RIGHT(BS4,2)+1)),VALUE(BS4+1)))) -> 2076-77 | BU4: =IF(BU$11<>"", IF(INT($G$5+SUM($H$11:BT$11))=$G$5+SUM($H$11:BT$11), VALUE(LEFT(BU$10, 4)), CONCATENATE(LEFT(BU$10,4)&"-"&IF(MID(BU$10, 3, 2)<"09", "0","")&IF(MID(BU$10, 3, 2)="99", "00", MID(BU$10, 3, 2)+1))), IF(AND(BU$5<>INT(BU$5), COUNTA($H$4:BT$4)=ROUNDUP(BU$5, 0)), IF($G$5+SUM($11:$11)=INT($G$5+SUM($11:$11)), VALUE(CONCATENATE(IF(RIGHT(BT$4, 2)="99", LEFT(BT$4, 2)+1, LEFT(BT$4, 2))&RIGHT(BT$4, 2))), CONCATENATE(LEFT(BT$4, 2)&RIGHT(BT$4, 2)&"-"&IF(RIGHT(BT$4, 2)<"09", "0", "")&IF(RIGHT(BT$4, 2)="99", "00", RIGHT(BT$4, 2)+1))), IF(LEN(BT4)>4,CONCATENATE(LEFT(BT4,4)+1&"-"&IF(RIGHT(BT4, 2)<"09", "0","")&IF(RIGHT(BT4, 2)="99", "00", RIGHT(BT4,2)+1)),VALUE(BT4+1)))) -> 2077-78 | BV4: =IF(BV$11<>"", IF(INT($G$5+SUM($H$11:BU$11))=$G$5+SUM($H$11:BU$11), VALUE(LEFT(BV$10, 4)), CONCATENATE(LEFT(BV$10,4)&"-"&IF(MID(BV$10, 3, 2)<"09", "0","")&IF(MID(BV$10, 3, 2)="99", "00", MID(BV$10, 3, 2)+1))), IF(AND(BV$5<>INT(BV$5), COUNTA($H$4:BU$4)=ROUNDUP(BV$5, 0)), IF($G$5+SUM($11:$11)=INT($G$5+SUM($11:$11)), VALUE(CONCATENATE(IF(RIGHT(BU$4, 2)="99", LEFT(BU$4, 2)+1, LEFT(BU$4, 2))&RIGHT(BU$4, 2))), CONCATENATE(LEFT(BU$4, 2)&RIGHT(BU$4, 2)&"-"&IF(RIGHT(BU$4, 2)<"09", "0", "")&IF(RIGHT(BU$4, 2)="99", "00", RIGHT(BU$4, 2)+1))), IF(LEN(BU4)>4,CONCATENATE(LEFT(BU4,4)+1&"-"&IF(RIGHT(BU4, 2)<"09", "0","")&IF(RIGHT(BU4, 2)="99", "00", RIGHT(BU4,2)+1)),VALUE(BU4+1)))) -> 2078-79 | BW4: =IF(BW$11<>"", IF(INT($G$5+SUM($H$11:BV$11))=$G$5+SUM($H$11:BV$11), VALUE(LEFT(BW$10, 4)), CONCATENATE(LEFT(BW$10,4)&"-"&IF(MID(BW$10, 3, 2)<"09", "0","")&IF(MID(BW$10, 3, 2)="99", "00", MID(BW$10, 3, 2)+1))), IF(AND(BW$5<>INT(BW$5), COUNTA($H$4:BV$4)=ROUNDUP(BW$5, 0)), IF($G$5+SUM($11:$11)=INT($G$5+SUM($11:$11)), VALUE(CONCATENATE(IF(RIGHT(BV$4, 2)="99", LEFT(BV$4, 2)+1, LEFT(BV$4, 2))&RIGHT(BV$4, 2))), CONCATENATE(LEFT(BV$4, 2)&RIGHT(BV$4, 2)&"-"&IF(RIGHT(BV$4, 2)<"09", "0", "")&IF(RIGHT(BV$4, 2)="99", "00", RIGHT(BV$4, 2)+1))), IF(LEN(BV4)>4,CONCATENATE(LEFT(BV4,4)+1&"-"&IF(RIGHT(BV4, 2)<"09", "0","")&IF(RIGHT(BV4, 2)="99", "00", RIGHT(BV4,2)+1)),VALUE(BV4+1)))) -> 2079-80 | BX4: =IF(BX$11<>"", IF(INT($G$5+SUM($H$11:BW$11))=$G$5+SUM($H$11:BW$11), VALUE(LEFT(BX$10, 4)), CONCATENATE(LEFT(BX$10,4)&"-"&IF(MID(BX$10, 3, 2)<"09", "0","")&IF(MID(BX$10, 3, 2)="99", "00", MID(BX$10, 3, 2)+1))), IF(AND(BX$5<>INT(BX$5), COUNTA($H$4:BW$4)=ROUNDUP(BX$5, 0)), IF($G$5+SUM($11:$11)=INT($G$5+SUM($11:$11)), VALUE(CONCATENATE(IF(RIGHT(BW$4, 2)="99", LEFT(BW$4, 2)+1, LEFT(BW$4, 2))&RIGHT(BW$4, 2))), CONCATENATE(LEFT(BW$4, 2)&RIGHT(BW$4, 2)&"-"&IF(RIGHT(BW$4, 2)<"09", "0", "")&IF(RIGHT(BW$4, 2)="99", "00", RIGHT(BW$4, 2)+1))), IF(LEN(BW4)>4,CONCATENATE(LEFT(BW4,4)+1&"-"&IF(RIGHT(BW4, 2)<"09", "0","")&IF(RIGHT(BW4, 2)="99", "00", RIGHT(BW4,2)+1)),VALUE(BW4+1)))) -> 2080-81 | BY4: =IF(BY$11<>"", IF(INT($G$5+SUM($H$11:BX$11))=$G$5+SUM($H$11:BX$11), VALUE(LEFT(BY$10, 4)), CONCATENATE(LEFT(BY$10,4)&"-"&IF(MID(BY$10, 3, 2)<"09", "0","")&IF(MID(BY$10, 3, 2)="99", "00", MID(BY$10, 3, 2)+1))), IF(AND(BY$5<>INT(BY$5), COUNTA($H$4:BX$4)=ROUNDUP(BY$5, 0)), IF($G$5+SUM($11:$11)=INT($G$5+SUM($11:$11)), VALUE(CONCATENATE(IF(RIGHT(BX$4, 2)="99", LEFT(BX$4, 2)+1, LEFT(BX$4, 2))&RIGHT(BX$4, 2))), CONCATENATE(LEFT(BX$4, 2)&RIGHT(BX$4, 2)&"-"&IF(RIGHT(BX$4, 2)<"09", "0", "")&IF(RIGHT(BX$4, 2)="99", "00", RIGHT(BX$4, 2)+1))), IF(LEN(BX4)>4,CONCATENATE(LEFT(BX4,4)+1&"-"&IF(RIGHT(BX4, 2)<"09", "0","")&IF(RIGHT(BX4, 2)="99", "00", RIGHT(BX4,2)+1)),VALUE(BX4+1)))) -> 2081-82 | BZ4: =IF(BZ$11<>"", IF(INT($G$5+SUM($H$11:BY$11))=$G$5+SUM($H$11:BY$11), VALUE(LEFT(BZ$10, 4)), CONCATENATE(LEFT(BZ$10,4)&"-"&IF(MID(BZ$10, 3, 2)<"09", "0","")&IF(MID(BZ$10, 3, 2)="99", "00", MID(BZ$10, 3, 2)+1))), IF(AND(BZ$5<>INT(BZ$5), COUNTA($H$4:BY$4)=ROUNDUP(BZ$5, 0)), IF($G$5+SUM($11:$11)=INT($G$5+SUM($11:$11)), VALUE(CONCATENATE(IF(RIGHT(BY$4, 2)="99", LEFT(BY$4, 2)+1, LEFT(BY$4, 2))&RIGHT(BY$4, 2))), CONCATENATE(LEFT(BY$4, 2)&RIGHT(BY$4, 2)&"-"&IF(RIGHT(BY$4, 2)<"09", "0", "")&IF(RIGHT(BY$4, 2)="99", "00", RIGHT(BY$4, 2)+1))), IF(LEN(BY4)>4,CONCATENATE(LEFT(BY4,4)+1&"-"&IF(RIGHT(BY4, 2)<"09", "0","")&IF(RIGHT(BY4, 2)="99", "00", RIGHT(BY4,2)+1)),VALUE(BY4+1)))) -> 2082-83 | CA4: =IF(CA$11<>"", IF(INT($G$5+SUM($H$11:BZ$11))=$G$5+SUM($H$11:BZ$11), VALUE(LEFT(CA$10, 4)), CONCATENATE(LEFT(CA$10,4)&"-"&IF(MID(CA$10, 3, 2)<"09", "0","")&IF(MID(CA$10, 3, 2)="99", "00", MID(CA$10, 3, 2)+1))), IF(AND(CA$5<>INT(CA$5), COUNTA($H$4:BZ$4)=ROUNDUP(CA$5, 0)), IF($G$5+SUM($11:$11)=INT($G$5+SUM($11:$11)), VALUE(CONCATENATE(IF(RIGHT(BZ$4, 2)="99", LEFT(BZ$4, 2)+1, LEFT(BZ$4, 2))&RIGHT(BZ$4, 2))), CONCATENATE(LEFT(BZ$4, 2)&RIGHT(BZ$4, 2)&"-"&IF(RIGHT(BZ$4, 2)<"09", "0", "")&IF(RIGHT(BZ$4, 2)="99", "00", RIGHT(BZ$4, 2)+1))), IF(LEN(BZ4)>4,CONCATENATE(LEFT(BZ4,4)+1&"-"&IF(RIGHT(BZ4, 2)<"09", "0","")&IF(RIGHT(BZ4, 2)="99", "00", RIGHT(BZ4,2)+1)),VALUE(BZ4+1)))) -> 2083-84 | CB4: =IF(CB$11<>"", IF(INT($G$5+SUM($H$11:CA$11))=$G$5+SUM($H$11:CA$11), VALUE(LEFT(CB$10, 4)), CONCATENATE(LEFT(CB$10,4)&"-"&IF(MID(CB$10, 3, 2)<"09", "0","")&IF(MID(CB$10, 3, 2)="99", "00", MID(CB$10, 3, 2)+1))), IF(AND(CB$5<>INT(CB$5), COUNTA($H$4:CA$4)=ROUNDUP(CB$5, 0)), IF($G$5+SUM($11:$11)=INT($G$5+SUM($11:$11)), VALUE(CONCATENATE(IF(RIGHT(CA$4, 2)="99", LEFT(CA$4, 2)+1, LEFT(CA$4, 2))&RIGHT(CA$4, 2))), CONCATENATE(LEFT(CA$4, 2)&RIGHT(CA$4, 2)&"-"&IF(RIGHT(CA$4, 2)<"09", "0", "")&IF(RIGHT(CA$4, 2)="99", "00", RIGHT(CA$4, 2)+1))), IF(LEN(CA4)>4,CONCATENATE(LEFT(CA4,4)+1&"-"&IF(RIGHT(CA4, 2)<"09", "0","")&IF(RIGHT(CA4, 2)="99", "00", RIGHT(CA4,2)+1)),VALUE(CA4+1)))) -> 2084-85 | CC4: =IF(CC$11<>"", IF(INT($G$5+SUM($H$11:CB$11))=$G$5+SUM($H$11:CB$11), VALUE(LEFT(CC$10, 4)), CONCATENATE(LEFT(CC$10,4)&"-"&IF(MID(CC$10, 3, 2)<"09", "0","")&IF(MID(CC$10, 3, 2)="99", "00", MID(CC$10, 3, 2)+1))), IF(AND(CC$5<>INT(CC$5), COUNTA($H$4:CB$4)=ROUNDUP(CC$5, 0)), IF($G$5+SUM($11:$11)=INT($G$5+SUM($11:$11)), VALUE(CONCATENATE(IF(RIGHT(CB$4, 2)="99", LEFT(CB$4, 2)+1, LEFT(CB$4, 2))&RIGHT(CB$4, 2))), CONCATENATE(LEFT(CB$4, 2)&RIGHT(CB$4, 2)&"-"&IF(RIGHT(CB$4, 2)<"09", "0", "")&IF(RIGHT(CB$4, 2)="99", "00", RIGHT(CB$4, 2)+1))), IF(LEN(CB4)>4,CONCATENATE(LEFT(CB4,4)+1&"-"&IF(RIGHT(CB4, 2)<"09", "0","")&IF(RIGHT(CB4, 2)="99", "00", RIGHT(CB4,2)+1)),VALUE(CB4+1)))) -> 2085-86 | CD4: =IF(CD$11<>"", IF(INT($G$5+SUM($H$11:CC$11))=$G$5+SUM($H$11:CC$11), VALUE(LEFT(CD$10, 4)), CONCATENATE(LEFT(CD$10,4)&"-"&IF(MID(CD$10, 3, 2)<"09", "0","")&IF(MID(CD$10, 3, 2)="99", "00", MID(CD$10, 3, 2)+1))), IF(AND(CD$5<>INT(CD$5), COUNTA($H$4:CC$4)=ROUNDUP(CD$5, 0)), IF($G$5+SUM($11:$11)=INT($G$5+SUM($11:$11)), VALUE(CONCATENATE(IF(RIGHT(CC$4, 2)="99", LEFT(CC$4, 2)+1, LEFT(CC$4, 2))&RIGHT(CC$4, 2))), CONCATENATE(LEFT(CC$4, 2)&RIGHT(CC$4, 2)&"-"&IF(RIGHT(CC$4, 2)<"09", "0", "")&IF(RIGHT(CC$4, 2)="99", "00", RIGHT(CC$4, 2)+1))), IF(LEN(CC4)>4,CONCATENATE(LEFT(CC4,4)+1&"-"&IF(RIGHT(CC4, 2)<"09", "0","")&IF(RIGHT(CC4, 2)="99", "00", RIGHT(CC4,2)+1)),VALUE(CC4+1)))) -> 2086-87 | CE4: =IF(CE$11<>"", IF(INT($G$5+SUM($H$11:CD$11))=$G$5+SUM($H$11:CD$11), VALUE(LEFT(CE$10, 4)), CONCATENATE(LEFT(CE$10,4)&"-"&IF(MID(CE$10, 3, 2)<"09", "0","")&IF(MID(CE$10, 3, 2)="99", "00", MID(CE$10, 3, 2)+1))), IF(AND(CE$5<>INT(CE$5), COUNTA($H$4:CD$4)=ROUNDUP(CE$5, 0)), IF($G$5+SUM($11:$11)=INT($G$5+SUM($11:$11)), VALUE(CONCATENATE(IF(RIGHT(CD$4, 2)="99", LEFT(CD$4, 2)+1, LEFT(CD$4, 2))&RIGHT(CD$4, 2))), CONCATENATE(LEFT(CD$4, 2)&RIGHT(CD$4, 2)&"-"&IF(RIGHT(CD$4, 2)<"09", "0", "")&IF(RIGHT(CD$4, 2)="99", "00", RIGHT(CD$4, 2)+1))), IF(LEN(CD4)>4,CONCATENATE(LEFT(CD4,4)+1&"-"&IF(RIGHT(CD4, 2)<"09", "0","")&IF(RIGHT(CD4, 2)="99", "00", RIGHT(CD4,2)+1)),VALUE(CD4+1)))) -> 2087-88 | CF4: =IF(CF$11<>"", IF(INT($G$5+SUM($H$11:CE$11))=$G$5+SUM($H$11:CE$11), VALUE(LEFT(CF$10, 4)), CONCATENATE(LEFT(CF$10,4)&"-"&IF(MID(CF$10, 3, 2)<"09", "0","")&IF(MID(CF$10, 3, 2)="99", "00", MID(CF$10, 3, 2)+1))), IF(AND(CF$5<>INT(CF$5), COUNTA($H$4:CE$4)=ROUNDUP(CF$5, 0)), IF($G$5+SUM($11:$11)=INT($G$5+SUM($11:$11)), VALUE(CONCATENATE(IF(RIGHT(CE$4, 2)="99", LEFT(CE$4, 2)+1, LEFT(CE$4, 2))&RIGHT(CE$4, 2))), CONCATENATE(LEFT(CE$4, 2)&RIGHT(CE$4, 2)&"-"&IF(RIGHT(CE$4, 2)<"09", "0", "")&IF(RIGHT(CE$4, 2)="99", "00", RIGHT(CE$4, 2)+1))), IF(LEN(CE4)>4,CONCATENATE(LEFT(CE4,4)+1&"-"&IF(RIGHT(CE4, 2)<"09", "0","")&IF(RIGHT(CE4, 2)="99", "00", RIGHT(CE4,2)+1)),VALUE(CE4+1)))) -> 2088-89 | CG4: =IF(CG$11<>"", IF(INT($G$5+SUM($H$11:CF$11))=$G$5+SUM($H$11:CF$11), VALUE(LEFT(CG$10, 4)), CONCATENATE(LEFT(CG$10,4)&"-"&IF(MID(CG$10, 3, 2)<"09", "0","")&IF(MID(CG$10, 3, 2)="99", "00", MID(CG$10, 3, 2)+1))), IF(AND(CG$5<>INT(CG$5), COUNTA($H$4:CF$4)=ROUNDUP(CG$5, 0)), IF($G$5+SUM($11:$11)=INT($G$5+SUM($11:$11)), VALUE(CONCATENATE(IF(RIGHT(CF$4, 2)="99", LEFT(CF$4, 2)+1, LEFT(CF$4, 2))&RIGHT(CF$4, 2))), CONCATENATE(LEFT(CF$4, 2)&RIGHT(CF$4, 2)&"-"&IF(RIGHT(CF$4, 2)<"09", "0", "")&IF(RIGHT(CF$4, 2)="99", "00", RIGHT(CF$4, 2)+1))), IF(LEN(CF4)>4,CONCATENATE(LEFT(CF4,4)+1&"-"&IF(RIGHT(CF4, 2)<"09", "0","")&IF(RIGHT(CF4, 2)="99", "00", RIGHT(CF4,2)+1)),VALUE(CF4+1)))) -> 2089-90 | CH4: =IF(CH$11<>"", IF(INT($G$5+SUM($H$11:CG$11))=$G$5+SUM($H$11:CG$11), VALUE(LEFT(CH$10, 4)), CONCATENATE(LEFT(CH$10,4)&"-"&IF(MID(CH$10, 3, 2)<"09", "0","")&IF(MID(CH$10, 3, 2)="99", "00", MID(CH$10, 3, 2)+1))), IF(AND(CH$5<>INT(CH$5), COUNTA($H$4:CG$4)=ROUNDUP(CH$5, 0)), IF($G$5+SUM($11:$11)=INT($G$5+SUM($11:$11)), VALUE(CONCATENATE(IF(RIGHT(CG$4, 2)="99", LEFT(CG$4, 2)+1, LEFT(CG$4, 2))&RIGHT(CG$4, 2))), CONCATENATE(LEFT(CG$4, 2)&RIGHT(CG$4, 2)&"-"&IF(RIGHT(CG$4, 2)<"09", "0", "")&IF(RIGHT(CG$4, 2)="99", "00", RIGHT(CG$4, 2)+1))), IF(LEN(CG4)>4,CONCATENATE(LEFT(CG4,4)+1&"-"&IF(RIGHT(CG4, 2)<"09", "0","")&IF(RIGHT(CG4, 2)="99", "00", RIGHT(CG4,2)+1)),VALUE(CG4+1)))) -> 2090-91 | CI4: =IF(CI$11<>"", IF(INT($G$5+SUM($H$11:CH$11))=$G$5+SUM($H$11:CH$11), VALUE(LEFT(CI$10, 4)), CONCATENATE(LEFT(CI$10,4)&"-"&IF(MID(CI$10, 3, 2)<"09", "0","")&IF(MID(CI$10, 3, 2)="99", "00", MID(CI$10, 3, 2)+1))), IF(AND(CI$5<>INT(CI$5), COUNTA($H$4:CH$4)=ROUNDUP(CI$5, 0)), IF($G$5+SUM($11:$11)=INT($G$5+SUM($11:$11)), VALUE(CONCATENATE(IF(RIGHT(CH$4, 2)="99", LEFT(CH$4, 2)+1, LEFT(CH$4, 2))&RIGHT(CH$4, 2))), CONCATENATE(LEFT(CH$4, 2)&RIGHT(CH$4, 2)&"-"&IF(RIGHT(CH$4, 2)<"09", "0", "")&IF(RIGHT(CH$4, 2)="99", "00", RIGHT(CH$4, 2)+1))), IF(LEN(CH4)>4,CONCATENATE(LEFT(CH4,4)+1&"-"&IF(RIGHT(CH4, 2)<"09", "0","")&IF(RIGHT(CH4, 2)="99", "00", RIGHT(CH4,2)+1)),VALUE(CH4+1)))) -> 2091-92 | CJ4: =IF(CJ$11<>"", IF(INT($G$5+SUM($H$11:CI$11))=$G$5+SUM($H$11:CI$11), VALUE(LEFT(CJ$10, 4)), CONCATENATE(LEFT(CJ$10,4)&"-"&IF(MID(CJ$10, 3, 2)<"09", "0","")&IF(MID(CJ$10, 3, 2)="99", "00", MID(CJ$10, 3, 2)+1))), IF(AND(CJ$5<>INT(CJ$5), COUNTA($H$4:CI$4)=ROUNDUP(CJ$5, 0)), IF($G$5+SUM($11:$11)=INT($G$5+SUM($11:$11)), VALUE(CONCATENATE(IF(RIGHT(CI$4, 2)="99", LEFT(CI$4, 2)+1, LEFT(CI$4, 2))&RIGHT(CI$4, 2))), CONCATENATE(LEFT(CI$4, 2)&RIGHT(CI$4, 2)&"-"&IF(RIGHT(CI$4, 2)<"09", "0", "")&IF(RIGHT(CI$4, 2)="99", "00", RIGHT(CI$4, 2)+1))), IF(LEN(CI4)>4,CONCATENATE(LEFT(CI4,4)+1&"-"&IF(RIGHT(CI4, 2)<"09", "0","")&IF(RIGHT(CI4, 2)="99", "00", RIGHT(CI4,2)+1)),VALUE(CI4+1)))) -> 2092-93 | CK4: =IF(CK$11<>"", IF(INT($G$5+SUM($H$11:CJ$11))=$G$5+SUM($H$11:CJ$11), VALUE(LEFT(CK$10, 4)), CONCATENATE(LEFT(CK$10,4)&"-"&IF(MID(CK$10, 3, 2)<"09", "0","")&IF(MID(CK$10, 3, 2)="99", "00", MID(CK$10, 3, 2)+1))), IF(AND(CK$5<>INT(CK$5), COUNTA($H$4:CJ$4)=ROUNDUP(CK$5, 0)), IF($G$5+SUM($11:$11)=INT($G$5+SUM($11:$11)), VALUE(CONCATENATE(IF(RIGHT(CJ$4, 2)="99", LEFT(CJ$4, 2)+1, LEFT(CJ$4, 2))&RIGHT(CJ$4, 2))), CONCATENATE(LEFT(CJ$4, 2)&RIGHT(CJ$4, 2)&"-"&IF(RIGHT(CJ$4, 2)<"09", "0", "")&IF(RIGHT(CJ$4, 2)="99", "00", RIGHT(CJ$4, 2)+1))), IF(LEN(CJ4)>4,CONCATENATE(LEFT(CJ4,4)+1&"-"&IF(RIGHT(CJ4, 2)<"09", "0","")&IF(RIGHT(CJ4, 2)="99", "00", RIGHT(CJ4,2)+1)),VALUE(CJ4+1)))) -> 2093-94 | CL4: =IF(CL$11<>"", IF(INT($G$5+SUM($H$11:CK$11))=$G$5+SUM($H$11:CK$11), VALUE(LEFT(CL$10, 4)), CONCATENATE(LEFT(CL$10,4)&"-"&IF(MID(CL$10, 3, 2)<"09", "0","")&IF(MID(CL$10, 3, 2)="99", "00", MID(CL$10, 3, 2)+1))), IF(AND(CL$5<>INT(CL$5), COUNTA($H$4:CK$4)=ROUNDUP(CL$5, 0)), IF($G$5+SUM($11:$11)=INT($G$5+SUM($11:$11)), VALUE(CONCATENATE(IF(RIGHT(CK$4, 2)="99", LEFT(CK$4, 2)+1, LEFT(CK$4, 2))&RIGHT(CK$4, 2))), CONCATENATE(LEFT(CK$4, 2)&RIGHT(CK$4, 2)&"-"&IF(RIGHT(CK$4, 2)<"09", "0", "")&IF(RIGHT(CK$4, 2)="99", "00", RIGHT(CK$4, 2)+1))), IF(LEN(CK4)>4,CONCATENATE(LEFT(CK4,4)+1&"-"&IF(RIGHT(CK4, 2)<"09", "0","")&IF(RIGHT(CK4, 2)="99", "00", RIGHT(CK4,2)+1)),VALUE(CK4+1)))) -> 2094-95 | CM4: =IF(CM$11<>"", IF(INT($G$5+SUM($H$11:CL$11))=$G$5+SUM($H$11:CL$11), VALUE(LEFT(CM$10, 4)), CONCATENATE(LEFT(CM$10,4)&"-"&IF(MID(CM$10, 3, 2)<"09", "0","")&IF(MID(CM$10, 3, 2)="99", "00", MID(CM$10, 3, 2)+1))), IF(AND(CM$5<>INT(CM$5), COUNTA($H$4:CL$4)=ROUNDUP(CM$5, 0)), IF($G$5+SUM($11:$11)=INT($G$5+SUM($11:$11)), VALUE(CONCATENATE(IF(RIGHT(CL$4, 2)="99", LEFT(CL$4, 2)+1, LEFT(CL$4, 2))&RIGHT(CL$4, 2))), CONCATENATE(LEFT(CL$4, 2)&RIGHT(CL$4, 2)&"-"&IF(RIGHT(CL$4, 2)<"09", "0", "")&IF(RIGHT(CL$4, 2)="99", "00", RIGHT(CL$4, 2)+1))), IF(LEN(CL4)>4,CONCATENATE(LEFT(CL4,4)+1&"-"&IF(RIGHT(CL4, 2)<"09", "0","")&IF(RIGHT(CL4, 2)="99", "00", RIGHT(CL4,2)+1)),VALUE(CL4+1)))) -> 2095-96 | CN4: =IF(CN$11<>"", IF(INT($G$5+SUM($H$11:CM$11))=$G$5+SUM($H$11:CM$11), VALUE(LEFT(CN$10, 4)), CONCATENATE(LEFT(CN$10,4)&"-"&IF(MID(CN$10, 3, 2)<"09", "0","")&IF(MID(CN$10, 3, 2)="99", "00", MID(CN$10, 3, 2)+1))), IF(AND(CN$5<>INT(CN$5), COUNTA($H$4:CM$4)=ROUNDUP(CN$5, 0)), IF($G$5+SUM($11:$11)=INT($G$5+SUM($11:$11)), VALUE(CONCATENATE(IF(RIGHT(CM$4, 2)="99", LEFT(CM$4, 2)+1, LEFT(CM$4, 2))&RIGHT(CM$4, 2))), CONCATENATE(LEFT(CM$4, 2)&RIGHT(CM$4, 2)&"-"&IF(RIGHT(CM$4, 2)<"09", "0", "")&IF(RIGHT(CM$4, 2)="99", "00", RIGHT(CM$4, 2)+1))), IF(LEN(CM4)>4,CONCATENATE(LEFT(CM4,4)+1&"-"&IF(RIGHT(CM4, 2)<"09", "0","")&IF(RIGHT(CM4, 2)="99", "00", RIGHT(CM4,2)+1)),VALUE(CM4+1)))) -> 2096-97 | CO4: =IF(CO$11<>"", IF(INT($G$5+SUM($H$11:CN$11))=$G$5+SUM($H$11:CN$11), VALUE(LEFT(CO$10, 4)), CONCATENATE(LEFT(CO$10,4)&"-"&IF(MID(CO$10, 3, 2)<"09", "0","")&IF(MID(CO$10, 3, 2)="99", "00", MID(CO$10, 3, 2)+1))), IF(AND(CO$5<>INT(CO$5), COUNTA($H$4:CN$4)=ROUNDUP(CO$5, 0)), IF($G$5+SUM($11:$11)=INT($G$5+SUM($11:$11)), VALUE(CONCATENATE(IF(RIGHT(CN$4, 2)="99", LEFT(CN$4, 2)+1, LEFT(CN$4, 2))&RIGHT(CN$4, 2))), CONCATENATE(LEFT(CN$4, 2)&RIGHT(CN$4, 2)&"-"&IF(RIGHT(CN$4, 2)<"09", "0", "")&IF(RIGHT(CN$4, 2)="99", "00", RIGHT(CN$4, 2)+1))), IF(LEN(CN4)>4,CONCATENATE(LEFT(CN4,4)+1&"-"&IF(RIGHT(CN4, 2)<"09", "0","")&IF(RIGHT(CN4, 2)="99", "00", RIGHT(CN4,2)+1)),VALUE(CN4+1)))) -> 2097-98
G5: =IF(LEN($H$9)=4, 0, IF(AND(ISNUMBER(SEARCH("Ausnet", $F$8)), Intro!$J$8="Electricity transmission module"), 0.25, 0.5)) -> 0 | H5: =H$11 -> 5 | I5: =IF(I$11<>"",SUM(ROUNDUP(H$5,0),I$11),H$5) -> 5 | J5: =IF(J$11<>"",SUM(ROUNDUP(I$5,0),J$11),I$5) -> 5 | K5: 5 | L5: 5 | M5: 10.5 | N5: 10.5 | O5: 10.5 | P5: 10.5 | Q5: 10.5 | R5: 10.5 | S5: 10.5 | T5: 10.5 | U5: 10.5 | V5: 10.5 | W5: 10.5 | X5: 10.5 | Y5: 10.5 | Z5: 10.5 | AA5: 10.5 | AB5: 10.5 | AC5: 10.5 | AD5: 10.5 | AE5: 10.5 | AF5: 10.5 | AG5: 10.5 | AH5: 10.5 | AI5: 10.5 | AJ5: 10.5 | AK5: 10.5 | AL5: 10.5 | AM5: 10.5 | AN5: 10.5 | AO5: 10.5 | AP5: 10.5 | AQ5: 10.5 | AR5: 10.5 | AS5: 10.5 | AT5: 10.5 | AU5: 10.5 | AV5: 10.5 | AW5: 10.5 | AX5: 10.5 | AY5: 10.5 | AZ5: 10.5 | BA5: 10.5 | BB5: 10.5 | BC5: 10.5 | BD5: 10.5 | BE5: 10.5 | BF5: 10.5 | BG5: 10.5 | BH5: 10.5 | BI5: 10.5 | BJ5: 10.5 | BK5: 10.5 | BL5: 10.5 | BM5: 10.5 | BN5: 10.5 | BO5: 10.5 | BP5: 10.5 | BQ5: 10.5 | BR5: 10.5 | BS5: 10.5 | BT5: 10.5 | BU5: 10.5 | BV5: =IF(BV$11<>"",SUM(ROUNDUP(BU$5,0),BV$11),BU$5) -> 10.5 | BW5: 10.5 | BX5: 10.5 | BY5: 10.5 | BZ5: 10.5 | CA5: 10.5 | CB5: 10.5 | CC5: 10.5 | CD5: 10.5 | CE5: 10.5 | CF5: 10.5 | CG5: 10.5 | CH5: 10.5 | CI5: 10.5 | CJ5: 10.5 | CK5: 10.5 | CL5: 10.5 | CM5: 10.5 | CN5: 10.5 | CO5: 10.5
D6: General information
E8: Business name | F8: Ausnet
E9: First regulatory year for tracking | H9: 2013 | I9: =IF(ROUNDUP(J$5, 0)=COUNTA($H$9:H$9), "Input for next period", "") ->  | J9: =IF(ROUNDUP(K$5, 0)=COUNTA($H$9:I$9), "Input for next period", "") ->  | K9: =IF(ROUNDUP(L$5, 0)=COUNTA($H$9:J$9), "Input for next period", "") ->  | L9: =IF(ROUNDUP(M$5, 0)=COUNTA($H$9:K$9), "Input for next period", "") ->  | M9: =IF(ROUNDUP(N$5, 0)=COUNTA($H$9:L$9), "Input for next period", "") ->  | N9: =IF(ROUNDUP(O$5, 0)=COUNTA($H$9:M$9), "Input for next period", "") ->  | O9: =IF(ROUNDUP(P$5, 0)=COUNTA($H$9:N$9), "Input for next period", "") ->  | P9: =IF(ROUNDUP(Q$5, 0)=COUNTA($H$9:O$9), "Input for next period", "") ->  | Q9: =IF(ROUNDUP(R$5, 0)=COUNTA($H$9:P$9), "Input for next period", "") ->  | R9: =IF(ROUNDUP(S$5, 0)=COUNTA($H$9:Q$9), "Input for next period", "") ->  | S9: =IF(ROUNDUP(T$5, 0)=COUNTA($H$9:R$9), "Input for next period", "") -> Input for next period | T9: =IF(ROUNDUP(U$5, 0)=COUNTA($H$9:S$9), "Input for next period", "") ->  | U9: =IF(ROUNDUP(V$5, 0)=COUNTA($H$9:T$9), "Input for next period", "") ->  | V9: =IF(ROUNDUP(W$5, 0)=COUNTA($H$9:U$9), "Input for next period", "") ->  | W9: =IF(ROUNDUP(X$5, 0)=COUNTA($H$9:V$9), "Input for next period", "") ->  | X9: =IF(ROUNDUP(Y$5, 0)=COUNTA($H$9:W$9), "Input for next period", "") ->  | Y9: =IF(ROUNDUP(Z$5, 0)=COUNTA($H$9:X$9), "Input for next period", "") ->  | Z9: =IF(ROUNDUP(AA$5, 0)=COUNTA($H$9:Y$9), "Input for next period", "") ->  | AA9: =IF(ROUNDUP(AB$5, 0)=COUNTA($H$9:Z$9), "Input for next period", "") ->  | AB9: =IF(ROUNDUP(AC$5, 0)=COUNTA($H$9:AA$9), "Input for next period", "") ->  | AC9: =IF(ROUNDUP(AD$5, 0)=COUNTA($H$9:AB$9), "Input for next period", "") ->  | AD9: =IF(ROUNDUP(AE$5, 0)=COUNTA($H$9:AC$9), "Input for next period", "") ->  | AE9: =IF(ROUNDUP(AF$5, 0)=COUNTA($H$9:AD$9), "Input for next period", "") ->  | AF9: =IF(ROUNDUP(AG$5, 0)=COUNTA($H$9:AE$9), "Input for next period", "") ->  | AG9: =IF(ROUNDUP(AH$5, 0)=COUNTA($H$9:AF$9), "Input for next period", "") ->  | AH9: =IF(ROUNDUP(AI$5, 0)=COUNTA($H$9:AG$9), "Input for next period", "") ->  | AI9: =IF(ROUNDUP(AJ$5, 0)=COUNTA($H$9:AH$9), "Input for next period", "") ->  | AJ9: =IF(ROUNDUP(AK$5, 0)=COUNTA($H$9:AI$9), "Input for next period", "") ->  | AK9: =IF(ROUNDUP(AL$5, 0)=COUNTA($H$9:AJ$9), "Input for next period", "") ->  | AL9: =IF(ROUNDUP(AM$5, 0)=COUNTA($H$9:AK$9), "Input for next period", "") ->  | AM9: =IF(ROUNDUP(AN$5, 0)=COUNTA($H$9:AL$9), "Input for next period", "") ->  | AN9: =IF(ROUNDUP(AO$5, 0)=COUNTA($H$9:AM$9), "Input for next period", "") ->  | AO9: =IF(ROUNDUP(AP$5, 0)=COUNTA($H$9:AN$9), "Input for next period", "") ->  | AP9: =IF(ROUNDUP(AQ$5, 0)=COUNTA($H$9:AO$9), "Input for next period", "") ->  | AQ9: =IF(ROUNDUP(AR$5, 0)=COUNTA($H$9:AP$9), "Input for next period", "") ->  | AR9: =IF(ROUNDUP(AS$5, 0)=COUNTA($H$9:AQ$9), "Input for next period", "") ->  | AS9: =IF(ROUNDUP(AT$5, 0)=COUNTA($H$9:AR$9), "Input for next period", "") ->  | AT9: =IF(ROUNDUP(AU$5, 0)=COUNTA($H$9:AS$9), "Input for next period", "") ->  | AU9: =IF(ROUNDUP(AV$5, 0)=COUNTA($H$9:AT$9), "Input for next period", "") ->  | AV9: =IF(ROUNDUP(AW$5, 0)=COUNTA($H$9:AU$9), "Input for next period", "") ->  | AW9: =IF(ROUNDUP(AX$5, 0)=COUNTA($H$9:AV$9), "Input for next period", "") ->  | AX9: =IF(ROUNDUP(AY$5, 0)=COUNTA($H$9:AW$9), "Input for next period", "") ->  | AY9: =IF(ROUNDUP(AZ$5, 0)=COUNTA($H$9:AX$9), "Input for next period", "") ->  | AZ9: =IF(ROUNDUP(BA$5, 0)=COUNTA($H$9:AY$9), "Input for next period", "") ->  | BA9: =IF(ROUNDUP(BB$5, 0)=COUNTA($H$9:AZ$9), "Input for next period", "") ->  | BB9: =IF(ROUNDUP(BC$5, 0)=COUNTA($H$9:BA$9), "Input for next period", "") ->  | BC9: =IF(ROUNDUP(BD$5, 0)=COUNTA($H$9:BB$9), "Input for next period", "") ->  | BD9: =IF(ROUNDUP(BE$5, 0)=COUNTA($H$9:BC$9), "Input for next period", "") ->  | BE9: =IF(ROUNDUP(BF$5, 0)=COUNTA($H$9:BD$9), "Input for next period", "") ->  | BF9: =IF(ROUNDUP(BG$5, 0)=COUNTA($H$9:BE$9), "Input for next period", "") ->  | BG9: =IF(ROUNDUP(BH$5, 0)=COUNTA($H$9:BF$9), "Input for next period", "") ->  | BH9: =IF(ROUNDUP(BI$5, 0)=COUNTA($H$9:BG$9), "Input for next period", "") ->  | BI9: =IF(ROUNDUP(BJ$5, 0)=COUNTA($H$9:BH$9), "Input for next period", "") ->  | BJ9: =IF(ROUNDUP(BK$5, 0)=COUNTA($H$9:BI$9), "Input for next period", "") ->  | BK9: =IF(ROUNDUP(BL$5, 0)=COUNTA($H$9:BJ$9), "Input for next period", "") ->  | BL9: =IF(ROUNDUP(BM$5, 0)=COUNTA($H$9:BK$9), "Input for next period", "") ->  | BM9: =IF(ROUNDUP(BN$5, 0)=COUNTA($H$9:BL$9), "Input for next period", "") ->  | BN9: =IF(ROUNDUP(BO$5, 0)=COUNTA($H$9:BM$9), "Input for next period", "") ->  | BO9: =IF(ROUNDUP(BP$5, 0)=COUNTA($H$9:BN$9), "Input for next period", "") ->  | BP9: =IF(ROUNDUP(BQ$5, 0)=COUNTA($H$9:BO$9), "Input for next period", "") ->  | BQ9: =IF(ROUNDUP(BR$5, 0)=COUNTA($H$9:BP$9), "Input for next period", "") ->  | BR9: =IF(ROUNDUP(BS$5, 0)=COUNTA($H$9:BQ$9), "Input for next period", "") ->  | BS9: =IF(ROUNDUP(BT$5, 0)=COUNTA($H$9:BR$9), "Input for next period", "") ->  | BT9: =IF(ROUNDUP(BU$5, 0)=COUNTA($H$9:BS$9), "Input for next period", "") ->  | BU9: =IF(ROUNDUP(BV$5, 0)=COUNTA($H$9:BT$9), "Input for next period", "") ->  | BV9: =IF(ROUNDUP(BW$5, 0)=COUNTA($H$9:BU$9), "Input for next period", "") ->  | BW9: =IF(ROUNDUP(BX$5, 0)=COUNTA($H$9:BV$9), "Input for next period", "") ->  | BX9: =IF(ROUNDUP(BY$5, 0)=COUNTA($H$9:BW$9), "Input for next period", "") ->  | BY9: =IF(ROUNDUP(BZ$5, 0)=COUNTA($H$9:BX$9), "Input for next period", "") ->  | BZ9: =IF(ROUNDUP(CA$5, 0)=COUNTA($H$9:BY$9), "Input for next period", "") ->  | CA9: =IF(ROUNDUP(CB$5, 0)=COUNTA($H$9:BZ$9), "Input for next period", "") ->  | CB9: =IF(ROUNDUP(CC$5, 0)=COUNTA($H$9:CA$9), "Input for next period", "") ->  | CC9: =IF(ROUNDUP(CD$5, 0)=COUNTA($H$9:CB$9), "Input for next period", "") ->  | CD9: =IF(ROUNDUP(CE$5, 0)=COUNTA($H$9:CC$9), "Input for next period", "") ->  | CE9: =IF(ROUNDUP(CF$5, 0)=COUNTA($H$9:CD$9), "Input for next period", "") ->  | CF9: =IF(ROUNDUP(CG$5, 0)=COUNTA($H$9:CE$9), "Input for next period", "") ->  | CG9: =IF(ROUNDUP(CH$5, 0)=COUNTA($H$9:CF$9), "Input for next period", "") ->  | CH9: =IF(ROUNDUP(CI$5, 0)=COUNTA($H$9:CG$9), "Input for next period", "") ->  | CI9: =IF(ROUNDUP(CJ$5, 0)=COUNTA($H$9:CH$9), "Input for next period", "") ->  | CJ9: =IF(ROUNDUP(CK$5, 0)=COUNTA($H$9:CI$9), "Input for next period", "") ->  | CK9: =IF(ROUNDUP(CL$5, 0)=COUNTA($H$9:CJ$9), "Input for next period", "") ->  | CL9: =IF(ROUNDUP(CM$5, 0)=COUNTA($H$9:CK$9), "Input for next period", "") ->  | CM9: =IF(ROUNDUP(CN$5, 0)=COUNTA($H$9:CL$9), "Input for next period", "") ->  | CN9: =IF(ROUNDUP(CO$5, 0)=COUNTA($H$9:CM$9), "Input for next period", "") ->  | CO9: =IF(ROUNDUP(CP$5, 0)=COUNTA($H$9:CN$9), "Input for next period", "") -> 
E10: Regulatory period | H10: 2013-17 | M10: 2018-23
E11: Years in regulatory period | H11: 5 | M11: 5.5
E13: Lagged inflation approach | F13: All-lagged
E14: =IF($F$13="All-lagged", "Lagged actual", "Actual")& " CPI inflation rate" -> Lagged actual CPI inflation rate | G14: 0.03519907675 | H14: 0.02004008016 | I14: 0.02161100196 | J14: 0.02307692308 | K14: 0.01503759398 | L14: 0.01296296296 | M14: ='[1]RFM input'!H282 -> 0.01933701657 | N14: ='[1]RFM input'!I282 -> 0.02077687444 | O14: ='[1]RFM input'!J282 -> 0.01592920354 | P14: ='[1]RFM input'!K282 -> -0.003484320557 | Q14: ='[1]RFM input'!L282 -> 0.03846153846 | R14: ='[1]RFM input'!M282 -> 0.02104377104
E15: Actual CPI (one year lagged) | F15: =G15/IF($F$13="Partially-lagged", (1+F14), (1+G14)) -> 0.9659977703 | G15: 1 | H15: =G15*(1+IF($F$13="Partially-lagged",G14,H14)) -> 1.02004008 | I15: 1.042084168 | J15: 1.066132265 | K15: 1.082164329 | L15: 1.096192385 | M15: 1.117389475 | N15: 1.140605336 | O15: 1.15877427 | P15: =O15*(1+IF($F$13="Partially-lagged",O14,P14)) -> 1.154736729 | Q15: 1.199149681 | R15: 1.224384312 | S15: 1.224384312 | T15: 1.224384312 | U15: 1.224384312 | V15: 1.224384312 | W15: 1.224384312 | X15: 1.224384312 | Y15: 1.224384312 | Z15: 1.224384312 | AA15: 1.224384312 | AB15: 1.224384312 | AC15: 1.224384312 | AD15: 1.224384312 | AE15: 1.224384312 | AF15: 1.224384312 | AG15: 1.224384312 | AH15: 1.224384312 | AI15: 1.224384312 | AJ15: 1.224384312 | AK15: 1.224384312 | AL15: 1.224384312 | AM15: 1.224384312 | AN15: =AM15*(1+IF($F$13="Partially-lagged",AM14,AN14)) -> 1.224384312 | AO15: 1.224384312 | AP15: 1.224384312 | AQ15: 1.224384312 | AR15: 1.224384312 | AS15: 1.224384312 | AT15: 1.224384312 | AU15: 1.224384312 | AV15: 1.224384312 | AW15: 1.224384312 | AX15: 1.224384312 | AY15: 1.224384312 | AZ15: 1.224384312 | BA15: 1.224384312 | BB15: 1.224384312 | BC15: 1.224384312 | BD15: 1.224384312 | BE15: 1.224384312 | BF15: 1.224384312 | BG15: 1.224384312 | BH15: 1.224384312 | BI15: 1.224384312 | BJ15: 1.224384312 | BK15: 1.224384312 | BL15: 1.224384312 | BM15: 1.224384312 | BN15: 1.224384312 | BO15: 1.224384312 | BP15: 1.224384312 | BQ15: 1.224384312 | BR15: 1.224384312 | BS15: 1.224384312 | BT15: =BS15*(1+IF($F$13="Partially-lagged",BS14,BT14)) -> 1.224384312 | BU15: 1.224384312 | BV15: 1.224384312 | BW15: 1.224384312 | BX15: 1.224384312 | BY15: 1.224384312 | BZ15: 1.224384312 | CA15: 1.224384312 | CB15: 1.224384312 | CC15: 1.224384312 | CD15: 1.224384312 | CE15: 1.224384312 | CF15: 1.224384312 | CG15: 1.224384312 | CH15: 1.224384312 | CI15: 1.224384312 | CJ15: 1.224384312 | CK15: 1.224384312 | CL15: 1.224384312 | CM15: 1.224384312 | CN15: 1.224384312 | CO15: 1.224384312
E17: Nominal vanilla WACC (fixed real time varying) | G17: 0.1004166186 | H17: 0.06556770321 | I17: 0.06720874024 | J17: 0.06874009006 | K17: 0.06034194022 | L17: 0.05817471183 | M17: ='[1]RFM input'!H289 -> 0.0540834963 | N17: ='[1]RFM input'!I289 -> 0.05528618692 | O17: ='[1]RFM input'!J289 -> 0.04935366723 | P17: ='[1]RFM input'!K289 -> 0.0279683426 | Q17: ='[1]RFM input'!L289 -> 0.06959344941 | R17: ='[1]RFM input'!M289 -> 0.01701563058
E18: Nominal vanilla WACC index | F18: =G18/(1+G17) -> 0.9087467266 | G18: 1 | H18: =G18*(1+H17) -> 1.065567703 | I18: =H18*(1+I17) -> 1.137183166 | J18: 1.215353239 | K18: 1.288690012 | L18: 1.363659182 | M18: 1.437410638 | N18: 1.516879592 | O18: 1.591743162 | P18: 1.63626158 | Q18: 1.750134668
E19: Real vanilla WACC | G19: 0.063 | H19: 0.04463317073 | I19: 0.04463317073 | J19: 0.04463317073 | K19: 0.04463317073 | L19: 0.04463317073 | M19: ='[1]RFM input'!H288 -> 0.03408733241 | N19: ='[1]RFM input'!I288 -> 0.03380691055 | O19: ='[1]RFM input'!J288 -> 0.03290038673 | P19: ='[1]RFM input'!K288 -> 0.0315626375 | Q19: ='[1]RFM input'!L288 -> 0.02997887721 | R19: ='[1]RFM input'!M288 -> -0.003945120253
E20: Real vanilla WACC index | F20: =G20/(1+G19) -> 0.9407337723 | G20: 1 | H20: =G20*(1+H19) -> 1.044633171 | I20: 1.091258461 | J20: 1.139964787 | K20: 1.19084503 | L20: 1.243996219 | M20: 1.286400732 | N20: 1.329889966 | O20: 1.37364386 | P20: 1.416999684 | Q20: 1.459479743 | R20: 1.45372192 | S20: 1.45372192 | T20: 1.45372192 | U20: 1.45372192 | V20: 1.45372192 | W20: 1.45372192 | X20: 1.45372192 | Y20: 1.45372192 | Z20: 1.45372192 | AA20: 1.45372192 | AB20: 1.45372192 | AC20: 1.45372192 | AD20: 1.45372192 | AE20: 1.45372192 | AF20: 1.45372192 | AG20: 1.45372192 | AH20: 1.45372192 | AI20: 1.45372192 | AJ20: 1.45372192 | AK20: 1.45372192 | AL20: 1.45372192 | AM20: 1.45372192 | AN20: 1.45372192 | AO20: 1.45372192 | AP20: 1.45372192 | AQ20: 1.45372192 | AR20: 1.45372192 | AS20: 1.45372192 | AT20: 1.45372192 | AU20: 1.45372192 | AV20: 1.45372192 | AW20: 1.45372192 | AX20: 1.45372192 | AY20: 1.45372192 | AZ20: 1.45372192 | BA20: 1.45372192 | BB20: 1.45372192 | BC20: 1.45372192 | BD20: 1.45372192 | BE20: 1.45372192 | BF20: 1.45372192 | BG20: 1.45372192 | BH20: 1.45372192 | BI20: 1.45372192 | BJ20: 1.45372192 | BK20: 1.45372192 | BL20: 1.45372192 | BM20: 1.45372192 | BN20: 1.45372192 | BO20: 1.45372192 | BP20: 1.45372192 | BQ20: 1.45372192 | BR20: 1.45372192 | BS20: 1.45372192 | BT20: =BS20*(1+BT19) -> 1.45372192 | BU20: 1.45372192 | BV20: 1.45372192 | BW20: 1.45372192 | BX20: 1.45372192 | BY20: 1.45372192 | BZ20: 1.45372192 | CA20: 1.45372192 | CB20: 1.45372192 | CC20: 1.45372192 | CD20: 1.45372192 | CE20: 1.45372192 | CF20: 1.45372192 | CG20: 1.45372192 | CH20: 1.45372192 | CI20: 1.45372192 | CJ20: 1.45372192 | CK20: 1.45372192 | CL20: 1.45372192 | CM20: 1.45372192 | CN20: 1.45372192 | CO20: 1.45372192
E22: Depreciation timing - year after incurred capex | H22: Yes | I22: Yes | J22: Yes | K22: Yes | L22: Yes
E23: Partial year extension? | F23: No
D25: Starting capital base and actual gross capex - As incurred ($m, nominal)
E26: Asset class | G26: ="Capital base (closing as at "&$G$4&")" -> Capital base (closing as at 2012) | H26: ="Actual gross capex ("&H4&")" -> Actual gross capex (2013) | I26: =IF(COUNTA($H$26:H$26)<IF($F$23="Yes", INT(I$5), I$5), "Actual gross capex ("&I4&")", "") -> Actual gross capex (2014) | J26: =IF(COUNTA($H$26:I$26)<IF($F$23="Yes", INT(J$5), J$5), "Actual gross capex ("&J4&")", "") -> Actual gross capex (2015) | K26: =IF(COUNTA($H$26:J$26)<IF($F$23="Yes", INT(K$5), K$5), "Actual gross capex ("&K4&")", "") -> Actual gross capex (2016) | L26: =IF(COUNTA($H$26:K$26)<IF($F$23="Yes", INT(L$5), L$5), "Actual gross capex ("&L4&")", "") -> Actual gross capex (2017) | M26: =IF(COUNTA($H$26:L$26)<IF($F$23="Yes", INT(M$5), M$5), "Actual gross capex ("&M4&")", "") -> Actual gross capex (2018) | N26: =IF(COUNTA($H$26:M$26)<IF($F$23="Yes", INT(N$5), N$5), "Actual gross capex ("&N4&")", "") -> Actual gross capex (2019) | O26: =IF(COUNTA($H$26:N$26)<IF($F$23="Yes", INT(O$5), O$5), "Actual gross capex ("&O4&")", "") -> Actual gross capex (2020) | P26: =IF(COUNTA($H$26:O$26)<IF($F$23="Yes", INT(P$5), P$5), "Actual gross capex ("&P4&")", "") -> Actual gross capex (2021) | Q26: =IF(COUNTA($H$26:P$26)<IF($F$23="Yes", INT(Q$5), Q$5), "Actual gross capex ("&Q4&")", "") -> Actual gross capex (2022) | R26: =IF(COUNTA($H$26:Q$26)<IF($F$23="Yes", INT(R$5), R$5), "Actual gross capex ("&R4&")", "") -> Actual gross capex (2023) | S26: =IF(COUNTA($H$26:R$26)<IF($F$23="Yes", INT(S$5), S$5), "Actual gross capex ("&S4&")", "") ->  | T26: =IF(COUNTA($H$26:S$26)<IF($F$23="Yes", INT(T$5), T$5), "Actual gross capex ("&T4&")", "") ->  | U26: =IF(COUNTA($H$26:T$26)<IF($F$23="Yes", INT(U$5), U$5), "Actual gross capex ("&U4&")", "") ->  | V26: =IF(COUNTA($H$26:U$26)<IF($F$23="Yes", INT(V$5), V$5), "Actual gross capex ("&V4&")", "") ->  | W26: =IF(COUNTA($H$26:V$26)<IF($F$23="Yes", INT(W$5), W$5), "Actual gross capex ("&W4&")", "") ->  | X26: =IF(COUNTA($H$26:W$26)<IF($F$23="Yes", INT(X$5), X$5), "Actual gross capex ("&X4&")", "") ->  | Y26: =IF(COUNTA($H$26:X$26)<IF($F$23="Yes", INT(Y$5), Y$5), "Actual gross capex ("&Y4&")", "") ->  | Z26: =IF(COUNTA($H$26:Y$26)<IF($F$23="Yes", INT(Z$5), Z$5), "Actual gross capex ("&Z4&")", "") ->  | AA26: =IF(COUNTA($H$26:Z$26)<IF($F$23="Yes", INT(AA$5), AA$5), "Actual gross capex ("&AA4&")", "") ->  | AB26: =IF(COUNTA($H$26:AA$26)<IF($F$23="Yes", INT(AB$5), AB$5), "Actual gross capex ("&AB4&")", "") ->  | AC26: =IF(COUNTA($H$26:AB$26)<IF($F$23="Yes", INT(AC$5), AC$5), "Actual gross capex ("&AC4&")", "") ->  | AD26: =IF(COUNTA($H$26:AC$26)<IF($F$23="Yes", INT(AD$5), AD$5), "Actual gross capex ("&AD4&")", "") ->  | AE26: =IF(COUNTA($H$26:AD$26)<IF($F$23="Yes", INT(AE$5), AE$5), "Actual gross capex ("&AE4&")", "") ->  | AF26: =IF(COUNTA($H$26:AE$26)<IF($F$23="Yes", INT(AF$5), AF$5), "Actual gross capex ("&AF4&")", "") ->  | AG26: =IF(COUNTA($H$26:AF$26)<IF($F$23="Yes", INT(AG$5), AG$5), "Actual gross capex ("&AG4&")", "") ->  | AH26: =IF(COUNTA($H$26:AG$26)<IF($F$23="Yes", INT(AH$5), AH$5), "Actual gross capex ("&AH4&")", "") ->  | AI26: =IF(COUNTA($H$26:AH$26)<IF($F$23="Yes", INT(AI$5), AI$5), "Actual gross capex ("&AI4&")", "") ->  | AJ26: =IF(COUNTA($H$26:AI$26)<IF($F$23="Yes", INT(AJ$5), AJ$5), "Actual gross capex ("&AJ4&")", "") ->  | AK26: =IF(COUNTA($H$26:AJ$26)<IF($F$23="Yes", INT(AK$5), AK$5), "Actual gross capex ("&AK4&")", "") ->  | AL26: =IF(COUNTA($H$26:AK$26)<IF($F$23="Yes", INT(AL$5), AL$5), "Actual gross capex ("&AL4&")", "") ->  | AM26: =IF(COUNTA($H$26:AL$26)<IF($F$23="Yes", INT(AM$5), AM$5), "Actual gross capex ("&AM4&")", "") ->  | AN26: =IF(COUNTA($H$26:AM$26)<IF($F$23="Yes", INT(AN$5), AN$5), "Actual gross capex ("&AN4&")", "") ->  | AO26: =IF(COUNTA($H$26:AN$26)<IF($F$23="Yes", INT(AO$5), AO$5), "Actual gross capex ("&AO4&")", "") ->  | AP26: =IF(COUNTA($H$26:AO$26)<IF($F$23="Yes", INT(AP$5), AP$5), "Actual gross capex ("&AP4&")", "") ->  | AQ26: =IF(COUNTA($H$26:AP$26)<IF($F$23="Yes", INT(AQ$5), AQ$5), "Actual gross capex ("&AQ4&")", "") ->  | AR26: =IF(COUNTA($H$26:AQ$26)<IF($F$23="Yes", INT(AR$5), AR$5), "Actual gross capex ("&AR4&")", "") ->  | AS26: =IF(COUNTA($H$26:AR$26)<IF($F$23="Yes", INT(AS$5), AS$5), "Actual gross capex ("&AS4&")", "") ->  | AT26: =IF(COUNTA($H$26:AS$26)<IF($F$23="Yes", INT(AT$5), AT$5), "Actual gross capex ("&AT4&")", "") ->  | AU26: =IF(COUNTA($H$26:AT$26)<IF($F$23="Yes", INT(AU$5), AU$5), "Actual gross capex ("&AU4&")", "") ->  | AV26: =IF(COUNTA($H$26:AU$26)<IF($F$23="Yes", INT(AV$5), AV$5), "Actual gross capex ("&AV4&")", "") ->  | AW26: =IF(COUNTA($H$26:AV$26)<IF($F$23="Yes", INT(AW$5), AW$5), "Actual gross capex ("&AW4&")", "") ->  | AX26: =IF(COUNTA($H$26:AW$26)<IF($F$23="Yes", INT(AX$5), AX$5), "Actual gross capex ("&AX4&")", "") ->  | AY26: =IF(COUNTA($H$26:AX$26)<IF($F$23="Yes", INT(AY$5), AY$5), "Actual gross capex ("&AY4&")", "") ->  | AZ26: =IF(COUNTA($H$26:AY$26)<IF($F$23="Yes", INT(AZ$5), AZ$5), "Actual gross capex ("&AZ4&")", "") ->  | BA26: =IF(COUNTA($H$26:AZ$26)<IF($F$23="Yes", INT(BA$5), BA$5), "Actual gross capex ("&BA4&")", "") ->  | BB26: =IF(COUNTA($H$26:BA$26)<IF($F$23="Yes", INT(BB$5), BB$5), "Actual gross capex ("&BB4&")", "") ->  | BC26: =IF(COUNTA($H$26:BB$26)<IF($F$23="Yes", INT(BC$5), BC$5), "Actual gross capex ("&BC4&")", "") ->  | BD26: =IF(COUNTA($H$26:BC$26)<IF($F$23="Yes", INT(BD$5), BD$5), "Actual gross capex ("&BD4&")", "") ->  | BE26: =IF(COUNTA($H$26:BD$26)<IF($F$23="Yes", INT(BE$5), BE$5), "Actual gross capex ("&BE4&")", "") ->  | BF26: =IF(COUNTA($H$26:BE$26)<IF($F$23="Yes", INT(BF$5), BF$5), "Actual gross capex ("&BF4&")", "") ->  | BG26: =IF(COUNTA($H$26:BF$26)<IF($F$23="Yes", INT(BG$5), BG$5), "Actual gross capex ("&BG4&")", "") ->  | BH26: =IF(COUNTA($H$26:BG$26)<IF($F$23="Yes", INT(BH$5), BH$5), "Actual gross capex ("&BH4&")", "") ->  | BI26: =IF(COUNTA($H$26:BH$26)<IF($F$23="Yes", INT(BI$5), BI$5), "Actual gross capex ("&BI4&")", "") ->  | BJ26: =IF(COUNTA($H$26:BI$26)<IF($F$23="Yes", INT(BJ$5), BJ$5), "Actual gross capex ("&BJ4&")", "") ->  | BK26: =IF(COUNTA($H$26:BJ$26)<IF($F$23="Yes", INT(BK$5), BK$5), "Actual gross capex ("&BK4&")", "") ->  | BL26: =IF(COUNTA($H$26:BK$26)<IF($F$23="Yes", INT(BL$5), BL$5), "Actual gross capex ("&BL4&")", "") ->  | BM26: =IF(COUNTA($H$26:BL$26)<IF($F$23="Yes", INT(BM$5), BM$5), "Actual gross capex ("&BM4&")", "") ->  | BN26: =IF(COUNTA($H$26:BM$26)<IF($F$23="Yes", INT(BN$5), BN$5), "Actual gross capex ("&BN4&")", "") ->  | BO26: =IF(COUNTA($H$26:BN$26)<IF($F$23="Yes", INT(BO$5), BO$5), "Actual gross capex ("&BO4&")", "") ->  | BP26: =IF(COUNTA($H$26:BO$26)<IF($F$23="Yes", INT(BP$5), BP$5), "Actual gross capex ("&BP4&")", "") ->  | BQ26: =IF(COUNTA($H$26:BP$26)<IF($F$23="Yes", INT(BQ$5), BQ$5), "Actual gross capex ("&BQ4&")", "") ->  | BR26: =IF(COUNTA($H$26:BQ$26)<IF($F$23="Yes", INT(BR$5), BR$5), "Actual gross capex ("&BR4&")", "") ->  | BS26: =IF(COUNTA($H$26:BR$26)<IF($F$23="Yes", INT(BS$5), BS$5), "Actual gross capex ("&BS4&")", "") ->  | BT26: =IF(COUNTA($H$26:BS$26)<IF($F$23="Yes", INT(BT$5), BT$5), "Actual gross capex ("&BT4&")", "") ->  | BU26: =IF(COUNTA($H$26:BT$26)<IF($F$23="Yes", INT(BU$5), BU$5), "Actual gross capex ("&BU4&")", "") ->  | BV26: =IF(COUNTA($H$26:BU$26)<IF($F$23="Yes", INT(BV$5), BV$5), "Actual gross capex ("&BV4&")", "") ->  | BW26: =IF(COUNTA($H$26:BV$26)<IF($F$23="Yes", INT(BW$5), BW$5), "Actual gross capex ("&BW4&")", "") ->  | BX26: =IF(COUNTA($H$26:BW$26)<IF($F$23="Yes", INT(BX$5), BX$5), "Actual gross capex ("&BX4&")", "") ->  | BY26: =IF(COUNTA($H$26:BX$26)<IF($F$23="Yes", INT(BY$5), BY$5), "Actual gross capex ("&BY4&")", "") ->  | BZ26: =IF(COUNTA($H$26:BY$26)<IF($F$23="Yes", INT(BZ$5), BZ$5), "Actual gross capex ("&BZ4&")", "") ->  | CA26: =IF(COUNTA($H$26:BZ$26)<IF($F$23="Yes", INT(CA$5), CA$5), "Actual gross capex ("&CA4&")", "") ->  | CB26: =IF(COUNTA($H$26:CA$26)<IF($F$23="Yes", INT(CB$5), CB$5), "Actual gross capex ("&CB4&")", "") ->  | CC26: =IF(COUNTA($H$26:CB$26)<IF($F$23="Yes", INT(CC$5), CC$5), "Actual gross capex ("&CC4&")", "") ->  | CD26: =IF(COUNTA($H$26:CC$26)<IF($F$23="Yes", INT(CD$5), CD$5), "Actual gross capex ("&CD4&")", "") ->  | CE26: =IF(COUNTA($H$26:CD$26)<IF($F$23="Yes", INT(CE$5), CE$5), "Actual gross capex ("&CE4&")", "") ->  | CF26: =IF(COUNTA($H$26:CE$26)<IF($F$23="Yes", INT(CF$5), CF$5), "Actual gross capex ("&CF4&")", "") ->  | CG26: =IF(COUNTA($H$26:CF$26)<IF($F$23="Yes", INT(CG$5), CG$5), "Actual gross capex ("&CG4&")", "") ->  | CH26: =IF(COUNTA($H$26:CG$26)<IF($F$23="Yes", INT(CH$5), CH$5), "Actual gross capex ("&CH4&")", "") ->  | CI26: =IF(COUNTA($H$26:CH$26)<IF($F$23="Yes", INT(CI$5), CI$5), "Actual gross capex ("&CI4&")", "") ->  | CJ26: =IF(COUNTA($H$26:CI$26)<IF($F$23="Yes", INT(CJ$5), CJ$5), "Actual gross capex ("&CJ4&")", "") ->  | CK26: =IF(COUNTA($H$26:CJ$26)<IF($F$23="Yes", INT(CK$5), CK$5), "Actual gross capex ("&CK4&")", "") ->  | CL26: =IF(COUNTA($H$26:CK$26)<IF($F$23="Yes", INT(CL$5), CL$5), "Actual gross capex ("&CL4&")", "") ->  | CM26: =IF(COUNTA($H$26:CL$26)<IF($F$23="Yes", INT(CM$5), CM$5), "Actual gross capex ("&CM4&")", "") ->  | CN26: =IF(COUNTA($H$26:CM$26)<IF($F$23="Yes", INT(CN$5), CN$5), "Actual gross capex ("&CN4&")", "") ->  | CO26: =IF(COUNTA($H$26:CN$26)<IF($F$23="Yes", INT(CO$5), CO$5), "Actual gross capex ("&CO4&")", "") -> 
D28: 1 | E28: ='[1]RFM input'!F7 -> Transmission Pipelines | G28: 50.93346364 | H28: 2.17530097 | I28: 20.45521786 | J28: 0.6545992099 | K28: -0.00032150424 | L28: ='[1]RFM input'!G61 -> 0 | M28: ='[1]RFM input'!H61 -> 0 | N28: ='[1]RFM input'!I61 -> -0.004643279177 | O28: ='[1]RFM input'!J61 -> 3.445784517 | P28: ='[1]RFM input'!K61 -> 4.354366419 | Q28: ='[1]RFM input'!L61 -> 0.1183565513 | R28: ='[1]RFM input'!M61 -> 0.2688372979
D29: 2 | E29: ='[1]RFM input'!F8 -> Distribution Pipelines | G29: 602.8143017 | H29: 33.84261351 | I29: 29.97319099 | J29: 34.69014884 | K29: 21.1273498 | L29: ='[1]RFM input'!G62 -> 34.15381164 | M29: ='[1]RFM input'!H62 -> 47.34992661 | N29: ='[1]RFM input'!I62 -> 41.97233638 | O29: ='[1]RFM input'!J62 -> 37.97407104 | P29: ='[1]RFM input'!K62 -> 38.41777916 | Q29: ='[1]RFM input'!L62 -> 43.60600905 | R29: ='[1]RFM input'!M62 -> 20.49484622
D30: 3 | E30: ='[1]RFM input'!F9 -> Service Pipes | G30: 447.5790853 | H30: 24.51830982 | I30: 37.63227378 | J30: 37.50517209 | K30: 42.45791591 | L30: ='[1]RFM input'!G63 -> 39.22620076 | M30: ='[1]RFM input'!H63 -> 26.37262968 | N30: ='[1]RFM input'!I63 -> 35.8618476 | O30: ='[1]RFM input'!J63 -> 37.24415924 | P30: ='[1]RFM input'!K63 -> 36.33784341 | Q30: ='[1]RFM input'!L63 -> 31.49067051 | R30: ='[1]RFM input'!M63 -> 24.77855793
D31: 4 | E31: ='[1]RFM input'!F10 -> Cathodic Protection | G31: 17.09777462 | H31: 0.6112733008 | I31: 0.3552003044 | J31: 0.2102098563 | K31: 0.3651465693 | L31: ='[1]RFM input'!G64 -> 0.1484568874 | M31: ='[1]RFM input'!H64 -> 0.1024476367 | N31: ='[1]RFM input'!I64 -> 0.1889040853 | O31: ='[1]RFM input'!J64 -> 0.1451175323 | P31: ='[1]RFM input'!K64 -> 0.1160383343 | Q31: ='[1]RFM input'!L64 -> 0.2087881377 | R31: ='[1]RFM input'!M64 -> 0.2064670448
D32: 5 | E32: ='[1]RFM input'!F11 -> Supply Regulators / Valve Stations | G32: 37.8003437 | H32: 3.317220614 | I32: 6.168163093 | J32: 4.085466291 | K32: 2.200281807 | L32: ='[1]RFM input'!G65 -> 4.08124132 | M32: ='[1]RFM input'!H65 -> 1.747033468 | N32: ='[1]RFM input'!I65 -> 0.6095863276 | O32: ='[1]RFM input'!J65 -> 1.464174694 | P32: ='[1]RFM input'!K65 -> 5.349873825 | Q32: ='[1]RFM input'!L65 -> 3.297678514 | R32: ='[1]RFM input'!M65 -> 2.824306402
D33: 6 | E33: ='[1]RFM input'!F12 -> Meters | G33: 83.675515 | H33: 12.20765795 | I33: 10.97970355 | J33: 8.868500519 | K33: 13.80292728 | L33: ='[1]RFM input'!G66 -> 11.48829566 | M33: ='[1]RFM input'!H66 -> 16.09512023 | N33: ='[1]RFM input'!I66 -> 15.57640336 | O33: ='[1]RFM input'!J66 -> 12.27013639 | P33: ='[1]RFM input'!K66 -> 17.36996727 | Q33: ='[1]RFM input'!L66 -> 15.86358284 | R33: ='[1]RFM input'!M66 -> 8.073482285
D34: 7 | E34: ='[1]RFM input'!F13 -> SCADA and remote control | G34: 3.148895457 | H34: 0.6717599545 | I34: 0.2917176798 | J34: 0.4835519251 | K34: 0.4424607198 | L34: ='[1]RFM input'!G67 -> 0.2940945984 | M34: ='[1]RFM input'!H67 -> 0.3402479422 | N34: ='[1]RFM input'!I67 -> 0.3999741244 | O34: ='[1]RFM input'!J67 -> 0.3753895793 | P34: ='[1]RFM input'!K67 -> 0.5285235981 | Q34: ='[1]RFM input'!L67 -> 0.3890656771 | R34: ='[1]RFM input'!M67 -> 0.150541066
D35: 8 | E35: ='[1]RFM input'!F14 -> Other - IT | G35: 20.59154102 | H35: 16.01455247 | I35: 13.23243415 | J35: 8.779014487 | K35: 3.420350342 | L35: ='[1]RFM input'!G68 -> 5.558841285 | M35: ='[1]RFM input'!H68 -> 9.01223483 | N35: ='[1]RFM input'!I68 -> 7.659641206 | O35: ='[1]RFM input'!J68 -> 6.1076115 | P35: ='[1]RFM input'!K68 -> 10.33806752 | Q35: ='[1]RFM input'!L68 -> 7.214991241 | R35: ='[1]RFM input'!M68 -> 4.069432609
D36: 9 | E36: ='[1]RFM input'!F15 -> Other - non IT | G36: 0.8568436275 | H36: 0.4718403835 | I36: 0.05234438539 | J36: 0.3832954243 | K36: 0.5743822186 | L36: ='[1]RFM input'!G69 -> 1.269248137 | M36: ='[1]RFM input'!H69 -> 0.7648848597 | N36: ='[1]RFM input'!I69 -> 0.2628660411 | O36: ='[1]RFM input'!J69 -> -0.28518237 | P36: ='[1]RFM input'!K69 -> 0.46089678 | Q36: ='[1]RFM input'!L69 -> 0.8882399789 | R36: ='[1]RFM input'!M69 -> 0.2625006267
D37: 10 | E37: ='[1]RFM input'!F16 -> Buildings | G37: 10.80059034 | H37: 0 | I37: 0 | J37: 0 | K37: 0 | L37: ='[1]RFM input'!G70 -> 0 | M37: ='[1]RFM input'!H70 -> 0 | N37: ='[1]RFM input'!I70 -> 0 | O37: ='[1]RFM input'!J70 -> 0 | P37: ='[1]RFM input'!K70 -> 0 | Q37: ='[1]RFM input'!L70 -> 0 | R37: ='[1]RFM input'!M70 -> 0
D38: 11 | E38: ='[1]RFM input'!F17 -> Land | G38: 0 | H38: 0 | I38: 0 | J38: 0 | K38: 0 | L38: ='[1]RFM input'!G71 -> 0 | M38: ='[1]RFM input'!H71 -> 0 | N38: ='[1]RFM input'!I71 -> 0 | O38: ='[1]RFM input'!J71 -> 0 | P38: ='[1]RFM input'!K71 -> 0 | Q38: ='[1]RFM input'!L71 -> 0 | R38: ='[1]RFM input'!M71 -> 0
D39: 12 | E39: ='[1]RFM input'!F18 -> Capitalised Leases 1 July 2023 | G39: 0 | H39: 0 | I39: 0 | J39: 0 | K39: 0 | L39: ='[1]RFM input'!G72 -> 0 | M39: ='[1]RFM input'!H72 -> 0 | N39: ='[1]RFM input'!I72 -> 0 | O39: ='[1]RFM input'!J72 -> 0 | P39: ='[1]RFM input'!K72 -> 0 | Q39: ='[1]RFM input'!L72 -> 0 | R39: ='[1]RFM input'!M72 -> 0
D40: 13 | E40: ='[1]RFM input'!F19 -> Transmission pipelines - post 1998 | G40: 0 | H40: 0 | I40: 0 | J40: 0 | K40: 0 | L40: ='[1]RFM input'!G73 -> 0 | M40: ='[1]RFM input'!H73 -> 0 | N40: ='[1]RFM input'!I73 -> 0 | O40: ='[1]RFM input'!J73 -> 0 | P40: ='[1]RFM input'!K73 -> 0 | Q40: ='[1]RFM input'!L73 -> 0 | R40: ='[1]RFM input'!M73 -> 0
D41: 14 | E41: ='[1]RFM input'!F20 -> Distribution pipelines - post 1998 | G41: 0 | H41: 0 | I41: 0 | J41: 0 | K41: 0 | L41: ='[1]RFM input'!G74 -> 0 | M41: ='[1]RFM input'!H74 -> 0 | N41: ='[1]RFM input'!I74 -> 0 | O41: ='[1]RFM input'!J74 -> 0 | P41: ='[1]RFM input'!K74 -> 0 | Q41: ='[1]RFM input'!L74 -> 0 | R41: ='[1]RFM input'!M74 -> 0
D42: 15 | E42: ='[1]RFM input'!F21 -> Service pipes - post 1998 | G42: 0 | H42: 0 | I42: 0 | J42: 0 | K42: 0 | L42: ='[1]RFM input'!G75 -> 0 | M42: ='[1]RFM input'!H75 -> 0 | N42: ='[1]RFM input'!I75 -> 0 | O42: ='[1]RFM input'!J75 -> 0 | P42: ='[1]RFM input'!K75 -> 0 | Q42: ='[1]RFM input'!L75 -> 0 | R42: ='[1]RFM input'!M75 -> 0
D43: 16 | E43: ='[1]RFM input'!F22 -> Cathodic protection - post 1998 | G43: 0 | H43: 0 | I43: 0 | J43: 0 | K43: 0 | L43: ='[1]RFM input'!G76 -> 0 | M43: ='[1]RFM input'!H76 -> 0 | N43: ='[1]RFM input'!I76 -> 0 | O43: ='[1]RFM input'!J76 -> 0 | P43: ='[1]RFM input'!K76 -> 0 | Q43: ='[1]RFM input'!L76 -> 0 | R43: ='[1]RFM input'!M76 -> 0
D44: 17 | E44: ='[1]RFM input'!F23 -> Accelerated Depreciation - Long Life Assets | G44: 0 | H44: 0 | I44: 0 | J44: 0 | K44: 0 | L44: ='[1]RFM input'!G77 -> 0 | M44: ='[1]RFM input'!H77 -> 0 | N44: ='[1]RFM input'!I77 -> 0 | O44: ='[1]RFM input'!J77 -> 0 | P44: ='[1]RFM input'!K77 -> 0 | Q44: ='[1]RFM input'!L77 -> 0 | R44: ='[1]RFM input'!M77 -> 0
D45: 18 | E45: ='[1]RFM input'!F24 -> Accelerated Depreciation - Future of Gas | G45: 0 | H45: 0 | I45: 0 | J45: 0 | K45: 0 | L45: ='[1]RFM input'!G78 -> 0 | M45: ='[1]RFM input'!H78 -> 0 | N45: ='[1]RFM input'!I78 -> 0 | O45: ='[1]RFM input'!J78 -> 0 | P45: ='[1]RFM input'!K78 -> 0 | Q45: ='[1]RFM input'!L78 -> 0 | R45: ='[1]RFM input'!M78 -> 0
D46: 19 | E46: 0 | G46: 0 | H46: 0 | I46: 0 | J46: 0 | K46: 0 | L46: ='[1]RFM input'!G79 -> 0 | M46: ='[1]RFM input'!H79 -> 0 | N46: ='[1]RFM input'!I79 -> 0 | O46: ='[1]RFM input'!J79 -> 0 | P46: ='[1]RFM input'!K79 -> 0 | Q46: ='[1]RFM input'!L79 -> 0 | R46: ='[1]RFM input'!M79 -> 0
D47: 20 | E47: 0 | G47: 0 | H47: 0 | I47: 0 | J47: 0 | K47: 0 | L47: ='[1]RFM input'!G80 -> 0 | M47: ='[1]RFM input'!H80 -> 0 | N47: ='[1]RFM input'!I80 -> 0 | O47: ='[1]RFM input'!J80 -> 0 | P47: ='[1]RFM input'!K80 -> 0 | Q47: ='[1]RFM input'!L80 -> 0 | R47: ='[1]RFM input'!M80 -> 0
D48: 21 | E48: 0 | G48: 0 | H48: 0 | I48: 0 | J48: 0 | K48: 0 | L48: ='[1]RFM input'!G81 -> 0 | M48: ='[1]RFM input'!H81 -> 0 | N48: ='[1]RFM input'!I81 -> 0 | O48: ='[1]RFM input'!J81 -> 0 | P48: ='[1]RFM input'!K81 -> 0 | Q48: ='[1]RFM input'!L81 -> 0 | R48: ='[1]RFM input'!M81 -> 0
D49: 22 | E49: 0 | G49: 0 | H49: 0 | I49: 0 | J49: 0 | K49: 0 | L49: ='[1]RFM input'!G82 -> 0 | M49: ='[1]RFM input'!H82 -> 0 | N49: ='[1]RFM input'!I82 -> 0 | O49: ='[1]RFM input'!J82 -> 0 | P49: ='[1]RFM input'!K82 -> 0 | Q49: ='[1]RFM input'!L82 -> 0 | R49: ='[1]RFM input'!M82 -> 0
D50: 23 | E50: 0 | G50: 0 | H50: 0 | I50: 0 | J50: 0 | K50: 0 | L50: ='[1]RFM input'!G83 -> 0 | M50: ='[1]RFM input'!H83 -> 0 | N50: ='[1]RFM input'!I83 -> 0 | O50: ='[1]RFM input'!J83 -> 0 | P50: ='[1]RFM input'!K83 -> 0 | Q50: ='[1]RFM input'!L83 -> 0 | R50: ='[1]RFM input'!M83 -> 0
D51: 24 | E51: 0 | G51: 0 | H51: 0 | I51: 0 | J51: 0 | K51: 0 | L51: ='[1]RFM input'!G84 -> 0 | M51: ='[1]RFM input'!H84 -> 0 | N51: ='[1]RFM input'!I84 -> 0 | O51: ='[1]RFM input'!J84 -> 0 | P51: ='[1]RFM input'!K84 -> 0 | Q51: ='[1]RFM input'!L84 -> 0 | R51: ='[1]RFM input'!M84 -> 0
D52: 25 | E52: 0 | G52: 0 | H52: 0 | I52: 0 | J52: 0 | K52: 0 | L52: ='[1]RFM input'!G85 -> 0 | M52: ='[1]RFM input'!H85 -> 0 | N52: ='[1]RFM input'!I85 -> 0 | O52: ='[1]RFM input'!J85 -> 0 | P52: ='[1]RFM input'!K85 -> 0 | Q52: ='[1]RFM input'!L85 -> 0 | R52: ='[1]RFM input'!M85 -> 0
D53: 26 | E53: 0 | G53: 0 | H53: 0 | I53: 0 | J53: 0 | K53: 0 | L53: ='[1]RFM input'!G86 -> 0 | M53: ='[1]RFM input'!H86 -> 0 | N53: ='[1]RFM input'!I86 -> 0 | O53: ='[1]RFM input'!J86 -> 0 | P53: ='[1]RFM input'!K86 -> 0 | Q53: ='[1]RFM input'!L86 -> 0 | R53: ='[1]RFM input'!M86 -> 0
D54: 27 | E54: 0 | G54: 0 | H54: 0 | I54: 0 | J54: 0 | K54: 0 | L54: ='[1]RFM input'!G87 -> 0 | M54: ='[1]RFM input'!H87 -> 0 | N54: ='[1]RFM input'!I87 -> 0 | O54: ='[1]RFM input'!J87 -> 0 | P54: ='[1]RFM input'!K87 -> 0 | Q54: ='[1]RFM input'!L87 -> 0 | R54: ='[1]RFM input'!M87 -> 0
D55: 28 | E55: 0 | G55: 0 | H55: 0 | I55: 0 | J55: 0 | K55: 0 | L55: ='[1]RFM input'!G88 -> 0 | M55: ='[1]RFM input'!H88 -> 0 | N55: ='[1]RFM input'!I88 -> 0 | O55: ='[1]RFM input'!J88 -> 0 | P55: ='[1]RFM input'!K88 -> 0 | Q55: ='[1]RFM input'!L88 -> 0 | R55: ='[1]RFM input'!M88 -> 0
D56: 29 | E56: 0 | G56: 0 | H56: 0 | I56: 0 | J56: 0 | K56: 0 | L56: ='[1]RFM input'!G89 -> 0 | M56: ='[1]RFM input'!H89 -> 0 | N56: ='[1]RFM input'!I89 -> 0 | O56: ='[1]RFM input'!J89 -> 0 | P56: ='[1]RFM input'!K89 -> 0 | Q56: ='[1]RFM input'!L89 -> 0 | R56: ='[1]RFM input'!M89 -> 0
D57: 30 | E57: 0 | G57: 0 | H57: 0 | I57: 0 | J57: 0 | K57: 0 | L57: ='[1]RFM input'!G90 -> 0 | M57: ='[1]RFM input'!H90 -> 0 | N57: ='[1]RFM input'!I90 -> 0 | O57: ='[1]RFM input'!J90 -> 0 | P57: ='[1]RFM input'!K90 -> 0 | Q57: ='[1]RFM input'!L90 -> 0 | R57: ='[1]RFM input'!M90 -> 0
D58: 31 | E58: 0 | G58: 0 | H58: 0 | I58: 0 | J58: 0 | K58: 0 | L58: ='[1]RFM input'!G91 -> 0 | M58: ='[1]RFM input'!H91 -> 0 | N58: ='[1]RFM input'!I91 -> 0 | O58: ='[1]RFM input'!J91 -> 0 | P58: ='[1]RFM input'!K91 -> 0 | Q58: ='[1]RFM input'!L91 -> 0 | R58: ='[1]RFM input'!M91 -> 0
D59: 32 | E59: 0 | G59: 0 | H59: 0 | I59: 0 | J59: 0 | K59: 0 | L59: ='[1]RFM input'!G92 -> 0 | M59: ='[1]RFM input'!H92 -> 0 | N59: ='[1]RFM input'!I92 -> 0 | O59: ='[1]RFM input'!J92 -> 0 | P59: ='[1]RFM input'!K92 -> 0 | Q59: ='[1]RFM input'!L92 -> 0 | R59: ='[1]RFM input'!M92 -> 0
D60: 33 | E60: 0 | G60: 0 | H60: 0 | I60: 0 | J60: 0 | K60: 0 | L60: ='[1]RFM input'!G93 -> 0 | M60: ='[1]RFM input'!H93 -> 0 | N60: ='[1]RFM input'!I93 -> 0 | O60: ='[1]RFM input'!J93 -> 0 | P60: ='[1]RFM input'!K93 -> 0 | Q60: ='[1]RFM input'!L93 -> 0 | R60: ='[1]RFM input'!M93 -> 0
D61: 34 | E61: 0 | G61: 0 | H61: 0 | I61: 0 | J61: 0 | K61: 0 | L61: ='[1]RFM input'!G94 -> 0 | M61: ='[1]RFM input'!H94 -> 0 | N61: ='[1]RFM input'!I94 -> 0 | O61: ='[1]RFM input'!J94 -> 0 | P61: ='[1]RFM input'!K94 -> 0 | Q61: ='[1]RFM input'!L94 -> 0 | R61: ='[1]RFM input'!M94 -> 0
D62: 35 | E62: 0 | G62: 0 | H62: 0 | I62: 0 | J62: 0 | K62: 0 | L62: ='[1]RFM input'!G95 -> 0 | M62: ='[1]RFM input'!H95 -> 0 | N62: ='[1]RFM input'!I95 -> 0 | O62: ='[1]RFM input'!J95 -> 0 | P62: ='[1]RFM input'!K95 -> 0 | Q62: ='[1]RFM input'!L95 -> 0 | R62: ='[1]RFM input'!M95 -> 0
... 76 more rows

Sheet TAB input
E2: =IF('Capital base input'!$F$8=$F$8, 'Capital base input'!$F$8, $F$8)&" - TAB input - Gas DNSP "&Intro!$I$3&" - version "&Intro!$M$4 -> Ausnet - TAB input - Gas DNSP RFM - Depreciation tracking module - version 1 | J2: Input cells in blue
E4: Year | F4: =IF(LEN($H$9)>4, CONCATENATE(LEFT($H$9, 4)-2 & "-" & IF(AND(RIGHT($H$9, 2)<"12", RIGHT($H$9, 2)>"01"), "0", "") & IF(RIGHT($H$9, 2)="00", "98", IF(RIGHT($H$9, 2)="01", "99", RIGHT($H$9, 2)-2))), $H$9-2) -> 2011 | G4: =IF(LEN(F4)>4,CONCATENATE(LEFT(F4,4)+1&"-"&IF(RIGHT(F4, 2)<"09", "0","")&IF(RIGHT(F4, 2)="99", "00", RIGHT(F4,2)+1)),F4+1) -> 2012 | H4: =IF(LEN(G4)>4,CONCATENATE(LEFT(G4,4)+1&"-"&IF(RIGHT(G4, 2)<"09", "0","")&IF(RIGHT(G4, 2)="99", "00", RIGHT(G4,2)+1)),G4+1) -> 2013 | I4: =IF(I$11<>"", IF(INT($G$5+SUM($H$11:H$11))=$G$5+SUM($H$11:H$11), VALUE(LEFT(I$10, 4)), CONCATENATE(LEFT(I$10,4)&"-"&IF(MID(I$10, 3, 2)<"09", "0","")&IF(MID(I$10, 3, 2)="99", "00", MID(I$10, 3, 2)+1))), IF(AND(I$5<>INT(I$5), COUNTA($H$4:H$4)=ROUNDUP(I$5, 0)), IF($G$5+SUM($11:$11)=INT($G$5+SUM($11:$11)), VALUE(CONCATENATE(IF(RIGHT(H$4, 2)="99", LEFT(H$4, 2)+1, LEFT(H$4, 2))&RIGHT(H$4, 2))), CONCATENATE(LEFT(H$4, 2)&RIGHT(H$4, 2)&"-"&IF(RIGHT(H$4, 2)<"09", "0", "")&IF(RIGHT(H$4, 2)="99", "00", RIGHT(H$4, 2)+1))), IF(LEN(H4)>4,CONCATENATE(LEFT(H4,4)+1&"-"&IF(RIGHT(H4, 2)<"09", "0","")&IF(RIGHT(H4, 2)="99", "00", RIGHT(H4,2)+1)),VALUE(H4+1)))) -> 2014 | J4: =IF(J$11<>"", IF(INT($G$5+SUM($H$11:I$11))=$G$5+SUM($H$11:I$11), VALUE(LEFT(J$10, 4)), CONCATENATE(LEFT(J$10,4)&"-"&IF(MID(J$10, 3, 2)<"09", "0","")&IF(MID(J$10, 3, 2)="99", "00", MID(J$10, 3, 2)+1))), IF(AND(J$5<>INT(J$5), COUNTA($H$4:I$4)=ROUNDUP(J$5, 0)), IF($G$5+SUM($11:$11)=INT($G$5+SUM($11:$11)), VALUE(CONCATENATE(IF(RIGHT(I$4, 2)="99", LEFT(I$4, 2)+1, LEFT(I$4, 2))&RIGHT(I$4, 2))), CONCATENATE(LEFT(I$4, 2)&RIGHT(I$4, 2)&"-"&IF(RIGHT(I$4, 2)<"09", "0", "")&IF(RIGHT(I$4, 2)="99", "00", RIGHT(I$4, 2)+1))), IF(LEN(I4)>4,CONCATENATE(LEFT(I4,4)+1&"-"&IF(RIGHT(I4, 2)<"09", "0","")&IF(RIGHT(I4, 2)="99", "00", RIGHT(I4,2)+1)),VALUE(I4+1)))) -> 2015 | K4: =IF(K$11<>"", IF(INT($G$5+SUM($H$11:J$11))=$G$5+SUM($H$11:J$11), VALUE(LEFT(K$10, 4)), CONCATENATE(LEFT(K$10,4)&"-"&IF(MID(K$10, 3, 2)<"09", "0","")&IF(MID(K$10, 3, 2)="99", "00", MID(K$10, 3, 2)+1))), IF(AND(K$5<>INT(K$5), COUNTA($H$4:J$4)=ROUNDUP(K$5, 0)), IF($G$5+SUM($11:$11)=INT($G$5+SUM($11:$11)), VALUE(CONCATENATE(IF(RIGHT(J$4, 2)="99", LEFT(J$4, 2)+1, LEFT(J$4, 2))&RIGHT(J$4, 2))), CONCATENATE(LEFT(J$4, 2)&RIGHT(J$4, 2)&"-"&IF(RIGHT(J$4, 2)<"09", "0", "")&IF(RIGHT(J$4, 2)="99", "00", RIGHT(J$4, 2)+1))), IF(LEN(J4)>4,CONCATENATE(LEFT(J4,4)+1&"-"&IF(RIGHT(J4, 2)<"09", "0","")&IF(RIGHT(J4, 2)="99", "00", RIGHT(J4,2)+1)),VALUE(J4+1)))) -> 2016 | L4: =IF(L$11<>"", IF(INT($G$5+SUM($H$11:K$11))=$G$5+SUM($H$11:K$11), VALUE(LEFT(L$10, 4)), CONCATENATE(LEFT(L$10,4)&"-"&IF(MID(L$10, 3, 2)<"09", "0","")&IF(MID(L$10, 3, 2)="99", "00", MID(L$10, 3, 2)+1))), IF(AND(L$5<>INT(L$5), COUNTA($H$4:K$4)=ROUNDUP(L$5, 0)), IF($G$5+SUM($11:$11)=INT($G$5+SUM($11:$11)), VALUE(CONCATENATE(IF(RIGHT(K$4, 2)="99", LEFT(K$4, 2)+1, LEFT(K$4, 2))&RIGHT(K$4, 2))), CONCATENATE(LEFT(K$4, 2)&RIGHT(K$4, 2)&"-"&IF(RIGHT(K$4, 2)<"09", "0", "")&IF(RIGHT(K$4, 2)="99", "00", RIGHT(K$4, 2)+1))), IF(LEN(K4)>4,CONCATENATE(LEFT(K4,4)+1&"-"&IF(RIGHT(K4, 2)<"09", "0","")&IF(RIGHT(K4, 2)="99", "00", RIGHT(K4,2)+1)),VALUE(K4+1)))) -> 2017 | M4: =IF(M$11<>"", IF(INT($G$5+SUM($H$11:L$11))=$G$5+SUM($H$11:L$11), VALUE(LEFT(M$10, 4)), CONCATENATE(LEFT(M$10,4)&"-"&IF(MID(M$10, 3, 2)<"09", "0","")&IF(MID(M$10, 3, 2)="99", "00", MID(M$10, 3, 2)+1))), IF(AND(M$5<>INT(M$5), COUNTA($H$4:L$4)=ROUNDUP(M$5, 0)), IF($G$5+SUM($11:$11)=INT($G$5+SUM($11:$11)), VALUE(CONCATENATE(IF(RIGHT(L$4, 2)="99", LEFT(L$4, 2)+1, LEFT(L$4, 2))&RIGHT(L$4, 2))), CONCATENATE(LEFT(L$4, 2)&RIGHT(L$4, 2)&"-"&IF(RIGHT(L$4, 2)<"09", "0", "")&IF(RIGHT(L$4, 2)="99", "00", RIGHT(L$4, 2)+1))), IF(LEN(L4)>4,CONCATENATE(LEFT(L4,4)+1&"-"&IF(RIGHT(L4, 2)<"09", "0","")&IF(RIGHT(L4, 2)="99", "00", RIGHT(L4,2)+1)),VALUE(L4+1)))) -> 2018 | N4: =IF(N$11<>"", IF(INT($G$5+SUM($H$11:M$11))=$G$5+SUM($H$11:M$11), VALUE(LEFT(N$10, 4)), CONCATENATE(LEFT(N$10,4)&"-"&IF(MID(N$10, 3, 2)<"09", "0","")&IF(MID(N$10, 3, 2)="99", "00", MID(N$10, 3, 2)+1))), IF(AND(N$5<>INT(N$5), COUNTA($H$4:M$4)=ROUNDUP(N$5, 0)), IF($G$5+SUM($11:$11)=INT($G$5+SUM($11:$11)), VALUE(CONCATENATE(IF(RIGHT(M$4, 2)="99", LEFT(M$4, 2)+1, LEFT(M$4, 2))&RIGHT(M$4, 2))), CONCATENATE(LEFT(M$4, 2)&RIGHT(M$4, 2)&"-"&IF(RIGHT(M$4, 2)<"09", "0", "")&IF(RIGHT(M$4, 2)="99", "00", RIGHT(M$4, 2)+1))), IF(LEN(M4)>4,CONCATENATE(LEFT(M4,4)+1&"-"&IF(RIGHT(M4, 2)<"09", "0","")&IF(RIGHT(M4, 2)="99", "00", RIGHT(M4,2)+1)),VALUE(M4+1)))) -> 2019 | O4: =IF(O$11<>"", IF(INT($G$5+SUM($H$11:N$11))=$G$5+SUM($H$11:N$11), VALUE(LEFT(O$10, 4)), CONCATENATE(LEFT(O$10,4)&"-"&IF(MID(O$10, 3, 2)<"09", "0","")&IF(MID(O$10, 3, 2)="99", "00", MID(O$10, 3, 2)+1))), IF(AND(O$5<>INT(O$5), COUNTA($H$4:N$4)=ROUNDUP(O$5, 0)), IF($G$5+SUM($11:$11)=INT($G$5+SUM($11:$11)), VALUE(CONCATENATE(IF(RIGHT(N$4, 2)="99", LEFT(N$4, 2)+1, LEFT(N$4, 2))&RIGHT(N$4, 2))), CONCATENATE(LEFT(N$4, 2)&RIGHT(N$4, 2)&"-"&IF(RIGHT(N$4, 2)<"09", "0", "")&IF(RIGHT(N$4, 2)="99", "00", RIGHT(N$4, 2)+1))), IF(LEN(N4)>4,CONCATENATE(LEFT(N4,4)+1&"-"&IF(RIGHT(N4, 2)<"09", "0","")&IF(RIGHT(N4, 2)="99", "00", RIGHT(N4,2)+1)),VALUE(N4+1)))) -> 2020 | P4: =IF(P$11<>"", IF(INT($G$5+SUM($H$11:O$11))=$G$5+SUM($H$11:O$11), VALUE(LEFT(P$10, 4)), CONCATENATE(LEFT(P$10,4)&"-"&IF(MID(P$10, 3, 2)<"09", "0","")&IF(MID(P$10, 3, 2)="99", "00", MID(P$10, 3, 2)+1))), IF(AND(P$5<>INT(P$5), COUNTA($H$4:O$4)=ROUNDUP(P$5, 0)), IF($G$5+SUM($11:$11)=INT($G$5+SUM($11:$11)), VALUE(CONCATENATE(IF(RIGHT(O$4, 2)="99", LEFT(O$4, 2)+1, LEFT(O$4, 2))&RIGHT(O$4, 2))), CONCATENATE(LEFT(O$4, 2)&RIGHT(O$4, 2)&"-"&IF(RIGHT(O$4, 2)<"09", "0", "")&IF(RIGHT(O$4, 2)="99", "00", RIGHT(O$4, 2)+1))), IF(LEN(O4)>4,CONCATENATE(LEFT(O4,4)+1&"-"&IF(RIGHT(O4, 2)<"09", "0","")&IF(RIGHT(O4, 2)="99", "00", RIGHT(O4,2)+1)),VALUE(O4+1)))) -> 2021 | Q4: =IF(Q$11<>"", IF(INT($G$5+SUM($H$11:P$11))=$G$5+SUM($H$11:P$11), VALUE(LEFT(Q$10, 4)), CONCATENATE(LEFT(Q$10,4)&"-"&IF(MID(Q$10, 3, 2)<"09", "0","")&IF(MID(Q$10, 3, 2)="99", "00", MID(Q$10, 3, 2)+1))), IF(AND(Q$5<>INT(Q$5), COUNTA($H$4:P$4)=ROUNDUP(Q$5, 0)), IF($G$5+SUM($11:$11)=INT($G$5+SUM($11:$11)), VALUE(CONCATENATE(IF(RIGHT(P$4, 2)="99", LEFT(P$4, 2)+1, LEFT(P$4, 2))&RIGHT(P$4, 2))), CONCATENATE(LEFT(P$4, 2)&RIGHT(P$4, 2)&"-"&IF(RIGHT(P$4, 2)<"09", "0", "")&IF(RIGHT(P$4, 2)="99", "00", RIGHT(P$4, 2)+1))), IF(LEN(P4)>4,CONCATENATE(LEFT(P4,4)+1&"-"&IF(RIGHT(P4, 2)<"09", "0","")&IF(RIGHT(P4, 2)="99", "00", RIGHT(P4,2)+1)),VALUE(P4+1)))) -> 2022 | R4: =IF(R$11<>"", IF(INT($G$5+SUM($H$11:Q$11))=$G$5+SUM($H$11:Q$11), VALUE(LEFT(R$10, 4)), CONCATENATE(LEFT(R$10,4)&"-"&IF(MID(R$10, 3, 2)<"09", "0","")&IF(MID(R$10, 3, 2)="99", "00", MID(R$10, 3, 2)+1))), IF(AND(R$5<>INT(R$5), COUNTA($H$4:Q$4)=ROUNDUP(R$5, 0)), IF($G$5+SUM($11:$11)=INT($G$5+SUM($11:$11)), VALUE(CONCATENATE(IF(RIGHT(Q$4, 2)="99", LEFT(Q$4, 2)+1, LEFT(Q$4, 2))&RIGHT(Q$4, 2))), CONCATENATE(LEFT(Q$4, 2)&RIGHT(Q$4, 2)&"-"&IF(RIGHT(Q$4, 2)<"09", "0", "")&IF(RIGHT(Q$4, 2)="99", "00", RIGHT(Q$4, 2)+1))), IF(LEN(Q4)>4,CONCATENATE(LEFT(Q4,4)+1&"-"&IF(RIGHT(Q4, 2)<"09", "0","")&IF(RIGHT(Q4, 2)="99", "00", RIGHT(Q4,2)+1)),VALUE(Q4+1)))) -> 2023 | S4: =IF(S$11<>"", IF(INT($G$5+SUM($H$11:R$11))=$G$5+SUM($H$11:R$11), VALUE(LEFT(S$10, 4)), CONCATENATE(LEFT(S$10,4)&"-"&IF(MID(S$10, 3, 2)<"09", "0","")&IF(MID(S$10, 3, 2)="99", "00", MID(S$10, 3, 2)+1))), IF(AND(S$5<>INT(S$5), COUNTA($H$4:R$4)=ROUNDUP(S$5, 0)), IF($G$5+SUM($11:$11)=INT($G$5+SUM($11:$11)), VALUE(CONCATENATE(IF(RIGHT(R$4, 2)="99", LEFT(R$4, 2)+1, LEFT(R$4, 2))&RIGHT(R$4, 2))), CONCATENATE(LEFT(R$4, 2)&RIGHT(R$4, 2)&"-"&IF(RIGHT(R$4, 2)<"09", "0", "")&IF(RIGHT(R$4, 2)="99", "00", RIGHT(R$4, 2)+1))), IF(LEN(R4)>4,CONCATENATE(LEFT(R4,4)+1&"-"&IF(RIGHT(R4, 2)<"09", "0","")&IF(RIGHT(R4, 2)="99", "00", RIGHT(R4,2)+1)),VALUE(R4+1)))) -> 2023-24 | T4: =IF(T$11<>"", IF(INT($G$5+SUM($H$11:S$11))=$G$5+SUM($H$11:S$11), VALUE(LEFT(T$10, 4)), CONCATENATE(LEFT(T$10,4)&"-"&IF(MID(T$10, 3, 2)<"09", "0","")&IF(MID(T$10, 3, 2)="99", "00", MID(T$10, 3, 2)+1))), IF(AND(T$5<>INT(T$5), COUNTA($H$4:S$4)=ROUNDUP(T$5, 0)), IF($G$5+SUM($11:$11)=INT($G$5+SUM($11:$11)), VALUE(CONCATENATE(IF(RIGHT(S$4, 2)="99", LEFT(S$4, 2)+1, LEFT(S$4, 2))&RIGHT(S$4, 2))), CONCATENATE(LEFT(S$4, 2)&RIGHT(S$4, 2)&"-"&IF(RIGHT(S$4, 2)<"09", "0", "")&IF(RIGHT(S$4, 2)="99", "00", RIGHT(S$4, 2)+1))), IF(LEN(S4)>4,CONCATENATE(LEFT(S4,4)+1&"-"&IF(RIGHT(S4, 2)<"09", "0","")&IF(RIGHT(S4, 2)="99", "00", RIGHT(S4,2)+1)),VALUE(S4+1)))) -> 2024-25 | U4: =IF(U$11<>"", IF(INT($G$5+SUM($H$11:T$11))=$G$5+SUM($H$11:T$11), VALUE(LEFT(U$10, 4)), CONCATENATE(LEFT(U$10,4)&"-"&IF(MID(U$10, 3, 2)<"09", "0","")&IF(MID(U$10, 3, 2)="99", "00", MID(U$10, 3, 2)+1))), IF(AND(U$5<>INT(U$5), COUNTA($H$4:T$4)=ROUNDUP(U$5, 0)), IF($G$5+SUM($11:$11)=INT($G$5+SUM($11:$11)), VALUE(CONCATENATE(IF(RIGHT(T$4, 2)="99", LEFT(T$4, 2)+1, LEFT(T$4, 2))&RIGHT(T$4, 2))), CONCATENATE(LEFT(T$4, 2)&RIGHT(T$4, 2)&"-"&IF(RIGHT(T$4, 2)<"09", "0", "")&IF(RIGHT(T$4, 2)="99", "00", RIGHT(T$4, 2)+1))), IF(LEN(T4)>4,CONCATENATE(LEFT(T4,4)+1&"-"&IF(RIGHT(T4, 2)<"09", "0","")&IF(RIGHT(T4, 2)="99", "00", RIGHT(T4,2)+1)),VALUE(T4+1)))) -> 2025-26 | V4: =IF(V$11<>"", IF(INT($G$5+SUM($H$11:U$11))=$G$5+SUM($H$11:U$11), VALUE(LEFT(V$10, 4)), CONCATENATE(LEFT(V$10,4)&"-"&IF(MID(V$10, 3, 2)<"09", "0","")&IF(MID(V$10, 3, 2)="99", "00", MID(V$10, 3, 2)+1))), IF(AND(V$5<>INT(V$5), COUNTA($H$4:U$4)=ROUNDUP(V$5, 0)), IF($G$5+SUM($11:$11)=INT($G$5+SUM($11:$11)), VALUE(CONCATENATE(IF(RIGHT(U$4, 2)="99", LEFT(U$4, 2)+1, LEFT(U$4, 2))&RIGHT(U$4, 2))), CONCATENATE(LEFT(U$4, 2)&RIGHT(U$4, 2)&"-"&IF(RIGHT(U$4, 2)<"09", "0", "")&IF(RIGHT(U$4, 2)="99", "00", RIGHT(U$4, 2)+1))), IF(LEN(U4)>4,CONCATENATE(LEFT(U4,4)+1&"-"&IF(RIGHT(U4, 2)<"09", "0","")&IF(RIGHT(U4, 2)="99", "00", RIGHT(U4,2)+1)),VALUE(U4+1)))) -> 2026-27 | W4: =IF(W$11<>"", IF(INT($G$5+SUM($H$11:V$11))=$G$5+SUM($H$11:V$11), VALUE(LEFT(W$10, 4)), CONCATENATE(LEFT(W$10,4)&"-"&IF(MID(W$10, 3, 2)<"09", "0","")&IF(MID(W$10, 3, 2)="99", "00", MID(W$10, 3, 2)+1))), IF(AND(W$5<>INT(W$5), COUNTA($H$4:V$4)=ROUNDUP(W$5, 0)), IF($G$5+SUM($11:$11)=INT($G$5+SUM($11:$11)), VALUE(CONCATENATE(IF(RIGHT(V$4, 2)="99", LEFT(V$4, 2)+1, LEFT(V$4, 2))&RIGHT(V$4, 2))), CONCATENATE(LEFT(V$4, 2)&RIGHT(V$4, 2)&"-"&IF(RIGHT(V$4, 2)<"09", "0", "")&IF(RIGHT(V$4, 2)="99", "00", RIGHT(V$4, 2)+1))), IF(LEN(V4)>4,CONCATENATE(LEFT(V4,4)+1&"-"&IF(RIGHT(V4, 2)<"09", "0","")&IF(RIGHT(V4, 2)="99", "00", RIGHT(V4,2)+1)),VALUE(V4+1)))) -> 2027-28 | X4: =IF(X$11<>"", IF(INT($G$5+SUM($H$11:W$11))=$G$5+SUM($H$11:W$11), VALUE(LEFT(X$10, 4)), CONCATENATE(LEFT(X$10,4)&"-"&IF(MID(X$10, 3, 2)<"09", "0","")&IF(MID(X$10, 3, 2)="99", "00", MID(X$10, 3, 2)+1))), IF(AND(X$5<>INT(X$5), COUNTA($H$4:W$4)=ROUNDUP(X$5, 0)), IF($G$5+SUM($11:$11)=INT($G$5+SUM($11:$11)), VALUE(CONCATENATE(IF(RIGHT(W$4, 2)="99", LEFT(W$4, 2)+1, LEFT(W$4, 2))&RIGHT(W$4, 2))), CONCATENATE(LEFT(W$4, 2)&RIGHT(W$4, 2)&"-"&IF(RIGHT(W$4, 2)<"09", "0", "")&IF(RIGHT(W$4, 2)="99", "00", RIGHT(W$4, 2)+1))), IF(LEN(W4)>4,CONCATENATE(LEFT(W4,4)+1&"-"&IF(RIGHT(W4, 2)<"09", "0","")&IF(RIGHT(W4, 2)="99", "00", RIGHT(W4,2)+1)),VALUE(W4+1)))) -> 2028-29 | Y4: =IF(Y$11<>"", IF(INT($G$5+SUM($H$11:X$11))=$G$5+SUM($H$11:X$11), VALUE(LEFT(Y$10, 4)), CONCATENATE(LEFT(Y$10,4)&"-"&IF(MID(Y$10, 3, 2)<"09", "0","")&IF(MID(Y$10, 3, 2)="99", "00", MID(Y$10, 3, 2)+1))), IF(AND(Y$5<>INT(Y$5), COUNTA($H$4:X$4)=ROUNDUP(Y$5, 0)), IF($G$5+SUM($11:$11)=INT($G$5+SUM($11:$11)), VALUE(CONCATENATE(IF(RIGHT(X$4, 2)="99", LEFT(X$4, 2)+1, LEFT(X$4, 2))&RIGHT(X$4, 2))), CONCATENATE(LEFT(X$4, 2)&RIGHT(X$4, 2)&"-"&IF(RIGHT(X$4, 2)<"09", "0", "")&IF(RIGHT(X$4, 2)="99", "00", RIGHT(X$4, 2)+1))), IF(LEN(X4)>4,CONCATENATE(LEFT(X4,4)+1&"-"&IF(RIGHT(X4, 2)<"09", "0","")&IF(RIGHT(X4, 2)="99", "00", RIGHT(X4,2)+1)),VALUE(X4+1)))) -> 2029-30 | Z4: =IF(Z$11<>"", IF(INT($G$5+SUM($H$11:Y$11))=$G$5+SUM($H$11:Y$11), VALUE(LEFT(Z$10, 4)), CONCATENATE(LEFT(Z$10,4)&"-"&IF(MID(Z$10, 3, 2)<"09", "0","")&IF(MID(Z$10, 3, 2)="99", "00", MID(Z$10, 3, 2)+1))), IF(AND(Z$5<>INT(Z$5), COUNTA($H$4:Y$4)=ROUNDUP(Z$5, 0)), IF($G$5+SUM($11:$11)=INT($G$5+SUM($11:$11)), VALUE(CONCATENATE(IF(RIGHT(Y$4, 2)="99", LEFT(Y$4, 2)+1, LEFT(Y$4, 2))&RIGHT(Y$4, 2))), CONCATENATE(LEFT(Y$4, 2)&RIGHT(Y$4, 2)&"-"&IF(RIGHT(Y$4, 2)<"09", "0", "")&IF(RIGHT(Y$4, 2)="99", "00", RIGHT(Y$4, 2)+1))), IF(LEN(Y4)>4,CONCATENATE(LEFT(Y4,4)+1&"-"&IF(RIGHT(Y4, 2)<"09", "0","")&IF(RIGHT(Y4, 2)="99", "00", RIGHT(Y4,2)+1)),VALUE(Y4+1)))) -> 2030-31 | AA4: =IF(AA$11<>"", IF(INT($G$5+SUM($H$11:Z$11))=$G$5+SUM($H$11:Z$11), VALUE(LEFT(AA$10, 4)), CONCATENATE(LEFT(AA$10,4)&"-"&IF(MID(AA$10, 3, 2)<"09", "0","")&IF(MID(AA$10, 3, 2)="99", "00", MID(AA$10, 3, 2)+1))), IF(AND(AA$5<>INT(AA$5), COUNTA($H$4:Z$4)=ROUNDUP(AA$5, 0)), IF($G$5+SUM($11:$11)=INT($G$5+SUM($11:$11)), VALUE(CONCATENATE(IF(RIGHT(Z$4, 2)="99", LEFT(Z$4, 2)+1, LEFT(Z$4, 2))&RIGHT(Z$4, 2))), CONCATENATE(LEFT(Z$4, 2)&RIGHT(Z$4, 2)&"-"&IF(RIGHT(Z$4, 2)<"09", "0", "")&IF(RIGHT(Z$4, 2)="99", "00", RIGHT(Z$4, 2)+1))), IF(LEN(Z4)>4,CONCATENATE(LEFT(Z4,4)+1&"-"&IF(RIGHT(Z4, 2)<"09", "0","")&IF(RIGHT(Z4, 2)="99", "00", RIGHT(Z4,2)+1)),VALUE(Z4+1)))) -> 2031-32 | AB4: =IF(AB$11<>"", IF(INT($G$5+SUM($H$11:AA$11))=$G$5+SUM($H$11:AA$11), VALUE(LEFT(AB$10, 4)), CONCATENATE(LEFT(AB$10,4)&"-"&IF(MID(AB$10, 3, 2)<"09", "0","")&IF(MID(AB$10, 3, 2)="99", "00", MID(AB$10, 3, 2)+1))), IF(AND(AB$5<>INT(AB$5), COUNTA($H$4:AA$4)=ROUNDUP(AB$5, 0)), IF($G$5+SUM($11:$11)=INT($G$5+SUM($11:$11)), VALUE(CONCATENATE(IF(RIGHT(AA$4, 2)="99", LEFT(AA$4, 2)+1, LEFT(AA$4, 2))&RIGHT(AA$4, 2))), CONCATENATE(LEFT(AA$4, 2)&RIGHT(AA$4, 2)&"-"&IF(RIGHT(AA$4, 2)<"09", "0", "")&IF(RIGHT(AA$4, 2)="99", "00", RIGHT(AA$4, 2)+1))), IF(LEN(AA4)>4,CONCATENATE(LEFT(AA4,4)+1&"-"&IF(RIGHT(AA4, 2)<"09", "0","")&IF(RIGHT(AA4, 2)="99", "00", RIGHT(AA4,2)+1)),VALUE(AA4+1)))) -> 2032-33 | AC4: =IF(AC$11<>"", IF(INT($G$5+SUM($H$11:AB$11))=$G$5+SUM($H$11:AB$11), VALUE(LEFT(AC$10, 4)), CONCATENATE(LEFT(AC$10,4)&"-"&IF(MID(AC$10, 3, 2)<"09", "0","")&IF(MID(AC$10, 3, 2)="99", "00", MID(AC$10, 3, 2)+1))), IF(AND(AC$5<>INT(AC$5), COUNTA($H$4:AB$4)=ROUNDUP(AC$5, 0)), IF($G$5+SUM($11:$11)=INT($G$5+SUM($11:$11)), VALUE(CONCATENATE(IF(RIGHT(AB$4, 2)="99", LEFT(AB$4, 2)+1, LEFT(AB$4, 2))&RIGHT(AB$4, 2))), CONCATENATE(LEFT(AB$4, 2)&RIGHT(AB$4, 2)&"-"&IF(RIGHT(AB$4, 2)<"09", "0", "")&IF(RIGHT(AB$4, 2)="99", "00", RIGHT(AB$4, 2)+1))), IF(LEN(AB4)>4,CONCATENATE(LEFT(AB4,4)+1&"-"&IF(RIGHT(AB4, 2)<"09", "0","")&IF(RIGHT(AB4, 2)="99", "00", RIGHT(AB4,2)+1)),VALUE(AB4+1)))) -> 2033-34 | AD4: =IF(AD$11<>"", IF(INT($G$5+SUM($H$11:AC$11))=$G$5+SUM($H$11:AC$11), VALUE(LEFT(AD$10, 4)), CONCATENATE(LEFT(AD$10,4)&"-"&IF(MID(AD$10, 3, 2)<"09", "0","")&IF(MID(AD$10, 3, 2)="99", "00", MID(AD$10, 3, 2)+1))), IF(AND(AD$5<>INT(AD$5), COUNTA($H$4:AC$4)=ROUNDUP(AD$5, 0)), IF($G$5+SUM($11:$11)=INT($G$5+SUM($11:$11)), VALUE(CONCATENATE(IF(RIGHT(AC$4, 2)="99", LEFT(AC$4, 2)+1, LEFT(AC$4, 2))&RIGHT(AC$4, 2))), CONCATENATE(LEFT(AC$4, 2)&RIGHT(AC$4, 2)&"-"&IF(RIGHT(AC$4, 2)<"09", "0", "")&IF(RIGHT(AC$4, 2)="99", "00", RIGHT(AC$4, 2)+1))), IF(LEN(AC4)>4,CONCATENATE(LEFT(AC4,4)+1&"-"&IF(RIGHT(AC4, 2)<"09", "0","")&IF(RIGHT(AC4, 2)="99", "00", RIGHT(AC4,2)+1)),VALUE(AC4+1)))) -> 2034-35 | AE4: =IF(AE$11<>"", IF(INT($G$5+SUM($H$11:AD$11))=$G$5+SUM($H$11:AD$11), VALUE(LEFT(AE$10, 4)), CONCATENATE(LEFT(AE$10,4)&"-"&IF(MID(AE$10, 3, 2)<"09", "0","")&IF(MID(AE$10, 3, 2)="99", "00", MID(AE$10, 3, 2)+1))), IF(AND(AE$5<>INT(AE$5), COUNTA($H$4:AD$4)=ROUNDUP(AE$5, 0)), IF($G$5+SUM($11:$11)=INT($G$5+SUM($11:$11)), VALUE(CONCATENATE(IF(RIGHT(AD$4, 2)="99", LEFT(AD$4, 2)+1, LEFT(AD$4, 2))&RIGHT(AD$4, 2))), CONCATENATE(LEFT(AD$4, 2)&RIGHT(AD$4, 2)&"-"&IF(RIGHT(AD$4, 2)<"09", "0", "")&IF(RIGHT(AD$4, 2)="99", "00", RIGHT(AD$4, 2)+1))), IF(LEN(AD4)>4,CONCATENATE(LEFT(AD4,4)+1&"-"&IF(RIGHT(AD4, 2)<"09", "0","")&IF(RIGHT(AD4, 2)="99", "00", RIGHT(AD4,2)+1)),VALUE(AD4+1)))) -> 2035-36 | AF4: =IF(AF$11<>"", IF(INT($G$5+SUM($H$11:AE$11))=$G$5+SUM($H$11:AE$11), VALUE(LEFT(AF$10, 4)), CONCATENATE(LEFT(AF$10,4)&"-"&IF(MID(AF$10, 3, 2)<"09", "0","")&IF(MID(AF$10, 3, 2)="99", "00", MID(AF$10, 3, 2)+1))), IF(AND(AF$5<>INT(AF$5), COUNTA($H$4:AE$4)=ROUNDUP(AF$5, 0)), IF($G$5+SUM($11:$11)=INT($G$5+SUM($11:$11)), VALUE(CONCATENATE(IF(RIGHT(AE$4, 2)="99", LEFT(AE$4, 2)+1, LEFT(AE$4, 2))&RIGHT(AE$4, 2))), CONCATENATE(LEFT(AE$4, 2)&RIGHT(AE$4, 2)&"-"&IF(RIGHT(AE$4, 2)<"09", "0", "")&IF(RIGHT(AE$4, 2)="99", "00", RIGHT(AE$4, 2)+1))), IF(LEN(AE4)>4,CONCATENATE(LEFT(AE4,4)+1&"-"&IF(RIGHT(AE4, 2)<"09", "0","")&IF(RIGHT(AE4, 2)="99", "00", RIGHT(AE4,2)+1)),VALUE(AE4+1)))) -> 2036-37 | AG4: =IF(AG$11<>"", IF(INT($G$5+SUM($H$11:AF$11))=$G$5+SUM($H$11:AF$11), VALUE(LEFT(AG$10, 4)), CONCATENATE(LEFT(AG$10,4)&"-"&IF(MID(AG$10, 3, 2)<"09", "0","")&IF(MID(AG$10, 3, 2)="99", "00", MID(AG$10, 3, 2)+1))), IF(AND(AG$5<>INT(AG$5), COUNTA($H$4:AF$4)=ROUNDUP(AG$5, 0)), IF($G$5+SUM($11:$11)=INT($G$5+SUM($11:$11)), VALUE(CONCATENATE(IF(RIGHT(AF$4, 2)="99", LEFT(AF$4, 2)+1, LEFT(AF$4, 2))&RIGHT(AF$4, 2))), CONCATENATE(LEFT(AF$4, 2)&RIGHT(AF$4, 2)&"-"&IF(RIGHT(AF$4, 2)<"09", "0", "")&IF(RIGHT(AF$4, 2)="99", "00", RIGHT(AF$4, 2)+1))), IF(LEN(AF4)>4,CONCATENATE(LEFT(AF4,4)+1&"-"&IF(RIGHT(AF4, 2)<"09", "0","")&IF(RIGHT(AF4, 2)="99", "00", RIGHT(AF4,2)+1)),VALUE(AF4+1)))) -> 2037-38 | AH4: =IF(AH$11<>"", IF(INT($G$5+SUM($H$11:AG$11))=$G$5+SUM($H$11:AG$11), VALUE(LEFT(AH$10, 4)), CONCATENATE(LEFT(AH$10,4)&"-"&IF(MID(AH$10, 3, 2)<"09", "0","")&IF(MID(AH$10, 3, 2)="99", "00", MID(AH$10, 3, 2)+1))), IF(AND(AH$5<>INT(AH$5), COUNTA($H$4:AG$4)=ROUNDUP(AH$5, 0)), IF($G$5+SUM($11:$11)=INT($G$5+SUM($11:$11)), VALUE(CONCATENATE(IF(RIGHT(AG$4, 2)="99", LEFT(AG$4, 2)+1, LEFT(AG$4, 2))&RIGHT(AG$4, 2))), CONCATENATE(LEFT(AG$4, 2)&RIGHT(AG$4, 2)&"-"&IF(RIGHT(AG$4, 2)<"09", "0", "")&IF(RIGHT(AG$4, 2)="99", "00", RIGHT(AG$4, 2)+1))), IF(LEN(AG4)>4,CONCATENATE(LEFT(AG4,4)+1&"-"&IF(RIGHT(AG4, 2)<"09", "0","")&IF(RIGHT(AG4, 2)="99", "00", RIGHT(AG4,2)+1)),VALUE(AG4+1)))) -> 2038-39 | AI4: =IF(AI$11<>"", IF(INT($G$5+SUM($H$11:AH$11))=$G$5+SUM($H$11:AH$11), VALUE(LEFT(AI$10, 4)), CONCATENATE(LEFT(AI$10,4)&"-"&IF(MID(AI$10, 3, 2)<"09", "0","")&IF(MID(AI$10, 3, 2)="99", "00", MID(AI$10, 3, 2)+1))), IF(AND(AI$5<>INT(AI$5), COUNTA($H$4:AH$4)=ROUNDUP(AI$5, 0)), IF($G$5+SUM($11:$11)=INT($G$5+SUM($11:$11)), VALUE(CONCATENATE(IF(RIGHT(AH$4, 2)="99", LEFT(AH$4, 2)+1, LEFT(AH$4, 2))&RIGHT(AH$4, 2))), CONCATENATE(LEFT(AH$4, 2)&RIGHT(AH$4, 2)&"-"&IF(RIGHT(AH$4, 2)<"09", "0", "")&IF(RIGHT(AH$4, 2)="99", "00", RIGHT(AH$4, 2)+1))), IF(LEN(AH4)>4,CONCATENATE(LEFT(AH4,4)+1&"-"&IF(RIGHT(AH4, 2)<"09", "0","")&IF(RIGHT(AH4, 2)="99", "00", RIGHT(AH4,2)+1)),VALUE(AH4+1)))) -> 2039-40 | AJ4: =IF(AJ$11<>"", IF(INT($G$5+SUM($H$11:AI$11))=$G$5+SUM($H$11:AI$11), VALUE(LEFT(AJ$10, 4)), CONCATENATE(LEFT(AJ$10,4)&"-"&IF(MID(AJ$10, 3, 2)<"09", "0","")&IF(MID(AJ$10, 3, 2)="99", "00", MID(AJ$10, 3, 2)+1))), IF(AND(AJ$5<>INT(AJ$5), COUNTA($H$4:AI$4)=ROUNDUP(AJ$5, 0)), IF($G$5+SUM($11:$11)=INT($G$5+SUM($11:$11)), VALUE(CONCATENATE(IF(RIGHT(AI$4, 2)="99", LEFT(AI$4, 2)+1, LEFT(AI$4, 2))&RIGHT(AI$4, 2))), CONCATENATE(LEFT(AI$4, 2)&RIGHT(AI$4, 2)&"-"&IF(RIGHT(AI$4, 2)<"09", "0", "")&IF(RIGHT(AI$4, 2)="99", "00", RIGHT(AI$4, 2)+1))), IF(LEN(AI4)>4,CONCATENATE(LEFT(AI4,4)+1&"-"&IF(RIGHT(AI4, 2)<"09", "0","")&IF(RIGHT(AI4, 2)="99", "00", RIGHT(AI4,2)+1)),VALUE(AI4+1)))) -> 2040-41 | AK4: =IF(AK$11<>"", IF(INT($G$5+SUM($H$11:AJ$11))=$G$5+SUM($H$11:AJ$11), VALUE(LEFT(AK$10, 4)), CONCATENATE(LEFT(AK$10,4)&"-"&IF(MID(AK$10, 3, 2)<"09", "0","")&IF(MID(AK$10, 3, 2)="99", "00", MID(AK$10, 3, 2)+1))), IF(AND(AK$5<>INT(AK$5), COUNTA($H$4:AJ$4)=ROUNDUP(AK$5, 0)), IF($G$5+SUM($11:$11)=INT($G$5+SUM($11:$11)), VALUE(CONCATENATE(IF(RIGHT(AJ$4, 2)="99", LEFT(AJ$4, 2)+1, LEFT(AJ$4, 2))&RIGHT(AJ$4, 2))), CONCATENATE(LEFT(AJ$4, 2)&RIGHT(AJ$4, 2)&"-"&IF(RIGHT(AJ$4, 2)<"09", "0", "")&IF(RIGHT(AJ$4, 2)="99", "00", RIGHT(AJ$4, 2)+1))), IF(LEN(AJ4)>4,CONCATENATE(LEFT(AJ4,4)+1&"-"&IF(RIGHT(AJ4, 2)<"09", "0","")&IF(RIGHT(AJ4, 2)="99", "00", RIGHT(AJ4,2)+1)),VALUE(AJ4+1)))) -> 2041-42 | AL4: =IF(AL$11<>"", IF(INT($G$5+SUM($H$11:AK$11))=$G$5+SUM($H$11:AK$11), VALUE(LEFT(AL$10, 4)), CONCATENATE(LEFT(AL$10,4)&"-"&IF(MID(AL$10, 3, 2)<"09", "0","")&IF(MID(AL$10, 3, 2)="99", "00", MID(AL$10, 3, 2)+1))), IF(AND(AL$5<>INT(AL$5), COUNTA($H$4:AK$4)=ROUNDUP(AL$5, 0)), IF($G$5+SUM($11:$11)=INT($G$5+SUM($11:$11)), VALUE(CONCATENATE(IF(RIGHT(AK$4, 2)="99", LEFT(AK$4, 2)+1, LEFT(AK$4, 2))&RIGHT(AK$4, 2))), CONCATENATE(LEFT(AK$4, 2)&RIGHT(AK$4, 2)&"-"&IF(RIGHT(AK$4, 2)<"09", "0", "")&IF(RIGHT(AK$4, 2)="99", "00", RIGHT(AK$4, 2)+1))), IF(LEN(AK4)>4,CONCATENATE(LEFT(AK4,4)+1&"-"&IF(RIGHT(AK4, 2)<"09", "0","")&IF(RIGHT(AK4, 2)="99", "00", RIGHT(AK4,2)+1)),VALUE(AK4+1)))) -> 2042-43 | AM4: =IF(AM$11<>"", IF(INT($G$5+SUM($H$11:AL$11))=$G$5+SUM($H$11:AL$11), VALUE(LEFT(AM$10, 4)), CONCATENATE(LEFT(AM$10,4)&"-"&IF(MID(AM$10, 3, 2)<"09", "0","")&IF(MID(AM$10, 3, 2)="99", "00", MID(AM$10, 3, 2)+1))), IF(AND(AM$5<>INT(AM$5), COUNTA($H$4:AL$4)=ROUNDUP(AM$5, 0)), IF($G$5+SUM($11:$11)=INT($G$5+SUM($11:$11)), VALUE(CONCATENATE(IF(RIGHT(AL$4, 2)="99", LEFT(AL$4, 2)+1, LEFT(AL$4, 2))&RIGHT(AL$4, 2))), CONCATENATE(LEFT(AL$4, 2)&RIGHT(AL$4, 2)&"-"&IF(RIGHT(AL$4, 2)<"09", "0", "")&IF(RIGHT(AL$4, 2)="99", "00", RIGHT(AL$4, 2)+1))), IF(LEN(AL4)>4,CONCATENATE(LEFT(AL4,4)+1&"-"&IF(RIGHT(AL4, 2)<"09", "0","")&IF(RIGHT(AL4, 2)="99", "00", RIGHT(AL4,2)+1)),VALUE(AL4+1)))) -> 2043-44 | AN4: =IF(AN$11<>"", IF(INT($G$5+SUM($H$11:AM$11))=$G$5+SUM($H$11:AM$11), VALUE(LEFT(AN$10, 4)), CONCATENATE(LEFT(AN$10,4)&"-"&IF(MID(AN$10, 3, 2)<"09", "0","")&IF(MID(AN$10, 3, 2)="99", "00", MID(AN$10, 3, 2)+1))), IF(AND(AN$5<>INT(AN$5), COUNTA($H$4:AM$4)=ROUNDUP(AN$5, 0)), IF($G$5+SUM($11:$11)=INT($G$5+SUM($11:$11)), VALUE(CONCATENATE(IF(RIGHT(AM$4, 2)="99", LEFT(AM$4, 2)+1, LEFT(AM$4, 2))&RIGHT(AM$4, 2))), CONCATENATE(LEFT(AM$4, 2)&RIGHT(AM$4, 2)&"-"&IF(RIGHT(AM$4, 2)<"09", "0", "")&IF(RIGHT(AM$4, 2)="99", "00", RIGHT(AM$4, 2)+1))), IF(LEN(AM4)>4,CONCATENATE(LEFT(AM4,4)+1&"-"&IF(RIGHT(AM4, 2)<"09", "0","")&IF(RIGHT(AM4, 2)="99", "00", RIGHT(AM4,2)+1)),VALUE(AM4+1)))) -> 2044-45 | AO4: =IF(AO$11<>"", IF(INT($G$5+SUM($H$11:AN$11))=$G$5+SUM($H$11:AN$11), VALUE(LEFT(AO$10, 4)), CONCATENATE(LEFT(AO$10,4)&"-"&IF(MID(AO$10, 3, 2)<"09", "0","")&IF(MID(AO$10, 3, 2)="99", "00", MID(AO$10, 3, 2)+1))), IF(AND(AO$5<>INT(AO$5), COUNTA($H$4:AN$4)=ROUNDUP(AO$5, 0)), IF($G$5+SUM($11:$11)=INT($G$5+SUM($11:$11)), VALUE(CONCATENATE(IF(RIGHT(AN$4, 2)="99", LEFT(AN$4, 2)+1, LEFT(AN$4, 2))&RIGHT(AN$4, 2))), CONCATENATE(LEFT(AN$4, 2)&RIGHT(AN$4, 2)&"-"&IF(RIGHT(AN$4, 2)<"09", "0", "")&IF(RIGHT(AN$4, 2)="99", "00", RIGHT(AN$4, 2)+1))), IF(LEN(AN4)>4,CONCATENATE(LEFT(AN4,4)+1&"-"&IF(RIGHT(AN4, 2)<"09", "0","")&IF(RIGHT(AN4, 2)="99", "00", RIGHT(AN4,2)+1)),VALUE(AN4+1)))) -> 2045-46 | AP4: =IF(AP$11<>"", IF(INT($G$5+SUM($H$11:AO$11))=$G$5+SUM($H$11:AO$11), VALUE(LEFT(AP$10, 4)), CONCATENATE(LEFT(AP$10,4)&"-"&IF(MID(AP$10, 3, 2)<"09", "0","")&IF(MID(AP$10, 3, 2)="99", "00", MID(AP$10, 3, 2)+1))), IF(AND(AP$5<>INT(AP$5), COUNTA($H$4:AO$4)=ROUNDUP(AP$5, 0)), IF($G$5+SUM($11:$11)=INT($G$5+SUM($11:$11)), VALUE(CONCATENATE(IF(RIGHT(AO$4, 2)="99", LEFT(AO$4, 2)+1, LEFT(AO$4, 2))&RIGHT(AO$4, 2))), CONCATENATE(LEFT(AO$4, 2)&RIGHT(AO$4, 2)&"-"&IF(RIGHT(AO$4, 2)<"09", "0", "")&IF(RIGHT(AO$4, 2)="99", "00", RIGHT(AO$4, 2)+1))), IF(LEN(AO4)>4,CONCATENATE(LEFT(AO4,4)+1&"-"&IF(RIGHT(AO4, 2)<"09", "0","")&IF(RIGHT(AO4, 2)="99", "00", RIGHT(AO4,2)+1)),VALUE(AO4+1)))) -> 2046-47 | AQ4: =IF(AQ$11<>"", IF(INT($G$5+SUM($H$11:AP$11))=$G$5+SUM($H$11:AP$11), VALUE(LEFT(AQ$10, 4)), CONCATENATE(LEFT(AQ$10,4)&"-"&IF(MID(AQ$10, 3, 2)<"09", "0","")&IF(MID(AQ$10, 3, 2)="99", "00", MID(AQ$10, 3, 2)+1))), IF(AND(AQ$5<>INT(AQ$5), COUNTA($H$4:AP$4)=ROUNDUP(AQ$5, 0)), IF($G$5+SUM($11:$11)=INT($G$5+SUM($11:$11)), VALUE(CONCATENATE(IF(RIGHT(AP$4, 2)="99", LEFT(AP$4, 2)+1, LEFT(AP$4, 2))&RIGHT(AP$4, 2))), CONCATENATE(LEFT(AP$4, 2)&RIGHT(AP$4, 2)&"-"&IF(RIGHT(AP$4, 2)<"09", "0", "")&IF(RIGHT(AP$4, 2)="99", "00", RIGHT(AP$4, 2)+1))), IF(LEN(AP4)>4,CONCATENATE(LEFT(AP4,4)+1&"-"&IF(RIGHT(AP4, 2)<"09", "0","")&IF(RIGHT(AP4, 2)="99", "00", RIGHT(AP4,2)+1)),VALUE(AP4+1)))) -> 2047-48 | AR4: =IF(AR$11<>"", IF(INT($G$5+SUM($H$11:AQ$11))=$G$5+SUM($H$11:AQ$11), VALUE(LEFT(AR$10, 4)), CONCATENATE(LEFT(AR$10,4)&"-"&IF(MID(AR$10, 3, 2)<"09", "0","")&IF(MID(AR$10, 3, 2)="99", "00", MID(AR$10, 3, 2)+1))), IF(AND(AR$5<>INT(AR$5), COUNTA($H$4:AQ$4)=ROUNDUP(AR$5, 0)), IF($G$5+SUM($11:$11)=INT($G$5+SUM($11:$11)), VALUE(CONCATENATE(IF(RIGHT(AQ$4, 2)="99", LEFT(AQ$4, 2)+1, LEFT(AQ$4, 2))&RIGHT(AQ$4, 2))), CONCATENATE(LEFT(AQ$4, 2)&RIGHT(AQ$4, 2)&"-"&IF(RIGHT(AQ$4, 2)<"09", "0", "")&IF(RIGHT(AQ$4, 2)="99", "00", RIGHT(AQ$4, 2)+1))), IF(LEN(AQ4)>4,CONCATENATE(LEFT(AQ4,4)+1&"-"&IF(RIGHT(AQ4, 2)<"09", "0","")&IF(RIGHT(AQ4, 2)="99", "00", RIGHT(AQ4,2)+1)),VALUE(AQ4+1)))) -> 2048-49 | AS4: =IF(AS$11<>"", IF(INT($G$5+SUM($H$11:AR$11))=$G$5+SUM($H$11:AR$11), VALUE(LEFT(AS$10, 4)), CONCATENATE(LEFT(AS$10,4)&"-"&IF(MID(AS$10, 3, 2)<"09", "0","")&IF(MID(AS$10, 3, 2)="99", "00", MID(AS$10, 3, 2)+1))), IF(AND(AS$5<>INT(AS$5), COUNTA($H$4:AR$4)=ROUNDUP(AS$5, 0)), IF($G$5+SUM($11:$11)=INT($G$5+SUM($11:$11)), VALUE(CONCATENATE(IF(RIGHT(AR$4, 2)="99", LEFT(AR$4, 2)+1, LEFT(AR$4, 2))&RIGHT(AR$4, 2))), CONCATENATE(LEFT(AR$4, 2)&RIGHT(AR$4, 2)&"-"&IF(RIGHT(AR$4, 2)<"09", "0", "")&IF(RIGHT(AR$4, 2)="99", "00", RIGHT(AR$4, 2)+1))), IF(LEN(AR4)>4,CONCATENATE(LEFT(AR4,4)+1&"-"&IF(RIGHT(AR4, 2)<"09", "0","")&IF(RIGHT(AR4, 2)="99", "00", RIGHT(AR4,2)+1)),VALUE(AR4+1)))) -> 2049-50 | AT4: =IF(AT$11<>"", IF(INT($G$5+SUM($H$11:AS$11))=$G$5+SUM($H$11:AS$11), VALUE(LEFT(AT$10, 4)), CONCATENATE(LEFT(AT$10,4)&"-"&IF(MID(AT$10, 3, 2)<"09", "0","")&IF(MID(AT$10, 3, 2)="99", "00", MID(AT$10, 3, 2)+1))), IF(AND(AT$5<>INT(AT$5), COUNTA($H$4:AS$4)=ROUNDUP(AT$5, 0)), IF($G$5+SUM($11:$11)=INT($G$5+SUM($11:$11)), VALUE(CONCATENATE(IF(RIGHT(AS$4, 2)="99", LEFT(AS$4, 2)+1, LEFT(AS$4, 2))&RIGHT(AS$4, 2))), CONCATENATE(LEFT(AS$4, 2)&RIGHT(AS$4, 2)&"-"&IF(RIGHT(AS$4, 2)<"09", "0", "")&IF(RIGHT(AS$4, 2)="99", "00", RIGHT(AS$4, 2)+1))), IF(LEN(AS4)>4,CONCATENATE(LEFT(AS4,4)+1&"-"&IF(RIGHT(AS4, 2)<"09", "0","")&IF(RIGHT(AS4, 2)="99", "00", RIGHT(AS4,2)+1)),VALUE(AS4+1)))) -> 2050-51 | AU4: =IF(AU$11<>"", IF(INT($G$5+SUM($H$11:AT$11))=$G$5+SUM($H$11:AT$11), VALUE(LEFT(AU$10, 4)), CONCATENATE(LEFT(AU$10,4)&"-"&IF(MID(AU$10, 3, 2)<"09", "0","")&IF(MID(AU$10, 3, 2)="99", "00", MID(AU$10, 3, 2)+1))), IF(AND(AU$5<>INT(AU$5), COUNTA($H$4:AT$4)=ROUNDUP(AU$5, 0)), IF($G$5+SUM($11:$11)=INT($G$5+SUM($11:$11)), VALUE(CONCATENATE(IF(RIGHT(AT$4, 2)="99", LEFT(AT$4, 2)+1, LEFT(AT$4, 2))&RIGHT(AT$4, 2))), CONCATENATE(LEFT(AT$4, 2)&RIGHT(AT$4, 2)&"-"&IF(RIGHT(AT$4, 2)<"09", "0", "")&IF(RIGHT(AT$4, 2)="99", "00", RIGHT(AT$4, 2)+1))), IF(LEN(AT4)>4,CONCATENATE(LEFT(AT4,4)+1&"-"&IF(RIGHT(AT4, 2)<"09", "0","")&IF(RIGHT(AT4, 2)="99", "00", RIGHT(AT4,2)+1)),VALUE(AT4+1)))) -> 2051-52 | AV4: =IF(AV$11<>"", IF(INT($G$5+SUM($H$11:AU$11))=$G$5+SUM($H$11:AU$11), VALUE(LEFT(AV$10, 4)), CONCATENATE(LEFT(AV$10,4)&"-"&IF(MID(AV$10, 3, 2)<"09", "0","")&IF(MID(AV$10, 3, 2)="99", "00", MID(AV$10, 3, 2)+1))), IF(AND(AV$5<>INT(AV$5), COUNTA($H$4:AU$4)=ROUNDUP(AV$5, 0)), IF($G$5+SUM($11:$11)=INT($G$5+SUM($11:$11)), VALUE(CONCATENATE(IF(RIGHT(AU$4, 2)="99", LEFT(AU$4, 2)+1, LEFT(AU$4, 2))&RIGHT(AU$4, 2))), CONCATENATE(LEFT(AU$4, 2)&RIGHT(AU$4, 2)&"-"&IF(RIGHT(AU$4, 2)<"09", "0", "")&IF(RIGHT(AU$4, 2)="99", "00", RIGHT(AU$4, 2)+1))), IF(LEN(AU4)>4,CONCATENATE(LEFT(AU4,4)+1&"-"&IF(RIGHT(AU4, 2)<"09", "0","")&IF(RIGHT(AU4, 2)="99", "00", RIGHT(AU4,2)+1)),VALUE(AU4+1)))) -> 2052-53 | AW4: =IF(AW$11<>"", IF(INT($G$5+SUM($H$11:AV$11))=$G$5+SUM($H$11:AV$11), VALUE(LEFT(AW$10, 4)), CONCATENATE(LEFT(AW$10,4)&"-"&IF(MID(AW$10, 3, 2)<"09", "0","")&IF(MID(AW$10, 3, 2)="99", "00", MID(AW$10, 3, 2)+1))), IF(AND(AW$5<>INT(AW$5), COUNTA($H$4:AV$4)=ROUNDUP(AW$5, 0)), IF($G$5+SUM($11:$11)=INT($G$5+SUM($11:$11)), VALUE(CONCATENATE(IF(RIGHT(AV$4, 2)="99", LEFT(AV$4, 2)+1, LEFT(AV$4, 2))&RIGHT(AV$4, 2))), CONCATENATE(LEFT(AV$4, 2)&RIGHT(AV$4, 2)&"-"&IF(RIGHT(AV$4, 2)<"09", "0", "")&IF(RIGHT(AV$4, 2)="99", "00", RIGHT(AV$4, 2)+1))), IF(LEN(AV4)>4,CONCATENATE(LEFT(AV4,4)+1&"-"&IF(RIGHT(AV4, 2)<"09", "0","")&IF(RIGHT(AV4, 2)="99", "00", RIGHT(AV4,2)+1)),VALUE(AV4+1)))) -> 2053-54 | AX4: =IF(AX$11<>"", IF(INT($G$5+SUM($H$11:AW$11))=$G$5+SUM($H$11:AW$11), VALUE(LEFT(AX$10, 4)), CONCATENATE(LEFT(AX$10,4)&"-"&IF(MID(AX$10, 3, 2)<"09", "0","")&IF(MID(AX$10, 3, 2)="99", "00", MID(AX$10, 3, 2)+1))), IF(AND(AX$5<>INT(AX$5), COUNTA($H$4:AW$4)=ROUNDUP(AX$5, 0)), IF($G$5+SUM($11:$11)=INT($G$5+SUM($11:$11)), VALUE(CONCATENATE(IF(RIGHT(AW$4, 2)="99", LEFT(AW$4, 2)+1, LEFT(AW$4, 2))&RIGHT(AW$4, 2))), CONCATENATE(LEFT(AW$4, 2)&RIGHT(AW$4, 2)&"-"&IF(RIGHT(AW$4, 2)<"09", "0", "")&IF(RIGHT(AW$4, 2)="99", "00", RIGHT(AW$4, 2)+1))), IF(LEN(AW4)>4,CONCATENATE(LEFT(AW4,4)+1&"-"&IF(RIGHT(AW4, 2)<"09", "0","")&IF(RIGHT(AW4, 2)="99", "00", RIGHT(AW4,2)+1)),VALUE(AW4+1)))) -> 2054-55 | AY4: =IF(AY$11<>"", IF(INT($G$5+SUM($H$11:AX$11))=$G$5+SUM($H$11:AX$11), VALUE(LEFT(AY$10, 4)), CONCATENATE(LEFT(AY$10,4)&"-"&IF(MID(AY$10, 3, 2)<"09", "0","")&IF(MID(AY$10, 3, 2)="99", "00", MID(AY$10, 3, 2)+1))), IF(AND(AY$5<>INT(AY$5), COUNTA($H$4:AX$4)=ROUNDUP(AY$5, 0)), IF($G$5+SUM($11:$11)=INT($G$5+SUM($11:$11)), VALUE(CONCATENATE(IF(RIGHT(AX$4, 2)="99", LEFT(AX$4, 2)+1, LEFT(AX$4, 2))&RIGHT(AX$4, 2))), CONCATENATE(LEFT(AX$4, 2)&RIGHT(AX$4, 2)&"-"&IF(RIGHT(AX$4, 2)<"09", "0", "")&IF(RIGHT(AX$4, 2)="99", "00", RIGHT(AX$4, 2)+1))), IF(LEN(AX4)>4,CONCATENATE(LEFT(AX4,4)+1&"-"&IF(RIGHT(AX4, 2)<"09", "0","")&IF(RIGHT(AX4, 2)="99", "00", RIGHT(AX4,2)+1)),VALUE(AX4+1)))) -> 2055-56 | AZ4: =IF(AZ$11<>"", IF(INT($G$5+SUM($H$11:AY$11))=$G$5+SUM($H$11:AY$11), VALUE(LEFT(AZ$10, 4)), CONCATENATE(LEFT(AZ$10,4)&"-"&IF(MID(AZ$10, 3, 2)<"09", "0","")&IF(MID(AZ$10, 3, 2)="99", "00", MID(AZ$10, 3, 2)+1))), IF(AND(AZ$5<>INT(AZ$5), COUNTA($H$4:AY$4)=ROUNDUP(AZ$5, 0)), IF($G$5+SUM($11:$11)=INT($G$5+SUM($11:$11)), VALUE(CONCATENATE(IF(RIGHT(AY$4, 2)="99", LEFT(AY$4, 2)+1, LEFT(AY$4, 2))&RIGHT(AY$4, 2))), CONCATENATE(LEFT(AY$4, 2)&RIGHT(AY$4, 2)&"-"&IF(RIGHT(AY$4, 2)<"09", "0", "")&IF(RIGHT(AY$4, 2)="99", "00", RIGHT(AY$4, 2)+1))), IF(LEN(AY4)>4,CONCATENATE(LEFT(AY4,4)+1&"-"&IF(RIGHT(AY4, 2)<"09", "0","")&IF(RIGHT(AY4, 2)="99", "00", RIGHT(AY4,2)+1)),VALUE(AY4+1)))) -> 2056-57 | BA4: =IF(BA$11<>"", IF(INT($G$5+SUM($H$11:AZ$11))=$G$5+SUM($H$11:AZ$11), VALUE(LEFT(BA$10, 4)), CONCATENATE(LEFT(BA$10,4)&"-"&IF(MID(BA$10, 3, 2)<"09", "0","")&IF(MID(BA$10, 3, 2)="99", "00", MID(BA$10, 3, 2)+1))), IF(AND(BA$5<>INT(BA$5), COUNTA($H$4:AZ$4)=ROUNDUP(BA$5, 0)), IF($G$5+SUM($11:$11)=INT($G$5+SUM($11:$11)), VALUE(CONCATENATE(IF(RIGHT(AZ$4, 2)="99", LEFT(AZ$4, 2)+1, LEFT(AZ$4, 2))&RIGHT(AZ$4, 2))), CONCATENATE(LEFT(AZ$4, 2)&RIGHT(AZ$4, 2)&"-"&IF(RIGHT(AZ$4, 2)<"09", "0", "")&IF(RIGHT(AZ$4, 2)="99", "00", RIGHT(AZ$4, 2)+1))), IF(LEN(AZ4)>4,CONCATENATE(LEFT(AZ4,4)+1&"-"&IF(RIGHT(AZ4, 2)<"09", "0","")&IF(RIGHT(AZ4, 2)="99", "00", RIGHT(AZ4,2)+1)),VALUE(AZ4+1)))) -> 2057-58 | BB4: =IF(BB$11<>"", IF(INT($G$5+SUM($H$11:BA$11))=$G$5+SUM($H$11:BA$11), VALUE(LEFT(BB$10, 4)), CONCATENATE(LEFT(BB$10,4)&"-"&IF(MID(BB$10, 3, 2)<"09", "0","")&IF(MID(BB$10, 3, 2)="99", "00", MID(BB$10, 3, 2)+1))), IF(AND(BB$5<>INT(BB$5), COUNTA($H$4:BA$4)=ROUNDUP(BB$5, 0)), IF($G$5+SUM($11:$11)=INT($G$5+SUM($11:$11)), VALUE(CONCATENATE(IF(RIGHT(BA$4, 2)="99", LEFT(BA$4, 2)+1, LEFT(BA$4, 2))&RIGHT(BA$4, 2))), CONCATENATE(LEFT(BA$4, 2)&RIGHT(BA$4, 2)&"-"&IF(RIGHT(BA$4, 2)<"09", "0", "")&IF(RIGHT(BA$4, 2)="99", "00", RIGHT(BA$4, 2)+1))), IF(LEN(BA4)>4,CONCATENATE(LEFT(BA4,4)+1&"-"&IF(RIGHT(BA4, 2)<"09", "0","")&IF(RIGHT(BA4, 2)="99", "00", RIGHT(BA4,2)+1)),VALUE(BA4+1)))) -> 2058-59 | BC4: =IF(BC$11<>"", IF(INT($G$5+SUM($H$11:BB$11))=$G$5+SUM($H$11:BB$11), VALUE(LEFT(BC$10, 4)), CONCATENATE(LEFT(BC$10,4)&"-"&IF(MID(BC$10, 3, 2)<"09", "0","")&IF(MID(BC$10, 3, 2)="99", "00", MID(BC$10, 3, 2)+1))), IF(AND(BC$5<>INT(BC$5), COUNTA($H$4:BB$4)=ROUNDUP(BC$5, 0)), IF($G$5+SUM($11:$11)=INT($G$5+SUM($11:$11)), VALUE(CONCATENATE(IF(RIGHT(BB$4, 2)="99", LEFT(BB$4, 2)+1, LEFT(BB$4, 2))&RIGHT(BB$4, 2))), CONCATENATE(LEFT(BB$4, 2)&RIGHT(BB$4, 2)&"-"&IF(RIGHT(BB$4, 2)<"09", "0", "")&IF(RIGHT(BB$4, 2)="99", "00", RIGHT(BB$4, 2)+1))), IF(LEN(BB4)>4,CONCATENATE(LEFT(BB4,4)+1&"-"&IF(RIGHT(BB4, 2)<"09", "0","")&IF(RIGHT(BB4, 2)="99", "00", RIGHT(BB4,2)+1)),VALUE(BB4+1)))) -> 2059-60 | BD4: =IF(BD$11<>"", IF(INT($G$5+SUM($H$11:BC$11))=$G$5+SUM($H$11:BC$11), VALUE(LEFT(BD$10, 4)), CONCATENATE(LEFT(BD$10,4)&"-"&IF(MID(BD$10, 3, 2)<"09", "0","")&IF(MID(BD$10, 3, 2)="99", "00", MID(BD$10, 3, 2)+1))), IF(AND(BD$5<>INT(BD$5), COUNTA($H$4:BC$4)=ROUNDUP(BD$5, 0)), IF($G$5+SUM($11:$11)=INT($G$5+SUM($11:$11)), VALUE(CONCATENATE(IF(RIGHT(BC$4, 2)="99", LEFT(BC$4, 2)+1, LEFT(BC$4, 2))&RIGHT(BC$4, 2))), CONCATENATE(LEFT(BC$4, 2)&RIGHT(BC$4, 2)&"-"&IF(RIGHT(BC$4, 2)<"09", "0", "")&IF(RIGHT(BC$4, 2)="99", "00", RIGHT(BC$4, 2)+1))), IF(LEN(BC4)>4,CONCATENATE(LEFT(BC4,4)+1&"-"&IF(RIGHT(BC4, 2)<"09", "0","")&IF(RIGHT(BC4, 2)="99", "00", RIGHT(BC4,2)+1)),VALUE(BC4+1)))) -> 2060-61 | BE4: =IF(BE$11<>"", IF(INT($G$5+SUM($H$11:BD$11))=$G$5+SUM($H$11:BD$11), VALUE(LEFT(BE$10, 4)), CONCATENATE(LEFT(BE$10,4)&"-"&IF(MID(BE$10, 3, 2)<"09", "0","")&IF(MID(BE$10, 3, 2)="99", "00", MID(BE$10, 3, 2)+1))), IF(AND(BE$5<>INT(BE$5), COUNTA($H$4:BD$4)=ROUNDUP(BE$5, 0)), IF($G$5+SUM($11:$11)=INT($G$5+SUM($11:$11)), VALUE(CONCATENATE(IF(RIGHT(BD$4, 2)="99", LEFT(BD$4, 2)+1, LEFT(BD$4, 2))&RIGHT(BD$4, 2))), CONCATENATE(LEFT(BD$4, 2)&RIGHT(BD$4, 2)&"-"&IF(RIGHT(BD$4, 2)<"09", "0", "")&IF(RIGHT(BD$4, 2)="99", "00", RIGHT(BD$4, 2)+1))), IF(LEN(BD4)>4,CONCATENATE(LEFT(BD4,4)+1&"-"&IF(RIGHT(BD4, 2)<"09", "0","")&IF(RIGHT(BD4, 2)="99", "00", RIGHT(BD4,2)+1)),VALUE(BD4+1)))) -> 2061-62 | BF4: =IF(BF$11<>"", IF(INT($G$5+SUM($H$11:BE$11))=$G$5+SUM($H$11:BE$11), VALUE(LEFT(BF$10, 4)), CONCATENATE(LEFT(BF$10,4)&"-"&IF(MID(BF$10, 3, 2)<"09", "0","")&IF(MID(BF$10, 3, 2)="99", "00", MID(BF$10, 3, 2)+1))), IF(AND(BF$5<>INT(BF$5), COUNTA($H$4:BE$4)=ROUNDUP(BF$5, 0)), IF($G$5+SUM($11:$11)=INT($G$5+SUM($11:$11)), VALUE(CONCATENATE(IF(RIGHT(BE$4, 2)="99", LEFT(BE$4, 2)+1, LEFT(BE$4, 2))&RIGHT(BE$4, 2))), CONCATENATE(LEFT(BE$4, 2)&RIGHT(BE$4, 2)&"-"&IF(RIGHT(BE$4, 2)<"09", "0", "")&IF(RIGHT(BE$4, 2)="99", "00", RIGHT(BE$4, 2)+1))), IF(LEN(BE4)>4,CONCATENATE(LEFT(BE4,4)+1&"-"&IF(RIGHT(BE4, 2)<"09", "0","")&IF(RIGHT(BE4, 2)="99", "00", RIGHT(BE4,2)+1)),VALUE(BE4+1)))) -> 2062-63 | BG4: =IF(BG$11<>"", IF(INT($G$5+SUM($H$11:BF$11))=$G$5+SUM($H$11:BF$11), VALUE(LEFT(BG$10, 4)), CONCATENATE(LEFT(BG$10,4)&"-"&IF(MID(BG$10, 3, 2)<"09", "0","")&IF(MID(BG$10, 3, 2)="99", "00", MID(BG$10, 3, 2)+1))), IF(AND(BG$5<>INT(BG$5), COUNTA($H$4:BF$4)=ROUNDUP(BG$5, 0)), IF($G$5+SUM($11:$11)=INT($G$5+SUM($11:$11)), VALUE(CONCATENATE(IF(RIGHT(BF$4, 2)="99", LEFT(BF$4, 2)+1, LEFT(BF$4, 2))&RIGHT(BF$4, 2))), CONCATENATE(LEFT(BF$4, 2)&RIGHT(BF$4, 2)&"-"&IF(RIGHT(BF$4, 2)<"09", "0", "")&IF(RIGHT(BF$4, 2)="99", "00", RIGHT(BF$4, 2)+1))), IF(LEN(BF4)>4,CONCATENATE(LEFT(BF4,4)+1&"-"&IF(RIGHT(BF4, 2)<"09", "0","")&IF(RIGHT(BF4, 2)="99", "00", RIGHT(BF4,2)+1)),VALUE(BF4+1)))) -> 2063-64 | BH4: =IF(BH$11<>"", IF(INT($G$5+SUM($H$11:BG$11))=$G$5+SUM($H$11:BG$11), VALUE(LEFT(BH$10, 4)), CONCATENATE(LEFT(BH$10,4)&"-"&IF(MID(BH$10, 3, 2)<"09", "0","")&IF(MID(BH$10, 3, 2)="99", "00", MID(BH$10, 3, 2)+1))), IF(AND(BH$5<>INT(BH$5), COUNTA($H$4:BG$4)=ROUNDUP(BH$5, 0)), IF($G$5+SUM($11:$11)=INT($G$5+SUM($11:$11)), VALUE(CONCATENATE(IF(RIGHT(BG$4, 2)="99", LEFT(BG$4, 2)+1, LEFT(BG$4, 2))&RIGHT(BG$4, 2))), CONCATENATE(LEFT(BG$4, 2)&RIGHT(BG$4, 2)&"-"&IF(RIGHT(BG$4, 2)<"09", "0", "")&IF(RIGHT(BG$4, 2)="99", "00", RIGHT(BG$4, 2)+1))), IF(LEN(BG4)>4,CONCATENATE(LEFT(BG4,4)+1&"-"&IF(RIGHT(BG4, 2)<"09", "0","")&IF(RIGHT(BG4, 2)="99", "00", RIGHT(BG4,2)+1)),VALUE(BG4+1)))) -> 2064-65 | BI4: =IF(BI$11<>"", IF(INT($G$5+SUM($H$11:BH$11))=$G$5+SUM($H$11:BH$11), VALUE(LEFT(BI$10, 4)), CONCATENATE(LEFT(BI$10,4)&"-"&IF(MID(BI$10, 3, 2)<"09", "0","")&IF(MID(BI$10, 3, 2)="99", "00", MID(BI$10, 3, 2)+1))), IF(AND(BI$5<>INT(BI$5), COUNTA($H$4:BH$4)=ROUNDUP(BI$5, 0)), IF($G$5+SUM($11:$11)=INT($G$5+SUM($11:$11)), VALUE(CONCATENATE(IF(RIGHT(BH$4, 2)="99", LEFT(BH$4, 2)+1, LEFT(BH$4, 2))&RIGHT(BH$4, 2))), CONCATENATE(LEFT(BH$4, 2)&RIGHT(BH$4, 2)&"-"&IF(RIGHT(BH$4, 2)<"09", "0", "")&IF(RIGHT(BH$4, 2)="99", "00", RIGHT(BH$4, 2)+1))), IF(LEN(BH4)>4,CONCATENATE(LEFT(BH4,4)+1&"-"&IF(RIGHT(BH4, 2)<"09", "0","")&IF(RIGHT(BH4, 2)="99", "00", RIGHT(BH4,2)+1)),VALUE(BH4+1)))) -> 2065-66 | BJ4: =IF(BJ$11<>"", IF(INT($G$5+SUM($H$11:BI$11))=$G$5+SUM($H$11:BI$11), VALUE(LEFT(BJ$10, 4)), CONCATENATE(LEFT(BJ$10,4)&"-"&IF(MID(BJ$10, 3, 2)<"09", "0","")&IF(MID(BJ$10, 3, 2)="99", "00", MID(BJ$10, 3, 2)+1))), IF(AND(BJ$5<>INT(BJ$5), COUNTA($H$4:BI$4)=ROUNDUP(BJ$5, 0)), IF($G$5+SUM($11:$11)=INT($G$5+SUM($11:$11)), VALUE(CONCATENATE(IF(RIGHT(BI$4, 2)="99", LEFT(BI$4, 2)+1, LEFT(BI$4, 2))&RIGHT(BI$4, 2))), CONCATENATE(LEFT(BI$4, 2)&RIGHT(BI$4, 2)&"-"&IF(RIGHT(BI$4, 2)<"09", "0", "")&IF(RIGHT(BI$4, 2)="99", "00", RIGHT(BI$4, 2)+1))), IF(LEN(BI4)>4,CONCATENATE(LEFT(BI4,4)+1&"-"&IF(RIGHT(BI4, 2)<"09", "0","")&IF(RIGHT(BI4, 2)="99", "00", RIGHT(BI4,2)+1)),VALUE(BI4+1)))) -> 2066-67 | BK4: =IF(BK$11<>"", IF(INT($G$5+SUM($H$11:BJ$11))=$G$5+SUM($H$11:BJ$11), VALUE(LEFT(BK$10, 4)), CONCATENATE(LEFT(BK$10,4)&"-"&IF(MID(BK$10, 3, 2)<"09", "0","")&IF(MID(BK$10, 3, 2)="99", "00", MID(BK$10, 3, 2)+1))), IF(AND(BK$5<>INT(BK$5), COUNTA($H$4:BJ$4)=ROUNDUP(BK$5, 0)), IF($G$5+SUM($11:$11)=INT($G$5+SUM($11:$11)), VALUE(CONCATENATE(IF(RIGHT(BJ$4, 2)="99", LEFT(BJ$4, 2)+1, LEFT(BJ$4, 2))&RIGHT(BJ$4, 2))), CONCATENATE(LEFT(BJ$4, 2)&RIGHT(BJ$4, 2)&"-"&IF(RIGHT(BJ$4, 2)<"09", "0", "")&IF(RIGHT(BJ$4, 2)="99", "00", RIGHT(BJ$4, 2)+1))), IF(LEN(BJ4)>4,CONCATENATE(LEFT(BJ4,4)+1&"-"&IF(RIGHT(BJ4, 2)<"09", "0","")&IF(RIGHT(BJ4, 2)="99", "00", RIGHT(BJ4,2)+1)),VALUE(BJ4+1)))) -> 2067-68 | BL4: =IF(BL$11<>"", IF(INT($G$5+SUM($H$11:BK$11))=$G$5+SUM($H$11:BK$11), VALUE(LEFT(BL$10, 4)), CONCATENATE(LEFT(BL$10,4)&"-"&IF(MID(BL$10, 3, 2)<"09", "0","")&IF(MID(BL$10, 3, 2)="99", "00", MID(BL$10, 3, 2)+1))), IF(AND(BL$5<>INT(BL$5), COUNTA($H$4:BK$4)=ROUNDUP(BL$5, 0)), IF($G$5+SUM($11:$11)=INT($G$5+SUM($11:$11)), VALUE(CONCATENATE(IF(RIGHT(BK$4, 2)="99", LEFT(BK$4, 2)+1, LEFT(BK$4, 2))&RIGHT(BK$4, 2))), CONCATENATE(LEFT(BK$4, 2)&RIGHT(BK$4, 2)&"-"&IF(RIGHT(BK$4, 2)<"09", "0", "")&IF(RIGHT(BK$4, 2)="99", "00", RIGHT(BK$4, 2)+1))), IF(LEN(BK4)>4,CONCATENATE(LEFT(BK4,4)+1&"-"&IF(RIGHT(BK4, 2)<"09", "0","")&IF(RIGHT(BK4, 2)="99", "00", RIGHT(BK4,2)+1)),VALUE(BK4+1)))) -> 2068-69 | BM4: =IF(BM$11<>"", IF(INT($G$5+SUM($H$11:BL$11))=$G$5+SUM($H$11:BL$11), VALUE(LEFT(BM$10, 4)), CONCATENATE(LEFT(BM$10,4)&"-"&IF(MID(BM$10, 3, 2)<"09", "0","")&IF(MID(BM$10, 3, 2)="99", "00", MID(BM$10, 3, 2)+1))), IF(AND(BM$5<>INT(BM$5), COUNTA($H$4:BL$4)=ROUNDUP(BM$5, 0)), IF($G$5+SUM($11:$11)=INT($G$5+SUM($11:$11)), VALUE(CONCATENATE(IF(RIGHT(BL$4, 2)="99", LEFT(BL$4, 2)+1, LEFT(BL$4, 2))&RIGHT(BL$4, 2))), CONCATENATE(LEFT(BL$4, 2)&RIGHT(BL$4, 2)&"-"&IF(RIGHT(BL$4, 2)<"09", "0", "")&IF(RIGHT(BL$4, 2)="99", "00", RIGHT(BL$4, 2)+1))), IF(LEN(BL4)>4,CONCATENATE(LEFT(BL4,4)+1&"-"&IF(RIGHT(BL4, 2)<"09", "0","")&IF(RIGHT(BL4, 2)="99", "00", RIGHT(BL4,2)+1)),VALUE(BL4+1)))) -> 2069-70 | BN4: =IF(BN$11<>"", IF(INT($G$5+SUM($H$11:BM$11))=$G$5+SUM($H$11:BM$11), VALUE(LEFT(BN$10, 4)), CONCATENATE(LEFT(BN$10,4)&"-"&IF(MID(BN$10, 3, 2)<"09", "0","")&IF(MID(BN$10, 3, 2)="99", "00", MID(BN$10, 3, 2)+1))), IF(AND(BN$5<>INT(BN$5), COUNTA($H$4:BM$4)=ROUNDUP(BN$5, 0)), IF($G$5+SUM($11:$11)=INT($G$5+SUM($11:$11)), VALUE(CONCATENATE(IF(RIGHT(BM$4, 2)="99", LEFT(BM$4, 2)+1, LEFT(BM$4, 2))&RIGHT(BM$4, 2))), CONCATENATE(LEFT(BM$4, 2)&RIGHT(BM$4, 2)&"-"&IF(RIGHT(BM$4, 2)<"09", "0", "")&IF(RIGHT(BM$4, 2)="99", "00", RIGHT(BM$4, 2)+1))), IF(LEN(BM4)>4,CONCATENATE(LEFT(BM4,4)+1&"-"&IF(RIGHT(BM4, 2)<"09", "0","")&IF(RIGHT(BM4, 2)="99", "00", RIGHT(BM4,2)+1)),VALUE(BM4+1)))) -> 2070-71 | BO4: =IF(BO$11<>"", IF(INT($G$5+SUM($H$11:BN$11))=$G$5+SUM($H$11:BN$11), VALUE(LEFT(BO$10, 4)), CONCATENATE(LEFT(BO$10,4)&"-"&IF(MID(BO$10, 3, 2)<"09", "0","")&IF(MID(BO$10, 3, 2)="99", "00", MID(BO$10, 3, 2)+1))), IF(AND(BO$5<>INT(BO$5), COUNTA($H$4:BN$4)=ROUNDUP(BO$5, 0)), IF($G$5+SUM($11:$11)=INT($G$5+SUM($11:$11)), VALUE(CONCATENATE(IF(RIGHT(BN$4, 2)="99", LEFT(BN$4, 2)+1, LEFT(BN$4, 2))&RIGHT(BN$4, 2))), CONCATENATE(LEFT(BN$4, 2)&RIGHT(BN$4, 2)&"-"&IF(RIGHT(BN$4, 2)<"09", "0", "")&IF(RIGHT(BN$4, 2)="99", "00", RIGHT(BN$4, 2)+1))), IF(LEN(BN4)>4,CONCATENATE(LEFT(BN4,4)+1&"-"&IF(RIGHT(BN4, 2)<"09", "0","")&IF(RIGHT(BN4, 2)="99", "00", RIGHT(BN4,2)+1)),VALUE(BN4+1)))) -> 2071-72 | BP4: =IF(BP$11<>"", IF(INT($G$5+SUM($H$11:BO$11))=$G$5+SUM($H$11:BO$11), VALUE(LEFT(BP$10, 4)), CONCATENATE(LEFT(BP$10,4)&"-"&IF(MID(BP$10, 3, 2)<"09", "0","")&IF(MID(BP$10, 3, 2)="99", "00", MID(BP$10, 3, 2)+1))), IF(AND(BP$5<>INT(BP$5), COUNTA($H$4:BO$4)=ROUNDUP(BP$5, 0)), IF($G$5+SUM($11:$11)=INT($G$5+SUM($11:$11)), VALUE(CONCATENATE(IF(RIGHT(BO$4, 2)="99", LEFT(BO$4, 2)+1, LEFT(BO$4, 2))&RIGHT(BO$4, 2))), CONCATENATE(LEFT(BO$4, 2)&RIGHT(BO$4, 2)&"-"&IF(RIGHT(BO$4, 2)<"09", "0", "")&IF(RIGHT(BO$4, 2)="99", "00", RIGHT(BO$4, 2)+1))), IF(LEN(BO4)>4,CONCATENATE(LEFT(BO4,4)+1&"-"&IF(RIGHT(BO4, 2)<"09", "0","")&IF(RIGHT(BO4, 2)="99", "00", RIGHT(BO4,2)+1)),VALUE(BO4+1)))) -> 2072-73 | BQ4: =IF(BQ$11<>"", IF(INT($G$5+SUM($H$11:BP$11))=$G$5+SUM($H$11:BP$11), VALUE(LEFT(BQ$10, 4)), CONCATENATE(LEFT(BQ$10,4)&"-"&IF(MID(BQ$10, 3, 2)<"09", "0","")&IF(MID(BQ$10, 3, 2)="99", "00", MID(BQ$10, 3, 2)+1))), IF(AND(BQ$5<>INT(BQ$5), COUNTA($H$4:BP$4)=ROUNDUP(BQ$5, 0)), IF($G$5+SUM($11:$11)=INT($G$5+SUM($11:$11)), VALUE(CONCATENATE(IF(RIGHT(BP$4, 2)="99", LEFT(BP$4, 2)+1, LEFT(BP$4, 2))&RIGHT(BP$4, 2))), CONCATENATE(LEFT(BP$4, 2)&RIGHT(BP$4, 2)&"-"&IF(RIGHT(BP$4, 2)<"09", "0", "")&IF(RIGHT(BP$4, 2)="99", "00", RIGHT(BP$4, 2)+1))), IF(LEN(BP4)>4,CONCATENATE(LEFT(BP4,4)+1&"-"&IF(RIGHT(BP4, 2)<"09", "0","")&IF(RIGHT(BP4, 2)="99", "00", RIGHT(BP4,2)+1)),VALUE(BP4+1)))) -> 2073-74 | BR4: =IF(BR$11<>"", IF(INT($G$5+SUM($H$11:BQ$11))=$G$5+SUM($H$11:BQ$11), VALUE(LEFT(BR$10, 4)), CONCATENATE(LEFT(BR$10,4)&"-"&IF(MID(BR$10, 3, 2)<"09", "0","")&IF(MID(BR$10, 3, 2)="99", "00", MID(BR$10, 3, 2)+1))), IF(AND(BR$5<>INT(BR$5), COUNTA($H$4:BQ$4)=ROUNDUP(BR$5, 0)), IF($G$5+SUM($11:$11)=INT($G$5+SUM($11:$11)), VALUE(CONCATENATE(IF(RIGHT(BQ$4, 2)="99", LEFT(BQ$4, 2)+1, LEFT(BQ$4, 2))&RIGHT(BQ$4, 2))), CONCATENATE(LEFT(BQ$4, 2)&RIGHT(BQ$4, 2)&"-"&IF(RIGHT(BQ$4, 2)<"09", "0", "")&IF(RIGHT(BQ$4, 2)="99", "00", RIGHT(BQ$4, 2)+1))), IF(LEN(BQ4)>4,CONCATENATE(LEFT(BQ4,4)+1&"-"&IF(RIGHT(BQ4, 2)<"09", "0","")&IF(RIGHT(BQ4, 2)="99", "00", RIGHT(BQ4,2)+1)),VALUE(BQ4+1)))) -> 2074-75 | BS4: =IF(BS$11<>"", IF(INT($G$5+SUM($H$11:BR$11))=$G$5+SUM($H$11:BR$11), VALUE(LEFT(BS$10, 4)), CONCATENATE(LEFT(BS$10,4)&"-"&IF(MID(BS$10, 3, 2)<"09", "0","")&IF(MID(BS$10, 3, 2)="99", "00", MID(BS$10, 3, 2)+1))), IF(AND(BS$5<>INT(BS$5), COUNTA($H$4:BR$4)=ROUNDUP(BS$5, 0)), IF($G$5+SUM($11:$11)=INT($G$5+SUM($11:$11)), VALUE(CONCATENATE(IF(RIGHT(BR$4, 2)="99", LEFT(BR$4, 2)+1, LEFT(BR$4, 2))&RIGHT(BR$4, 2))), CONCATENATE(LEFT(BR$4, 2)&RIGHT(BR$4, 2)&"-"&IF(RIGHT(BR$4, 2)<"09", "0", "")&IF(RIGHT(BR$4, 2)="99", "00", RIGHT(BR$4, 2)+1))), IF(LEN(BR4)>4,CONCATENATE(LEFT(BR4,4)+1&"-"&IF(RIGHT(BR4, 2)<"09", "0","")&IF(RIGHT(BR4, 2)="99", "00", RIGHT(BR4,2)+1)),VALUE(BR4+1)))) -> 2075-76 | BT4: =IF(BT$11<>"", IF(INT($G$5+SUM($H$11:BS$11))=$G$5+SUM($H$11:BS$11), VALUE(LEFT(BT$10, 4)), CONCATENATE(LEFT(BT$10,4)&"-"&IF(MID(BT$10, 3, 2)<"09", "0","")&IF(MID(BT$10, 3, 2)="99", "00", MID(BT$10, 3, 2)+1))), IF(AND(BT$5<>INT(BT$5), COUNTA($H$4:BS$4)=ROUNDUP(BT$5, 0)), IF($G$5+SUM($11:$11)=INT($G$5+SUM($11:$11)), VALUE(CONCATENATE(IF(RIGHT(BS$4, 2)="99", LEFT(BS$4, 2)+1, LEFT(BS$4, 2))&RIGHT(BS$4, 2))), CONCATENATE(LEFT(BS$4, 2)&RIGHT(BS$4, 2)&"-"&IF(RIGHT(BS$4, 2)<"09", "0", "")&IF(RIGHT(BS$4, 2)="99", "00", RIGHT(BS$4, 2)+1))), IF(LEN(BS4)>4,CONCATENATE(LEFT(BS4,4)+1&"-"&IF(RIGHT(BS4, 2)<"09", "0","")&IF(RIGHT(BS4, 2)="99", "00", RIGHT(BS4,2)+1)),VALUE(BS4+1)))) -> 2076-77 | BU4: =IF(BU$11<>"", IF(INT($G$5+SUM($H$11:BT$11))=$G$5+SUM($H$11:BT$11), VALUE(LEFT(BU$10, 4)), CONCATENATE(LEFT(BU$10,4)&"-"&IF(MID(BU$10, 3, 2)<"09", "0","")&IF(MID(BU$10, 3, 2)="99", "00", MID(BU$10, 3, 2)+1))), IF(AND(BU$5<>INT(BU$5), COUNTA($H$4:BT$4)=ROUNDUP(BU$5, 0)), IF($G$5+SUM($11:$11)=INT($G$5+SUM($11:$11)), VALUE(CONCATENATE(IF(RIGHT(BT$4, 2)="99", LEFT(BT$4, 2)+1, LEFT(BT$4, 2))&RIGHT(BT$4, 2))), CONCATENATE(LEFT(BT$4, 2)&RIGHT(BT$4, 2)&"-"&IF(RIGHT(BT$4, 2)<"09", "0", "")&IF(RIGHT(BT$4, 2)="99", "00", RIGHT(BT$4, 2)+1))), IF(LEN(BT4)>4,CONCATENATE(LEFT(BT4,4)+1&"-"&IF(RIGHT(BT4, 2)<"09", "0","")&IF(RIGHT(BT4, 2)="99", "00", RIGHT(BT4,2)+1)),VALUE(BT4+1)))) -> 2077-78 | BV4: =IF(BV$11<>"", IF(INT($G$5+SUM($H$11:BU$11))=$G$5+SUM($H$11:BU$11), VALUE(LEFT(BV$10, 4)), CONCATENATE(LEFT(BV$10,4)&"-"&IF(MID(BV$10, 3, 2)<"09", "0","")&IF(MID(BV$10, 3, 2)="99", "00", MID(BV$10, 3, 2)+1))), IF(AND(BV$5<>INT(BV$5), COUNTA($H$4:BU$4)=ROUNDUP(BV$5, 0)), IF($G$5+SUM($11:$11)=INT($G$5+SUM($11:$11)), VALUE(CONCATENATE(IF(RIGHT(BU$4, 2)="99", LEFT(BU$4, 2)+1, LEFT(BU$4, 2))&RIGHT(BU$4, 2))), CONCATENATE(LEFT(BU$4, 2)&RIGHT(BU$4, 2)&"-"&IF(RIGHT(BU$4, 2)<"09", "0", "")&IF(RIGHT(BU$4, 2)="99", "00", RIGHT(BU$4, 2)+1))), IF(LEN(BU4)>4,CONCATENATE(LEFT(BU4,4)+1&"-"&IF(RIGHT(BU4, 2)<"09", "0","")&IF(RIGHT(BU4, 2)="99", "00", RIGHT(BU4,2)+1)),VALUE(BU4+1)))) -> 2078-79 | BW4: =IF(BW$11<>"", IF(INT($G$5+SUM($H$11:BV$11))=$G$5+SUM($H$11:BV$11), VALUE(LEFT(BW$10, 4)), CONCATENATE(LEFT(BW$10,4)&"-"&IF(MID(BW$10, 3, 2)<"09", "0","")&IF(MID(BW$10, 3, 2)="99", "00", MID(BW$10, 3, 2)+1))), IF(AND(BW$5<>INT(BW$5), COUNTA($H$4:BV$4)=ROUNDUP(BW$5, 0)), IF($G$5+SUM($11:$11)=INT($G$5+SUM($11:$11)), VALUE(CONCATENATE(IF(RIGHT(BV$4, 2)="99", LEFT(BV$4, 2)+1, LEFT(BV$4, 2))&RIGHT(BV$4, 2))), CONCATENATE(LEFT(BV$4, 2)&RIGHT(BV$4, 2)&"-"&IF(RIGHT(BV$4, 2)<"09", "0", "")&IF(RIGHT(BV$4, 2)="99", "00", RIGHT(BV$4, 2)+1))), IF(LEN(BV4)>4,CONCATENATE(LEFT(BV4,4)+1&"-"&IF(RIGHT(BV4, 2)<"09", "0","")&IF(RIGHT(BV4, 2)="99", "00", RIGHT(BV4,2)+1)),VALUE(BV4+1)))) -> 2079-80 | BX4: =IF(BX$11<>"", IF(INT($G$5+SUM($H$11:BW$11))=$G$5+SUM($H$11:BW$11), VALUE(LEFT(BX$10, 4)), CONCATENATE(LEFT(BX$10,4)&"-"&IF(MID(BX$10, 3, 2)<"09", "0","")&IF(MID(BX$10, 3, 2)="99", "00", MID(BX$10, 3, 2)+1))), IF(AND(BX$5<>INT(BX$5), COUNTA($H$4:BW$4)=ROUNDUP(BX$5, 0)), IF($G$5+SUM($11:$11)=INT($G$5+SUM($11:$11)), VALUE(CONCATENATE(IF(RIGHT(BW$4, 2)="99", LEFT(BW$4, 2)+1, LEFT(BW$4, 2))&RIGHT(BW$4, 2))), CONCATENATE(LEFT(BW$4, 2)&RIGHT(BW$4, 2)&"-"&IF(RIGHT(BW$4, 2)<"09", "0", "")&IF(RIGHT(BW$4, 2)="99", "00", RIGHT(BW$4, 2)+1))), IF(LEN(BW4)>4,CONCATENATE(LEFT(BW4,4)+1&"-"&IF(RIGHT(BW4, 2)<"09", "0","")&IF(RIGHT(BW4, 2)="99", "00", RIGHT(BW4,2)+1)),VALUE(BW4+1)))) -> 2080-81 | BY4: =IF(BY$11<>"", IF(INT($G$5+SUM($H$11:BX$11))=$G$5+SUM($H$11:BX$11), VALUE(LEFT(BY$10, 4)), CONCATENATE(LEFT(BY$10,4)&"-"&IF(MID(BY$10, 3, 2)<"09", "0","")&IF(MID(BY$10, 3, 2)="99", "00", MID(BY$10, 3, 2)+1))), IF(AND(BY$5<>INT(BY$5), COUNTA($H$4:BX$4)=ROUNDUP(BY$5, 0)), IF($G$5+SUM($11:$11)=INT($G$5+SUM($11:$11)), VALUE(CONCATENATE(IF(RIGHT(BX$4, 2)="99", LEFT(BX$4, 2)+1, LEFT(BX$4, 2))&RIGHT(BX$4, 2))), CONCATENATE(LEFT(BX$4, 2)&RIGHT(BX$4, 2)&"-"&IF(RIGHT(BX$4, 2)<"09", "0", "")&IF(RIGHT(BX$4, 2)="99", "00", RIGHT(BX$4, 2)+1))), IF(LEN(BX4)>4,CONCATENATE(LEFT(BX4,4)+1&"-"&IF(RIGHT(BX4, 2)<"09", "0","")&IF(RIGHT(BX4, 2)="99", "00", RIGHT(BX4,2)+1)),VALUE(BX4+1)))) -> 2081-82 | BZ4: =IF(BZ$11<>"", IF(INT($G$5+SUM($H$11:BY$11))=$G$5+SUM($H$11:BY$11), VALUE(LEFT(BZ$10, 4)), CONCATENATE(LEFT(BZ$10,4)&"-"&IF(MID(BZ$10, 3, 2)<"09", "0","")&IF(MID(BZ$10, 3, 2)="99", "00", MID(BZ$10, 3, 2)+1))), IF(AND(BZ$5<>INT(BZ$5), COUNTA($H$4:BY$4)=ROUNDUP(BZ$5, 0)), IF($G$5+SUM($11:$11)=INT($G$5+SUM($11:$11)), VALUE(CONCATENATE(IF(RIGHT(BY$4, 2)="99", LEFT(BY$4, 2)+1, LEFT(BY$4, 2))&RIGHT(BY$4, 2))), CONCATENATE(LEFT(BY$4, 2)&RIGHT(BY$4, 2)&"-"&IF(RIGHT(BY$4, 2)<"09", "0", "")&IF(RIGHT(BY$4, 2)="99", "00", RIGHT(BY$4, 2)+1))), IF(LEN(BY4)>4,CONCATENATE(LEFT(BY4,4)+1&"-"&IF(RIGHT(BY4, 2)<"09", "0","")&IF(RIGHT(BY4, 2)="99", "00", RIGHT(BY4,2)+1)),VALUE(BY4+1)))) -> 2082-83 | CA4: =IF(CA$11<>"", IF(INT($G$5+SUM($H$11:BZ$11))=$G$5+SUM($H$11:BZ$11), VALUE(LEFT(CA$10, 4)), CONCATENATE(LEFT(CA$10,4)&"-"&IF(MID(CA$10, 3, 2)<"09", "0","")&IF(MID(CA$10, 3, 2)="99", "00", MID(CA$10, 3, 2)+1))), IF(AND(CA$5<>INT(CA$5), COUNTA($H$4:BZ$4)=ROUNDUP(CA$5, 0)), IF($G$5+SUM($11:$11)=INT($G$5+SUM($11:$11)), VALUE(CONCATENATE(IF(RIGHT(BZ$4, 2)="99", LEFT(BZ$4, 2)+1, LEFT(BZ$4, 2))&RIGHT(BZ$4, 2))), CONCATENATE(LEFT(BZ$4, 2)&RIGHT(BZ$4, 2)&"-"&IF(RIGHT(BZ$4, 2)<"09", "0", "")&IF(RIGHT(BZ$4, 2)="99", "00", RIGHT(BZ$4, 2)+1))), IF(LEN(BZ4)>4,CONCATENATE(LEFT(BZ4,4)+1&"-"&IF(RIGHT(BZ4, 2)<"09", "0","")&IF(RIGHT(BZ4, 2)="99", "00", RIGHT(BZ4,2)+1)),VALUE(BZ4+1)))) -> 2083-84 | CB4: =IF(CB$11<>"", IF(INT($G$5+SUM($H$11:CA$11))=$G$5+SUM($H$11:CA$11), VALUE(LEFT(CB$10, 4)), CONCATENATE(LEFT(CB$10,4)&"-"&IF(MID(CB$10, 3, 2)<"09", "0","")&IF(MID(CB$10, 3, 2)="99", "00", MID(CB$10, 3, 2)+1))), IF(AND(CB$5<>INT(CB$5), COUNTA($H$4:CA$4)=ROUNDUP(CB$5, 0)), IF($G$5+SUM($11:$11)=INT($G$5+SUM($11:$11)), VALUE(CONCATENATE(IF(RIGHT(CA$4, 2)="99", LEFT(CA$4, 2)+1, LEFT(CA$4, 2))&RIGHT(CA$4, 2))), CONCATENATE(LEFT(CA$4, 2)&RIGHT(CA$4, 2)&"-"&IF(RIGHT(CA$4, 2)<"09", "0", "")&IF(RIGHT(CA$4, 2)="99", "00", RIGHT(CA$4, 2)+1))), IF(LEN(CA4)>4,CONCATENATE(LEFT(CA4,4)+1&"-"&IF(RIGHT(CA4, 2)<"09", "0","")&IF(RIGHT(CA4, 2)="99", "00", RIGHT(CA4,2)+1)),VALUE(CA4+1)))) -> 2084-85 | CC4: =IF(CC$11<>"", IF(INT($G$5+SUM($H$11:CB$11))=$G$5+SUM($H$11:CB$11), VALUE(LEFT(CC$10, 4)), CONCATENATE(LEFT(CC$10,4)&"-"&IF(MID(CC$10, 3, 2)<"09", "0","")&IF(MID(CC$10, 3, 2)="99", "00", MID(CC$10, 3, 2)+1))), IF(AND(CC$5<>INT(CC$5), COUNTA($H$4:CB$4)=ROUNDUP(CC$5, 0)), IF($G$5+SUM($11:$11)=INT($G$5+SUM($11:$11)), VALUE(CONCATENATE(IF(RIGHT(CB$4, 2)="99", LEFT(CB$4, 2)+1, LEFT(CB$4, 2))&RIGHT(CB$4, 2))), CONCATENATE(LEFT(CB$4, 2)&RIGHT(CB$4, 2)&"-"&IF(RIGHT(CB$4, 2)<"09", "0", "")&IF(RIGHT(CB$4, 2)="99", "00", RIGHT(CB$4, 2)+1))), IF(LEN(CB4)>4,CONCATENATE(LEFT(CB4,4)+1&"-"&IF(RIGHT(CB4, 2)<"09", "0","")&IF(RIGHT(CB4, 2)="99", "00", RIGHT(CB4,2)+1)),VALUE(CB4+1)))) -> 2085-86 | CD4: =IF(CD$11<>"", IF(INT($G$5+SUM($H$11:CC$11))=$G$5+SUM($H$11:CC$11), VALUE(LEFT(CD$10, 4)), CONCATENATE(LEFT(CD$10,4)&"-"&IF(MID(CD$10, 3, 2)<"09", "0","")&IF(MID(CD$10, 3, 2)="99", "00", MID(CD$10, 3, 2)+1))), IF(AND(CD$5<>INT(CD$5), COUNTA($H$4:CC$4)=ROUNDUP(CD$5, 0)), IF($G$5+SUM($11:$11)=INT($G$5+SUM($11:$11)), VALUE(CONCATENATE(IF(RIGHT(CC$4, 2)="99", LEFT(CC$4, 2)+1, LEFT(CC$4, 2))&RIGHT(CC$4, 2))), CONCATENATE(LEFT(CC$4, 2)&RIGHT(CC$4, 2)&"-"&IF(RIGHT(CC$4, 2)<"09", "0", "")&IF(RIGHT(CC$4, 2)="99", "00", RIGHT(CC$4, 2)+1))), IF(LEN(CC4)>4,CONCATENATE(LEFT(CC4,4)+1&"-"&IF(RIGHT(CC4, 2)<"09", "0","")&IF(RIGHT(CC4, 2)="99", "00", RIGHT(CC4,2)+1)),VALUE(CC4+1)))) -> 2086-87 | CE4: =IF(CE$11<>"", IF(INT($G$5+SUM($H$11:CD$11))=$G$5+SUM($H$11:CD$11), VALUE(LEFT(CE$10, 4)), CONCATENATE(LEFT(CE$10,4)&"-"&IF(MID(CE$10, 3, 2)<"09", "0","")&IF(MID(CE$10, 3, 2)="99", "00", MID(CE$10, 3, 2)+1))), IF(AND(CE$5<>INT(CE$5), COUNTA($H$4:CD$4)=ROUNDUP(CE$5, 0)), IF($G$5+SUM($11:$11)=INT($G$5+SUM($11:$11)), VALUE(CONCATENATE(IF(RIGHT(CD$4, 2)="99", LEFT(CD$4, 2)+1, LEFT(CD$4, 2))&RIGHT(CD$4, 2))), CONCATENATE(LEFT(CD$4, 2)&RIGHT(CD$4, 2)&"-"&IF(RIGHT(CD$4, 2)<"09", "0", "")&IF(RIGHT(CD$4, 2)="99", "00", RIGHT(CD$4, 2)+1))), IF(LEN(CD4)>4,CONCATENATE(LEFT(CD4,4)+1&"-"&IF(RIGHT(CD4, 2)<"09", "0","")&IF(RIGHT(CD4, 2)="99", "00", RIGHT(CD4,2)+1)),VALUE(CD4+1)))) -> 2087-88 | CF4: =IF(CF$11<>"", IF(INT($G$5+SUM($H$11:CE$11))=$G$5+SUM($H$11:CE$11), VALUE(LEFT(CF$10, 4)), CONCATENATE(LEFT(CF$10,4)&"-"&IF(MID(CF$10, 3, 2)<"09", "0","")&IF(MID(CF$10, 3, 2)="99", "00", MID(CF$10, 3, 2)+1))), IF(AND(CF$5<>INT(CF$5), COUNTA($H$4:CE$4)=ROUNDUP(CF$5, 0)), IF($G$5+SUM($11:$11)=INT($G$5+SUM($11:$11)), VALUE(CONCATENATE(IF(RIGHT(CE$4, 2)="99", LEFT(CE$4, 2)+1, LEFT(CE$4, 2))&RIGHT(CE$4, 2))), CONCATENATE(LEFT(CE$4, 2)&RIGHT(CE$4, 2)&"-"&IF(RIGHT(CE$4, 2)<"09", "0", "")&IF(RIGHT(CE$4, 2)="99", "00", RIGHT(CE$4, 2)+1))), IF(LEN(CE4)>4,CONCATENATE(LEFT(CE4,4)+1&"-"&IF(RIGHT(CE4, 2)<"09", "0","")&IF(RIGHT(CE4, 2)="99", "00", RIGHT(CE4,2)+1)),VALUE(CE4+1)))) -> 2088-89 | CG4: =IF(CG$11<>"", IF(INT($G$5+SUM($H$11:CF$11))=$G$5+SUM($H$11:CF$11), VALUE(LEFT(CG$10, 4)), CONCATENATE(LEFT(CG$10,4)&"-"&IF(MID(CG$10, 3, 2)<"09", "0","")&IF(MID(CG$10, 3, 2)="99", "00", MID(CG$10, 3, 2)+1))), IF(AND(CG$5<>INT(CG$5), COUNTA($H$4:CF$4)=ROUNDUP(CG$5, 0)), IF($G$5+SUM($11:$11)=INT($G$5+SUM($11:$11)), VALUE(CONCATENATE(IF(RIGHT(CF$4, 2)="99", LEFT(CF$4, 2)+1, LEFT(CF$4, 2))&RIGHT(CF$4, 2))), CONCATENATE(LEFT(CF$4, 2)&RIGHT(CF$4, 2)&"-"&IF(RIGHT(CF$4, 2)<"09", "0", "")&IF(RIGHT(CF$4, 2)="99", "00", RIGHT(CF$4, 2)+1))), IF(LEN(CF4)>4,CONCATENATE(LEFT(CF4,4)+1&"-"&IF(RIGHT(CF4, 2)<"09", "0","")&IF(RIGHT(CF4, 2)="99", "00", RIGHT(CF4,2)+1)),VALUE(CF4+1)))) -> 2089-90 | CH4: =IF(CH$11<>"", IF(INT($G$5+SUM($H$11:CG$11))=$G$5+SUM($H$11:CG$11), VALUE(LEFT(CH$10, 4)), CONCATENATE(LEFT(CH$10,4)&"-"&IF(MID(CH$10, 3, 2)<"09", "0","")&IF(MID(CH$10, 3, 2)="99", "00", MID(CH$10, 3, 2)+1))), IF(AND(CH$5<>INT(CH$5), COUNTA($H$4:CG$4)=ROUNDUP(CH$5, 0)), IF($G$5+SUM($11:$11)=INT($G$5+SUM($11:$11)), VALUE(CONCATENATE(IF(RIGHT(CG$4, 2)="99", LEFT(CG$4, 2)+1, LEFT(CG$4, 2))&RIGHT(CG$4, 2))), CONCATENATE(LEFT(CG$4, 2)&RIGHT(CG$4, 2)&"-"&IF(RIGHT(CG$4, 2)<"09", "0", "")&IF(RIGHT(CG$4, 2)="99", "00", RIGHT(CG$4, 2)+1))), IF(LEN(CG4)>4,CONCATENATE(LEFT(CG4,4)+1&"-"&IF(RIGHT(CG4, 2)<"09", "0","")&IF(RIGHT(CG4, 2)="99", "00", RIGHT(CG4,2)+1)),VALUE(CG4+1)))) -> 2090-91 | CI4: =IF(CI$11<>"", IF(INT($G$5+SUM($H$11:CH$11))=$G$5+SUM($H$11:CH$11), VALUE(LEFT(CI$10, 4)), CONCATENATE(LEFT(CI$10,4)&"-"&IF(MID(CI$10, 3, 2)<"09", "0","")&IF(MID(CI$10, 3, 2)="99", "00", MID(CI$10, 3, 2)+1))), IF(AND(CI$5<>INT(CI$5), COUNTA($H$4:CH$4)=ROUNDUP(CI$5, 0)), IF($G$5+SUM($11:$11)=INT($G$5+SUM($11:$11)), VALUE(CONCATENATE(IF(RIGHT(CH$4, 2)="99", LEFT(CH$4, 2)+1, LEFT(CH$4, 2))&RIGHT(CH$4, 2))), CONCATENATE(LEFT(CH$4, 2)&RIGHT(CH$4, 2)&"-"&IF(RIGHT(CH$4, 2)<"09", "0", "")&IF(RIGHT(CH$4, 2)="99", "00", RIGHT(CH$4, 2)+1))), IF(LEN(CH4)>4,CONCATENATE(LEFT(CH4,4)+1&"-"&IF(RIGHT(CH4, 2)<"09", "0","")&IF(RIGHT(CH4, 2)="99", "00", RIGHT(CH4,2)+1)),VALUE(CH4+1)))) -> 2091-92 | CJ4: =IF(CJ$11<>"", IF(INT($G$5+SUM($H$11:CI$11))=$G$5+SUM($H$11:CI$11), VALUE(LEFT(CJ$10, 4)), CONCATENATE(LEFT(CJ$10,4)&"-"&IF(MID(CJ$10, 3, 2)<"09", "0","")&IF(MID(CJ$10, 3, 2)="99", "00", MID(CJ$10, 3, 2)+1))), IF(AND(CJ$5<>INT(CJ$5), COUNTA($H$4:CI$4)=ROUNDUP(CJ$5, 0)), IF($G$5+SUM($11:$11)=INT($G$5+SUM($11:$11)), VALUE(CONCATENATE(IF(RIGHT(CI$4, 2)="99", LEFT(CI$4, 2)+1, LEFT(CI$4, 2))&RIGHT(CI$4, 2))), CONCATENATE(LEFT(CI$4, 2)&RIGHT(CI$4, 2)&"-"&IF(RIGHT(CI$4, 2)<"09", "0", "")&IF(RIGHT(CI$4, 2)="99", "00", RIGHT(CI$4, 2)+1))), IF(LEN(CI4)>4,CONCATENATE(LEFT(CI4,4)+1&"-"&IF(RIGHT(CI4, 2)<"09", "0","")&IF(RIGHT(CI4, 2)="99", "00", RIGHT(CI4,2)+1)),VALUE(CI4+1)))) -> 2092-93 | CK4: =IF(CK$11<>"", IF(INT($G$5+SUM($H$11:CJ$11))=$G$5+SUM($H$11:CJ$11), VALUE(LEFT(CK$10, 4)), CONCATENATE(LEFT(CK$10,4)&"-"&IF(MID(CK$10, 3, 2)<"09", "0","")&IF(MID(CK$10, 3, 2)="99", "00", MID(CK$10, 3, 2)+1))), IF(AND(CK$5<>INT(CK$5), COUNTA($H$4:CJ$4)=ROUNDUP(CK$5, 0)), IF($G$5+SUM($11:$11)=INT($G$5+SUM($11:$11)), VALUE(CONCATENATE(IF(RIGHT(CJ$4, 2)="99", LEFT(CJ$4, 2)+1, LEFT(CJ$4, 2))&RIGHT(CJ$4, 2))), CONCATENATE(LEFT(CJ$4, 2)&RIGHT(CJ$4, 2)&"-"&IF(RIGHT(CJ$4, 2)<"09", "0", "")&IF(RIGHT(CJ$4, 2)="99", "00", RIGHT(CJ$4, 2)+1))), IF(LEN(CJ4)>4,CONCATENATE(LEFT(CJ4,4)+1&"-"&IF(RIGHT(CJ4, 2)<"09", "0","")&IF(RIGHT(CJ4, 2)="99", "00", RIGHT(CJ4,2)+1)),VALUE(CJ4+1)))) -> 2093-94 | CL4: =IF(CL$11<>"", IF(INT($G$5+SUM($H$11:CK$11))=$G$5+SUM($H$11:CK$11), VALUE(LEFT(CL$10, 4)), CONCATENATE(LEFT(CL$10,4)&"-"&IF(MID(CL$10, 3, 2)<"09", "0","")&IF(MID(CL$10, 3, 2)="99", "00", MID(CL$10, 3, 2)+1))), IF(AND(CL$5<>INT(CL$5), COUNTA($H$4:CK$4)=ROUNDUP(CL$5, 0)), IF($G$5+SUM($11:$11)=INT($G$5+SUM($11:$11)), VALUE(CONCATENATE(IF(RIGHT(CK$4, 2)="99", LEFT(CK$4, 2)+1, LEFT(CK$4, 2))&RIGHT(CK$4, 2))), CONCATENATE(LEFT(CK$4, 2)&RIGHT(CK$4, 2)&"-"&IF(RIGHT(CK$4, 2)<"09", "0", "")&IF(RIGHT(CK$4, 2)="99", "00", RIGHT(CK$4, 2)+1))), IF(LEN(CK4)>4,CONCATENATE(LEFT(CK4,4)+1&"-"&IF(RIGHT(CK4, 2)<"09", "0","")&IF(RIGHT(CK4, 2)="99", "00", RIGHT(CK4,2)+1)),VALUE(CK4+1)))) -> 2094-95 | CM4: =IF(CM$11<>"", IF(INT($G$5+SUM($H$11:CL$11))=$G$5+SUM($H$11:CL$11), VALUE(LEFT(CM$10, 4)), CONCATENATE(LEFT(CM$10,4)&"-"&IF(MID(CM$10, 3, 2)<"09", "0","")&IF(MID(CM$10, 3, 2)="99", "00", MID(CM$10, 3, 2)+1))), IF(AND(CM$5<>INT(CM$5), COUNTA($H$4:CL$4)=ROUNDUP(CM$5, 0)), IF($G$5+SUM($11:$11)=INT($G$5+SUM($11:$11)), VALUE(CONCATENATE(IF(RIGHT(CL$4, 2)="99", LEFT(CL$4, 2)+1, LEFT(CL$4, 2))&RIGHT(CL$4, 2))), CONCATENATE(LEFT(CL$4, 2)&RIGHT(CL$4, 2)&"-"&IF(RIGHT(CL$4, 2)<"09", "0", "")&IF(RIGHT(CL$4, 2)="99", "00", RIGHT(CL$4, 2)+1))), IF(LEN(CL4)>4,CONCATENATE(LEFT(CL4,4)+1&"-"&IF(RIGHT(CL4, 2)<"09", "0","")&IF(RIGHT(CL4, 2)="99", "00", RIGHT(CL4,2)+1)),VALUE(CL4+1)))) -> 2095-96 | CN4: =IF(CN$11<>"", IF(INT($G$5+SUM($H$11:CM$11))=$G$5+SUM($H$11:CM$11), VALUE(LEFT(CN$10, 4)), CONCATENATE(LEFT(CN$10,4)&"-"&IF(MID(CN$10, 3, 2)<"09", "0","")&IF(MID(CN$10, 3, 2)="99", "00", MID(CN$10, 3, 2)+1))), IF(AND(CN$5<>INT(CN$5), COUNTA($H$4:CM$4)=ROUNDUP(CN$5, 0)), IF($G$5+SUM($11:$11)=INT($G$5+SUM($11:$11)), VALUE(CONCATENATE(IF(RIGHT(CM$4, 2)="99", LEFT(CM$4, 2)+1, LEFT(CM$4, 2))&RIGHT(CM$4, 2))), CONCATENATE(LEFT(CM$4, 2)&RIGHT(CM$4, 2)&"-"&IF(RIGHT(CM$4, 2)<"09", "0", "")&IF(RIGHT(CM$4, 2)="99", "00", RIGHT(CM$4, 2)+1))), IF(LEN(CM4)>4,CONCATENATE(LEFT(CM4,4)+1&"-"&IF(RIGHT(CM4, 2)<"09", "0","")&IF(RIGHT(CM4, 2)="99", "00", RIGHT(CM4,2)+1)),VALUE(CM4+1)))) -> 2096-97 | CO4: =IF(CO$11<>"", IF(INT($G$5+SUM($H$11:CN$11))=$G$5+SUM($H$11:CN$11), VALUE(LEFT(CO$10, 4)), CONCATENATE(LEFT(CO$10,4)&"-"&IF(MID(CO$10, 3, 2)<"09", "0","")&IF(MID(CO$10, 3, 2)="99", "00", MID(CO$10, 3, 2)+1))), IF(AND(CO$5<>INT(CO$5), COUNTA($H$4:CN$4)=ROUNDUP(CO$5, 0)), IF($G$5+SUM($11:$11)=INT($G$5+SUM($11:$11)), VALUE(CONCATENATE(IF(RIGHT(CN$4, 2)="99", LEFT(CN$4, 2)+1, LEFT(CN$4, 2))&RIGHT(CN$4, 2))), CONCATENATE(LEFT(CN$4, 2)&RIGHT(CN$4, 2)&"-"&IF(RIGHT(CN$4, 2)<"09", "0", "")&IF(RIGHT(CN$4, 2)="99", "00", RIGHT(CN$4, 2)+1))), IF(LEN(CN4)>4,CONCATENATE(LEFT(CN4,4)+1&"-"&IF(RIGHT(CN4, 2)<"09", "0","")&IF(RIGHT(CN4, 2)="99", "00", RIGHT(CN4,2)+1)),VALUE(CN4+1)))) -> 2097-98
G5: =IF(LEN($H$9)=4, 0, IF(AND(ISNUMBER(SEARCH("Ausnet", $F$8)), Intro!$J$8="Electricity transmission module"), 0.25, 0.5)) -> 0 | H5: =H$11 -> 5 | I5: =IF(I$11<>"",SUM(ROUNDUP(H$5,0),I$11),H$5) -> 5 | J5: =IF(J$11<>"",SUM(ROUNDUP(I$5,0),J$11),I$5) -> 5 | K5: 5 | L5: 5 | M5: 10.5 | N5: 10.5 | O5: 10.5 | P5: 10.5 | Q5: 10.5 | R5: 10.5 | S5: 10.5 | T5: 10.5 | U5: 10.5 | V5: 10.5 | W5: 10.5 | X5: 10.5 | Y5: 10.5 | Z5: 10.5 | AA5: 10.5 | AB5: 10.5 | AC5: 10.5 | AD5: 10.5 | AE5: 10.5 | AF5: 10.5 | AG5: 10.5 | AH5: 10.5 | AI5: 10.5 | AJ5: 10.5 | AK5: 10.5 | AL5: 10.5 | AM5: 10.5 | AN5: 10.5 | AO5: 10.5 | AP5: 10.5 | AQ5: 10.5 | AR5: 10.5 | AS5: 10.5 | AT5: 10.5 | AU5: 10.5 | AV5: 10.5 | AW5: 10.5 | AX5: 10.5 | AY5: 10.5 | AZ5: 10.5 | BA5: 10.5 | BB5: 10.5 | BC5: 10.5 | BD5: 10.5 | BE5: 10.5 | BF5: 10.5 | BG5: 10.5 | BH5: 10.5 | BI5: 10.5 | BJ5: 10.5 | BK5: 10.5 | BL5: 10.5 | BM5: 10.5 | BN5: 10.5 | BO5: 10.5 | BP5: 10.5 | BQ5: 10.5 | BR5: 10.5 | BS5: 10.5 | BT5: 10.5 | BU5: 10.5 | BV5: =IF(BV$11<>"",SUM(ROUNDUP(BU$5,0),BV$11),BU$5) -> 10.5 | BW5: 10.5 | BX5: 10.5 | BY5: 10.5 | BZ5: 10.5 | CA5: 10.5 | CB5: 10.5 | CC5: 10.5 | CD5: 10.5 | CE5: 10.5 | CF5: 10.5 | CG5: 10.5 | CH5: 10.5 | CI5: 10.5 | CJ5: 10.5 | CK5: 10.5 | CL5: 10.5 | CM5: 10.5 | CN5: 10.5 | CO5: 10.5
D6: General information
E8: Business name | F8: ='Capital base input'!$F$8 -> Ausnet
E9: First regulatory year for tracking | H9: ='Capital base input'!H9 -> 2013 | I9: =IF(ROUNDUP(J$5, 0)=COUNTA($H$9:H$9), "Input for next period", "") ->  | J9: =IF(ROUNDUP(K$5, 0)=COUNTA($H$9:I$9), "Input for next period", "") ->  | K9: =IF(ROUNDUP(L$5, 0)=COUNTA($H$9:J$9), "Input for next period", "") ->  | L9: =IF(ROUNDUP(M$5, 0)=COUNTA($H$9:K$9), "Input for next period", "") ->  | M9: =IF(ROUNDUP(N$5, 0)=COUNTA($H$9:L$9), "Input for next period", "") ->  | N9: =IF(ROUNDUP(O$5, 0)=COUNTA($H$9:M$9), "Input for next period", "") ->  | O9: =IF(ROUNDUP(P$5, 0)=COUNTA($H$9:N$9), "Input for next period", "") ->  | P9: =IF(ROUNDUP(Q$5, 0)=COUNTA($H$9:O$9), "Input for next period", "") ->  | Q9: =IF(ROUNDUP(R$5, 0)=COUNTA($H$9:P$9), "Input for next period", "") ->  | R9: =IF(ROUNDUP(S$5, 0)=COUNTA($H$9:Q$9), "Input for next period", "") ->  | S9: =IF(ROUNDUP(T$5, 0)=COUNTA($H$9:R$9), "Input for next period", "") -> Input for next period | T9: =IF(ROUNDUP(U$5, 0)=COUNTA($H$9:S$9), "Input for next period", "") ->  | U9: =IF(ROUNDUP(V$5, 0)=COUNTA($H$9:T$9), "Input for next period", "") ->  | V9: =IF(ROUNDUP(W$5, 0)=COUNTA($H$9:U$9), "Input for next period", "") ->  | W9: =IF(ROUNDUP(X$5, 0)=COUNTA($H$9:V$9), "Input for next period", "") ->  | X9: =IF(ROUNDUP(Y$5, 0)=COUNTA($H$9:W$9), "Input for next period", "") ->  | Y9: =IF(ROUNDUP(Z$5, 0)=COUNTA($H$9:X$9), "Input for next period", "") ->  | Z9: =IF(ROUNDUP(AA$5, 0)=COUNTA($H$9:Y$9), "Input for next period", "") ->  | AA9: =IF(ROUNDUP(AB$5, 0)=COUNTA($H$9:Z$9), "Input for next period", "") ->  | AB9: =IF(ROUNDUP(AC$5, 0)=COUNTA($H$9:AA$9), "Input for next period", "") ->  | AC9: =IF(ROUNDUP(AD$5, 0)=COUNTA($H$9:AB$9), "Input for next period", "") ->  | AD9: =IF(ROUNDUP(AE$5, 0)=COUNTA($H$9:AC$9), "Input for next period", "") ->  | AE9: =IF(ROUNDUP(AF$5, 0)=COUNTA($H$9:AD$9), "Input for next period", "") ->  | AF9: =IF(ROUNDUP(AG$5, 0)=COUNTA($H$9:AE$9), "Input for next period", "") ->  | AG9: =IF(ROUNDUP(AH$5, 0)=COUNTA($H$9:AF$9), "Input for next period", "") ->  | AH9: =IF(ROUNDUP(AI$5, 0)=COUNTA($H$9:AG$9), "Input for next period", "") ->  | AI9: =IF(ROUNDUP(AJ$5, 0)=COUNTA($H$9:AH$9), "Input for next period", "") ->  | AJ9: =IF(ROUNDUP(AK$5, 0)=COUNTA($H$9:AI$9), "Input for next period", "") ->  | AK9: =IF(ROUNDUP(AL$5, 0)=COUNTA($H$9:AJ$9), "Input for next period", "") ->  | AL9: =IF(ROUNDUP(AM$5, 0)=COUNTA($H$9:AK$9), "Input for next period", "") ->  | AM9: =IF(ROUNDUP(AN$5, 0)=COUNTA($H$9:AL$9), "Input for next period", "") ->  | AN9: =IF(ROUNDUP(AO$5, 0)=COUNTA($H$9:AM$9), "Input for next period", "") ->  | AO9: =IF(ROUNDUP(AP$5, 0)=COUNTA($H$9:AN$9), "Input for next period", "") ->  | AP9: =IF(ROUNDUP(AQ$5, 0)=COUNTA($H$9:AO$9), "Input for next period", "") ->  | AQ9: =IF(ROUNDUP(AR$5, 0)=COUNTA($H$9:AP$9), "Input for next period", "") ->  | AR9: =IF(ROUNDUP(AS$5, 0)=COUNTA($H$9:AQ$9), "Input for next period", "") ->  | AS9: =IF(ROUNDUP(AT$5, 0)=COUNTA($H$9:AR$9), "Input for next period", "") ->  | AT9: =IF(ROUNDUP(AU$5, 0)=COUNTA($H$9:AS$9), "Input for next period", "") ->  | AU9: =IF(ROUNDUP(AV$5, 0)=COUNTA($H$9:AT$9), "Input for next period", "") ->  | AV9: =IF(ROUNDUP(AW$5, 0)=COUNTA($H$9:AU$9), "Input for next period", "") ->  | AW9: =IF(ROUNDUP(AX$5, 0)=COUNTA($H$9:AV$9), "Input for next period", "") ->  | AX9: =IF(ROUNDUP(AY$5, 0)=COUNTA($H$9:AW$9), "Input for next period", "") ->  | AY9: =IF(ROUNDUP(AZ$5, 0)=COUNTA($H$9:AX$9), "Input for next period", "") ->  | AZ9: =IF(ROUNDUP(BA$5, 0)=COUNTA($H$9:AY$9), "Input for next period", "") ->  | BA9: =IF(ROUNDUP(BB$5, 0)=COUNTA($H$9:AZ$9), "Input for next period", "") ->  | BB9: =IF(ROUNDUP(BC$5, 0)=COUNTA($H$9:BA$9), "Input for next period", "") ->  | BC9: =IF(ROUNDUP(BD$5, 0)=COUNTA($H$9:BB$9), "Input for next period", "") ->  | BD9: =IF(ROUNDUP(BE$5, 0)=COUNTA($H$9:BC$9), "Input for next period", "") ->  | BE9: =IF(ROUNDUP(BF$5, 0)=COUNTA($H$9:BD$9), "Input for next period", "") ->  | BF9: =IF(ROUNDUP(BG$5, 0)=COUNTA($H$9:BE$9), "Input for next period", "") ->  | BG9: =IF(ROUNDUP(BH$5, 0)=COUNTA($H$9:BF$9), "Input for next period", "") ->  | BH9: =IF(ROUNDUP(BI$5, 0)=COUNTA($H$9:BG$9), "Input for next period", "") ->  | BI9: =IF(ROUNDUP(BJ$5, 0)=COUNTA($H$9:BH$9), "Input for next period", "") ->  | BJ9: =IF(ROUNDUP(BK$5, 0)=COUNTA($H$9:BI$9), "Input for next period", "") ->  | BK9: =IF(ROUNDUP(BL$5, 0)=COUNTA($H$9:BJ$9), "Input for next period", "") ->  | BL9: =IF(ROUNDUP(BM$5, 0)=COUNTA($H$9:BK$9), "Input for next period", "") ->  | BM9: =IF(ROUNDUP(BN$5, 0)=COUNTA($H$9:BL$9), "Input for next period", "") ->  | BN9: =IF(ROUNDUP(BO$5, 0)=COUNTA($H$9:BM$9), "Input for next period", "") ->  | BO9: =IF(ROUNDUP(BP$5, 0)=COUNTA($H$9:BN$9), "Input for next period", "") ->  | BP9: =IF(ROUNDUP(BQ$5, 0)=COUNTA($H$9:BO$9), "Input for next period", "") ->  | BQ9: =IF(ROUNDUP(BR$5, 0)=COUNTA($H$9:BP$9), "Input for next period", "") ->  | BR9: =IF(ROUNDUP(BS$5, 0)=COUNTA($H$9:BQ$9), "Input for next period", "") ->  | BS9: =IF(ROUNDUP(BT$5, 0)=COUNTA($H$9:BR$9), "Input for next period", "") ->  | BT9: =IF(ROUNDUP(BU$5, 0)=COUNTA($H$9:BS$9), "Input for next period", "") ->  | BU9: =IF(ROUNDUP(BV$5, 0)=COUNTA($H$9:BT$9), "Input for next period", "") ->  | BV9: =IF(ROUNDUP(BW$5, 0)=COUNTA($H$9:BU$9), "Input for next period", "") ->  | BW9: =IF(ROUNDUP(BX$5, 0)=COUNTA($H$9:BV$9), "Input for next period", "") ->  | BX9: =IF(ROUNDUP(BY$5, 0)=COUNTA($H$9:BW$9), "Input for next period", "") ->  | BY9: =IF(ROUNDUP(BZ$5, 0)=COUNTA($H$9:BX$9), "Input for next period", "") ->  | BZ9: =IF(ROUNDUP(CA$5, 0)=COUNTA($H$9:BY$9), "Input for next period", "") ->  | CA9: =IF(ROUNDUP(CB$5, 0)=COUNTA($H$9:BZ$9), "Input for next period", "") ->  | CB9: =IF(ROUNDUP(CC$5, 0)=COUNTA($H$9:CA$9), "Input for next period", "") ->  | CC9: =IF(ROUNDUP(CD$5, 0)=COUNTA($H$9:CB$9), "Input for next period", "") ->  | CD9: =IF(ROUNDUP(CE$5, 0)=COUNTA($H$9:CC$9), "Input for next period", "") ->  | CE9: =IF(ROUNDUP(CF$5, 0)=COUNTA($H$9:CD$9), "Input for next period", "") ->  | CF9: =IF(ROUNDUP(CG$5, 0)=COUNTA($H$9:CE$9), "Input for next period", "") ->  | CG9: =IF(ROUNDUP(CH$5, 0)=COUNTA($H$9:CF$9), "Input for next period", "") ->  | CH9: =IF(ROUNDUP(CI$5, 0)=COUNTA($H$9:CG$9), "Input for next period", "") ->  | CI9: =IF(ROUNDUP(CJ$5, 0)=COUNTA($H$9:CH$9), "Input for next period", "") ->  | CJ9: =IF(ROUNDUP(CK$5, 0)=COUNTA($H$9:CI$9), "Input for next period", "") ->  | CK9: =IF(ROUNDUP(CL$5, 0)=COUNTA($H$9:CJ$9), "Input for next period", "") ->  | CL9: =IF(ROUNDUP(CM$5, 0)=COUNTA($H$9:CK$9), "Input for next period", "") ->  | CM9: =IF(ROUNDUP(CN$5, 0)=COUNTA($H$9:CL$9), "Input for next period", "") ->  | CN9: =IF(ROUNDUP(CO$5, 0)=COUNTA($H$9:CM$9), "Input for next period", "") ->  | CO9: =IF(ROUNDUP(CP$5, 0)=COUNTA($H$9:CN$9), "Input for next period", "") -> 
E10: Regulatory period | H10: ='Capital base input'!H10 -> 2013-17 | M10: 2018-23
E11: Years in regulatory period | H11: ='Capital base input'!H11 -> 5 | M11: 5.5
G12: =IF(OR(G$446:G$495="DV"), "DV input required", "") ->  | H12: =IF(AND(OR(H$446:H$495="DV"), H$13=""), "DV input required", "") ->  | I12: =IF(COUNTA($H$12:H$12)<ROUNDUP(I$5, 0), IF(AND(I$446:I$495=""), IF(AND(H$13<>"", I$13=""), "DV input required", H$12), IF(AND(OR(I$446:I$495="DV"), I$13=""), "DV input required", "")), "") ->  | J12: =IF(COUNTA($H$12:I$12)<ROUNDUP(J$5, 0), IF(AND(J$446:J$495=""), IF(AND(I$13<>"", J$13=""), "DV input required", I$12), IF(AND(OR(J$446:J$495="DV"), J$13=""), "DV input required", "")), "") ->  | K12: =IF(COUNTA($H$12:J$12)<ROUNDUP(K$5, 0), IF(AND(K$446:K$495=""), IF(AND(J$13<>"", K$13=""), "DV input required", J$12), IF(AND(OR(K$446:K$495="DV"), K$13=""), "DV input required", "")), "") ->  | L12: =IF(COUNTA($H$12:K$12)<ROUNDUP(L$5, 0), IF(AND(L$446:L$495=""), IF(AND(K$13<>"", L$13=""), "DV input required", K$12), IF(AND(OR(L$446:L$495="DV"), L$13=""), "DV input required", "")), "") ->  | M12: =IF(COUNTA($H$12:L$12)<ROUNDUP(M$5, 0), IF(AND(M$446:M$495=""), IF(AND(L$13<>"", M$13=""), "DV input required", L$12), IF(AND(OR(M$446:M$495="DV"), M$13=""), "DV input required", "")), "") ->  | N12: =IF(COUNTA($H$12:M$12)<ROUNDUP(N$5, 0), IF(AND(N$446:N$495=""), IF(AND(M$13<>"", N$13=""), "DV input required", M$12), IF(AND(OR(N$446:N$495="DV"), N$13=""), "DV input required", "")), "") ->  | O12: =IF(COUNTA($H$12:N$12)<ROUNDUP(O$5, 0), IF(AND(O$446:O$495=""), IF(AND(N$13<>"", O$13=""), "DV input required", N$12), IF(AND(OR(O$446:O$495="DV"), O$13=""), "DV input required", "")), "") ->  | P12: =IF(COUNTA($H$12:O$12)<ROUNDUP(P$5, 0), IF(AND(P$446:P$495=""), IF(AND(O$13<>"", P$13=""), "DV input required", O$12), IF(AND(OR(P$446:P$495="DV"), P$13=""), "DV input required", "")), "") ->  | Q12: =IF(COUNTA($H$12:P$12)<ROUNDUP(Q$5, 0), IF(AND(Q$446:Q$495=""), IF(AND(P$13<>"", Q$13=""), "DV input required", P$12), IF(AND(OR(Q$446:Q$495="DV"), Q$13=""), "DV input required", "")), "") ->  | R12: =IF(COUNTA($H$12:Q$12)<ROUNDUP(R$5, 0), IF(AND(R$446:R$495=""), IF(AND(Q$13<>"", R$13=""), "DV input required", Q$12), IF(AND(OR(R$446:R$495="DV"), R$13=""), "DV input required", "")), "") ->  | S12: =IF(COUNTA($H$12:R$12)<ROUNDUP(S$5, 0), IF(AND(S$446:S$495=""), IF(AND(R$13<>"", S$13=""), "DV input required", R$12), IF(AND(OR(S$446:S$495="DV"), S$13=""), "DV input required", "")), "") ->  | T12: =IF(COUNTA($H$12:S$12)<ROUNDUP(T$5, 0), IF(AND(T$446:T$495=""), IF(AND(S$13<>"", T$13=""), "DV input required", S$12), IF(AND(OR(T$446:T$495="DV"), T$13=""), "DV input required", "")), "") ->  | U12: =IF(COUNTA($H$12:T$12)<ROUNDUP(U$5, 0), IF(AND(U$446:U$495=""), IF(AND(T$13<>"", U$13=""), "DV input required", T$12), IF(AND(OR(U$446:U$495="DV"), U$13=""), "DV input required", "")), "") ->  | V12: =IF(COUNTA($H$12:U$12)<ROUNDUP(V$5, 0), IF(AND(V$446:V$495=""), IF(AND(U$13<>"", V$13=""), "DV input required", U$12), IF(AND(OR(V$446:V$495="DV"), V$13=""), "DV input required", "")), "") ->  | W12: =IF(COUNTA($H$12:V$12)<ROUNDUP(W$5, 0), IF(AND(W$446:W$495=""), IF(AND(V$13<>"", W$13=""), "DV input required", V$12), IF(AND(OR(W$446:W$495="DV"), W$13=""), "DV input required", "")), "") ->  | X12: =IF(COUNTA($H$12:W$12)<ROUNDUP(X$5, 0), IF(AND(X$446:X$495=""), IF(AND(W$13<>"", X$13=""), "DV input required", W$12), IF(AND(OR(X$446:X$495="DV"), X$13=""), "DV input required", "")), "") ->  | Y12: =IF(COUNTA($H$12:X$12)<ROUNDUP(Y$5, 0), IF(AND(Y$446:Y$495=""), IF(AND(X$13<>"", Y$13=""), "DV input required", X$12), IF(AND(OR(Y$446:Y$495="DV"), Y$13=""), "DV input required", "")), "") ->  | Z12: =IF(COUNTA($H$12:Y$12)<ROUNDUP(Z$5, 0), IF(AND(Z$446:Z$495=""), IF(AND(Y$13<>"", Z$13=""), "DV input required", Y$12), IF(AND(OR(Z$446:Z$495="DV"), Z$13=""), "DV input required", "")), "") ->  | AA12: =IF(COUNTA($H$12:Z$12)<ROUNDUP(AA$5, 0), IF(AND(AA$446:AA$495=""), IF(AND(Z$13<>"", AA$13=""), "DV input required", Z$12), IF(AND(OR(AA$446:AA$495="DV"), AA$13=""), "DV input required", "")), "") ->  | AB12: =IF(COUNTA($H$12:AA$12)<ROUNDUP(AB$5, 0), IF(AND(AB$446:AB$495=""), IF(AND(AA$13<>"", AB$13=""), "DV input required", AA$12), IF(AND(OR(AB$446:AB$495="DV"), AB$13=""), "DV input required", "")), "") ->  | AC12: =IF(COUNTA($H$12:AB$12)<ROUNDUP(AC$5, 0), IF(AND(AC$446:AC$495=""), IF(AND(AB$13<>"", AC$13=""), "DV input required", AB$12), IF(AND(OR(AC$446:AC$495="DV"), AC$13=""), "DV input required", "")), "") ->  | AD12: =IF(COUNTA($H$12:AC$12)<ROUNDUP(AD$5, 0), IF(AND(AD$446:AD$495=""), IF(AND(AC$13<>"", AD$13=""), "DV input required", AC$12), IF(AND(OR(AD$446:AD$495="DV"), AD$13=""), "DV input required", "")), "") ->  | AE12: =IF(COUNTA($H$12:AD$12)<ROUNDUP(AE$5, 0), IF(AND(AE$446:AE$495=""), IF(AND(AD$13<>"", AE$13=""), "DV input required", AD$12), IF(AND(OR(AE$446:AE$495="DV"), AE$13=""), "DV input required", "")), "") ->  | AF12: =IF(COUNTA($H$12:AE$12)<ROUNDUP(AF$5, 0), IF(AND(AF$446:AF$495=""), IF(AND(AE$13<>"", AF$13=""), "DV input required", AE$12), IF(AND(OR(AF$446:AF$495="DV"), AF$13=""), "DV input required", "")), "") ->  | AG12: =IF(COUNTA($H$12:AF$12)<ROUNDUP(AG$5, 0), IF(AND(AG$446:AG$495=""), IF(AND(AF$13<>"", AG$13=""), "DV input required", AF$12), IF(AND(OR(AG$446:AG$495="DV"), AG$13=""), "DV input required", "")), "") ->  | AH12: =IF(COUNTA($H$12:AG$12)<ROUNDUP(AH$5, 0), IF(AND(AH$446:AH$495=""), IF(AND(AG$13<>"", AH$13=""), "DV input required", AG$12), IF(AND(OR(AH$446:AH$495="DV"), AH$13=""), "DV input required", "")), "") ->  | AI12: =IF(COUNTA($H$12:AH$12)<ROUNDUP(AI$5, 0), IF(AND(AI$446:AI$495=""), IF(AND(AH$13<>"", AI$13=""), "DV input required", AH$12), IF(AND(OR(AI$446:AI$495="DV"), AI$13=""), "DV input required", "")), "") ->  | AJ12: =IF(COUNTA($H$12:AI$12)<ROUNDUP(AJ$5, 0), IF(AND(AJ$446:AJ$495=""), IF(AND(AI$13<>"", AJ$13=""), "DV input required", AI$12), IF(AND(OR(AJ$446:AJ$495="DV"), AJ$13=""), "DV input required", "")), "") ->  | AK12: =IF(COUNTA($H$12:AJ$12)<ROUNDUP(AK$5, 0), IF(AND(AK$446:AK$495=""), IF(AND(AJ$13<>"", AK$13=""), "DV input required", AJ$12), IF(AND(OR(AK$446:AK$495="DV"), AK$13=""), "DV input required", "")), "") ->  | AL12: =IF(COUNTA($H$12:AK$12)<ROUNDUP(AL$5, 0), IF(AND(AL$446:AL$495=""), IF(AND(AK$13<>"", AL$13=""), "DV input required", AK$12), IF(AND(OR(AL$446:AL$495="DV"), AL$13=""), "DV input required", "")), "") ->  | AM12: =IF(COUNTA($H$12:AL$12)<ROUNDUP(AM$5, 0), IF(AND(AM$446:AM$495=""), IF(AND(AL$13<>"", AM$13=""), "DV input required", AL$12), IF(AND(OR(AM$446:AM$495="DV"), AM$13=""), "DV input required", "")), "") ->  | AN12: =IF(COUNTA($H$12:AM$12)<ROUNDUP(AN$5, 0), IF(AND(AN$446:AN$495=""), IF(AND(AM$13<>"", AN$13=""), "DV input required", AM$12), IF(AND(OR(AN$446:AN$495="DV"), AN$13=""), "DV input required", "")), "") ->  | AO12: =IF(COUNTA($H$12:AN$12)<ROUNDUP(AO$5, 0), IF(AND(AO$446:AO$495=""), IF(AND(AN$13<>"", AO$13=""), "DV input required", AN$12), IF(AND(OR(AO$446:AO$495="DV"), AO$13=""), "DV input required", "")), "") ->  | AP12: =IF(COUNTA($H$12:AO$12)<ROUNDUP(AP$5, 0), IF(AND(AP$446:AP$495=""), IF(AND(AO$13<>"", AP$13=""), "DV input required", AO$12), IF(AND(OR(AP$446:AP$495="DV"), AP$13=""), "DV input required", "")), "") ->  | AQ12: =IF(COUNTA($H$12:AP$12)<ROUNDUP(AQ$5, 0), IF(AND(AQ$446:AQ$495=""), IF(AND(AP$13<>"", AQ$13=""), "DV input required", AP$12), IF(AND(OR(AQ$446:AQ$495="DV"), AQ$13=""), "DV input required", "")), "") ->  | AR12: =IF(COUNTA($H$12:AQ$12)<ROUNDUP(AR$5, 0), IF(AND(AR$446:AR$495=""), IF(AND(AQ$13<>"", AR$13=""), "DV input required", AQ$12), IF(AND(OR(AR$446:AR$495="DV"), AR$13=""), "DV input required", "")), "") ->  | AS12: =IF(COUNTA($H$12:AR$12)<ROUNDUP(AS$5, 0), IF(AND(AS$446:AS$495=""), IF(AND(AR$13<>"", AS$13=""), "DV input required", AR$12), IF(AND(OR(AS$446:AS$495="DV"), AS$13=""), "DV input required", "")), "") ->  | AT12: =IF(COUNTA($H$12:AS$12)<ROUNDUP(AT$5, 0), IF(AND(AT$446:AT$495=""), IF(AND(AS$13<>"", AT$13=""), "DV input required", AS$12), IF(AND(OR(AT$446:AT$495="DV"), AT$13=""), "DV input required", "")), "") ->  | AU12: =IF(COUNTA($H$12:AT$12)<ROUNDUP(AU$5, 0), IF(AND(AU$446:AU$495=""), IF(AND(AT$13<>"", AU$13=""), "DV input required", AT$12), IF(AND(OR(AU$446:AU$495="DV"), AU$13=""), "DV input required", "")), "") ->  | AV12: =IF(COUNTA($H$12:AU$12)<ROUNDUP(AV$5, 0), IF(AND(AV$446:AV$495=""), IF(AND(AU$13<>"", AV$13=""), "DV input required", AU$12), IF(AND(OR(AV$446:AV$495="DV"), AV$13=""), "DV input required", "")), "") ->  | AW12: =IF(COUNTA($H$12:AV$12)<ROUNDUP(AW$5, 0), IF(AND(AW$446:AW$495=""), IF(AND(AV$13<>"", AW$13=""), "DV input required", AV$12), IF(AND(OR(AW$446:AW$495="DV"), AW$13=""), "DV input required", "")), "") ->  | AX12: =IF(COUNTA($H$12:AW$12)<ROUNDUP(AX$5, 0), IF(AND(AX$446:AX$495=""), IF(AND(AW$13<>"", AX$13=""), "DV input required", AW$12), IF(AND(OR(AX$446:AX$495="DV"), AX$13=""), "DV input required", "")), "") ->  | AY12: =IF(COUNTA($H$12:AX$12)<ROUNDUP(AY$5, 0), IF(AND(AY$446:AY$495=""), IF(AND(AX$13<>"", AY$13=""), "DV input required", AX$12), IF(AND(OR(AY$446:AY$495="DV"), AY$13=""), "DV input required", "")), "") ->  | AZ12: =IF(COUNTA($H$12:AY$12)<ROUNDUP(AZ$5, 0), IF(AND(AZ$446:AZ$495=""), IF(AND(AY$13<>"", AZ$13=""), "DV input required", AY$12), IF(AND(OR(AZ$446:AZ$495="DV"), AZ$13=""), "DV input required", "")), "") ->  | BA12: =IF(COUNTA($H$12:AZ$12)<ROUNDUP(BA$5, 0), IF(AND(BA$446:BA$495=""), IF(AND(AZ$13<>"", BA$13=""), "DV input required", AZ$12), IF(AND(OR(BA$446:BA$495="DV"), BA$13=""), "DV input required", "")), "") ->  | BB12: =IF(COUNTA($H$12:BA$12)<ROUNDUP(BB$5, 0), IF(AND(BB$446:BB$495=""), IF(AND(BA$13<>"", BB$13=""), "DV input required", BA$12), IF(AND(OR(BB$446:BB$495="DV"), BB$13=""), "DV input required", "")), "") ->  | BC12: =IF(COUNTA($H$12:BB$12)<ROUNDUP(BC$5, 0), IF(AND(BC$446:BC$495=""), IF(AND(BB$13<>"", BC$13=""), "DV input required", BB$12), IF(AND(OR(BC$446:BC$495="DV"), BC$13=""), "DV input required", "")), "") ->  | BD12: =IF(COUNTA($H$12:BC$12)<ROUNDUP(BD$5, 0), IF(AND(BD$446:BD$495=""), IF(AND(BC$13<>"", BD$13=""), "DV input required", BC$12), IF(AND(OR(BD$446:BD$495="DV"), BD$13=""), "DV input required", "")), "") ->  | BE12: =IF(COUNTA($H$12:BD$12)<ROUNDUP(BE$5, 0), IF(AND(BE$446:BE$495=""), IF(AND(BD$13<>"", BE$13=""), "DV input required", BD$12), IF(AND(OR(BE$446:BE$495="DV"), BE$13=""), "DV input required", "")), "") ->  | BF12: =IF(COUNTA($H$12:BE$12)<ROUNDUP(BF$5, 0), IF(AND(BF$446:BF$495=""), IF(AND(BE$13<>"", BF$13=""), "DV input required", BE$12), IF(AND(OR(BF$446:BF$495="DV"), BF$13=""), "DV input required", "")), "") ->  | BG12: =IF(COUNTA($H$12:BF$12)<ROUNDUP(BG$5, 0), IF(AND(BG$446:BG$495=""), IF(AND(BF$13<>"", BG$13=""), "DV input required", BF$12), IF(AND(OR(BG$446:BG$495="DV"), BG$13=""), "DV input required", "")), "") ->  | BH12: =IF(COUNTA($H$12:BG$12)<ROUNDUP(BH$5, 0), IF(AND(BH$446:BH$495=""), IF(AND(BG$13<>"", BH$13=""), "DV input required", BG$12), IF(AND(OR(BH$446:BH$495="DV"), BH$13=""), "DV input required", "")), "") ->  | BI12: =IF(COUNTA($H$12:BH$12)<ROUNDUP(BI$5, 0), IF(AND(BI$446:BI$495=""), IF(AND(BH$13<>"", BI$13=""), "DV input required", BH$12), IF(AND(OR(BI$446:BI$495="DV"), BI$13=""), "DV input required", "")), "") ->  | BJ12: =IF(COUNTA($H$12:BI$12)<ROUNDUP(BJ$5, 0), IF(AND(BJ$446:BJ$495=""), IF(AND(BI$13<>"", BJ$13=""), "DV input required", BI$12), IF(AND(OR(BJ$446:BJ$495="DV"), BJ$13=""), "DV input required", "")), "") ->  | BK12: =IF(COUNTA($H$12:BJ$12)<ROUNDUP(BK$5, 0), IF(AND(BK$446:BK$495=""), IF(AND(BJ$13<>"", BK$13=""), "DV input required", BJ$12), IF(AND(OR(BK$446:BK$495="DV"), BK$13=""), "DV input required", "")), "") ->  | BL12: =IF(COUNTA($H$12:BK$12)<ROUNDUP(BL$5, 0), IF(AND(BL$446:BL$495=""), IF(AND(BK$13<>"", BL$13=""), "DV input required", BK$12), IF(AND(OR(BL$446:BL$495="DV"), BL$13=""), "DV input required", "")), "") ->  | BM12: =IF(COUNTA($H$12:BL$12)<ROUNDUP(BM$5, 0), IF(AND(BM$446:BM$495=""), IF(AND(BL$13<>"", BM$13=""), "DV input required", BL$12), IF(AND(OR(BM$446:BM$495="DV"), BM$13=""), "DV input required", "")), "") ->  | BN12: =IF(COUNTA($H$12:BM$12)<ROUNDUP(BN$5, 0), IF(AND(BN$446:BN$495=""), IF(AND(BM$13<>"", BN$13=""), "DV input required", BM$12), IF(AND(OR(BN$446:BN$495="DV"), BN$13=""), "DV input required", "")), "") ->  | BO12: =IF(COUNTA($H$12:BN$12)<ROUNDUP(BO$5, 0), IF(AND(BO$446:BO$495=""), IF(AND(BN$13<>"", BO$13=""), "DV input required", BN$12), IF(AND(OR(BO$446:BO$495="DV"), BO$13=""), "DV input required", "")), "") ->  | BP12: =IF(COUNTA($H$12:BO$12)<ROUNDUP(BP$5, 0), IF(AND(BP$446:BP$495=""), IF(AND(BO$13<>"", BP$13=""), "DV input required", BO$12), IF(AND(OR(BP$446:BP$495="DV"), BP$13=""), "DV input required", "")), "") ->  | BQ12: =IF(COUNTA($H$12:BP$12)<ROUNDUP(BQ$5, 0), IF(AND(BQ$446:BQ$495=""), IF(AND(BP$13<>"", BQ$13=""), "DV input required", BP$12), IF(AND(OR(BQ$446:BQ$495="DV"), BQ$13=""), "DV input required", "")), "") ->  | BR12: =IF(COUNTA($H$12:BQ$12)<ROUNDUP(BR$5, 0), IF(AND(BR$446:BR$495=""), IF(AND(BQ$13<>"", BR$13=""), "DV input required", BQ$12), IF(AND(OR(BR$446:BR$495="DV"), BR$13=""), "DV input required", "")), "") ->  | BS12: =IF(COUNTA($H$12:BR$12)<ROUNDUP(BS$5, 0), IF(AND(BS$446:BS$495=""), IF(AND(BR$13<>"", BS$13=""), "DV input required", BR$12), IF(AND(OR(BS$446:BS$495="DV"), BS$13=""), "DV input required", "")), "") ->  | BT12: =IF(COUNTA($H$12:BS$12)<ROUNDUP(BT$5, 0), IF(AND(BT$446:BT$495=""), IF(AND(BS$13<>"", BT$13=""), "DV input required", BS$12), IF(AND(OR(BT$446:BT$495="DV"), BT$13=""), "DV input required", "")), "") ->  | BU12: =IF(COUNTA($H$12:BT$12)<ROUNDUP(BU$5, 0), IF(AND(BU$446:BU$495=""), IF(AND(BT$13<>"", BU$13=""), "DV input required", BT$12), IF(AND(OR(BU$446:BU$495="DV"), BU$13=""), "DV input required", "")), "") ->  | BV12: =IF(COUNTA($H$12:BU$12)<ROUNDUP(BV$5, 0), IF(AND(BV$446:BV$495=""), IF(AND(BU$13<>"", BV$13=""), "DV input required", BU$12), IF(AND(OR(BV$446:BV$495="DV"), BV$13=""), "DV input required", "")), "") ->  | BW12: =IF(COUNTA($H$12:BV$12)<ROUNDUP(BW$5, 0), IF(AND(BW$446:BW$495=""), IF(AND(BV$13<>"", BW$13=""), "DV input required", BV$12), IF(AND(OR(BW$446:BW$495="DV"), BW$13=""), "DV input required", "")), "") ->  | BX12: =IF(COUNTA($H$12:BW$12)<ROUNDUP(BX$5, 0), IF(AND(BX$446:BX$495=""), IF(AND(BW$13<>"", BX$13=""), "DV input required", BW$12), IF(AND(OR(BX$446:BX$495="DV"), BX$13=""), "DV input required", "")), "") ->  | BY12: =IF(COUNTA($H$12:BX$12)<ROUNDUP(BY$5, 0), IF(AND(BY$446:BY$495=""), IF(AND(BX$13<>"", BY$13=""), "DV input required", BX$12), IF(AND(OR(BY$446:BY$495="DV"), BY$13=""), "DV input required", "")), "") ->  | BZ12: =IF(COUNTA($H$12:BY$12)<ROUNDUP(BZ$5, 0), IF(AND(BZ$446:BZ$495=""), IF(AND(BY$13<>"", BZ$13=""), "DV input required", BY$12), IF(AND(OR(BZ$446:BZ$495="DV"), BZ$13=""), "DV input required", "")), "") ->  | CA12: =IF(COUNTA($H$12:BZ$12)<ROUNDUP(CA$5, 0), IF(AND(CA$446:CA$495=""), IF(AND(BZ$13<>"", CA$13=""), "DV input required", BZ$12), IF(AND(OR(CA$446:CA$495="DV"), CA$13=""), "DV input required", "")), "") ->  | CB12: =IF(COUNTA($H$12:CA$12)<ROUNDUP(CB$5, 0), IF(AND(CB$446:CB$495=""), IF(AND(CA$13<>"", CB$13=""), "DV input required", CA$12), IF(AND(OR(CB$446:CB$495="DV"), CB$13=""), "DV input required", "")), "") ->  | CC12: =IF(COUNTA($H$12:CB$12)<ROUNDUP(CC$5, 0), IF(AND(CC$446:CC$495=""), IF(AND(CB$13<>"", CC$13=""), "DV input required", CB$12), IF(AND(OR(CC$446:CC$495="DV"), CC$13=""), "DV input required", "")), "") ->  | CD12: =IF(COUNTA($H$12:CC$12)<ROUNDUP(CD$5, 0), IF(AND(CD$446:CD$495=""), IF(AND(CC$13<>"", CD$13=""), "DV input required", CC$12), IF(AND(OR(CD$446:CD$495="DV"), CD$13=""), "DV input required", "")), "") ->  | CE12: =IF(COUNTA($H$12:CD$12)<ROUNDUP(CE$5, 0), IF(AND(CE$446:CE$495=""), IF(AND(CD$13<>"", CE$13=""), "DV input required", CD$12), IF(AND(OR(CE$446:CE$495="DV"), CE$13=""), "DV input required", "")), "") ->  | CF12: =IF(COUNTA($H$12:CE$12)<ROUNDUP(CF$5, 0), IF(AND(CF$446:CF$495=""), IF(AND(CE$13<>"", CF$13=""), "DV input required", CE$12), IF(AND(OR(CF$446:CF$495="DV"), CF$13=""), "DV input required", "")), "") ->  | CG12: =IF(COUNTA($H$12:CF$12)<ROUNDUP(CG$5, 0), IF(AND(CG$446:CG$495=""), IF(AND(CF$13<>"", CG$13=""), "DV input required", CF$12), IF(AND(OR(CG$446:CG$495="DV"), CG$13=""), "DV input required", "")), "") ->  | CH12: =IF(COUNTA($H$12:CG$12)<ROUNDUP(CH$5, 0), IF(AND(CH$446:CH$495=""), IF(AND(CG$13<>"", CH$13=""), "DV input required", CG$12), IF(AND(OR(CH$446:CH$495="DV"), CH$13=""), "DV input required", "")), "") ->  | CI12: =IF(COUNTA($H$12:CH$12)<ROUNDUP(CI$5, 0), IF(AND(CI$446:CI$495=""), IF(AND(CH$13<>"", CI$13=""), "DV input required", CH$12), IF(AND(OR(CI$446:CI$495="DV"), CI$13=""), "DV input required", "")), "") ->  | CJ12: =IF(COUNTA($H$12:CI$12)<ROUNDUP(CJ$5, 0), IF(AND(CJ$446:CJ$495=""), IF(AND(CI$13<>"", CJ$13=""), "DV input required", CI$12), IF(AND(OR(CJ$446:CJ$495="DV"), CJ$13=""), "DV input required", "")), "") ->  | CK12: =IF(COUNTA($H$12:CJ$12)<ROUNDUP(CK$5, 0), IF(AND(CK$446:CK$495=""), IF(AND(CJ$13<>"", CK$13=""), "DV input required", CJ$12), IF(AND(OR(CK$446:CK$495="DV"), CK$13=""), "DV input required", "")), "") ->  | CL12: =IF(COUNTA($H$12:CK$12)<ROUNDUP(CL$5, 0), IF(AND(CL$446:CL$495=""), IF(AND(CK$13<>"", CL$13=""), "DV input required", CK$12), IF(AND(OR(CL$446:CL$495="DV"), CL$13=""), "DV input required", "")), "") ->  | CM12: =IF(COUNTA($H$12:CL$12)<ROUNDUP(CM$5, 0), IF(AND(CM$446:CM$495=""), IF(AND(CL$13<>"", CM$13=""), "DV input required", CL$12), IF(AND(OR(CM$446:CM$495="DV"), CM$13=""), "DV input required", "")), "") ->  | CN12: =IF(COUNTA($H$12:CM$12)<ROUNDUP(CN$5, 0), IF(AND(CN$446:CN$495=""), IF(AND(CM$13<>"", CN$13=""), "DV input required", CM$12), IF(AND(OR(CN$446:CN$495="DV"), CN$13=""), "DV input required", "")), "") ->  | CO12: =IF(COUNTA($H$12:CN$12)<ROUNDUP(CO$5, 0), IF(AND(CO$446:CO$495=""), IF(AND(CN$13<>"", CO$13=""), "DV input required", CN$12), IF(AND(OR(CO$446:CO$495="DV"), CO$13=""), "DV input required", "")), "") -> 
E13: Diminishing value multiplier
D15: Starting TAB and actual gross capex - As incurred ($m, nominal)
E16: Asset class | G16: ="TAB (opening as at "&$H$4&")" -> TAB (opening as at 2013) | H16: ="Actual gross capex ("&H$4&")" -> Actual gross capex (2013) | I16: =IF(COUNTA($H$16:H$16)<I$5, "Actual gross capex ("&I$4&")", "") -> Actual gross capex (2014) | J16: =IF(COUNTA($H$16:I$16)<J$5, "Actual gross capex ("&J$4&")", "") -> Actual gross capex (2015) | K16: =IF(COUNTA($H$16:J$16)<K$5, "Actual gross capex ("&K$4&")", "") -> Actual gross capex (2016) | L16: =IF(COUNTA($H$16:K$16)<L$5, "Actual gross capex ("&L$4&")", "") -> Actual gross capex (2017) | M16: =IF(COUNTA($H$16:L$16)<M$5, "Actual gross capex ("&M$4&")", "") -> Actual gross capex (2018) | N16: =IF(COUNTA($H$16:M$16)<N$5, "Actual gross capex ("&N$4&")", "") -> Actual gross capex (2019) | O16: =IF(COUNTA($H$16:N$16)<O$5, "Actual gross capex ("&O$4&")", "") -> Actual gross capex (2020) | P16: =IF(COUNTA($H$16:O$16)<P$5, "Actual gross capex ("&P$4&")", "") -> Actual gross capex (2021) | Q16: =IF(COUNTA($H$16:P$16)<Q$5, "Actual gross capex ("&Q$4&")", "") -> Actual gross capex (2022) | R16: =IF(COUNTA($H$16:Q$16)<R$5, "Actual gross capex ("&R$4&")", "") -> Actual gross capex (2023) | S16: =IF(COUNTA($H$16:R$16)<S$5, "Actual gross capex ("&S$4&")", "") ->  | T16: =IF(COUNTA($H$16:S$16)<T$5, "Actual gross capex ("&T$4&")", "") ->  | U16: =IF(COUNTA($H$16:T$16)<U$5, "Actual gross capex ("&U$4&")", "") ->  | V16: =IF(COUNTA($H$16:U$16)<V$5, "Actual gross capex ("&V$4&")", "") ->  | W16: =IF(COUNTA($H$16:V$16)<W$5, "Actual gross capex ("&W$4&")", "") ->  | X16: =IF(COUNTA($H$16:W$16)<X$5, "Actual gross capex ("&X$4&")", "") ->  | Y16: =IF(COUNTA($H$16:X$16)<Y$5, "Actual gross capex ("&Y$4&")", "") ->  | Z16: =IF(COUNTA($H$16:Y$16)<Z$5, "Actual gross capex ("&Z$4&")", "") ->  | AA16: =IF(COUNTA($H$16:Z$16)<AA$5, "Actual gross capex ("&AA$4&")", "") ->  | AB16: =IF(COUNTA($H$16:AA$16)<AB$5, "Actual gross capex ("&AB$4&")", "") ->  | AC16: =IF(COUNTA($H$16:AB$16)<AC$5, "Actual gross capex ("&AC$4&")", "") ->  | AD16: =IF(COUNTA($H$16:AC$16)<AD$5, "Actual gross capex ("&AD$4&")", "") ->  | AE16: =IF(COUNTA($H$16:AD$16)<AE$5, "Actual gross capex ("&AE$4&")", "") ->  | AF16: =IF(COUNTA($H$16:AE$16)<AF$5, "Actual gross capex ("&AF$4&")", "") ->  | AG16: =IF(COUNTA($H$16:AF$16)<AG$5, "Actual gross capex ("&AG$4&")", "") ->  | AH16: =IF(COUNTA($H$16:AG$16)<AH$5, "Actual gross capex ("&AH$4&")", "") ->  | AI16: =IF(COUNTA($H$16:AH$16)<AI$5, "Actual gross capex ("&AI$4&")", "") ->  | AJ16: =IF(COUNTA($H$16:AI$16)<AJ$5, "Actual gross capex ("&AJ$4&")", "") ->  | AK16: =IF(COUNTA($H$16:AJ$16)<AK$5, "Actual gross capex ("&AK$4&")", "") ->  | AL16: =IF(COUNTA($H$16:AK$16)<AL$5, "Actual gross capex ("&AL$4&")", "") ->  | AM16: =IF(COUNTA($H$16:AL$16)<AM$5, "Actual gross capex ("&AM$4&")", "") ->  | AN16: =IF(COUNTA($H$16:AM$16)<AN$5, "Actual gross capex ("&AN$4&")", "") ->  | AO16: =IF(COUNTA($H$16:AN$16)<AO$5, "Actual gross capex ("&AO$4&")", "") ->  | AP16: =IF(COUNTA($H$16:AO$16)<AP$5, "Actual gross capex ("&AP$4&")", "") ->  | AQ16: =IF(COUNTA($H$16:AP$16)<AQ$5, "Actual gross capex ("&AQ$4&")", "") ->  | AR16: =IF(COUNTA($H$16:AQ$16)<AR$5, "Actual gross capex ("&AR$4&")", "") ->  | AS16: =IF(COUNTA($H$16:AR$16)<AS$5, "Actual gross capex ("&AS$4&")", "") ->  | AT16: =IF(COUNTA($H$16:AS$16)<AT$5, "Actual gross capex ("&AT$4&")", "") ->  | AU16: =IF(COUNTA($H$16:AT$16)<AU$5, "Actual gross capex ("&AU$4&")", "") ->  | AV16: =IF(COUNTA($H$16:AU$16)<AV$5, "Actual gross capex ("&AV$4&")", "") ->  | AW16: =IF(COUNTA($H$16:AV$16)<AW$5, "Actual gross capex ("&AW$4&")", "") ->  | AX16: =IF(COUNTA($H$16:AW$16)<AX$5, "Actual gross capex ("&AX$4&")", "") ->  | AY16: =IF(COUNTA($H$16:AX$16)<AY$5, "Actual gross capex ("&AY$4&")", "") ->  | AZ16: =IF(COUNTA($H$16:AY$16)<AZ$5, "Actual gross capex ("&AZ$4&")", "") ->  | BA16: =IF(COUNTA($H$16:AZ$16)<BA$5, "Actual gross capex ("&BA$4&")", "") ->  | BB16: =IF(COUNTA($H$16:BA$16)<BB$5, "Actual gross capex ("&BB$4&")", "") ->  | BC16: =IF(COUNTA($H$16:BB$16)<BC$5, "Actual gross capex ("&BC$4&")", "") ->  | BD16: =IF(COUNTA($H$16:BC$16)<BD$5, "Actual gross capex ("&BD$4&")", "") ->  | BE16: =IF(COUNTA($H$16:BD$16)<BE$5, "Actual gross capex ("&BE$4&")", "") ->  | BF16: =IF(COUNTA($H$16:BE$16)<BF$5, "Actual gross capex ("&BF$4&")", "") ->  | BG16: =IF(COUNTA($H$16:BF$16)<BG$5, "Actual gross capex ("&BG$4&")", "") ->  | BH16: =IF(COUNTA($H$16:BG$16)<BH$5, "Actual gross capex ("&BH$4&")", "") ->  | BI16: =IF(COUNTA($H$16:BH$16)<BI$5, "Actual gross capex ("&BI$4&")", "") ->  | BJ16: =IF(COUNTA($H$16:BI$16)<BJ$5, "Actual gross capex ("&BJ$4&")", "") ->  | BK16: =IF(COUNTA($H$16:BJ$16)<BK$5, "Actual gross capex ("&BK$4&")", "") ->  | BL16: =IF(COUNTA($H$16:BK$16)<BL$5, "Actual gross capex ("&BL$4&")", "") ->  | BM16: =IF(COUNTA($H$16:BL$16)<BM$5, "Actual gross capex ("&BM$4&")", "") ->  | BN16: =IF(COUNTA($H$16:BM$16)<BN$5, "Actual gross capex ("&BN$4&")", "") ->  | BO16: =IF(COUNTA($H$16:BN$16)<BO$5, "Actual gross capex ("&BO$4&")", "") ->  | BP16: =IF(COUNTA($H$16:BO$16)<BP$5, "Actual gross capex ("&BP$4&")", "") ->  | BQ16: =IF(COUNTA($H$16:BP$16)<BQ$5, "Actual gross capex ("&BQ$4&")", "") ->  | BR16: =IF(COUNTA($H$16:BQ$16)<BR$5, "Actual gross capex ("&BR$4&")", "") ->  | BS16: =IF(COUNTA($H$16:BR$16)<BS$5, "Actual gross capex ("&BS$4&")", "") ->  | BT16: =IF(COUNTA($H$16:BS$16)<BT$5, "Actual gross capex ("&BT$4&")", "") ->  | BU16: =IF(COUNTA($H$16:BT$16)<BU$5, "Actual gross capex ("&BU$4&")", "") ->  | BV16: =IF(COUNTA($H$16:BU$16)<BV$5, "Actual gross capex ("&BV$4&")", "") ->  | BW16: =IF(COUNTA($H$16:BV$16)<BW$5, "Actual gross capex ("&BW$4&")", "") ->  | BX16: =IF(COUNTA($H$16:BW$16)<BX$5, "Actual gross capex ("&BX$4&")", "") ->  | BY16: =IF(COUNTA($H$16:BX$16)<BY$5, "Actual gross capex ("&BY$4&")", "") ->  | BZ16: =IF(COUNTA($H$16:BY$16)<BZ$5, "Actual gross capex ("&BZ$4&")", "") ->  | CA16: =IF(COUNTA($H$16:BZ$16)<CA$5, "Actual gross capex ("&CA$4&")", "") ->  | CB16: =IF(COUNTA($H$16:CA$16)<CB$5, "Actual gross capex ("&CB$4&")", "") ->  | CC16: =IF(COUNTA($H$16:CB$16)<CC$5, "Actual gross capex ("&CC$4&")", "") ->  | CD16: =IF(COUNTA($H$16:CC$16)<CD$5, "Actual gross capex ("&CD$4&")", "") ->  | CE16: =IF(COUNTA($H$16:CD$16)<CE$5, "Actual gross capex ("&CE$4&")", "") ->  | CF16: =IF(COUNTA($H$16:CE$16)<CF$5, "Actual gross capex ("&CF$4&")", "") ->  | CG16: =IF(COUNTA($H$16:CF$16)<CG$5, "Actual gross capex ("&CG$4&")", "") ->  | CH16: =IF(COUNTA($H$16:CG$16)<CH$5, "Actual gross capex ("&CH$4&")", "") ->  | CI16: =IF(COUNTA($H$16:CH$16)<CI$5, "Actual gross capex ("&CI$4&")", "") ->  | CJ16: =IF(COUNTA($H$16:CI$16)<CJ$5, "Actual gross capex ("&CJ$4&")", "") ->  | CK16: =IF(COUNTA($H$16:CJ$16)<CK$5, "Actual gross capex ("&CK$4&")", "") ->  | CL16: =IF(COUNTA($H$16:CK$16)<CL$5, "Actual gross capex ("&CL$4&")", "") ->  | CM16: =IF(COUNTA($H$16:CL$16)<CM$5, "Actual gross capex ("&CM$4&")", "") ->  | CN16: =IF(COUNTA($H$16:CM$16)<CN$5, "Actual gross capex ("&CN$4&")", "") ->  | CO16: =IF(COUNTA($H$16:CN$16)<CO$5, "Actual gross capex ("&CO$4&")", "") -> 
D18: 1 | E18: ='Capital base input'!E28 -> Transmission Pipelines
D19: 2 | E19: ='Capital base input'!E29 -> Distribution Pipelines
D20: 3 | E20: ='Capital base input'!E30 -> Service Pipes
D21: 4 | E21: ='Capital base input'!E31 -> Cathodic Protection
D22: 5 | E22: ='Capital base input'!E32 -> Supply Regulators / Valve Stations
D23: 6 | E23: ='Capital base input'!E33 -> Meters
D24: 7 | E24: ='Capital base input'!E34 -> SCADA and remote control
D25: 8 | E25: ='Capital base input'!E35 -> Other - IT
D26: 9 | E26: ='Capital base input'!E36 -> Other - non IT
D27: 10 | E27: ='Capital base input'!E37 -> Buildings
D28: 11 | E28: ='Capital base input'!E38 -> Land
D29: 12 | E29: ='Capital base input'!E39 -> Capitalised Leases 1 July 2023
D30: 13 | E30: ='Capital base input'!E40 -> Transmission pipelines - post 1998
D31: 14 | E31: ='Capital base input'!E41 -> Distribution pipelines - post 1998
D32: 15 | E32: ='Capital base input'!E42 -> Service pipes - post 1998
D33: 16 | E33: ='Capital base input'!E43 -> Cathodic protection - post 1998
D34: 17 | E34: ='Capital base input'!E44 -> Accelerated Depreciation - Long Life Assets
D35: 18 | E35: ='Capital base input'!E45 -> Accelerated Depreciation - Future of Gas
D36: 19 | E36: ='Capital base input'!E46 -> 0
D37: 20 | E37: ='Capital base input'!E47 -> 0
D38: 21 | E38: ='Capital base input'!E48 -> 0
D39: 22 | E39: ='Capital base input'!E49 -> 0
D40: 23 | E40: ='Capital base input'!E50 -> 0
D41: 24 | E41: ='Capital base input'!E51 -> 0
D42: 25 | E42: ='Capital base input'!E52 -> 0
D43: 26 | E43: ='Capital base input'!E53 -> 0
D44: 27 | E44: ='Capital base input'!E54 -> 0
D45: 28 | E45: ='Capital base input'!E55 -> 0
D46: 29 | E46: ='Capital base input'!E56 -> 0
D47: 30 | E47: ='Capital base input'!E57 -> 0
D48: 31 | E48: ='Capital base input'!E58 -> 0
D49: 32 | E49: ='Capital base input'!E59 -> 0
D50: 33 | E50: ='Capital base input'!E60 -> 0
D51: 34 | E51: ='Capital base input'!E61 -> 0
D52: 35 | E52: ='Capital base input'!E62 -> 0
D53: 36 | E53: ='Capital base input'!E63 -> 0
D54: 37 | E54: ='Capital base input'!E64 -> 0
D55: 38 | E55: ='Capital base input'!E65 -> 0
D56: 39 | E56: ='Capital base input'!E66 -> 0
D57: 40 | E57: ='Capital base input'!E67 -> 0
D58: 41 | E58: ='Capital base input'!E68 -> 0
D59: 42 | E59: ='Capital base input'!E69 -> 0
D60: 43 | E60: ='Capital base input'!E70 -> 0
D61: 44 | E61: ='Capital base input'!E71 -> 0
D62: 45 | E62: ='Capital base input'!E72 -> 0
... 76 more rows

Sheet Capital base tracking
F2: =IF('Capital base input'!$F$8='TAB input'!$F$8, 'Capital base input'!$F$8, 'TAB input'!$F$8)&" - Capital base tracking - Gas DNSP "&Intro!$I$3&" - version "&Intro!$M$4 -> Ausnet - Capital base tracking - Gas DNSP RFM - Depreciation tracking module - version 1
F4: ="Year ($m, real "&'Capital base input'!$G$4&")" -> Year ($m, real 2012) | G4: ='Capital base input'!G$4 -> 2012 | H4: ='Capital base input'!H$4 -> 2013 | I4: ='Capital base input'!I$4 -> 2014 | J4: ='Capital base input'!J$4 -> 2015 | K4: ='Capital base input'!K$4 -> 2016 | L4: ='Capital base input'!L$4 -> 2017 | M4: ='Capital base input'!M$4 -> 2018 | N4: ='Capital base input'!N$4 -> 2019 | O4: ='Capital base input'!O$4 -> 2020 | P4: ='Capital base input'!P$4 -> 2021 | Q4: ='Capital base input'!Q$4 -> 2022 | R4: ='Capital base input'!R$4 -> 2023 | S4: ='Capital base input'!S$4 -> 2023-24 | T4: ='Capital base input'!T$4 -> 2024-25 | U4: ='Capital base input'!U$4 -> 2025-26 | V4: ='Capital base input'!V$4 -> 2026-27 | W4: ='Capital base input'!W$4 -> 2027-28 | X4: ='Capital base input'!X$4 -> 2028-29 | Y4: ='Capital base input'!Y$4 -> 2029-30 | Z4: ='Capital base input'!Z$4 -> 2030-31 | AA4: ='Capital base input'!AA$4 -> 2031-32 | AB4: ='Capital base input'!AB$4 -> 2032-33 | AC4: ='Capital base input'!AC$4 -> 2033-34 | AD4: ='Capital base input'!AD$4 -> 2034-35 | AE4: ='Capital base input'!AE$4 -> 2035-36 | AF4: ='Capital base input'!AF$4 -> 2036-37 | AG4: ='Capital base input'!AG$4 -> 2037-38 | AH4: ='Capital base input'!AH$4 -> 2038-39 | AI4: ='Capital base input'!AI$4 -> 2039-40 | AJ4: ='Capital base input'!AJ$4 -> 2040-41 | AK4: ='Capital base input'!AK$4 -> 2041-42 | AL4: ='Capital base input'!AL$4 -> 2042-43 | AM4: ='Capital base input'!AM$4 -> 2043-44 | AN4: ='Capital base input'!AN$4 -> 2044-45 | AO4: ='Capital base input'!AO$4 -> 2045-46 | AP4: ='Capital base input'!AP$4 -> 2046-47 | AQ4: ='Capital base input'!AQ$4 -> 2047-48 | AR4: ='Capital base input'!AR$4 -> 2048-49 | AS4: ='Capital base input'!AS$4 -> 2049-50 | AT4: ='Capital base input'!AT$4 -> 2050-51 | AU4: ='Capital base input'!AU$4 -> 2051-52 | AV4: ='Capital base input'!AV$4 -> 2052-53 | AW4: ='Capital base input'!AW$4 -> 2053-54 | AX4: ='Capital base input'!AX$4 -> 2054-55 | AY4: ='Capital base input'!AY$4 -> 2055-56 | AZ4: ='Capital base input'!AZ$4 -> 2056-57 | BA4: ='Capital base input'!BA$4 -> 2057-58 | BB4: ='Capital base input'!BB$4 -> 2058-59 | BC4: ='Capital base input'!BC$4 -> 2059-60 | BD4: ='Capital base input'!BD$4 -> 2060-61 | BE4: ='Capital base input'!BE$4 -> 2061-62 | BF4: ='Capital base input'!BF$4 -> 2062-63 | BG4: ='Capital base input'!BG$4 -> 2063-64 | BH4: ='Capital base input'!BH$4 -> 2064-65 | BI4: ='Capital base input'!BI$4 -> 2065-66 | BJ4: ='Capital base input'!BJ$4 -> 2066-67 | BK4: ='Capital base input'!BK$4 -> 2067-68 | BL4: ='Capital base input'!BL$4 -> 2068-69 | BM4: ='Capital base input'!BM$4 -> 2069-70 | BN4: ='Capital base input'!BN$4 -> 2070-71 | BO4: ='Capital base input'!BO$4 -> 2071-72 | BP4: ='Capital base input'!BP$4 -> 2072-73 | BQ4: ='Capital base input'!BQ$4 -> 2073-74 | BR4: ='Capital base input'!BR$4 -> 2074-75 | BS4: ='Capital base input'!BS$4 -> 2075-76 | BT4: ='Capital base input'!BT$4 -> 2076-77 | BU4: ='Capital base input'!BU$4 -> 2077-78 | BV4: ='Capital base input'!BV$4 -> 2078-79 | BW4: ='Capital base input'!BW$4 -> 2079-80 | BX4: ='Capital base input'!BX$4 -> 2080-81 | BY4: ='Capital base input'!BY$4 -> 2081-82 | BZ4: ='Capital base input'!BZ$4 -> 2082-83 | CA4: ='Capital base input'!CA$4 -> 2083-84 | CB4: ='Capital base input'!CB$4 -> 2084-85 | CC4: ='Capital base input'!CC$4 -> 2085-86 | CD4: ='Capital base input'!CD$4 -> 2086-87 | CE4: ='Capital base input'!CE$4 -> 2087-88 | CF4: ='Capital base input'!CF$4 -> 2088-89 | CG4: ='Capital base input'!CG$4 -> 2089-90 | CH4: ='Capital base input'!CH$4 -> 2090-91 | CI4: ='Capital base input'!CI$4 -> 2091-92 | CJ4: ='Capital base input'!CJ$4 -> 2092-93 | CK4: ='Capital base input'!CK$4 -> 2093-94 | CL4: ='Capital base input'!CL$4 -> 2094-95 | CM4: ='Capital base input'!CM$4 -> 2095-96 | CN4: ='Capital base input'!CN$4 -> 2096-97 | CO4: ='Capital base input'!CO$4 -> 2097-98
G5: 0 | H5: =G5+IF(AND(COUNTA($H$4:H$4)=ROUNDUP('Capital base input'!H$5, 0), 'Capital base input'!H$5<>INT('Capital base input'!H$5)), 'Capital base input'!H$5-INT('Capital base input'!H$5), 1) -> 1 | I5: =H5+IF(AND(COUNTA($H$4:I$4)=ROUNDUP('Capital base input'!I$5, 0), 'Capital base input'!I$5<>INT('Capital base input'!I$5)), 'Capital base input'!I$5-INT('Capital base input'!I$5), 1) -> 2 | J5: =I5+IF(AND(COUNTA($H$4:J$4)=ROUNDUP('Capital base input'!J$5, 0), 'Capital base input'!J$5<>INT('Capital base input'!J$5)), 'Capital base input'!J$5-INT('Capital base input'!J$5), 1) -> 3 | K5: =J5+IF(AND(COUNTA($H$4:K$4)=ROUNDUP('Capital base input'!K$5, 0), 'Capital base input'!K$5<>INT('Capital base input'!K$5)), 'Capital base input'!K$5-INT('Capital base input'!K$5), 1) -> 4 | L5: =K5+IF(AND(COUNTA($H$4:L$4)=ROUNDUP('Capital base input'!L$5, 0), 'Capital base input'!L$5<>INT('Capital base input'!L$5)), 'Capital base input'!L$5-INT('Capital base input'!L$5), 1) -> 5 | M5: =L5+IF(AND(COUNTA($H$4:M$4)=ROUNDUP('Capital base input'!M$5, 0), 'Capital base input'!M$5<>INT('Capital base input'!M$5)), 'Capital base input'!M$5-INT('Capital base input'!M$5), 1) -> 6 | N5: =M5+IF(AND(COUNTA($H$4:N$4)=ROUNDUP('Capital base input'!N$5, 0), 'Capital base input'!N$5<>INT('Capital base input'!N$5)), 'Capital base input'!N$5-INT('Capital base input'!N$5), 1) -> 7 | O5: =N5+IF(AND(COUNTA($H$4:O$4)=ROUNDUP('Capital base input'!O$5, 0), 'Capital base input'!O$5<>INT('Capital base input'!O$5)), 'Capital base input'!O$5-INT('Capital base input'!O$5), 1) -> 8 | P5: =O5+IF(AND(COUNTA($H$4:P$4)=ROUNDUP('Capital base input'!P$5, 0), 'Capital base input'!P$5<>INT('Capital base input'!P$5)), 'Capital base input'!P$5-INT('Capital base input'!P$5), 1) -> 9 | Q5: =P5+IF(AND(COUNTA($H$4:Q$4)=ROUNDUP('Capital base input'!Q$5, 0), 'Capital base input'!Q$5<>INT('Capital base input'!Q$5)), 'Capital base input'!Q$5-INT('Capital base input'!Q$5), 1) -> 10 | R5: =Q5+IF(AND(COUNTA($H$4:R$4)=ROUNDUP('Capital base input'!R$5, 0), 'Capital base input'!R$5<>INT('Capital base input'!R$5)), 'Capital base input'!R$5-INT('Capital base input'!R$5), 1) -> 10.5 | S5: =R5+IF(AND(COUNTA($H$4:S$4)=ROUNDUP('Capital base input'!S$5, 0), 'Capital base input'!S$5<>INT('Capital base input'!S$5)), 'Capital base input'!S$5-INT('Capital base input'!S$5), 1) -> 11.5 | T5: =S5+IF(AND(COUNTA($H$4:T$4)=ROUNDUP('Capital base input'!T$5, 0), 'Capital base input'!T$5<>INT('Capital base input'!T$5)), 'Capital base input'!T$5-INT('Capital base input'!T$5), 1) -> 12.5 | U5: =T5+IF(AND(COUNTA($H$4:U$4)=ROUNDUP('Capital base input'!U$5, 0), 'Capital base input'!U$5<>INT('Capital base input'!U$5)), 'Capital base input'!U$5-INT('Capital base input'!U$5), 1) -> 13.5 | V5: =U5+IF(AND(COUNTA($H$4:V$4)=ROUNDUP('Capital base input'!V$5, 0), 'Capital base input'!V$5<>INT('Capital base input'!V$5)), 'Capital base input'!V$5-INT('Capital base input'!V$5), 1) -> 14.5 | W5: =V5+IF(AND(COUNTA($H$4:W$4)=ROUNDUP('Capital base input'!W$5, 0), 'Capital base input'!W$5<>INT('Capital base input'!W$5)), 'Capital base input'!W$5-INT('Capital base input'!W$5), 1) -> 15.5 | X5: =W5+IF(AND(COUNTA($H$4:X$4)=ROUNDUP('Capital base input'!X$5, 0), 'Capital base input'!X$5<>INT('Capital base input'!X$5)), 'Capital base input'!X$5-INT('Capital base input'!X$5), 1) -> 16.5 | Y5: =X5+IF(AND(COUNTA($H$4:Y$4)=ROUNDUP('Capital base input'!Y$5, 0), 'Capital base input'!Y$5<>INT('Capital base input'!Y$5)), 'Capital base input'!Y$5-INT('Capital base input'!Y$5), 1) -> 17.5 | Z5: =Y5+IF(AND(COUNTA($H$4:Z$4)=ROUNDUP('Capital base input'!Z$5, 0), 'Capital base input'!Z$5<>INT('Capital base input'!Z$5)), 'Capital base input'!Z$5-INT('Capital base input'!Z$5), 1) -> 18.5 | AA5: =Z5+IF(AND(COUNTA($H$4:AA$4)=ROUNDUP('Capital base input'!AA$5, 0), 'Capital base input'!AA$5<>INT('Capital base input'!AA$5)), 'Capital base input'!AA$5-INT('Capital base input'!AA$5), 1) -> 19.5 | AB5: =AA5+IF(AND(COUNTA($H$4:AB$4)=ROUNDUP('Capital base input'!AB$5, 0), 'Capital base input'!AB$5<>INT('Capital base input'!AB$5)), 'Capital base input'!AB$5-INT('Capital base input'!AB$5), 1) -> 20.5 | AC5: =AB5+IF(AND(COUNTA($H$4:AC$4)=ROUNDUP('Capital base input'!AC$5, 0), 'Capital base input'!AC$5<>INT('Capital base input'!AC$5)), 'Capital base input'!AC$5-INT('Capital base input'!AC$5), 1) -> 21.5 | AD5: =AC5+IF(AND(COUNTA($H$4:AD$4)=ROUNDUP('Capital base input'!AD$5, 0), 'Capital base input'!AD$5<>INT('Capital base input'!AD$5)), 'Capital base input'!AD$5-INT('Capital base input'!AD$5), 1) -> 22.5 | AE5: =AD5+IF(AND(COUNTA($H$4:AE$4)=ROUNDUP('Capital base input'!AE$5, 0), 'Capital base input'!AE$5<>INT('Capital base input'!AE$5)), 'Capital base input'!AE$5-INT('Capital base input'!AE$5), 1) -> 23.5 | AF5: =AE5+IF(AND(COUNTA($H$4:AF$4)=ROUNDUP('Capital base input'!AF$5, 0), 'Capital base input'!AF$5<>INT('Capital base input'!AF$5)), 'Capital base input'!AF$5-INT('Capital base input'!AF$5), 1) -> 24.5 | AG5: =AF5+IF(AND(COUNTA($H$4:AG$4)=ROUNDUP('Capital base input'!AG$5, 0), 'Capital base input'!AG$5<>INT('Capital base input'!AG$5)), 'Capital base input'!AG$5-INT('Capital base input'!AG$5), 1) -> 25.5 | AH5: =AG5+IF(AND(COUNTA($H$4:AH$4)=ROUNDUP('Capital base input'!AH$5, 0), 'Capital base input'!AH$5<>INT('Capital base input'!AH$5)), 'Capital base input'!AH$5-INT('Capital base input'!AH$5), 1) -> 26.5 | AI5: =AH5+IF(AND(COUNTA($H$4:AI$4)=ROUNDUP('Capital base input'!AI$5, 0), 'Capital base input'!AI$5<>INT('Capital base input'!AI$5)), 'Capital base input'!AI$5-INT('Capital base input'!AI$5), 1) -> 27.5 | AJ5: =AI5+IF(AND(COUNTA($H$4:AJ$4)=ROUNDUP('Capital base input'!AJ$5, 0), 'Capital base input'!AJ$5<>INT('Capital base input'!AJ$5)), 'Capital base input'!AJ$5-INT('Capital base input'!AJ$5), 1) -> 28.5 | AK5: =AJ5+IF(AND(COUNTA($H$4:AK$4)=ROUNDUP('Capital base input'!AK$5, 0), 'Capital base input'!AK$5<>INT('Capital base input'!AK$5)), 'Capital base input'!AK$5-INT('Capital base input'!AK$5), 1) -> 29.5 | AL5: =AK5+IF(AND(COUNTA($H$4:AL$4)=ROUNDUP('Capital base input'!AL$5, 0), 'Capital base input'!AL$5<>INT('Capital base input'!AL$5)), 'Capital base input'!AL$5-INT('Capital base input'!AL$5), 1) -> 30.5 | AM5: =AL5+IF(AND(COUNTA($H$4:AM$4)=ROUNDUP('Capital base input'!AM$5, 0), 'Capital base input'!AM$5<>INT('Capital base input'!AM$5)), 'Capital base input'!AM$5-INT('Capital base input'!AM$5), 1) -> 31.5 | AN5: =AM5+IF(AND(COUNTA($H$4:AN$4)=ROUNDUP('Capital base input'!AN$5, 0), 'Capital base input'!AN$5<>INT('Capital base input'!AN$5)), 'Capital base input'!AN$5-INT('Capital base input'!AN$5), 1) -> 32.5 | AO5: =AN5+IF(AND(COUNTA($H$4:AO$4)=ROUNDUP('Capital base input'!AO$5, 0), 'Capital base input'!AO$5<>INT('Capital base input'!AO$5)), 'Capital base input'!AO$5-INT('Capital base input'!AO$5), 1) -> 33.5 | AP5: =AO5+IF(AND(COUNTA($H$4:AP$4)=ROUNDUP('Capital base input'!AP$5, 0), 'Capital base input'!AP$5<>INT('Capital base input'!AP$5)), 'Capital base input'!AP$5-INT('Capital base input'!AP$5), 1) -> 34.5 | AQ5: =AP5+IF(AND(COUNTA($H$4:AQ$4)=ROUNDUP('Capital base input'!AQ$5, 0), 'Capital base input'!AQ$5<>INT('Capital base input'!AQ$5)), 'Capital base input'!AQ$5-INT('Capital base input'!AQ$5), 1) -> 35.5 | AR5: =AQ5+IF(AND(COUNTA($H$4:AR$4)=ROUNDUP('Capital base input'!AR$5, 0), 'Capital base input'!AR$5<>INT('Capital base input'!AR$5)), 'Capital base input'!AR$5-INT('Capital base input'!AR$5), 1) -> 36.5 | AS5: =AR5+IF(AND(COUNTA($H$4:AS$4)=ROUNDUP('Capital base input'!AS$5, 0), 'Capital base input'!AS$5<>INT('Capital base input'!AS$5)), 'Capital base input'!AS$5-INT('Capital base input'!AS$5), 1) -> 37.5 | AT5: =AS5+IF(AND(COUNTA($H$4:AT$4)=ROUNDUP('Capital base input'!AT$5, 0), 'Capital base input'!AT$5<>INT('Capital base input'!AT$5)), 'Capital base input'!AT$5-INT('Capital base input'!AT$5), 1) -> 38.5 | AU5: =AT5+IF(AND(COUNTA($H$4:AU$4)=ROUNDUP('Capital base input'!AU$5, 0), 'Capital base input'!AU$5<>INT('Capital base input'!AU$5)), 'Capital base input'!AU$5-INT('Capital base input'!AU$5), 1) -> 39.5 | AV5: =AU5+IF(AND(COUNTA($H$4:AV$4)=ROUNDUP('Capital base input'!AV$5, 0), 'Capital base input'!AV$5<>INT('Capital base input'!AV$5)), 'Capital base input'!AV$5-INT('Capital base input'!AV$5), 1) -> 40.5 | AW5: =AV5+IF(AND(COUNTA($H$4:AW$4)=ROUNDUP('Capital base input'!AW$5, 0), 'Capital base input'!AW$5<>INT('Capital base input'!AW$5)), 'Capital base input'!AW$5-INT('Capital base input'!AW$5), 1) -> 41.5 | AX5: =AW5+IF(AND(COUNTA($H$4:AX$4)=ROUNDUP('Capital base input'!AX$5, 0), 'Capital base input'!AX$5<>INT('Capital base input'!AX$5)), 'Capital base input'!AX$5-INT('Capital base input'!AX$5), 1) -> 42.5 | AY5: =AX5+IF(AND(COUNTA($H$4:AY$4)=ROUNDUP('Capital base input'!AY$5, 0), 'Capital base input'!AY$5<>INT('Capital base input'!AY$5)), 'Capital base input'!AY$5-INT('Capital base input'!AY$5), 1) -> 43.5 | AZ5: =AY5+IF(AND(COUNTA($H$4:AZ$4)=ROUNDUP('Capital base input'!AZ$5, 0), 'Capital base input'!AZ$5<>INT('Capital base input'!AZ$5)), 'Capital base input'!AZ$5-INT('Capital base input'!AZ$5), 1) -> 44.5 | BA5: =AZ5+IF(AND(COUNTA($H$4:BA$4)=ROUNDUP('Capital base input'!BA$5, 0), 'Capital base input'!BA$5<>INT('Capital base input'!BA$5)), 'Capital base input'!BA$5-INT('Capital base input'!BA$5), 1) -> 45.5 | BB5: =BA5+IF(AND(COUNTA($H$4:BB$4)=ROUNDUP('Capital base input'!BB$5, 0), 'Capital base input'!BB$5<>INT('Capital base input'!BB$5)), 'Capital base input'!BB$5-INT('Capital base input'!BB$5), 1) -> 46.5 | BC5: =BB5+IF(AND(COUNTA($H$4:BC$4)=ROUNDUP('Capital base input'!BC$5, 0), 'Capital base input'!BC$5<>INT('Capital base input'!BC$5)), 'Capital base input'!BC$5-INT('Capital base input'!BC$5), 1) -> 47.5 | BD5: =BC5+IF(AND(COUNTA($H$4:BD$4)=ROUNDUP('Capital base input'!BD$5, 0), 'Capital base input'!BD$5<>INT('Capital base input'!BD$5)), 'Capital base input'!BD$5-INT('Capital base input'!BD$5), 1) -> 48.5 | BE5: =BD5+IF(AND(COUNTA($H$4:BE$4)=ROUNDUP('Capital base input'!BE$5, 0), 'Capital base input'!BE$5<>INT('Capital base input'!BE$5)), 'Capital base input'!BE$5-INT('Capital base input'!BE$5), 1) -> 49.5 | BF5: =BE5+IF(AND(COUNTA($H$4:BF$4)=ROUNDUP('Capital base input'!BF$5, 0), 'Capital base input'!BF$5<>INT('Capital base input'!BF$5)), 'Capital base input'!BF$5-INT('Capital base input'!BF$5), 1) -> 50.5 | BG5: =BF5+IF(AND(COUNTA($H$4:BG$4)=ROUNDUP('Capital base input'!BG$5, 0), 'Capital base input'!BG$5<>INT('Capital base input'!BG$5)), 'Capital base input'!BG$5-INT('Capital base input'!BG$5), 1) -> 51.5 | BH5: =BG5+IF(AND(COUNTA($H$4:BH$4)=ROUNDUP('Capital base input'!BH$5, 0), 'Capital base input'!BH$5<>INT('Capital base input'!BH$5)), 'Capital base input'!BH$5-INT('Capital base input'!BH$5), 1) -> 52.5 | BI5: =BH5+IF(AND(COUNTA($H$4:BI$4)=ROUNDUP('Capital base input'!BI$5, 0), 'Capital base input'!BI$5<>INT('Capital base input'!BI$5)), 'Capital base input'!BI$5-INT('Capital base input'!BI$5), 1) -> 53.5 | BJ5: =BI5+IF(AND(COUNTA($H$4:BJ$4)=ROUNDUP('Capital base input'!BJ$5, 0), 'Capital base input'!BJ$5<>INT('Capital base input'!BJ$5)), 'Capital base input'!BJ$5-INT('Capital base input'!BJ$5), 1) -> 54.5 | BK5: =BJ5+IF(AND(COUNTA($H$4:BK$4)=ROUNDUP('Capital base input'!BK$5, 0), 'Capital base input'!BK$5<>INT('Capital base input'!BK$5)), 'Capital base input'!BK$5-INT('Capital base input'!BK$5), 1) -> 55.5 | BL5: =BK5+IF(AND(COUNTA($H$4:BL$4)=ROUNDUP('Capital base input'!BL$5, 0), 'Capital base input'!BL$5<>INT('Capital base input'!BL$5)), 'Capital base input'!BL$5-INT('Capital base input'!BL$5), 1) -> 56.5 | BM5: =BL5+IF(AND(COUNTA($H$4:BM$4)=ROUNDUP('Capital base input'!BM$5, 0), 'Capital base input'!BM$5<>INT('Capital base input'!BM$5)), 'Capital base input'!BM$5-INT('Capital base input'!BM$5), 1) -> 57.5 | BN5: =BM5+IF(AND(COUNTA($H$4:BN$4)=ROUNDUP('Capital base input'!BN$5, 0), 'Capital base input'!BN$5<>INT('Capital base input'!BN$5)), 'Capital base input'!BN$5-INT('Capital base input'!BN$5), 1) -> 58.5 | BO5: =BN5+IF(AND(COUNTA($H$4:BO$4)=ROUNDUP('Capital base input'!BO$5, 0), 'Capital base input'!BO$5<>INT('Capital base input'!BO$5)), 'Capital base input'!BO$5-INT('Capital base input'!BO$5), 1) -> 59.5 | BP5: =BO5+IF(AND(COUNTA($H$4:BP$4)=ROUNDUP('Capital base input'!BP$5, 0), 'Capital base input'!BP$5<>INT('Capital base input'!BP$5)), 'Capital base input'!BP$5-INT('Capital base input'!BP$5), 1) -> 60.5 | BQ5: =BP5+IF(AND(COUNTA($H$4:BQ$4)=ROUNDUP('Capital base input'!BQ$5, 0), 'Capital base input'!BQ$5<>INT('Capital base input'!BQ$5)), 'Capital base input'!BQ$5-INT('Capital base input'!BQ$5), 1) -> 61.5 | BR5: =BQ5+IF(AND(COUNTA($H$4:BR$4)=ROUNDUP('Capital base input'!BR$5, 0), 'Capital base input'!BR$5<>INT('Capital base input'!BR$5)), 'Capital base input'!BR$5-INT('Capital base input'!BR$5), 1) -> 62.5 | BS5: =BR5+IF(AND(COUNTA($H$4:BS$4)=ROUNDUP('Capital base input'!BS$5, 0), 'Capital base input'!BS$5<>INT('Capital base input'!BS$5)), 'Capital base input'!BS$5-INT('Capital base input'!BS$5), 1) -> 63.5 | BT5: =BS5+IF(AND(COUNTA($H$4:BT$4)=ROUNDUP('Capital base input'!BT$5, 0), 'Capital base input'!BT$5<>INT('Capital base input'!BT$5)), 'Capital base input'!BT$5-INT('Capital base input'!BT$5), 1) -> 64.5 | BU5: =BT5+IF(AND(COUNTA($H$4:BU$4)=ROUNDUP('Capital base input'!BU$5, 0), 'Capital base input'!BU$5<>INT('Capital base input'!BU$5)), 'Capital base input'!BU$5-INT('Capital base input'!BU$5), 1) -> 65.5 | BV5: =BU5+IF(AND(COUNTA($H$4:BV$4)=ROUNDUP('Capital base input'!BV$5, 0), 'Capital base input'!BV$5<>INT('Capital base input'!BV$5)), 'Capital base input'!BV$5-INT('Capital base input'!BV$5), 1) -> 66.5 | BW5: =BV5+IF(AND(COUNTA($H$4:BW$4)=ROUNDUP('Capital base input'!BW$5, 0), 'Capital base input'!BW$5<>INT('Capital base input'!BW$5)), 'Capital base input'!BW$5-INT('Capital base input'!BW$5), 1) -> 67.5 | BX5: =BW5+IF(AND(COUNTA($H$4:BX$4)=ROUNDUP('Capital base input'!BX$5, 0), 'Capital base input'!BX$5<>INT('Capital base input'!BX$5)), 'Capital base input'!BX$5-INT('Capital base input'!BX$5), 1) -> 68.5 | BY5: =BX5+IF(AND(COUNTA($H$4:BY$4)=ROUNDUP('Capital base input'!BY$5, 0), 'Capital base input'!BY$5<>INT('Capital base input'!BY$5)), 'Capital base input'!BY$5-INT('Capital base input'!BY$5), 1) -> 69.5 | BZ5: =BY5+IF(AND(COUNTA($H$4:BZ$4)=ROUNDUP('Capital base input'!BZ$5, 0), 'Capital base input'!BZ$5<>INT('Capital base input'!BZ$5)), 'Capital base input'!BZ$5-INT('Capital base input'!BZ$5), 1) -> 70.5 | CA5: =BZ5+IF(AND(COUNTA($H$4:CA$4)=ROUNDUP('Capital base input'!CA$5, 0), 'Capital base input'!CA$5<>INT('Capital base input'!CA$5)), 'Capital base input'!CA$5-INT('Capital base input'!CA$5), 1) -> 71.5 | CB5: =CA5+IF(AND(COUNTA($H$4:CB$4)=ROUNDUP('Capital base input'!CB$5, 0), 'Capital base input'!CB$5<>INT('Capital base input'!CB$5)), 'Capital base input'!CB$5-INT('Capital base input'!CB$5), 1) -> 72.5 | CC5: =CB5+IF(AND(COUNTA($H$4:CC$4)=ROUNDUP('Capital base input'!CC$5, 0), 'Capital base input'!CC$5<>INT('Capital base input'!CC$5)), 'Capital base input'!CC$5-INT('Capital base input'!CC$5), 1) -> 73.5 | CD5: =CC5+IF(AND(COUNTA($H$4:CD$4)=ROUNDUP('Capital base input'!CD$5, 0), 'Capital base input'!CD$5<>INT('Capital base input'!CD$5)), 'Capital base input'!CD$5-INT('Capital base input'!CD$5), 1) -> 74.5 | CE5: =CD5+IF(AND(COUNTA($H$4:CE$4)=ROUNDUP('Capital base input'!CE$5, 0), 'Capital base input'!CE$5<>INT('Capital base input'!CE$5)), 'Capital base input'!CE$5-INT('Capital base input'!CE$5), 1) -> 75.5 | CF5: =CE5+IF(AND(COUNTA($H$4:CF$4)=ROUNDUP('Capital base input'!CF$5, 0), 'Capital base input'!CF$5<>INT('Capital base input'!CF$5)), 'Capital base input'!CF$5-INT('Capital base input'!CF$5), 1) -> 76.5 | CG5: =CF5+IF(AND(COUNTA($H$4:CG$4)=ROUNDUP('Capital base input'!CG$5, 0), 'Capital base input'!CG$5<>INT('Capital base input'!CG$5)), 'Capital base input'!CG$5-INT('Capital base input'!CG$5), 1) -> 77.5 | CH5: =CG5+IF(AND(COUNTA($H$4:CH$4)=ROUNDUP('Capital base input'!CH$5, 0), 'Capital base input'!CH$5<>INT('Capital base input'!CH$5)), 'Capital base input'!CH$5-INT('Capital base input'!CH$5), 1) -> 78.5 | CI5: =CH5+IF(AND(COUNTA($H$4:CI$4)=ROUNDUP('Capital base input'!CI$5, 0), 'Capital base input'!CI$5<>INT('Capital base input'!CI$5)), 'Capital base input'!CI$5-INT('Capital base input'!CI$5), 1) -> 79.5 | CJ5: =CI5+IF(AND(COUNTA($H$4:CJ$4)=ROUNDUP('Capital base input'!CJ$5, 0), 'Capital base input'!CJ$5<>INT('Capital base input'!CJ$5)), 'Capital base input'!CJ$5-INT('Capital base input'!CJ$5), 1) -> 80.5 | CK5: =CJ5+IF(AND(COUNTA($H$4:CK$4)=ROUNDUP('Capital base input'!CK$5, 0), 'Capital base input'!CK$5<>INT('Capital base input'!CK$5)), 'Capital base input'!CK$5-INT('Capital base input'!CK$5), 1) -> 81.5 | CL5: =CK5+IF(AND(COUNTA($H$4:CL$4)=ROUNDUP('Capital base input'!CL$5, 0), 'Capital base input'!CL$5<>INT('Capital base input'!CL$5)), 'Capital base input'!CL$5-INT('Capital base input'!CL$5), 1) -> 82.5 | CM5: =CL5+IF(AND(COUNTA($H$4:CM$4)=ROUNDUP('Capital base input'!CM$5, 0), 'Capital base input'!CM$5<>INT('Capital base input'!CM$5)), 'Capital base input'!CM$5-INT('Capital base input'!CM$5), 1) -> 83.5 | CN5: =CM5+IF(AND(COUNTA($H$4:CN$4)=ROUNDUP('Capital base input'!CN$5, 0), 'Capital base input'!CN$5<>INT('Capital base input'!CN$5)), 'Capital base input'!CN$5-INT('Capital base input'!CN$5), 1) -> 84.5 | CO5: =CN5+IF(AND(COUNTA($H$4:CO$4)=ROUNDUP('Capital base input'!CO$5, 0), 'Capital base input'!CO$5<>INT('Capital base input'!CO$5)), 'Capital base input'!CO$5-INT('Capital base input'!CO$5), 1) -> 85.5
E6: ="Asset class "&E7 -> Asset class 1 | F6: =INDEX('Capital base input'!$E$28:$E$77, MATCH($E7, 'Capital base input'!$D$28:$D$77, 0)) -> Transmission Pipelines
E7: 1 | F7: Value of starting capital base and net capex addition | G7: =INDEX('Capital base input'!$G$28:$G$77, $E7)/'Capital base input'!G$15 -> 50.93346364 | H7: =(INDEX('Capital base input'!H$28:H$77, $E7)-INDEX('Capital base input'!H$82:H$131, $E7)-INDEX('Capital base input'!H$136:H$185, $E7))/'Capital base input'!H$15*(IF('Capital base input'!H$22="Yes", (1+'Capital base input'!H$17)^0.5, 1)) -> 0.8041610096 | I7: =(INDEX('Capital base input'!I$28:I$77, $E7)-INDEX('Capital base input'!I$82:I$131, $E7)-INDEX('Capital base input'!I$136:I$185, $E7))/'Capital base input'!I$15*(IF('Capital base input'!I$22="Yes", (1+'Capital base input'!I$17)^0.5, 1)) -> 0.4116564105 | J7: =(INDEX('Capital base input'!J$28:J$77, $E7)-INDEX('Capital base input'!J$82:J$131, $E7)-INDEX('Capital base input'!J$136:J$185, $E7))/'Capital base input'!J$15*(IF('Capital base input'!J$22="Yes", (1+'Capital base input'!J$17)^0.5, 1)) -> -0.1139722692 | K7: =(INDEX('Capital base input'!K$28:K$77, $E7)-INDEX('Capital base input'!K$82:K$131, $E7)-INDEX('Capital base input'!K$136:K$185, $E7))/'Capital base input'!K$15*(IF('Capital base input'!K$22="Yes", (1+'Capital base input'!K$17)^0.5, 1)) -> -0.0003059260507 | L7: =(INDEX('Capital base input'!L$28:L$77, $E7)-INDEX('Capital base input'!L$82:L$131, $E7)-INDEX('Capital base input'!L$136:L$185, $E7))/'Capital base input'!L$15*(IF('Capital base input'!L$22="Yes", (1+'Capital base input'!L$17)^0.5, 1)) -> -0.01876816895 | M7: =(INDEX('Capital base input'!M$28:M$77, $E7)-INDEX('Capital base input'!M$82:M$131, $E7)-INDEX('Capital base input'!M$136:M$185, $E7))/'Capital base input'!M$15*(1+'Capital base input'!M$17)^0.5 -> 0 | N7: =(INDEX('Capital base input'!N$28:N$77, $E7)-INDEX('Capital base input'!N$82:N$131, $E7)-INDEX('Capital base input'!N$136:N$185, $E7))/'Capital base input'!N$15*(1+'Capital base input'!N$17)^0.5 -> -0.00418190848 | O7: =(INDEX('Capital base input'!O$28:O$77, $E7)-INDEX('Capital base input'!O$82:O$131, $E7)-INDEX('Capital base input'!O$136:O$185, $E7))/'Capital base input'!O$15*(1+'Capital base input'!O$17)^0.5 -> 3.046142486 | P7: =(INDEX('Capital base input'!P$28:P$77, $E7)-INDEX('Capital base input'!P$82:P$131, $E7)-INDEX('Capital base input'!P$136:P$185, $E7))/'Capital base input'!P$15*(1+'Capital base input'!P$17)^0.5 -> 3.823242649 | Q7: =(INDEX('Capital base input'!Q$28:Q$77, $E7)-INDEX('Capital base input'!Q$82:Q$131, $E7)-INDEX('Capital base input'!Q$136:Q$185, $E7))/'Capital base input'!Q$15*(1+'Capital base input'!Q$17)^0.5 -> -0.2864153433 | R7: =(INDEX('Capital base input'!R$28:R$77, $E7)-INDEX('Capital base input'!R$82:R$131, $E7)-INDEX('Capital base input'!R$136:R$185, $E7))/'Capital base input'!R$15*(1+'Capital base input'!R$17)^0.5 -> 0.2214295508 | S7: =(INDEX('Capital base input'!S$28:S$77, $E7)-INDEX('Capital base input'!S$82:S$131, $E7)-INDEX('Capital base input'!S$136:S$185, $E7))/'Capital base input'!S$15*(1+'Capital base input'!S$17)^0.5 -> 0 | T7: =(INDEX('Capital base input'!T$28:T$77, $E7)-INDEX('Capital base input'!T$82:T$131, $E7)-INDEX('Capital base input'!T$136:T$185, $E7))/'Capital base input'!T$15*(1+'Capital base input'!T$17)^0.5 -> 0 | U7: =(INDEX('Capital base input'!U$28:U$77, $E7)-INDEX('Capital base input'!U$82:U$131, $E7)-INDEX('Capital base input'!U$136:U$185, $E7))/'Capital base input'!U$15*(1+'Capital base input'!U$17)^0.5 -> 0 | V7: =(INDEX('Capital base input'!V$28:V$77, $E7)-INDEX('Capital base input'!V$82:V$131, $E7)-INDEX('Capital base input'!V$136:V$185, $E7))/'Capital base input'!V$15*(1+'Capital base input'!V$17)^0.5 -> 0 | W7: =(INDEX('Capital base input'!W$28:W$77, $E7)-INDEX('Capital base input'!W$82:W$131, $E7)-INDEX('Capital base input'!W$136:W$185, $E7))/'Capital base input'!W$15*(1+'Capital base input'!W$17)^0.5 -> 0 | X7: =(INDEX('Capital base input'!X$28:X$77, $E7)-INDEX('Capital base input'!X$82:X$131, $E7)-INDEX('Capital base input'!X$136:X$185, $E7))/'Capital base input'!X$15*(1+'Capital base input'!X$17)^0.5 -> 0 | Y7: =(INDEX('Capital base input'!Y$28:Y$77, $E7)-INDEX('Capital base input'!Y$82:Y$131, $E7)-INDEX('Capital base input'!Y$136:Y$185, $E7))/'Capital base input'!Y$15*(1+'Capital base input'!Y$17)^0.5 -> 0 | Z7: =(INDEX('Capital base input'!Z$28:Z$77, $E7)-INDEX('Capital base input'!Z$82:Z$131, $E7)-INDEX('Capital base input'!Z$136:Z$185, $E7))/'Capital base input'!Z$15*(1+'Capital base input'!Z$17)^0.5 -> 0 | AA7: =(INDEX('Capital base input'!AA$28:AA$77, $E7)-INDEX('Capital base input'!AA$82:AA$131, $E7)-INDEX('Capital base input'!AA$136:AA$185, $E7))/'Capital base input'!AA$15*(1+'Capital base input'!AA$17)^0.5 -> 0 | AB7: =(INDEX('Capital base input'!AB$28:AB$77, $E7)-INDEX('Capital base input'!AB$82:AB$131, $E7)-INDEX('Capital base input'!AB$136:AB$185, $E7))/'Capital base input'!AB$15*(1+'Capital base input'!AB$17)^0.5 -> 0 | AC7: =(INDEX('Capital base input'!AC$28:AC$77, $E7)-INDEX('Capital base input'!AC$82:AC$131, $E7)-INDEX('Capital base input'!AC$136:AC$185, $E7))/'Capital base input'!AC$15*(1+'Capital base input'!AC$17)^0.5 -> 0 | AD7: =(INDEX('Capital base input'!AD$28:AD$77, $E7)-INDEX('Capital base input'!AD$82:AD$131, $E7)-INDEX('Capital base input'!AD$136:AD$185, $E7))/'Capital base input'!AD$15*(1+'Capital base input'!AD$17)^0.5 -> 0 | AE7: =(INDEX('Capital base input'!AE$28:AE$77, $E7)-INDEX('Capital base input'!AE$82:AE$131, $E7)-INDEX('Capital base input'!AE$136:AE$185, $E7))/'Capital base input'!AE$15*(1+'Capital base input'!AE$17)^0.5 -> 0 | AF7: =(INDEX('Capital base input'!AF$28:AF$77, $E7)-INDEX('Capital base input'!AF$82:AF$131, $E7)-INDEX('Capital base input'!AF$136:AF$185, $E7))/'Capital base input'!AF$15*(1+'Capital base input'!AF$17)^0.5 -> 0 | AG7: =(INDEX('Capital base input'!AG$28:AG$77, $E7)-INDEX('Capital base input'!AG$82:AG$131, $E7)-INDEX('Capital base input'!AG$136:AG$185, $E7))/'Capital base input'!AG$15*(1+'Capital base input'!AG$17)^0.5 -> 0 | AH7: =(INDEX('Capital base input'!AH$28:AH$77, $E7)-INDEX('Capital base input'!AH$82:AH$131, $E7)-INDEX('Capital base input'!AH$136:AH$185, $E7))/'Capital base input'!AH$15*(1+'Capital base input'!AH$17)^0.5 -> 0 | AI7: =(INDEX('Capital base input'!AI$28:AI$77, $E7)-INDEX('Capital base input'!AI$82:AI$131, $E7)-INDEX('Capital base input'!AI$136:AI$185, $E7))/'Capital base input'!AI$15*(1+'Capital base input'!AI$17)^0.5 -> 0 | AJ7: =(INDEX('Capital base input'!AJ$28:AJ$77, $E7)-INDEX('Capital base input'!AJ$82:AJ$131, $E7)-INDEX('Capital base input'!AJ$136:AJ$185, $E7))/'Capital base input'!AJ$15*(1+'Capital base input'!AJ$17)^0.5 -> 0 | AK7: =(INDEX('Capital base input'!AK$28:AK$77, $E7)-INDEX('Capital base input'!AK$82:AK$131, $E7)-INDEX('Capital base input'!AK$136:AK$185, $E7))/'Capital base input'!AK$15*(1+'Capital base input'!AK$17)^0.5 -> 0 | AL7: =(INDEX('Capital base input'!AL$28:AL$77, $E7)-INDEX('Capital base input'!AL$82:AL$131, $E7)-INDEX('Capital base input'!AL$136:AL$185, $E7))/'Capital base input'!AL$15*(1+'Capital base input'!AL$17)^0.5 -> 0 | AM7: =(INDEX('Capital base input'!AM$28:AM$77, $E7)-INDEX('Capital base input'!AM$82:AM$131, $E7)-INDEX('Capital base input'!AM$136:AM$185, $E7))/'Capital base input'!AM$15*(1+'Capital base input'!AM$17)^0.5 -> 0 | AN7: =(INDEX('Capital base input'!AN$28:AN$77, $E7)-INDEX('Capital base input'!AN$82:AN$131, $E7)-INDEX('Capital base input'!AN$136:AN$185, $E7))/'Capital base input'!AN$15*(1+'Capital base input'!AN$17)^0.5 -> 0 | AO7: =(INDEX('Capital base input'!AO$28:AO$77, $E7)-INDEX('Capital base input'!AO$82:AO$131, $E7)-INDEX('Capital base input'!AO$136:AO$185, $E7))/'Capital base input'!AO$15*(1+'Capital base input'!AO$17)^0.5 -> 0 | AP7: =(INDEX('Capital base input'!AP$28:AP$77, $E7)-INDEX('Capital base input'!AP$82:AP$131, $E7)-INDEX('Capital base input'!AP$136:AP$185, $E7))/'Capital base input'!AP$15*(1+'Capital base input'!AP$17)^0.5 -> 0 | AQ7: =(INDEX('Capital base input'!AQ$28:AQ$77, $E7)-INDEX('Capital base input'!AQ$82:AQ$131, $E7)-INDEX('Capital base input'!AQ$136:AQ$185, $E7))/'Capital base input'!AQ$15*(1+'Capital base input'!AQ$17)^0.5 -> 0 | AR7: =(INDEX('Capital base input'!AR$28:AR$77, $E7)-INDEX('Capital base input'!AR$82:AR$131, $E7)-INDEX('Capital base input'!AR$136:AR$185, $E7))/'Capital base input'!AR$15*(1+'Capital base input'!AR$17)^0.5 -> 0 | AS7: =(INDEX('Capital base input'!AS$28:AS$77, $E7)-INDEX('Capital base input'!AS$82:AS$131, $E7)-INDEX('Capital base input'!AS$136:AS$185, $E7))/'Capital base input'!AS$15*(1+'Capital base input'!AS$17)^0.5 -> 0 | AT7: =(INDEX('Capital base input'!AT$28:AT$77, $E7)-INDEX('Capital base input'!AT$82:AT$131, $E7)-INDEX('Capital base input'!AT$136:AT$185, $E7))/'Capital base input'!AT$15*(1+'Capital base input'!AT$17)^0.5 -> 0 | AU7: =(INDEX('Capital base input'!AU$28:AU$77, $E7)-INDEX('Capital base input'!AU$82:AU$131, $E7)-INDEX('Capital base input'!AU$136:AU$185, $E7))/'Capital base input'!AU$15*(1+'Capital base input'!AU$17)^0.5 -> 0 | AV7: =(INDEX('Capital base input'!AV$28:AV$77, $E7)-INDEX('Capital base input'!AV$82:AV$131, $E7)-INDEX('Capital base input'!AV$136:AV$185, $E7))/'Capital base input'!AV$15*(1+'Capital base input'!AV$17)^0.5 -> 0 | AW7: =(INDEX('Capital base input'!AW$28:AW$77, $E7)-INDEX('Capital base input'!AW$82:AW$131, $E7)-INDEX('Capital base input'!AW$136:AW$185, $E7))/'Capital base input'!AW$15*(1+'Capital base input'!AW$17)^0.5 -> 0 | AX7: =(INDEX('Capital base input'!AX$28:AX$77, $E7)-INDEX('Capital base input'!AX$82:AX$131, $E7)-INDEX('Capital base input'!AX$136:AX$185, $E7))/'Capital base input'!AX$15*(1+'Capital base input'!AX$17)^0.5 -> 0 | AY7: =(INDEX('Capital base input'!AY$28:AY$77, $E7)-INDEX('Capital base input'!AY$82:AY$131, $E7)-INDEX('Capital base input'!AY$136:AY$185, $E7))/'Capital base input'!AY$15*(1+'Capital base input'!AY$17)^0.5 -> 0 | AZ7: =(INDEX('Capital base input'!AZ$28:AZ$77, $E7)-INDEX('Capital base input'!AZ$82:AZ$131, $E7)-INDEX('Capital base input'!AZ$136:AZ$185, $E7))/'Capital base input'!AZ$15*(1+'Capital base input'!AZ$17)^0.5 -> 0 | BA7: =(INDEX('Capital base input'!BA$28:BA$77, $E7)-INDEX('Capital base input'!BA$82:BA$131, $E7)-INDEX('Capital base input'!BA$136:BA$185, $E7))/'Capital base input'!BA$15*(1+'Capital base input'!BA$17)^0.5 -> 0 | BB7: =(INDEX('Capital base input'!BB$28:BB$77, $E7)-INDEX('Capital base input'!BB$82:BB$131, $E7)-INDEX('Capital base input'!BB$136:BB$185, $E7))/'Capital base input'!BB$15*(1+'Capital base input'!BB$17)^0.5 -> 0 | BC7: =(INDEX('Capital base input'!BC$28:BC$77, $E7)-INDEX('Capital base input'!BC$82:BC$131, $E7)-INDEX('Capital base input'!BC$136:BC$185, $E7))/'Capital base input'!BC$15*(1+'Capital base input'!BC$17)^0.5 -> 0 | BD7: =(INDEX('Capital base input'!BD$28:BD$77, $E7)-INDEX('Capital base input'!BD$82:BD$131, $E7)-INDEX('Capital base input'!BD$136:BD$185, $E7))/'Capital base input'!BD$15*(1+'Capital base input'!BD$17)^0.5 -> 0 | BE7: =(INDEX('Capital base input'!BE$28:BE$77, $E7)-INDEX('Capital base input'!BE$82:BE$131, $E7)-INDEX('Capital base input'!BE$136:BE$185, $E7))/'Capital base input'!BE$15*(1+'Capital base input'!BE$17)^0.5 -> 0 | BF7: =(INDEX('Capital base input'!BF$28:BF$77, $E7)-INDEX('Capital base input'!BF$82:BF$131, $E7)-INDEX('Capital base input'!BF$136:BF$185, $E7))/'Capital base input'!BF$15*(1+'Capital base input'!BF$17)^0.5 -> 0 | BG7: =(INDEX('Capital base input'!BG$28:BG$77, $E7)-INDEX('Capital base input'!BG$82:BG$131, $E7)-INDEX('Capital base input'!BG$136:BG$185, $E7))/'Capital base input'!BG$15*(1+'Capital base input'!BG$17)^0.5 -> 0 | BH7: =(INDEX('Capital base input'!BH$28:BH$77, $E7)-INDEX('Capital base input'!BH$82:BH$131, $E7)-INDEX('Capital base input'!BH$136:BH$185, $E7))/'Capital base input'!BH$15*(1+'Capital base input'!BH$17)^0.5 -> 0 | BI7: =(INDEX('Capital base input'!BI$28:BI$77, $E7)-INDEX('Capital base input'!BI$82:BI$131, $E7)-INDEX('Capital base input'!BI$136:BI$185, $E7))/'Capital base input'!BI$15*(1+'Capital base input'!BI$17)^0.5 -> 0 | BJ7: =(INDEX('Capital base input'!BJ$28:BJ$77, $E7)-INDEX('Capital base input'!BJ$82:BJ$131, $E7)-INDEX('Capital base input'!BJ$136:BJ$185, $E7))/'Capital base input'!BJ$15*(1+'Capital base input'!BJ$17)^0.5 -> 0 | BK7: =(INDEX('Capital base input'!BK$28:BK$77, $E7)-INDEX('Capital base input'!BK$82:BK$131, $E7)-INDEX('Capital base input'!BK$136:BK$185, $E7))/'Capital base input'!BK$15*(1+'Capital base input'!BK$17)^0.5 -> 0 | BL7: =(INDEX('Capital base input'!BL$28:BL$77, $E7)-INDEX('Capital base input'!BL$82:BL$131, $E7)-INDEX('Capital base input'!BL$136:BL$185, $E7))/'Capital base input'!BL$15*(1+'Capital base input'!BL$17)^0.5 -> 0 | BM7: =(INDEX('Capital base input'!BM$28:BM$77, $E7)-INDEX('Capital base input'!BM$82:BM$131, $E7)-INDEX('Capital base input'!BM$136:BM$185, $E7))/'Capital base input'!BM$15*(1+'Capital base input'!BM$17)^0.5 -> 0 | BN7: =(INDEX('Capital base input'!BN$28:BN$77, $E7)-INDEX('Capital base input'!BN$82:BN$131, $E7)-INDEX('Capital base input'!BN$136:BN$185, $E7))/'Capital base input'!BN$15*(1+'Capital base input'!BN$17)^0.5 -> 0 | BO7: =(INDEX('Capital base input'!BO$28:BO$77, $E7)-INDEX('Capital base input'!BO$82:BO$131, $E7)-INDEX('Capital base input'!BO$136:BO$185, $E7))/'Capital base input'!BO$15*(1+'Capital base input'!BO$17)^0.5 -> 0 | BP7: =(INDEX('Capital base input'!BP$28:BP$77, $E7)-INDEX('Capital base input'!BP$82:BP$131, $E7)-INDEX('Capital base input'!BP$136:BP$185, $E7))/'Capital base input'!BP$15*(1+'Capital base input'!BP$17)^0.5 -> 0 | BQ7: =(INDEX('Capital base input'!BQ$28:BQ$77, $E7)-INDEX('Capital base input'!BQ$82:BQ$131, $E7)-INDEX('Capital base input'!BQ$136:BQ$185, $E7))/'Capital base input'!BQ$15*(1+'Capital base input'!BQ$17)^0.5 -> 0 | BR7: =(INDEX('Capital base input'!BR$28:BR$77, $E7)-INDEX('Capital base input'!BR$82:BR$131, $E7)-INDEX('Capital base input'!BR$136:BR$185, $E7))/'Capital base input'!BR$15*(1+'Capital base input'!BR$17)^0.5 -> 0 | BS7: =(INDEX('Capital base input'!BS$28:BS$77, $E7)-INDEX('Capital base input'!BS$82:BS$131, $E7)-INDEX('Capital base input'!BS$136:BS$185, $E7))/'Capital base input'!BS$15*(1+'Capital base input'!BS$17)^0.5 -> 0 | BT7: =(INDEX('Capital base input'!BT$28:BT$77, $E7)-INDEX('Capital base input'!BT$82:BT$131, $E7)-INDEX('Capital base input'!BT$136:BT$185, $E7))/'Capital base input'!BT$15*(1+'Capital base input'!BT$17)^0.5 -> 0 | BU7: =(INDEX('Capital base input'!BU$28:BU$77, $E7)-INDEX('Capital base input'!BU$82:BU$131, $E7)-INDEX('Capital base input'!BU$136:BU$185, $E7))/'Capital base input'!BU$15*(1+'Capital base input'!BU$17)^0.5 -> 0 | BV7: =(INDEX('Capital base input'!BV$28:BV$77, $E7)-INDEX('Capital base input'!BV$82:BV$131, $E7)-INDEX('Capital base input'!BV$136:BV$185, $E7))/'Capital base input'!BV$15*(1+'Capital base input'!BV$17)^0.5 -> 0 | BW7: =(INDEX('Capital base input'!BW$28:BW$77, $E7)-INDEX('Capital base input'!BW$82:BW$131, $E7)-INDEX('Capital base input'!BW$136:BW$185, $E7))/'Capital base input'!BW$15*(1+'Capital base input'!BW$17)^0.5 -> 0 | BX7: =(INDEX('Capital base input'!BX$28:BX$77, $E7)-INDEX('Capital base input'!BX$82:BX$131, $E7)-INDEX('Capital base input'!BX$136:BX$185, $E7))/'Capital base input'!BX$15*(1+'Capital base input'!BX$17)^0.5 -> 0 | BY7: =(INDEX('Capital base input'!BY$28:BY$77, $E7)-INDEX('Capital base input'!BY$82:BY$131, $E7)-INDEX('Capital base input'!BY$136:BY$185, $E7))/'Capital base input'!BY$15*(1+'Capital base input'!BY$17)^0.5 -> 0 | BZ7: =(INDEX('Capital base input'!BZ$28:BZ$77, $E7)-INDEX('Capital base input'!BZ$82:BZ$131, $E7)-INDEX('Capital base input'!BZ$136:BZ$185, $E7))/'Capital base input'!BZ$15*(1+'Capital base input'!BZ$17)^0.5 -> 0 | CA7: =(INDEX('Capital base input'!CA$28:CA$77, $E7)-INDEX('Capital base input'!CA$82:CA$131, $E7)-INDEX('Capital base input'!CA$136:CA$185, $E7))/'Capital base input'!CA$15*(1+'Capital base input'!CA$17)^0.5 -> 0 | CB7: =(INDEX('Capital base input'!CB$28:CB$77, $E7)-INDEX('Capital base input'!CB$82:CB$131, $E7)-INDEX('Capital base input'!CB$136:CB$185, $E7))/'Capital base input'!CB$15*(1+'Capital base input'!CB$17)^0.5 -> 0 | CC7: =(INDEX('Capital base input'!CC$28:CC$77, $E7)-INDEX('Capital base input'!CC$82:CC$131, $E7)-INDEX('Capital base input'!CC$136:CC$185, $E7))/'Capital base input'!CC$15*(1+'Capital base input'!CC$17)^0.5 -> 0 | CD7: =(INDEX('Capital base input'!CD$28:CD$77, $E7)-INDEX('Capital base input'!CD$82:CD$131, $E7)-INDEX('Capital base input'!CD$136:CD$185, $E7))/'Capital base input'!CD$15*(1+'Capital base input'!CD$17)^0.5 -> 0 | CE7: =(INDEX('Capital base input'!CE$28:CE$77, $E7)-INDEX('Capital base input'!CE$82:CE$131, $E7)-INDEX('Capital base input'!CE$136:CE$185, $E7))/'Capital base input'!CE$15*(1+'Capital base input'!CE$17)^0.5 -> 0 | CF7: =(INDEX('Capital base input'!CF$28:CF$77, $E7)-INDEX('Capital base input'!CF$82:CF$131, $E7)-INDEX('Capital base input'!CF$136:CF$185, $E7))/'Capital base input'!CF$15*(1+'Capital base input'!CF$17)^0.5 -> 0 | CG7: =(INDEX('Capital base input'!CG$28:CG$77, $E7)-INDEX('Capital base input'!CG$82:CG$131, $E7)-INDEX('Capital base input'!CG$136:CG$185, $E7))/'Capital base input'!CG$15*(1+'Capital base input'!CG$17)^0.5 -> 0 | CH7: =(INDEX('Capital base input'!CH$28:CH$77, $E7)-INDEX('Capital base input'!CH$82:CH$131, $E7)-INDEX('Capital base input'!CH$136:CH$185, $E7))/'Capital base input'!CH$15*(1+'Capital base input'!CH$17)^0.5 -> 0 | CI7: =(INDEX('Capital base input'!CI$28:CI$77, $E7)-INDEX('Capital base input'!CI$82:CI$131, $E7)-INDEX('Capital base input'!CI$136:CI$185, $E7))/'Capital base input'!CI$15*(1+'Capital base input'!CI$17)^0.5 -> 0 | CJ7: =(INDEX('Capital base input'!CJ$28:CJ$77, $E7)-INDEX('Capital base input'!CJ$82:CJ$131, $E7)-INDEX('Capital base input'!CJ$136:CJ$185, $E7))/'Capital base input'!CJ$15*(1+'Capital base input'!CJ$17)^0.5 -> 0 | CK7: =(INDEX('Capital base input'!CK$28:CK$77, $E7)-INDEX('Capital base input'!CK$82:CK$131, $E7)-INDEX('Capital base input'!CK$136:CK$185, $E7))/'Capital base input'!CK$15*(1+'Capital base input'!CK$17)^0.5 -> 0 | CL7: =(INDEX('Capital base input'!CL$28:CL$77, $E7)-INDEX('Capital base input'!CL$82:CL$131, $E7)-INDEX('Capital base input'!CL$136:CL$185, $E7))/'Capital base input'!CL$15*(1+'Capital base input'!CL$17)^0.5 -> 0 | CM7: =(INDEX('Capital base input'!CM$28:CM$77, $E7)-INDEX('Capital base input'!CM$82:CM$131, $E7)-INDEX('Capital base input'!CM$136:CM$185, $E7))/'Capital base input'!CM$15*(1+'Capital base input'!CM$17)^0.5 -> 0 | CN7: =(INDEX('Capital base input'!CN$28:CN$77, $E7)-INDEX('Capital base input'!CN$82:CN$131, $E7)-INDEX('Capital base input'!CN$136:CN$185, $E7))/'Capital base input'!CN$15*(1+'Capital base input'!CN$17)^0.5 -> 0 | CO7: =(INDEX('Capital base input'!CO$28:CO$77, $E7)-INDEX('Capital base input'!CO$82:CO$131, $E7)-INDEX('Capital base input'!CO$136:CO$185, $E7))/'Capital base input'!CO$15*(1+'Capital base input'!CO$17)^0.5 -> 0
F8: Initial remaining life and standard lives (years) | G8: =IF(INDEX('Capital base input'!$G$190:$G$239, $E7)="", IF($G7=0, 0, F8), INDEX('Capital base input'!$G$190:$G$239, $E7)) -> 24.45374964 | H8: =IF(INDEX('Capital base input'!H$190:H$239, $E7)="", G8, INDEX('Capital base input'!H$190:H$239, $E7)) -> 60 | I8: =IF(INDEX('Capital base input'!I$190:I$239, $E7)="", H8, INDEX('Capital base input'!I$190:I$239, $E7)) -> 60 | J8: =IF(INDEX('Capital base input'!J$190:J$239, $E7)="", I8, INDEX('Capital base input'!J$190:J$239, $E7)) -> 60 | K8: =IF(INDEX('Capital base input'!K$190:K$239, $E7)="", J8, INDEX('Capital base input'!K$190:K$239, $E7)) -> 60 | L8: =IF(INDEX('Capital base input'!L$190:L$239, $E7)="", K8, INDEX('Capital base input'!L$190:L$239, $E7)) -> 60 | M8: =IF(INDEX('Capital base input'!M$190:M$239, $E7)="", L8, INDEX('Capital base input'!M$190:M$239, $E7)) -> 60 | N8: =IF(INDEX('Capital base input'!N$190:N$239, $E7)="", M8, INDEX('Capital base input'!N$190:N$239, $E7)) -> 60 | O8: =IF(INDEX('Capital base input'!O$190:O$239, $E7)="", N8, INDEX('Capital base input'!O$190:O$239, $E7)) -> 60 | P8: =IF(INDEX('Capital base input'!P$190:P$239, $E7)="", O8, INDEX('Capital base input'!P$190:P$239, $E7)) -> 60 | Q8: =IF(INDEX('Capital base input'!Q$190:Q$239, $E7)="", P8, INDEX('Capital base input'!Q$190:Q$239, $E7)) -> 60 | R8: =IF(INDEX('Capital base input'!R$190:R$239, $E7)="", Q8, INDEX('Capital base input'!R$190:R$239, $E7)) -> 60 | S8: =IF(INDEX('Capital base input'!S$190:S$239, $E7)="", R8, INDEX('Capital base input'!S$190:S$239, $E7)) -> 60 | T8: =IF(INDEX('Capital base input'!T$190:T$239, $E7)="", S8, INDEX('Capital base input'!T$190:T$239, $E7)) -> 60 | U8: =IF(INDEX('Capital base input'!U$190:U$239, $E7)="", T8, INDEX('Capital base input'!U$190:U$239, $E7)) -> 60 | V8: =IF(INDEX('Capital base input'!V$190:V$239, $E7)="", U8, INDEX('Capital base input'!V$190:V$239, $E7)) -> 60 | W8: =IF(INDEX('Capital base input'!W$190:W$239, $E7)="", V8, INDEX('Capital base input'!W$190:W$239, $E7)) -> 60 | X8: =IF(INDEX('Capital base input'!X$190:X$239, $E7)="", W8, INDEX('Capital base input'!X$190:X$239, $E7)) -> 60 | Y8: =IF(INDEX('Capital base input'!Y$190:Y$239, $E7)="", X8, INDEX('Capital base input'!Y$190:Y$239, $E7)) -> 60 | Z8: =IF(INDEX('Capital base input'!Z$190:Z$239, $E7)="", Y8, INDEX('Capital base input'!Z$190:Z$239, $E7)) -> 60 | AA8: =IF(INDEX('Capital base input'!AA$190:AA$239, $E7)="", Z8, INDEX('Capital base input'!AA$190:AA$239, $E7)) -> 60 | AB8: =IF(INDEX('Capital base input'!AB$190:AB$239, $E7)="", AA8, INDEX('Capital base input'!AB$190:AB$239, $E7)) -> 60 | AC8: =IF(INDEX('Capital base input'!AC$190:AC$239, $E7)="", AB8, INDEX('Capital base input'!AC$190:AC$239, $E7)) -> 60 | AD8: =IF(INDEX('Capital base input'!AD$190:AD$239, $E7)="", AC8, INDEX('Capital base input'!AD$190:AD$239, $E7)) -> 60 | AE8: =IF(INDEX('Capital base input'!AE$190:AE$239, $E7)="", AD8, INDEX('Capital base input'!AE$190:AE$239, $E7)) -> 60 | AF8: =IF(INDEX('Capital base input'!AF$190:AF$239, $E7)="", AE8, INDEX('Capital base input'!AF$190:AF$239, $E7)) -> 60 | AG8: =IF(INDEX('Capital base input'!AG$190:AG$239, $E7)="", AF8, INDEX('Capital base input'!AG$190:AG$239, $E7)) -> 60 | AH8: =IF(INDEX('Capital base input'!AH$190:AH$239, $E7)="", AG8, INDEX('Capital base input'!AH$190:AH$239, $E7)) -> 60 | AI8: =IF(INDEX('Capital base input'!AI$190:AI$239, $E7)="", AH8, INDEX('Capital base input'!AI$190:AI$239, $E7)) -> 60 | AJ8: =IF(INDEX('Capital base input'!AJ$190:AJ$239, $E7)="", AI8, INDEX('Capital base input'!AJ$190:AJ$239, $E7)) -> 60 | AK8: =IF(INDEX('Capital base input'!AK$190:AK$239, $E7)="", AJ8, INDEX('Capital base input'!AK$190:AK$239, $E7)) -> 60 | AL8: =IF(INDEX('Capital base input'!AL$190:AL$239, $E7)="", AK8, INDEX('Capital base input'!AL$190:AL$239, $E7)) -> 60 | AM8: =IF(INDEX('Capital base input'!AM$190:AM$239, $E7)="", AL8, INDEX('Capital base input'!AM$190:AM$239, $E7)) -> 60 | AN8: =IF(INDEX('Capital base input'!AN$190:AN$239, $E7)="", AM8, INDEX('Capital base input'!AN$190:AN$239, $E7)) -> 60 | AO8: =IF(INDEX('Capital base input'!AO$190:AO$239, $E7)="", AN8, INDEX('Capital base input'!AO$190:AO$239, $E7)) -> 60 | AP8: =IF(INDEX('Capital base input'!AP$190:AP$239, $E7)="", AO8, INDEX('Capital base input'!AP$190:AP$239, $E7)) -> 60 | AQ8: =IF(INDEX('Capital base input'!AQ$190:AQ$239, $E7)="", AP8, INDEX('Capital base input'!AQ$190:AQ$239, $E7)) -> 60 | AR8: =IF(INDEX('Capital base input'!AR$190:AR$239, $E7)="", AQ8, INDEX('Capital base input'!AR$190:AR$239, $E7)) -> 60 | AS8: =IF(INDEX('Capital base input'!AS$190:AS$239, $E7)="", AR8, INDEX('Capital base input'!AS$190:AS$239, $E7)) -> 60 | AT8: =IF(INDEX('Capital base input'!AT$190:AT$239, $E7)="", AS8, INDEX('Capital base input'!AT$190:AT$239, $E7)) -> 60 | AU8: =IF(INDEX('Capital base input'!AU$190:AU$239, $E7)="", AT8, INDEX('Capital base input'!AU$190:AU$239, $E7)) -> 60 | AV8: =IF(INDEX('Capital base input'!AV$190:AV$239, $E7)="", AU8, INDEX('Capital base input'!AV$190:AV$239, $E7)) -> 60 | AW8: =IF(INDEX('Capital base input'!AW$190:AW$239, $E7)="", AV8, INDEX('Capital base input'!AW$190:AW$239, $E7)) -> 60 | AX8: =IF(INDEX('Capital base input'!AX$190:AX$239, $E7)="", AW8, INDEX('Capital base input'!AX$190:AX$239, $E7)) -> 60 | AY8: =IF(INDEX('Capital base input'!AY$190:AY$239, $E7)="", AX8, INDEX('Capital base input'!AY$190:AY$239, $E7)) -> 60 | AZ8: =IF(INDEX('Capital base input'!AZ$190:AZ$239, $E7)="", AY8, INDEX('Capital base input'!AZ$190:AZ$239, $E7)) -> 60 | BA8: =IF(INDEX('Capital base input'!BA$190:BA$239, $E7)="", AZ8, INDEX('Capital base input'!BA$190:BA$239, $E7)) -> 60 | BB8: =IF(INDEX('Capital base input'!BB$190:BB$239, $E7)="", BA8, INDEX('Capital base input'!BB$190:BB$239, $E7)) -> 60 | BC8: =IF(INDEX('Capital base input'!BC$190:BC$239, $E7)="", BB8, INDEX('Capital base input'!BC$190:BC$239, $E7)) -> 60 | BD8: =IF(INDEX('Capital base input'!BD$190:BD$239, $E7)="", BC8, INDEX('Capital base input'!BD$190:BD$239, $E7)) -> 60 | BE8: =IF(INDEX('Capital base input'!BE$190:BE$239, $E7)="", BD8, INDEX('Capital base input'!BE$190:BE$239, $E7)) -> 60 | BF8: =IF(INDEX('Capital base input'!BF$190:BF$239, $E7)="", BE8, INDEX('Capital base input'!BF$190:BF$239, $E7)) -> 60 | BG8: =IF(INDEX('Capital base input'!BG$190:BG$239, $E7)="", BF8, INDEX('Capital base input'!BG$190:BG$239, $E7)) -> 60 | BH8: =IF(INDEX('Capital base input'!BH$190:BH$239, $E7)="", BG8, INDEX('Capital base input'!BH$190:BH$239, $E7)) -> 60 | BI8: =IF(INDEX('Capital base input'!BI$190:BI$239, $E7)="", BH8, INDEX('Capital base input'!BI$190:BI$239, $E7)) -> 60 | BJ8: =IF(INDEX('Capital base input'!BJ$190:BJ$239, $E7)="", BI8, INDEX('Capital base input'!BJ$190:BJ$239, $E7)) -> 60 | BK8: =IF(INDEX('Capital base input'!BK$190:BK$239, $E7)="", BJ8, INDEX('Capital base input'!BK$190:BK$239, $E7)) -> 60 | BL8: =IF(INDEX('Capital base input'!BL$190:BL$239, $E7)="", BK8, INDEX('Capital base input'!BL$190:BL$239, $E7)) -> 60 | BM8: =IF(INDEX('Capital base input'!BM$190:BM$239, $E7)="", BL8, INDEX('Capital base input'!BM$190:BM$239, $E7)) -> 60 | BN8: =IF(INDEX('Capital base input'!BN$190:BN$239, $E7)="", BM8, INDEX('Capital base input'!BN$190:BN$239, $E7)) -> 60 | BO8: =IF(INDEX('Capital base input'!BO$190:BO$239, $E7)="", BN8, INDEX('Capital base input'!BO$190:BO$239, $E7)) -> 60 | BP8: =IF(INDEX('Capital base input'!BP$190:BP$239, $E7)="", BO8, INDEX('Capital base input'!BP$190:BP$239, $E7)) -> 60 | BQ8: =IF(INDEX('Capital base input'!BQ$190:BQ$239, $E7)="", BP8, INDEX('Capital base input'!BQ$190:BQ$239, $E7)) -> 60 | BR8: =IF(INDEX('Capital base input'!BR$190:BR$239, $E7)="", BQ8, INDEX('Capital base input'!BR$190:BR$239, $E7)) -> 60 | BS8: =IF(INDEX('Capital base input'!BS$190:BS$239, $E7)="", BR8, INDEX('Capital base input'!BS$190:BS$239, $E7)) -> 60 | BT8: =IF(INDEX('Capital base input'!BT$190:BT$239, $E7)="", BS8, INDEX('Capital base input'!BT$190:BT$239, $E7)) -> 60 | BU8: =IF(INDEX('Capital base input'!BU$190:BU$239, $E7)="", BT8, INDEX('Capital base input'!BU$190:BU$239, $E7)) -> 60 | BV8: =IF(INDEX('Capital base input'!BV$190:BV$239, $E7)="", BU8, INDEX('Capital base input'!BV$190:BV$239, $E7)) -> 60 | BW8: =IF(INDEX('Capital base input'!BW$190:BW$239, $E7)="", BV8, INDEX('Capital base input'!BW$190:BW$239, $E7)) -> 60 | BX8: =IF(INDEX('Capital base input'!BX$190:BX$239, $E7)="", BW8, INDEX('Capital base input'!BX$190:BX$239, $E7)) -> 60 | BY8: =IF(INDEX('Capital base input'!BY$190:BY$239, $E7)="", BX8, INDEX('Capital base input'!BY$190:BY$239, $E7)) -> 60 | BZ8: =IF(INDEX('Capital base input'!BZ$190:BZ$239, $E7)="", BY8, INDEX('Capital base input'!BZ$190:BZ$239, $E7)) -> 60 | CA8: =IF(INDEX('Capital base input'!CA$190:CA$239, $E7)="", BZ8, INDEX('Capital base input'!CA$190:CA$239, $E7)) -> 60 | CB8: =IF(INDEX('Capital base input'!CB$190:CB$239, $E7)="", CA8, INDEX('Capital base input'!CB$190:CB$239, $E7)) -> 60 | CC8: =IF(INDEX('Capital base input'!CC$190:CC$239, $E7)="", CB8, INDEX('Capital base input'!CC$190:CC$239, $E7)) -> 60 | CD8: =IF(INDEX('Capital base input'!CD$190:CD$239, $E7)="", CC8, INDEX('Capital base input'!CD$190:CD$239, $E7)) -> 60 | CE8: =IF(INDEX('Capital base input'!CE$190:CE$239, $E7)="", CD8, INDEX('Capital base input'!CE$190:CE$239, $E7)) -> 60 | CF8: =IF(INDEX('Capital base input'!CF$190:CF$239, $E7)="", CE8, INDEX('Capital base input'!CF$190:CF$239, $E7)) -> 60 | CG8: =IF(INDEX('Capital base input'!CG$190:CG$239, $E7)="", CF8, INDEX('Capital base input'!CG$190:CG$239, $E7)) -> 60 | CH8: =IF(INDEX('Capital base input'!CH$190:CH$239, $E7)="", CG8, INDEX('Capital base input'!CH$190:CH$239, $E7)) -> 60 | CI8: =IF(INDEX('Capital base input'!CI$190:CI$239, $E7)="", CH8, INDEX('Capital base input'!CI$190:CI$239, $E7)) -> 60 | CJ8: =IF(INDEX('Capital base input'!CJ$190:CJ$239, $E7)="", CI8, INDEX('Capital base input'!CJ$190:CJ$239, $E7)) -> 60 | CK8: =IF(INDEX('Capital base input'!CK$190:CK$239, $E7)="", CJ8, INDEX('Capital base input'!CK$190:CK$239, $E7)) -> 60 | CL8: =IF(INDEX('Capital base input'!CL$190:CL$239, $E7)="", CK8, INDEX('Capital base input'!CL$190:CL$239, $E7)) -> 60 | CM8: =IF(INDEX('Capital base input'!CM$190:CM$239, $E7)="", CL8, INDEX('Capital base input'!CM$190:CM$239, $E7)) -> 60 | CN8: =IF(INDEX('Capital base input'!CN$190:CN$239, $E7)="", CM8, INDEX('Capital base input'!CN$190:CN$239, $E7)) -> 60 | CO8: =IF(INDEX('Capital base input'!CO$190:CO$239, $E7)="", CN8, INDEX('Capital base input'!CO$190:CO$239, $E7)) -> 60
F9: Adjustment for difference in t-1 capex | G9: =INDEX('Capital base input'!$G$350:$G$399, $E7)/INDEX(CPI, 'Capital base input'!H$5+2)*INDEX(nvanillaWACC, 'Capital base input'!H$5+2) -> -0.2569505269 | H9: =IF('Capital base input'!I$11="", 0, INDEX('Capital base input'!H$350:H$399, $E7)/'Capital base input'!H$15*(INDEX(rvanillaWACC, 'Capital base input'!I$5+2)/'Capital base input'!H$20-1)) -> 0 | I9: =IF('Capital base input'!J$11="", 0, INDEX('Capital base input'!I$350:I$399, $E7)/'Capital base input'!I$15*(INDEX(rvanillaWACC, 'Capital base input'!J$5+2)/'Capital base input'!I$20-1)) -> 0 | J9: =IF('Capital base input'!K$11="", 0, INDEX('Capital base input'!J$350:J$399, $E7)/'Capital base input'!J$15*(INDEX(rvanillaWACC, 'Capital base input'!K$5+2)/'Capital base input'!J$20-1)) -> 0 | K9: =IF('Capital base input'!L$11="", 0, INDEX('Capital base input'!K$350:K$399, $E7)/'Capital base input'!K$15*(INDEX(rvanillaWACC, 'Capital base input'!L$5+2)/'Capital base input'!K$20-1)) -> 0 | L9: =IF('Capital base input'!M$11="", 0, INDEX('Capital base input'!L$350:L$399, $E7)/'Capital base input'!L$15*(INDEX(rvanillaWACC, 'Capital base input'!M$5+2)/'Capital base input'!L$20-1)) -> -0.003250999579 | M9: =IF('Capital base input'!N$11="", 0, INDEX('Capital base input'!M$350:M$399, $E7)/'Capital base input'!M$15*(INDEX(rvanillaWACC, 'Capital base input'!N$5+2)/'Capital base input'!M$20-1)) -> 0 | N9: =IF('Capital base input'!O$11="", 0, INDEX('Capital base input'!N$350:N$399, $E7)/'Capital base input'!N$15*(INDEX(rvanillaWACC, 'Capital base input'!O$5+2)/'Capital base input'!N$20-1)) -> 0 | O9: =IF('Capital base input'!P$11="", 0, INDEX('Capital base input'!O$350:O$399, $E7)/'Capital base input'!O$15*(INDEX(rvanillaWACC, 'Capital base input'!P$5+2)/'Capital base input'!O$20-1)) -> 0 | P9: =IF('Capital base input'!Q$11="", 0, INDEX('Capital base input'!P$350:P$399, $E7)/'Capital base input'!P$15*(INDEX(rvanillaWACC, 'Capital base input'!Q$5+2)/'Capital base input'!P$20-1)) -> 0 | Q9: =IF('Capital base input'!R$11="", 0, INDEX('Capital base input'!Q$350:Q$399, $E7)/'Capital base input'!Q$15*(INDEX(rvanillaWACC, 'Capital base input'!R$5+2)/'Capital base input'!Q$20-1)) -> 0 | R9: =IF('Capital base input'!S$11="", 0, INDEX('Capital base input'!R$350:R$399, $E7)/'Capital base input'!R$15*(INDEX(rvanillaWACC, 'Capital base input'!S$5+2)/'Capital base input'!R$20-1)) -> 0 | S9: =IF('Capital base input'!T$11="", 0, INDEX('Capital base input'!S$350:S$399, $E7)/'Capital base input'!S$15*(INDEX(rvanillaWACC, 'Capital base input'!T$5+2)/'Capital base input'!S$20-1)) -> 0 | T9: =IF('Capital base input'!U$11="", 0, INDEX('Capital base input'!T$350:T$399, $E7)/'Capital base input'!T$15*(INDEX(rvanillaWACC, 'Capital base input'!U$5+2)/'Capital base input'!T$20-1)) -> 0 | U9: =IF('Capital base input'!V$11="", 0, INDEX('Capital base input'!U$350:U$399, $E7)/'Capital base input'!U$15*(INDEX(rvanillaWACC, 'Capital base input'!V$5+2)/'Capital base input'!U$20-1)) -> 0 | V9: =IF('Capital base input'!W$11="", 0, INDEX('Capital base input'!V$350:V$399, $E7)/'Capital base input'!V$15*(INDEX(rvanillaWACC, 'Capital base input'!W$5+2)/'Capital base input'!V$20-1)) -> 0 | W9: =IF('Capital base input'!X$11="", 0, INDEX('Capital base input'!W$350:W$399, $E7)/'Capital base input'!W$15*(INDEX(rvanillaWACC, 'Capital base input'!X$5+2)/'Capital base input'!W$20-1)) -> 0 | X9: =IF('Capital base input'!Y$11="", 0, INDEX('Capital base input'!X$350:X$399, $E7)/'Capital base input'!X$15*(INDEX(rvanillaWACC, 'Capital base input'!Y$5+2)/'Capital base input'!X$20-1)) -> 0 | Y9: =IF('Capital base input'!Z$11="", 0, INDEX('Capital base input'!Y$350:Y$399, $E7)/'Capital base input'!Y$15*(INDEX(rvanillaWACC, 'Capital base input'!Z$5+2)/'Capital base input'!Y$20-1)) -> 0 | Z9: =IF('Capital base input'!AA$11="", 0, INDEX('Capital base input'!Z$350:Z$399, $E7)/'Capital base input'!Z$15*(INDEX(rvanillaWACC, 'Capital base input'!AA$5+2)/'Capital base input'!Z$20-1)) -> 0 | AA9: =IF('Capital base input'!AB$11="", 0, INDEX('Capital base input'!AA$350:AA$399, $E7)/'Capital base input'!AA$15*(INDEX(rvanillaWACC, 'Capital base input'!AB$5+2)/'Capital base input'!AA$20-1)) -> 0 | AB9: =IF('Capital base input'!AC$11="", 0, INDEX('Capital base input'!AB$350:AB$399, $E7)/'Capital base input'!AB$15*(INDEX(rvanillaWACC, 'Capital base input'!AC$5+2)/'Capital base input'!AB$20-1)) -> 0 | AC9: =IF('Capital base input'!AD$11="", 0, INDEX('Capital base input'!AC$350:AC$399, $E7)/'Capital base input'!AC$15*(INDEX(rvanillaWACC, 'Capital base input'!AD$5+2)/'Capital base input'!AC$20-1)) -> 0 | AD9: =IF('Capital base input'!AE$11="", 0, INDEX('Capital base input'!AD$350:AD$399, $E7)/'Capital base input'!AD$15*(INDEX(rvanillaWACC, 'Capital base input'!AE$5+2)/'Capital base input'!AD$20-1)) -> 0 | AE9: =IF('Capital base input'!AF$11="", 0, INDEX('Capital base input'!AE$350:AE$399, $E7)/'Capital base input'!AE$15*(INDEX(rvanillaWACC, 'Capital base input'!AF$5+2)/'Capital base input'!AE$20-1)) -> 0 | AF9: =IF('Capital base input'!AG$11="", 0, INDEX('Capital base input'!AF$350:AF$399, $E7)/'Capital base input'!AF$15*(INDEX(rvanillaWACC, 'Capital base input'!AG$5+2)/'Capital base input'!AF$20-1)) -> 0 | AG9: =IF('Capital base input'!AH$11="", 0, INDEX('Capital base input'!AG$350:AG$399, $E7)/'Capital base input'!AG$15*(INDEX(rvanillaWACC, 'Capital base input'!AH$5+2)/'Capital base input'!AG$20-1)) -> 0 | AH9: =IF('Capital base input'!AI$11="", 0, INDEX('Capital base input'!AH$350:AH$399, $E7)/'Capital base input'!AH$15*(INDEX(rvanillaWACC, 'Capital base input'!AI$5+2)/'Capital base input'!AH$20-1)) -> 0 | AI9: =IF('Capital base input'!AJ$11="", 0, INDEX('Capital base input'!AI$350:AI$399, $E7)/'Capital base input'!AI$15*(INDEX(rvanillaWACC, 'Capital base input'!AJ$5+2)/'Capital base input'!AI$20-1)) -> 0 | AJ9: =IF('Capital base input'!AK$11="", 0, INDEX('Capital base input'!AJ$350:AJ$399, $E7)/'Capital base input'!AJ$15*(INDEX(rvanillaWACC, 'Capital base input'!AK$5+2)/'Capital base input'!AJ$20-1)) -> 0 | AK9: =IF('Capital base input'!AL$11="", 0, INDEX('Capital base input'!AK$350:AK$399, $E7)/'Capital base input'!AK$15*(INDEX(rvanillaWACC, 'Capital base input'!AL$5+2)/'Capital base input'!AK$20-1)) -> 0 | AL9: =IF('Capital base input'!AM$11="", 0, INDEX('Capital base input'!AL$350:AL$399, $E7)/'Capital base input'!AL$15*(INDEX(rvanillaWACC, 'Capital base input'!AM$5+2)/'Capital base input'!AL$20-1)) -> 0 | AM9: =IF('Capital base input'!AN$11="", 0, INDEX('Capital base input'!AM$350:AM$399, $E7)/'Capital base input'!AM$15*(INDEX(rvanillaWACC, 'Capital base input'!AN$5+2)/'Capital base input'!AM$20-1)) -> 0 | AN9: =IF('Capital base input'!AO$11="", 0, INDEX('Capital base input'!AN$350:AN$399, $E7)/'Capital base input'!AN$15*(INDEX(rvanillaWACC, 'Capital base input'!AO$5+2)/'Capital base input'!AN$20-1)) -> 0 | AO9: =IF('Capital base input'!AP$11="", 0, INDEX('Capital base input'!AO$350:AO$399, $E7)/'Capital base input'!AO$15*(INDEX(rvanillaWACC, 'Capital base input'!AP$5+2)/'Capital base input'!AO$20-1)) -> 0 | AP9: =IF('Capital base input'!AQ$11="", 0, INDEX('Capital base input'!AP$350:AP$399, $E7)/'Capital base input'!AP$15*(INDEX(rvanillaWACC, 'Capital base input'!AQ$5+2)/'Capital base input'!AP$20-1)) -> 0 | AQ9: =IF('Capital base input'!AR$11="", 0, INDEX('Capital base input'!AQ$350:AQ$399, $E7)/'Capital base input'!AQ$15*(INDEX(rvanillaWACC, 'Capital base input'!AR$5+2)/'Capital base input'!AQ$20-1)) -> 0 | AR9: =IF('Capital base input'!AS$11="", 0, INDEX('Capital base input'!AR$350:AR$399, $E7)/'Capital base input'!AR$15*(INDEX(rvanillaWACC, 'Capital base input'!AS$5+2)/'Capital base input'!AR$20-1)) -> 0 | AS9: =IF('Capital base input'!AT$11="", 0, INDEX('Capital base input'!AS$350:AS$399, $E7)/'Capital base input'!AS$15*(INDEX(rvanillaWACC, 'Capital base input'!AT$5+2)/'Capital base input'!AS$20-1)) -> 0 | AT9: =IF('Capital base input'!AU$11="", 0, INDEX('Capital base input'!AT$350:AT$399, $E7)/'Capital base input'!AT$15*(INDEX(rvanillaWACC, 'Capital base input'!AU$5+2)/'Capital base input'!AT$20-1)) -> 0 | AU9: =IF('Capital base input'!AV$11="", 0, INDEX('Capital base input'!AU$350:AU$399, $E7)/'Capital base input'!AU$15*(INDEX(rvanillaWACC, 'Capital base input'!AV$5+2)/'Capital base input'!AU$20-1)) -> 0 | AV9: =IF('Capital base input'!AW$11="", 0, INDEX('Capital base input'!AV$350:AV$399, $E7)/'Capital base input'!AV$15*(INDEX(rvanillaWACC, 'Capital base input'!AW$5+2)/'Capital base input'!AV$20-1)) -> 0 | AW9: =IF('Capital base input'!AX$11="", 0, INDEX('Capital base input'!AW$350:AW$399, $E7)/'Capital base input'!AW$15*(INDEX(rvanillaWACC, 'Capital base input'!AX$5+2)/'Capital base input'!AW$20-1)) -> 0 | AX9: =IF('Capital base input'!AY$11="", 0, INDEX('Capital base input'!AX$350:AX$399, $E7)/'Capital base input'!AX$15*(INDEX(rvanillaWACC, 'Capital base input'!AY$5+2)/'Capital base input'!AX$20-1)) -> 0 | AY9: =IF('Capital base input'!AZ$11="", 0, INDEX('Capital base input'!AY$350:AY$399, $E7)/'Capital base input'!AY$15*(INDEX(rvanillaWACC, 'Capital base input'!AZ$5+2)/'Capital base input'!AY$20-1)) -> 0 | AZ9: =IF('Capital base input'!BA$11="", 0, INDEX('Capital base input'!AZ$350:AZ$399, $E7)/'Capital base input'!AZ$15*(INDEX(rvanillaWACC, 'Capital base input'!BA$5+2)/'Capital base input'!AZ$20-1)) -> 0 | BA9: =IF('Capital base input'!BB$11="", 0, INDEX('Capital base input'!BA$350:BA$399, $E7)/'Capital base input'!BA$15*(INDEX(rvanillaWACC, 'Capital base input'!BB$5+2)/'Capital base input'!BA$20-1)) -> 0 | BB9: =IF('Capital base input'!BC$11="", 0, INDEX('Capital base input'!BB$350:BB$399, $E7)/'Capital base input'!BB$15*(INDEX(rvanillaWACC, 'Capital base input'!BC$5+2)/'Capital base input'!BB$20-1)) -> 0 | BC9: =IF('Capital base input'!BD$11="", 0, INDEX('Capital base input'!BC$350:BC$399, $E7)/'Capital base input'!BC$15*(INDEX(rvanillaWACC, 'Capital base input'!BD$5+2)/'Capital base input'!BC$20-1)) -> 0 | BD9: =IF('Capital base input'!BE$11="", 0, INDEX('Capital base input'!BD$350:BD$399, $E7)/'Capital base input'!BD$15*(INDEX(rvanillaWACC, 'Capital base input'!BE$5+2)/'Capital base input'!BD$20-1)) -> 0 | BE9: =IF('Capital base input'!BF$11="", 0, INDEX('Capital base input'!BE$350:BE$399, $E7)/'Capital base input'!BE$15*(INDEX(rvanillaWACC, 'Capital base input'!BF$5+2)/'Capital base input'!BE$20-1)) -> 0 | BF9: =IF('Capital base input'!BG$11="", 0, INDEX('Capital base input'!BF$350:BF$399, $E7)/'Capital base input'!BF$15*(INDEX(rvanillaWACC, 'Capital base input'!BG$5+2)/'Capital base input'!BF$20-1)) -> 0 | BG9: =IF('Capital base input'!BH$11="", 0, INDEX('Capital base input'!BG$350:BG$399, $E7)/'Capital base input'!BG$15*(INDEX(rvanillaWACC, 'Capital base input'!BH$5+2)/'Capital base input'!BG$20-1)) -> 0 | BH9: =IF('Capital base input'!BI$11="", 0, INDEX('Capital base input'!BH$350:BH$399, $E7)/'Capital base input'!BH$15*(INDEX(rvanillaWACC, 'Capital base input'!BI$5+2)/'Capital base input'!BH$20-1)) -> 0 | BI9: =IF('Capital base input'!BJ$11="", 0, INDEX('Capital base input'!BI$350:BI$399, $E7)/'Capital base input'!BI$15*(INDEX(rvanillaWACC, 'Capital base input'!BJ$5+2)/'Capital base input'!BI$20-1)) -> 0 | BJ9: =IF('Capital base input'!BK$11="", 0, INDEX('Capital base input'!BJ$350:BJ$399, $E7)/'Capital base input'!BJ$15*(INDEX(rvanillaWACC, 'Capital base input'!BK$5+2)/'Capital base input'!BJ$20-1)) -> 0 | BK9: =IF('Capital base input'!BL$11="", 0, INDEX('Capital base input'!BK$350:BK$399, $E7)/'Capital base input'!BK$15*(INDEX(rvanillaWACC, 'Capital base input'!BL$5+2)/'Capital base input'!BK$20-1)) -> 0 | BL9: =IF('Capital base input'!BM$11="", 0, INDEX('Capital base input'!BL$350:BL$399, $E7)/'Capital base input'!BL$15*(INDEX(rvanillaWACC, 'Capital base input'!BM$5+2)/'Capital base input'!BL$20-1)) -> 0 | BM9: =IF('Capital base input'!BN$11="", 0, INDEX('Capital base input'!BM$350:BM$399, $E7)/'Capital base input'!BM$15*(INDEX(rvanillaWACC, 'Capital base input'!BN$5+2)/'Capital base input'!BM$20-1)) -> 0 | BN9: =IF('Capital base input'!BO$11="", 0, INDEX('Capital base input'!BN$350:BN$399, $E7)/'Capital base input'!BN$15*(INDEX(rvanillaWACC, 'Capital base input'!BO$5+2)/'Capital base input'!BN$20-1)) -> 0 | BO9: =IF('Capital base input'!BP$11="", 0, INDEX('Capital base input'!BO$350:BO$399, $E7)/'Capital base input'!BO$15*(INDEX(rvanillaWACC, 'Capital base input'!BP$5+2)/'Capital base input'!BO$20-1)) -> 0 | BP9: =IF('Capital base input'!BQ$11="", 0, INDEX('Capital base input'!BP$350:BP$399, $E7)/'Capital base input'!BP$15*(INDEX(rvanillaWACC, 'Capital base input'!BQ$5+2)/'Capital base input'!BP$20-1)) -> 0 | BQ9: =IF('Capital base input'!BR$11="", 0, INDEX('Capital base input'!BQ$350:BQ$399, $E7)/'Capital base input'!BQ$15*(INDEX(rvanillaWACC, 'Capital base input'!BR$5+2)/'Capital base input'!BQ$20-1)) -> 0 | BR9: =IF('Capital base input'!BS$11="", 0, INDEX('Capital base input'!BR$350:BR$399, $E7)/'Capital base input'!BR$15*(INDEX(rvanillaWACC, 'Capital base input'!BS$5+2)/'Capital base input'!BR$20-1)) -> 0 | BS9: =IF('Capital base input'!BT$11="", 0, INDEX('Capital base input'!BS$350:BS$399, $E7)/'Capital base input'!BS$15*(INDEX(rvanillaWACC, 'Capital base input'!BT$5+2)/'Capital base input'!BS$20-1)) -> 0 | BT9: =IF('Capital base input'!BU$11="", 0, INDEX('Capital base input'!BT$350:BT$399, $E7)/'Capital base input'!BT$15*(INDEX(rvanillaWACC, 'Capital base input'!BU$5+2)/'Capital base input'!BT$20-1)) -> 0 | BU9: =IF('Capital base input'!BV$11="", 0, INDEX('Capital base input'!BU$350:BU$399, $E7)/'Capital base input'!BU$15*(INDEX(rvanillaWACC, 'Capital base input'!BV$5+2)/'Capital base input'!BU$20-1)) -> 0 | BV9: =IF('Capital base input'!BW$11="", 0, INDEX('Capital base input'!BV$350:BV$399, $E7)/'Capital base input'!BV$15*(INDEX(rvanillaWACC, 'Capital base input'!BW$5+2)/'Capital base input'!BV$20-1)) -> 0 | BW9: =IF('Capital base input'!BX$11="", 0, INDEX('Capital base input'!BW$350:BW$399, $E7)/'Capital base input'!BW$15*(INDEX(rvanillaWACC, 'Capital base input'!BX$5+2)/'Capital base input'!BW$20-1)) -> 0 | BX9: =IF('Capital base input'!BY$11="", 0, INDEX('Capital base input'!BX$350:BX$399, $E7)/'Capital base input'!BX$15*(INDEX(rvanillaWACC, 'Capital base input'!BY$5+2)/'Capital base input'!BX$20-1)) -> 0 | BY9: =IF('Capital base input'!BZ$11="", 0, INDEX('Capital base input'!BY$350:BY$399, $E7)/'Capital base input'!BY$15*(INDEX(rvanillaWACC, 'Capital base input'!BZ$5+2)/'Capital base input'!BY$20-1)) -> 0 | BZ9: =IF('Capital base input'!CA$11="", 0, INDEX('Capital base input'!BZ$350:BZ$399, $E7)/'Capital base input'!BZ$15*(INDEX(rvanillaWACC, 'Capital base input'!CA$5+2)/'Capital base input'!BZ$20-1)) -> 0 | CA9: =IF('Capital base input'!CB$11="", 0, INDEX('Capital base input'!CA$350:CA$399, $E7)/'Capital base input'!CA$15*(INDEX(rvanillaWACC, 'Capital base input'!CB$5+2)/'Capital base input'!CA$20-1)) -> 0 | CB9: =IF('Capital base input'!CC$11="", 0, INDEX('Capital base input'!CB$350:CB$399, $E7)/'Capital base input'!CB$15*(INDEX(rvanillaWACC, 'Capital base input'!CC$5+2)/'Capital base input'!CB$20-1)) -> 0 | CC9: =IF('Capital base input'!CD$11="", 0, INDEX('Capital base input'!CC$350:CC$399, $E7)/'Capital base input'!CC$15*(INDEX(rvanillaWACC, 'Capital base input'!CD$5+2)/'Capital base input'!CC$20-1)) -> 0 | CD9: =IF('Capital base input'!CE$11="", 0, INDEX('Capital base input'!CD$350:CD$399, $E7)/'Capital base input'!CD$15*(INDEX(rvanillaWACC, 'Capital base input'!CE$5+2)/'Capital base input'!CD$20-1)) -> 0 | CE9: =IF('Capital base input'!CF$11="", 0, INDEX('Capital base input'!CE$350:CE$399, $E7)/'Capital base input'!CE$15*(INDEX(rvanillaWACC, 'Capital base input'!CF$5+2)/'Capital base input'!CE$20-1)) -> 0 | CF9: =IF('Capital base input'!CG$11="", 0, INDEX('Capital base input'!CF$350:CF$399, $E7)/'Capital base input'!CF$15*(INDEX(rvanillaWACC, 'Capital base input'!CG$5+2)/'Capital base input'!CF$20-1)) -> 0 | CG9: =IF('Capital base input'!CH$11="", 0, INDEX('Capital base input'!CG$350:CG$399, $E7)/'Capital base input'!CG$15*(INDEX(rvanillaWACC, 'Capital base input'!CH$5+2)/'Capital base input'!CG$20-1)) -> 0 | CH9: =IF('Capital base input'!CI$11="", 0, INDEX('Capital base input'!CH$350:CH$399, $E7)/'Capital base input'!CH$15*(INDEX(rvanillaWACC, 'Capital base input'!CI$5+2)/'Capital base input'!CH$20-1)) -> 0 | CI9: =IF('Capital base input'!CJ$11="", 0, INDEX('Capital base input'!CI$350:CI$399, $E7)/'Capital base input'!CI$15*(INDEX(rvanillaWACC, 'Capital base input'!CJ$5+2)/'Capital base input'!CI$20-1)) -> 0 | CJ9: =IF('Capital base input'!CK$11="", 0, INDEX('Capital base input'!CJ$350:CJ$399, $E7)/'Capital base input'!CJ$15*(INDEX(rvanillaWACC, 'Capital base input'!CK$5+2)/'Capital base input'!CJ$20-1)) -> 0 | CK9: =IF('Capital base input'!CL$11="", 0, INDEX('Capital base input'!CK$350:CK$399, $E7)/'Capital base input'!CK$15*(INDEX(rvanillaWACC, 'Capital base input'!CL$5+2)/'Capital base input'!CK$20-1)) -> 0 | CL9: =IF('Capital base input'!CM$11="", 0, INDEX('Capital base input'!CL$350:CL$399, $E7)/'Capital base input'!CL$15*(INDEX(rvanillaWACC, 'Capital base input'!CM$5+2)/'Capital base input'!CL$20-1)) -> 0 | CM9: =IF('Capital base input'!CN$11="", 0, INDEX('Capital base input'!CM$350:CM$399, $E7)/'Capital base input'!CM$15*(INDEX(rvanillaWACC, 'Capital base input'!CN$5+2)/'Capital base input'!CM$20-1)) -> 0 | CN9: =IF('Capital base input'!CO$11="", 0, INDEX('Capital base input'!CN$350:CN$399, $E7)/'Capital base input'!CN$15*(INDEX(rvanillaWACC, 'Capital base input'!CO$5+2)/'Capital base input'!CN$20-1)) -> 0 | CO9: =IF('Capital base input'!CP$11="", 0, INDEX('Capital base input'!CO$350:CO$399, $E7)/'Capital base input'!CO$15*(INDEX(rvanillaWACC, 'Capital base input'!CP$5+2)/'Capital base input'!CO$20-1)) -> 0
F10: Remaining life of adjustment for t-1 capex (years) | G10: =IF(G9<>0, IF(G8<>"n/a", INDEX('Capital base input'!$G$190:$G$239, $E7)-'Capital base input'!$H$11, "n/a"), 0) -> 19.45374964 | H10: =IF(H9<>0, IF(H8<>"n/a", H8-ROUNDDOWN('Capital base input'!I$11, 0), "n/a"), 0) -> 0 | I10: =IF(I9<>0, IF(I8<>"n/a", I8-ROUNDDOWN('Capital base input'!J$11, 0), "n/a"), 0) -> 0 | J10: =IF(J9<>0, IF(J8<>"n/a", J8-ROUNDDOWN('Capital base input'!K$11, 0), "n/a"), 0) -> 0 | K10: =IF(K9<>0, IF(K8<>"n/a", K8-ROUNDDOWN('Capital base input'!L$11, 0), "n/a"), 0) -> 0 | L10: =IF(L9<>0, IF(L8<>"n/a", L8-ROUNDDOWN('Capital base input'!M$11, 0), "n/a"), 0) -> 55 | M10: =IF(M9<>0, IF(M8<>"n/a", M8-ROUNDDOWN('Capital base input'!N$11, 0), "n/a"), 0) -> 0 | N10: =IF(N9<>0, IF(N8<>"n/a", N8-ROUNDDOWN('Capital base input'!O$11, 0), "n/a"), 0) -> 0 | O10: =IF(O9<>0, IF(O8<>"n/a", O8-ROUNDDOWN('Capital base input'!P$11, 0), "n/a"), 0) -> 0 | P10: =IF(P9<>0, IF(P8<>"n/a", P8-ROUNDDOWN('Capital base input'!Q$11, 0), "n/a"), 0) -> 0 | Q10: =IF(Q9<>0, IF(Q8<>"n/a", Q8-ROUNDDOWN('Capital base input'!R$11, 0), "n/a"), 0) -> 0 | R10: =IF(R9<>0, IF(R8<>"n/a", R8-ROUNDDOWN('Capital base input'!S$11, 0), "n/a"), 0) -> 0 | S10: =IF(S9<>0, IF(S8<>"n/a", S8-ROUNDDOWN('Capital base input'!T$11, 0), "n/a"), 0) -> 0 | T10: =IF(T9<>0, IF(T8<>"n/a", T8-ROUNDDOWN('Capital base input'!U$11, 0), "n/a"), 0) -> 0 | U10: =IF(U9<>0, IF(U8<>"n/a", U8-ROUNDDOWN('Capital base input'!V$11, 0), "n/a"), 0) -> 0 | V10: =IF(V9<>0, IF(V8<>"n/a", V8-ROUNDDOWN('Capital base input'!W$11, 0), "n/a"), 0) -> 0 | W10: =IF(W9<>0, IF(W8<>"n/a", W8-ROUNDDOWN('Capital base input'!X$11, 0), "n/a"), 0) -> 0 | X10: =IF(X9<>0, IF(X8<>"n/a", X8-ROUNDDOWN('Capital base input'!Y$11, 0), "n/a"), 0) -> 0 | Y10: =IF(Y9<>0, IF(Y8<>"n/a", Y8-ROUNDDOWN('Capital base input'!Z$11, 0), "n/a"), 0) -> 0 | Z10: =IF(Z9<>0, IF(Z8<>"n/a", Z8-ROUNDDOWN('Capital base input'!AA$11, 0), "n/a"), 0) -> 0 | AA10: =IF(AA9<>0, IF(AA8<>"n/a", AA8-ROUNDDOWN('Capital base input'!AB$11, 0), "n/a"), 0) -> 0 | AB10: =IF(AB9<>0, IF(AB8<>"n/a", AB8-ROUNDDOWN('Capital base input'!AC$11, 0), "n/a"), 0) -> 0 | AC10: =IF(AC9<>0, IF(AC8<>"n/a", AC8-ROUNDDOWN('Capital base input'!AD$11, 0), "n/a"), 0) -> 0 | AD10: =IF(AD9<>0, IF(AD8<>"n/a", AD8-ROUNDDOWN('Capital base input'!AE$11, 0), "n/a"), 0) -> 0 | AE10: =IF(AE9<>0, IF(AE8<>"n/a", AE8-ROUNDDOWN('Capital base input'!AF$11, 0), "n/a"), 0) -> 0 | AF10: =IF(AF9<>0, IF(AF8<>"n/a", AF8-ROUNDDOWN('Capital base input'!AG$11, 0), "n/a"), 0) -> 0 | AG10: =IF(AG9<>0, IF(AG8<>"n/a", AG8-ROUNDDOWN('Capital base input'!AH$11, 0), "n/a"), 0) -> 0 | AH10: =IF(AH9<>0, IF(AH8<>"n/a", AH8-ROUNDDOWN('Capital base input'!AI$11, 0), "n/a"), 0) -> 0 | AI10: =IF(AI9<>0, IF(AI8<>"n/a", AI8-ROUNDDOWN('Capital base input'!AJ$11, 0), "n/a"), 0) -> 0 | AJ10: =IF(AJ9<>0, IF(AJ8<>"n/a", AJ8-ROUNDDOWN('Capital base input'!AK$11, 0), "n/a"), 0) -> 0 | AK10: =IF(AK9<>0, IF(AK8<>"n/a", AK8-ROUNDDOWN('Capital base input'!AL$11, 0), "n/a"), 0) -> 0 | AL10: =IF(AL9<>0, IF(AL8<>"n/a", AL8-ROUNDDOWN('Capital base input'!AM$11, 0), "n/a"), 0) -> 0 | AM10: =IF(AM9<>0, IF(AM8<>"n/a", AM8-ROUNDDOWN('Capital base input'!AN$11, 0), "n/a"), 0) -> 0 | AN10: =IF(AN9<>0, IF(AN8<>"n/a", AN8-ROUNDDOWN('Capital base input'!AO$11, 0), "n/a"), 0) -> 0 | AO10: =IF(AO9<>0, IF(AO8<>"n/a", AO8-ROUNDDOWN('Capital base input'!AP$11, 0), "n/a"), 0) -> 0 | AP10: =IF(AP9<>0, IF(AP8<>"n/a", AP8-ROUNDDOWN('Capital base input'!AQ$11, 0), "n/a"), 0) -> 0 | AQ10: =IF(AQ9<>0, IF(AQ8<>"n/a", AQ8-ROUNDDOWN('Capital base input'!AR$11, 0), "n/a"), 0) -> 0 | AR10: =IF(AR9<>0, IF(AR8<>"n/a", AR8-ROUNDDOWN('Capital base input'!AS$11, 0), "n/a"), 0) -> 0 | AS10: =IF(AS9<>0, IF(AS8<>"n/a", AS8-ROUNDDOWN('Capital base input'!AT$11, 0), "n/a"), 0) -> 0 | AT10: =IF(AT9<>0, IF(AT8<>"n/a", AT8-ROUNDDOWN('Capital base input'!AU$11, 0), "n/a"), 0) -> 0 | AU10: =IF(AU9<>0, IF(AU8<>"n/a", AU8-ROUNDDOWN('Capital base input'!AV$11, 0), "n/a"), 0) -> 0 | AV10: =IF(AV9<>0, IF(AV8<>"n/a", AV8-ROUNDDOWN('Capital base input'!AW$11, 0), "n/a"), 0) -> 0 | AW10: =IF(AW9<>0, IF(AW8<>"n/a", AW8-ROUNDDOWN('Capital base input'!AX$11, 0), "n/a"), 0) -> 0 | AX10: =IF(AX9<>0, IF(AX8<>"n/a", AX8-ROUNDDOWN('Capital base input'!AY$11, 0), "n/a"), 0) -> 0 | AY10: =IF(AY9<>0, IF(AY8<>"n/a", AY8-ROUNDDOWN('Capital base input'!AZ$11, 0), "n/a"), 0) -> 0 | AZ10: =IF(AZ9<>0, IF(AZ8<>"n/a", AZ8-ROUNDDOWN('Capital base input'!BA$11, 0), "n/a"), 0) -> 0 | BA10: =IF(BA9<>0, IF(BA8<>"n/a", BA8-ROUNDDOWN('Capital base input'!BB$11, 0), "n/a"), 0) -> 0 | BB10: =IF(BB9<>0, IF(BB8<>"n/a", BB8-ROUNDDOWN('Capital base input'!BC$11, 0), "n/a"), 0) -> 0 | BC10: =IF(BC9<>0, IF(BC8<>"n/a", BC8-ROUNDDOWN('Capital base input'!BD$11, 0), "n/a"), 0) -> 0 | BD10: =IF(BD9<>0, IF(BD8<>"n/a", BD8-ROUNDDOWN('Capital base input'!BE$11, 0), "n/a"), 0) -> 0 | BE10: =IF(BE9<>0, IF(BE8<>"n/a", BE8-ROUNDDOWN('Capital base input'!BF$11, 0), "n/a"), 0) -> 0 | BF10: =IF(BF9<>0, IF(BF8<>"n/a", BF8-ROUNDDOWN('Capital base input'!BG$11, 0), "n/a"), 0) -> 0 | BG10: =IF(BG9<>0, IF(BG8<>"n/a", BG8-ROUNDDOWN('Capital base input'!BH$11, 0), "n/a"), 0) -> 0 | BH10: =IF(BH9<>0, IF(BH8<>"n/a", BH8-ROUNDDOWN('Capital base input'!BI$11, 0), "n/a"), 0) -> 0 | BI10: =IF(BI9<>0, IF(BI8<>"n/a", BI8-ROUNDDOWN('Capital base input'!BJ$11, 0), "n/a"), 0) -> 0 | BJ10: =IF(BJ9<>0, IF(BJ8<>"n/a", BJ8-ROUNDDOWN('Capital base input'!BK$11, 0), "n/a"), 0) -> 0 | BK10: =IF(BK9<>0, IF(BK8<>"n/a", BK8-ROUNDDOWN('Capital base input'!BL$11, 0), "n/a"), 0) -> 0 | BL10: =IF(BL9<>0, IF(BL8<>"n/a", BL8-ROUNDDOWN('Capital base input'!BM$11, 0), "n/a"), 0) -> 0 | BM10: =IF(BM9<>0, IF(BM8<>"n/a", BM8-ROUNDDOWN('Capital base input'!BN$11, 0), "n/a"), 0) -> 0 | BN10: =IF(BN9<>0, IF(BN8<>"n/a", BN8-ROUNDDOWN('Capital base input'!BO$11, 0), "n/a"), 0) -> 0 | BO10: =IF(BO9<>0, IF(BO8<>"n/a", BO8-ROUNDDOWN('Capital base input'!BP$11, 0), "n/a"), 0) -> 0 | BP10: =IF(BP9<>0, IF(BP8<>"n/a", BP8-ROUNDDOWN('Capital base input'!BQ$11, 0), "n/a"), 0) -> 0 | BQ10: =IF(BQ9<>0, IF(BQ8<>"n/a", BQ8-ROUNDDOWN('Capital base input'!BR$11, 0), "n/a"), 0) -> 0 | BR10: =IF(BR9<>0, IF(BR8<>"n/a", BR8-ROUNDDOWN('Capital base input'!BS$11, 0), "n/a"), 0) -> 0 | BS10: =IF(BS9<>0, IF(BS8<>"n/a", BS8-ROUNDDOWN('Capital base input'!BT$11, 0), "n/a"), 0) -> 0 | BT10: =IF(BT9<>0, IF(BT8<>"n/a", BT8-ROUNDDOWN('Capital base input'!BU$11, 0), "n/a"), 0) -> 0 | BU10: =IF(BU9<>0, IF(BU8<>"n/a", BU8-ROUNDDOWN('Capital base input'!BV$11, 0), "n/a"), 0) -> 0 | BV10: =IF(BV9<>0, IF(BV8<>"n/a", BV8-ROUNDDOWN('Capital base input'!BW$11, 0), "n/a"), 0) -> 0 | BW10: =IF(BW9<>0, IF(BW8<>"n/a", BW8-ROUNDDOWN('Capital base input'!BX$11, 0), "n/a"), 0) -> 0 | BX10: =IF(BX9<>0, IF(BX8<>"n/a", BX8-ROUNDDOWN('Capital base input'!BY$11, 0), "n/a"), 0) -> 0 | BY10: =IF(BY9<>0, IF(BY8<>"n/a", BY8-ROUNDDOWN('Capital base input'!BZ$11, 0), "n/a"), 0) -> 0 | BZ10: =IF(BZ9<>0, IF(BZ8<>"n/a", BZ8-ROUNDDOWN('Capital base input'!CA$11, 0), "n/a"), 0) -> 0 | CA10: =IF(CA9<>0, IF(CA8<>"n/a", CA8-ROUNDDOWN('Capital base input'!CB$11, 0), "n/a"), 0) -> 0 | CB10: =IF(CB9<>0, IF(CB8<>"n/a", CB8-ROUNDDOWN('Capital base input'!CC$11, 0), "n/a"), 0) -> 0 | CC10: =IF(CC9<>0, IF(CC8<>"n/a", CC8-ROUNDDOWN('Capital base input'!CD$11, 0), "n/a"), 0) -> 0 | CD10: =IF(CD9<>0, IF(CD8<>"n/a", CD8-ROUNDDOWN('Capital base input'!CE$11, 0), "n/a"), 0) -> 0 | CE10: =IF(CE9<>0, IF(CE8<>"n/a", CE8-ROUNDDOWN('Capital base input'!CF$11, 0), "n/a"), 0) -> 0 | CF10: =IF(CF9<>0, IF(CF8<>"n/a", CF8-ROUNDDOWN('Capital base input'!CG$11, 0), "n/a"), 0) -> 0 | CG10: =IF(CG9<>0, IF(CG8<>"n/a", CG8-ROUNDDOWN('Capital base input'!CH$11, 0), "n/a"), 0) -> 0 | CH10: =IF(CH9<>0, IF(CH8<>"n/a", CH8-ROUNDDOWN('Capital base input'!CI$11, 0), "n/a"), 0) -> 0 | CI10: =IF(CI9<>0, IF(CI8<>"n/a", CI8-ROUNDDOWN('Capital base input'!CJ$11, 0), "n/a"), 0) -> 0 | CJ10: =IF(CJ9<>0, IF(CJ8<>"n/a", CJ8-ROUNDDOWN('Capital base input'!CK$11, 0), "n/a"), 0) -> 0 | CK10: =IF(CK9<>0, IF(CK8<>"n/a", CK8-ROUNDDOWN('Capital base input'!CL$11, 0), "n/a"), 0) -> 0 | CL10: =IF(CL9<>0, IF(CL8<>"n/a", CL8-ROUNDDOWN('Capital base input'!CM$11, 0), "n/a"), 0) -> 0 | CM10: =IF(CM9<>0, IF(CM8<>"n/a", CM8-ROUNDDOWN('Capital base input'!CN$11, 0), "n/a"), 0) -> 0 | CN10: =IF(CN9<>0, IF(CN8<>"n/a", CN8-ROUNDDOWN('Capital base input'!CO$11, 0), "n/a"), 0) -> 0 | CO10: =IF(CO9<>0, IF(CO8<>"n/a", CO8-ROUNDDOWN('Capital base input'!CP$11, 0), "n/a"), 0) -> 0
F11: Asset adjustment - Capital base | H11: =INDEX('Capital base input'!H$243:H$292, $E7)/'Capital base input'!H$15 -> 0 | I11: =INDEX('Capital base input'!I$243:I$292, $E7)/'Capital base input'!I$15 -> 0 | J11: =INDEX('Capital base input'!J$243:J$292, $E7)/'Capital base input'!J$15 -> 0 | K11: =INDEX('Capital base input'!K$243:K$292, $E7)/'Capital base input'!K$15 -> 0 | L11: =INDEX('Capital base input'!L$243:L$292, $E7)/'Capital base input'!L$15 -> 0 | M11: =INDEX('Capital base input'!M$243:M$292, $E7)/'Capital base input'!M$15 -> 0 | N11: =INDEX('Capital base input'!N$243:N$292, $E7)/'Capital base input'!N$15 -> 0 | O11: =INDEX('Capital base input'!O$243:O$292, $E7)/'Capital base input'!O$15 -> 0 | P11: =INDEX('Capital base input'!P$243:P$292, $E7)/'Capital base input'!P$15 -> 0 | Q11: =INDEX('Capital base input'!Q$243:Q$292, $E7)/'Capital base input'!Q$15 -> 0 | R11: =INDEX('Capital base input'!R$243:R$292, $E7)/'Capital base input'!R$15 -> 0 | S11: =INDEX('Capital base input'!S$243:S$292, $E7)/'Capital base input'!S$15 -> 0 | T11: =INDEX('Capital base input'!T$243:T$292, $E7)/'Capital base input'!T$15 -> 0 | U11: =INDEX('Capital base input'!U$243:U$292, $E7)/'Capital base input'!U$15 -> 0 | V11: =INDEX('Capital base input'!V$243:V$292, $E7)/'Capital base input'!V$15 -> 0 | W11: =INDEX('Capital base input'!W$243:W$292, $E7)/'Capital base input'!W$15 -> 0 | X11: =INDEX('Capital base input'!X$243:X$292, $E7)/'Capital base input'!X$15 -> 0 | Y11: =INDEX('Capital base input'!Y$243:Y$292, $E7)/'Capital base input'!Y$15 -> 0 | Z11: =INDEX('Capital base input'!Z$243:Z$292, $E7)/'Capital base input'!Z$15 -> 0 | AA11: =INDEX('Capital base input'!AA$243:AA$292, $E7)/'Capital base input'!AA$15 -> 0 | AB11: =INDEX('Capital base input'!AB$243:AB$292, $E7)/'Capital base input'!AB$15 -> 0 | AC11: =INDEX('Capital base input'!AC$243:AC$292, $E7)/'Capital base input'!AC$15 -> 0 | AD11: =INDEX('Capital base input'!AD$243:AD$292, $E7)/'Capital base input'!AD$15 -> 0 | AE11: =INDEX('Capital base input'!AE$243:AE$292, $E7)/'Capital base input'!AE$15 -> 0 | AF11: =INDEX('Capital base input'!AF$243:AF$292, $E7)/'Capital base input'!AF$15 -> 0 | AG11: =INDEX('Capital base input'!AG$243:AG$292, $E7)/'Capital base input'!AG$15 -> 0 | AH11: =INDEX('Capital base input'!AH$243:AH$292, $E7)/'Capital base input'!AH$15 -> 0 | AI11: =INDEX('Capital base input'!AI$243:AI$292, $E7)/'Capital base input'!AI$15 -> 0 | AJ11: =INDEX('Capital base input'!AJ$243:AJ$292, $E7)/'Capital base input'!AJ$15 -> 0 | AK11: =INDEX('Capital base input'!AK$243:AK$292, $E7)/'Capital base input'!AK$15 -> 0 | AL11: =INDEX('Capital base input'!AL$243:AL$292, $E7)/'Capital base input'!AL$15 -> 0 | AM11: =INDEX('Capital base input'!AM$243:AM$292, $E7)/'Capital base input'!AM$15 -> 0 | AN11: =INDEX('Capital base input'!AN$243:AN$292, $E7)/'Capital base input'!AN$15 -> 0 | AO11: =INDEX('Capital base input'!AO$243:AO$292, $E7)/'Capital base input'!AO$15 -> 0 | AP11: =INDEX('Capital base input'!AP$243:AP$292, $E7)/'Capital base input'!AP$15 -> 0 | AQ11: =INDEX('Capital base input'!AQ$243:AQ$292, $E7)/'Capital base input'!AQ$15 -> 0 | AR11: =INDEX('Capital base input'!AR$243:AR$292, $E7)/'Capital base input'!AR$15 -> 0 | AS11: =INDEX('Capital base input'!AS$243:AS$292, $E7)/'Capital base input'!AS$15 -> 0 | AT11: =INDEX('Capital base input'!AT$243:AT$292, $E7)/'Capital base input'!AT$15 -> 0 | AU11: =INDEX('Capital base input'!AU$243:AU$292, $E7)/'Capital base input'!AU$15 -> 0 | AV11: =INDEX('Capital base input'!AV$243:AV$292, $E7)/'Capital base input'!AV$15 -> 0 | AW11: =INDEX('Capital base input'!AW$243:AW$292, $E7)/'Capital base input'!AW$15 -> 0 | AX11: =INDEX('Capital base input'!AX$243:AX$292, $E7)/'Capital base input'!AX$15 -> 0 | AY11: =INDEX('Capital base input'!AY$243:AY$292, $E7)/'Capital base input'!AY$15 -> 0 | AZ11: =INDEX('Capital base input'!AZ$243:AZ$292, $E7)/'Capital base input'!AZ$15 -> 0 | BA11: =INDEX('Capital base input'!BA$243:BA$292, $E7)/'Capital base input'!BA$15 -> 0 | BB11: =INDEX('Capital base input'!BB$243:BB$292, $E7)/'Capital base input'!BB$15 -> 0 | BC11: =INDEX('Capital base input'!BC$243:BC$292, $E7)/'Capital base input'!BC$15 -> 0 | BD11: =INDEX('Capital base input'!BD$243:BD$292, $E7)/'Capital base input'!BD$15 -> 0 | BE11: =INDEX('Capital base input'!BE$243:BE$292, $E7)/'Capital base input'!BE$15 -> 0 | BF11: =INDEX('Capital base input'!BF$243:BF$292, $E7)/'Capital base input'!BF$15 -> 0 | BG11: =INDEX('Capital base input'!BG$243:BG$292, $E7)/'Capital base input'!BG$15 -> 0 | BH11: =INDEX('Capital base input'!BH$243:BH$292, $E7)/'Capital base input'!BH$15 -> 0 | BI11: =INDEX('Capital base input'!BI$243:BI$292, $E7)/'Capital base input'!BI$15 -> 0 | BJ11: =INDEX('Capital base input'!BJ$243:BJ$292, $E7)/'Capital base input'!BJ$15 -> 0 | BK11: =INDEX('Capital base input'!BK$243:BK$292, $E7)/'Capital base input'!BK$15 -> 0 | BL11: =INDEX('Capital base input'!BL$243:BL$292, $E7)/'Capital base input'!BL$15 -> 0 | BM11: =INDEX('Capital base input'!BM$243:BM$292, $E7)/'Capital base input'!BM$15 -> 0 | BN11: =INDEX('Capital base input'!BN$243:BN$292, $E7)/'Capital base input'!BN$15 -> 0 | BO11: =INDEX('Capital base input'!BO$243:BO$292, $E7)/'Capital base input'!BO$15 -> 0 | BP11: =INDEX('Capital base input'!BP$243:BP$292, $E7)/'Capital base input'!BP$15 -> 0 | BQ11: =INDEX('Capital base input'!BQ$243:BQ$292, $E7)/'Capital base input'!BQ$15 -> 0 | BR11: =INDEX('Capital base input'!BR$243:BR$292, $E7)/'Capital base input'!BR$15 -> 0 | BS11: =INDEX('Capital base input'!BS$243:BS$292, $E7)/'Capital base input'!BS$15 -> 0 | BT11: =INDEX('Capital base input'!BT$243:BT$292, $E7)/'Capital base input'!BT$15 -> 0 | BU11: =INDEX('Capital base input'!BU$243:BU$292, $E7)/'Capital base input'!BU$15 -> 0 | BV11: =INDEX('Capital base input'!BV$243:BV$292, $E7)/'Capital base input'!BV$15 -> 0 | BW11: =INDEX('Capital base input'!BW$243:BW$292, $E7)/'Capital base input'!BW$15 -> 0 | BX11: =INDEX('Capital base input'!BX$243:BX$292, $E7)/'Capital base input'!BX$15 -> 0 | BY11: =INDEX('Capital base input'!BY$243:BY$292, $E7)/'Capital base input'!BY$15 -> 0 | BZ11: =INDEX('Capital base input'!BZ$243:BZ$292, $E7)/'Capital base input'!BZ$15 -> 0 | CA11: =INDEX('Capital base input'!CA$243:CA$292, $E7)/'Capital base input'!CA$15 -> 0 | CB11: =INDEX('Capital base input'!CB$243:CB$292, $E7)/'Capital base input'!CB$15 -> 0 | CC11: =INDEX('Capital base input'!CC$243:CC$292, $E7)/'Capital base input'!CC$15 -> 0 | CD11: =INDEX('Capital base input'!CD$243:CD$292, $E7)/'Capital base input'!CD$15 -> 0 | CE11: =INDEX('Capital base input'!CE$243:CE$292, $E7)/'Capital base input'!CE$15 -> 0 | CF11: =INDEX('Capital base input'!CF$243:CF$292, $E7)/'Capital base input'!CF$15 -> 0 | CG11: =INDEX('Capital base input'!CG$243:CG$292, $E7)/'Capital base input'!CG$15 -> 0 | CH11: =INDEX('Capital base input'!CH$243:CH$292, $E7)/'Capital base input'!CH$15 -> 0 | CI11: =INDEX('Capital base input'!CI$243:CI$292, $E7)/'Capital base input'!CI$15 -> 0 | CJ11: =INDEX('Capital base input'!CJ$243:CJ$292, $E7)/'Capital base input'!CJ$15 -> 0 | CK11: =INDEX('Capital base input'!CK$243:CK$292, $E7)/'Capital base input'!CK$15 -> 0 | CL11: =INDEX('Capital base input'!CL$243:CL$292, $E7)/'Capital base input'!CL$15 -> 0 | CM11: =INDEX('Capital base input'!CM$243:CM$292, $E7)/'Capital base input'!CM$15 -> 0 | CN11: =INDEX('Capital base input'!CN$243:CN$292, $E7)/'Capital base input'!CN$15 -> 0 | CO11: =INDEX('Capital base input'!CO$243:CO$292, $E7)/'Capital base input'!CO$15 -> 0
F12: Remaining life of asset adjustment - Capital base (years) | H12: =INDEX('Capital base input'!H$297:H$346, $E7) -> 0 | I12: =INDEX('Capital base input'!I$297:I$346, $E7) -> 0 | J12: =INDEX('Capital base input'!J$297:J$346, $E7) -> 0 | K12: =INDEX('Capital base input'!K$297:K$346, $E7) -> 0 | L12: =INDEX('Capital base input'!L$297:L$346, $E7) -> 0 | M12: =INDEX('Capital base input'!M$297:M$346, $E7) -> 0 | N12: =INDEX('Capital base input'!N$297:N$346, $E7) -> 0 | O12: =INDEX('Capital base input'!O$297:O$346, $E7) -> 0 | P12: =INDEX('Capital base input'!P$297:P$346, $E7) -> 0 | Q12: =INDEX('Capital base input'!Q$297:Q$346, $E7) -> 0 | R12: =INDEX('Capital base input'!R$297:R$346, $E7) -> 0 | S12: =INDEX('Capital base input'!S$297:S$346, $E7) -> 0 | T12: =INDEX('Capital base input'!T$297:T$346, $E7) -> 0 | U12: =INDEX('Capital base input'!U$297:U$346, $E7) -> 0 | V12: =INDEX('Capital base input'!V$297:V$346, $E7) -> 0 | W12: =INDEX('Capital base input'!W$297:W$346, $E7) -> 0 | X12: =INDEX('Capital base input'!X$297:X$346, $E7) -> 0 | Y12: =INDEX('Capital base input'!Y$297:Y$346, $E7) -> 0 | Z12: =INDEX('Capital base input'!Z$297:Z$346, $E7) -> 0 | AA12: =INDEX('Capital base input'!AA$297:AA$346, $E7) -> 0 | AB12: =INDEX('Capital base input'!AB$297:AB$346, $E7) -> 0 | AC12: =INDEX('Capital base input'!AC$297:AC$346, $E7) -> 0 | AD12: =INDEX('Capital base input'!AD$297:AD$346, $E7) -> 0 | AE12: =INDEX('Capital base input'!AE$297:AE$346, $E7) -> 0 | AF12: =INDEX('Capital base input'!AF$297:AF$346, $E7) -> 0 | AG12: =INDEX('Capital base input'!AG$297:AG$346, $E7) -> 0 | AH12: =INDEX('Capital base input'!AH$297:AH$346, $E7) -> 0 | AI12: =INDEX('Capital base input'!AI$297:AI$346, $E7) -> 0 | AJ12: =INDEX('Capital base input'!AJ$297:AJ$346, $E7) -> 0 | AK12: =INDEX('Capital base input'!AK$297:AK$346, $E7) -> 0 | AL12: =INDEX('Capital base input'!AL$297:AL$346, $E7) -> 0 | AM12: =INDEX('Capital base input'!AM$297:AM$346, $E7) -> 0 | AN12: =INDEX('Capital base input'!AN$297:AN$346, $E7) -> 0 | AO12: =INDEX('Capital base input'!AO$297:AO$346, $E7) -> 0 | AP12: =INDEX('Capital base input'!AP$297:AP$346, $E7) -> 0 | AQ12: =INDEX('Capital base input'!AQ$297:AQ$346, $E7) -> 0 | AR12: =INDEX('Capital base input'!AR$297:AR$346, $E7) -> 0 | AS12: =INDEX('Capital base input'!AS$297:AS$346, $E7) -> 0 | AT12: =INDEX('Capital base input'!AT$297:AT$346, $E7) -> 0 | AU12: =INDEX('Capital base input'!AU$297:AU$346, $E7) -> 0 | AV12: =INDEX('Capital base input'!AV$297:AV$346, $E7) -> 0 | AW12: =INDEX('Capital base input'!AW$297:AW$346, $E7) -> 0 | AX12: =INDEX('Capital base input'!AX$297:AX$346, $E7) -> 0 | AY12: =INDEX('Capital base input'!AY$297:AY$346, $E7) -> 0 | AZ12: =INDEX('Capital base input'!AZ$297:AZ$346, $E7) -> 0 | BA12: =INDEX('Capital base input'!BA$297:BA$346, $E7) -> 0 | BB12: =INDEX('Capital base input'!BB$297:BB$346, $E7) -> 0 | BC12: =INDEX('Capital base input'!BC$297:BC$346, $E7) -> 0 | BD12: =INDEX('Capital base input'!BD$297:BD$346, $E7) -> 0 | BE12: =INDEX('Capital base input'!BE$297:BE$346, $E7) -> 0 | BF12: =INDEX('Capital base input'!BF$297:BF$346, $E7) -> 0 | BG12: =INDEX('Capital base input'!BG$297:BG$346, $E7) -> 0 | BH12: =INDEX('Capital base input'!BH$297:BH$346, $E7) -> 0 | BI12: =INDEX('Capital base input'!BI$297:BI$346, $E7) -> 0 | BJ12: =INDEX('Capital base input'!BJ$297:BJ$346, $E7) -> 0 | BK12: =INDEX('Capital base input'!BK$297:BK$346, $E7) -> 0 | BL12: =INDEX('Capital base input'!BL$297:BL$346, $E7) -> 0 | BM12: =INDEX('Capital base input'!BM$297:BM$346, $E7) -> 0 | BN12: =INDEX('Capital base input'!BN$297:BN$346, $E7) -> 0 | BO12: =INDEX('Capital base input'!BO$297:BO$346, $E7) -> 0 | BP12: =INDEX('Capital base input'!BP$297:BP$346, $E7) -> 0 | BQ12: =INDEX('Capital base input'!BQ$297:BQ$346, $E7) -> 0 | BR12: =INDEX('Capital base input'!BR$297:BR$346, $E7) -> 0 | BS12: =INDEX('Capital base input'!BS$297:BS$346, $E7) -> 0 | BT12: =INDEX('Capital base input'!BT$297:BT$346, $E7) -> 0 | BU12: =INDEX('Capital base input'!BU$297:BU$346, $E7) -> 0 | BV12: =INDEX('Capital base input'!BV$297:BV$346, $E7) -> 0 | BW12: =INDEX('Capital base input'!BW$297:BW$346, $E7) -> 0 | BX12: =INDEX('Capital base input'!BX$297:BX$346, $E7) -> 0 | BY12: =INDEX('Capital base input'!BY$297:BY$346, $E7) -> 0 | BZ12: =INDEX('Capital base input'!BZ$297:BZ$346, $E7) -> 0 | CA12: =INDEX('Capital base input'!CA$297:CA$346, $E7) -> 0 | CB12: =INDEX('Capital base input'!CB$297:CB$346, $E7) -> 0 | CC12: =INDEX('Capital base input'!CC$297:CC$346, $E7) -> 0 | CD12: =INDEX('Capital base input'!CD$297:CD$346, $E7) -> 0 | CE12: =INDEX('Capital base input'!CE$297:CE$346, $E7) -> 0 | CF12: =INDEX('Capital base input'!CF$297:CF$346, $E7) -> 0 | CG12: =INDEX('Capital base input'!CG$297:CG$346, $E7) -> 0 | CH12: =INDEX('Capital base input'!CH$297:CH$346, $E7) -> 0 | CI12: =INDEX('Capital base input'!CI$297:CI$346, $E7) -> 0 | CJ12: =INDEX('Capital base input'!CJ$297:CJ$346, $E7) -> 0 | CK12: =INDEX('Capital base input'!CK$297:CK$346, $E7) -> 0 | CL12: =INDEX('Capital base input'!CL$297:CL$346, $E7) -> 0 | CM12: =INDEX('Capital base input'!CM$297:CM$346, $E7) -> 0 | CN12: =INDEX('Capital base input'!CN$297:CN$346, $E7) -> 0 | CO12: =INDEX('Capital base input'!CO$297:CO$346, $E7) -> 0
F14: Year-by-year tracking
